Workbook

Sheet Main
A2: 日期 | B2: 版本号 | C2: 编制记录 | D2: 编制人
A3: 20190721 | B3: 2 | C3: 初始化建立 | D3: 姚立
A4: 20170722 | B4: 2.1 | C4: 增加插入VB控件 | D4: 姚立
A5: 20190723 | B5: 2.1 | C5: 完善设备列表 | D5: 戚如钢
A6: 20190723 | B6: 2.2 | C6: 修正BUG，增加基础变量 | D6: 姚立
A7: 20190723 | B7: 2.3 | C7: VB编写错误修改 | D7: 姚立
A8: 20190723 | B8: 2.4 | C8: 修正写入BUG | D8: 姚立
A9: 20190724 | B9: 2.5 | C9: 增加变量修正BUG | D9: 姚立
A10: 20190808 | B10: 2.6 | C10: 修正显示问题 | D10: 姚立
A11: 20190812 | B11: 2.7 | C11: 修正现场发现的问题 | D11: 姚立
A12: 20190820 | B12: 2.8 | C12: 增加功能，调整错误 | D12: 姚立
C13: 增加电源模板
C14: 增加前端接线自动检索生成公式，并自动附加前缀
C15: 增加DDC箱体名称
C16: 调整偏置格式
C17: 4种点位模块，颜色区分
C18: 增加页眉页码
C19: 调整偏置格式
C20: 检查BASE模板内字体格式，字体大小
A21: 20190820 | B21: 2.9 | C21: 修正BUG，增加基础变量 | D21: 姚立
A22: 20190821 | B22: 2.91 | C22: 补充吾悦专用变量 | D22: 姚立
A23: 20190903 | B23: 2.92 | C23: 优化声明生成公式（结构整理） | D23: 姚立
A24: 20190904 | B24: 2.93 | C24: 修正1601R与0801R的声明表地址错误问题 | D24: 戚如钢
A25: 20190905 | B25: 2.94 | C25: 修正1601R与0801R的声明表地址另一错误问题 | D25: 戚如钢
A26: 20191003 | B26: 2.95 | C26: 加入主CPU/从CPU/OPCDA声明，适配injoydemov2.0 | D26: 姚立
A27: 20191004 | B27: 2.96 | C27: 优化OPCDA区程序声明备注 | D27: 姚立
A28: 20191006 | B28: 2.97 | C28: 优化OPCDA区数据类型地址自动累加方式 | D28: 姚立
C29: 增加OPCDA区数据类型整除性验证行
C30: 增加主CPU/从CPU接收发送对应地址计算
C31: 增加OPCDA区非直接声明变量自动生成列
A32: 20191008 | B32: 2.98 | C32: 增加从CPU接收主CPU心跳数据 | D32: 姚立
A33: 20191009 | B33: 2.99 | C33: 匹配 | D33: 姚立
A34: 20200509 | B34: 3.1 | C34: 增加EXC6000接线表，增加程序中间变量声明，主从CPU修改变量 | D34: 戴锦豪
A35: 20200509 | B35: 3.11 | C35: 增加冷机声明示例，增加EXC61610进入插入脚本 | D35: 姚立
A36: 20200618 | B36: 3.2 | C36: 增加程序中间变量声明，主从CPU修改变量，Bsae结构整理变大 | D36: 戴锦豪
A37: 20210202 | B37: 3.3 | C37: 增加程序中间变量声明，主从CPU修改变量，Bsae结构整理变大 | D37: 戴锦豪
A38: 20210819 | B38: 3.4 | C38: 修复了表格中声明间隙；EXC61610modbus地址调整；其他编写bug调整 | D38: 潘平
A39: 20211203 | B39: 3.5 | C39: 增加EXC-61608-BT模块声明，应用于蓝牙功能，点位变量调整为中间变量，增加赋值公式 | D39: 潘平
A40: 20211217 | B40: 3.51 | C40: 增加EXC-61610-BT模块声明，应用于蓝牙功能，点位变量调整为中间变量，增加赋值公式 | D40: 潘平
A41: 20220507 | B41: 3.6 | C41: 增加CPU及电源模块样例，完善调试信息图 | D41: 潘平
C42: 拓展设备点位处数据验证长度
C43: 增加EXC-61610-BT模块施工段做白处理，减少现场误解
C44: 增加IOM 0401U E5模块声明
A45: 20221202 | B45: 3.61 | C45: 增加EXC-60006模块声明 | D45: 潘平
A46: 20221206 | B46: 3.62 | C46: 修复了表格中EXC6000模块modbus地址错误问题 | D46: 潘平
A47: 20221222 | B47: 3.63 | C47: 增加EXC-61610 C8、EXC-61610 D8模块 | D47: 潘平
C48: 调整内容：为模拟量端子增设DC24V电源输出，原向下版本暂不删除，用以过渡项目
A49: 20230524 | B49: 3.64 | C49: 增加9键面板模块 | D49: 戴锦豪
A50: 20240812 | B50: 4 | C50: 大改，根据软件部改写变量，中间变量全部加入

Sheet List
A1: 序号 | B1: 设备缩写 | E1: 楼层 | G1: 箱子编号 | I1: 设备数量 | K1: 功能名 | O1: 接线备注
B2: <空调系统>> | E2: 地下三层 | F2: B3 | G2: 1# | H2: A | I2: 1 | J2: 01 | K2: <空调功能> | O2: 功能名 | P2: 端子编号 | Q2: 线色备注
A3: 1 | B3: F新风机组 | C3: FAU | D3: Fresh air unit | E3: 地下二层 | F3: B2 | G3: 2# | H3: B | I3: 2 | J3: 02 | K3: 运行状态 | L3: R | M3: Run
A4: 2 | B4: P新风机组 | C4: PAU | D4: 术语备选 | E4: 地下一层 | F4: B1 | G4: 3# | H4: C | I4: 3 | J4: 03 | K4: 故障状态 | L4: F | M4: Fault
A5: 3 | B5: M新风机组 | C5: MAU | D5: 术语备选 | E5: 夹层 | F5: BM | G5: 4# | H5: D | I5: 4 | J5: 04 | K5: 自动状态 | L5: A | M5: Auto
A6: 4 | B6: 全热交换机组 | C6: HEU | D6: Heat exchange unit | E6: 一层 | F6: 01 | G6: 5# | H6: E | I6: 5 | J6: 05 | K6: 启停控制 | L6: C | M6: Control
A7: 5 | B7: 风机盘管 | C7: FCU | D7: Fan Coil Units | E7: 二层 | F7: 02 | G7: 6# | H7: F | I7: 6 | J7: 06 | K7: 变频器运行 | L7: VR | M7: VFD run
A8: 6 | B8: 空调机组 | C8: AHU | D8: Air handling unit | E8: 三层 | F8: 03 | G8: 7# | H8: G | I8: 7 | J8: 07 | K8: 变频器故障 | L8: VF | M8: VFD fault
B9: <吾悦特殊机组> | E9: 四层 | F9: 04 | G9: 8# | H9: H | I9: 8 | J9: 08 | K9: 变频器启停 | L9: VC | M9: VFD control
A10: 7 | B10: 吊顶式空调机组 | C10: AHU | D10: Fresh air unit | E10: 五层 | F10: 05 | G10: 9# | H10: I | I10: 9 | J10: 09 | K10: 变频器频率控制 | L10: VFC | M10: VFD frequency control
A11: 7 | B11: 风幕机 | C11: AC | D11: air curtain | F11: ··· | H11: ··· | J11: ··· | K11: 变频器频率反馈 | L11: VFB | M11: VFD frequency feedback
A12: 7 | B12: 水幕机 | C12: WAC | D12: Water air curtain | E12: 屋面 | F12: RF | G12: 26# | H12: Z | J12: 99 | K12: 送风机运行状态 | L12: SR | M12: Run
A13: 5 | B13: 风机盘管电磁阀 | C13: FCUV | K13: 送风机故障状态 | L13: SF | M13: Fault
B14: 遮阳帘 | C14: SSC | K14: 送风机自动状态 | L14: SA | M14: Auto
K15: 送风机启停控制 | L15: SC | M15: Control
K16: 送风机变频器频率控制 | L16: SVFC | M16: VFD frequency control
K17: 送风机变频器频率反馈 | L17: SVFB | M17: VFD frequency feedback
K18: 排风机运行状态 | L18: ER | M18: Run
K19: 排风机故障状态 | L19: EF | M19: Fault
K20: 排风机自动状态 | L20: EA | M20: Auto
K21: 排风机启停控制 | L21: EC | M21: Control
K22: 排风机变频器频率控制 | L22: EVFC | M22: VFD frequency control
K23: 排风机变频器频率反馈 | L23: EVFB | M23: VFD frequency feedback
K24: 风机压差 | L24: FPS | M24: Fan Differential Pressure Switch
K25: 初效滤网压差 | L25: IPS | M25: initial effect Differential Pressure Switch
K26: 中效滤网压差 | L26: MPS | M26: Medium effect Differential Pressure Switch
K27: 高效滤网压差 | L27: HPS | M27: High effect Differential Pressure Switch
K28: 低温断路开关 | L28: AFS | M28: Antifreeze switch
K29: 送风温度 | L29: ST | M29: Supply air Temperature
K30: 回风温度 | L30: RT | M30: Return air Temperature
K31: 排风温度 | L31: ET | M31: Exhaust air Temperature
K32: 新风温度 | L32: FT | M32: Fresh air Temperature
K33: 送风湿度 | L33: SH | M33: Supply air Humidity
K34: 回风湿度 | L34: RH | M34: Return air Humidity
K35: 排风湿度 | L35: EH | M35: Exhaust air Humidity
K36: 新风湿度 | L36: FH | M36: Fresh air Humidity
K37: 送风压力 | L37: SP | M37: Supply pressure
K38: 送风风速 | L38: SWS | M38: Supply wind speed
K39: 回风二氧化碳 | L39: RCO2 | M39: Return CO2
K40: 露点温度 | L40: DPT | M40: Dew point temperature
K41: 送风阀开状态 | L41: SDOB | M41: Supply air Damper open feedback
K42: 送风阀关状态 | L42: SDSB | M42: Supply air Damper shut feedback
K43: 送风阀开控制 | L43: SDOC | M43: Supply air Damper open control
K44: 送风阀关控制 | L44: SDSC | M44: Supply air Damper shut control
K45: 回风阀开状态 | L45: RDOB | M45: Return air Damper open feedback
K46: 回风阀关状态 | L46: RDSB | M46: Return air Damper shut feedback
K47: 回风阀开控制 | L47: RDOC | M47: Return air Damper open control
K48: 回风阀关控制 | L48: RDSC | M48: Return air Damper shut control
K49: 排风阀开状态 | L49: EDOB | M49: Exhaust air Damper open feedback
K50: 排风阀关状态 | L50: EDSB | M50: Exhaust air Damper shut feedback
K51: 排风阀开控制 | L51: EDOC | M51: Exhaust air Damper open control
K52: 排风阀关控制 | L52: EDSC | M52: Exhaust air Damper shut control
K53: 新风阀开状态 | L53: FDOB | M53: Fresh air Damper open feedback
K54: 新风阀关状态 | L54: FDSB | M54: Fresh air Damper shut feedback
K55: 新风阀开控制 | L55: FDOC | M55: Fresh air Damper open control
K56: 新风阀关控制 | L56: FDSC | M56: Fresh air Damper shut control
K57: 送风阀控制 | L57: SDC | M57: Supply air Damper regulation control
K58: 送风阀反馈 | L58: SDB | M58: Supply air Damper regulation feedback
K59: 回风阀控制 | L59: RDC | M59: Return air Damper regulation control
K60: 回风阀反馈 | L60: RDB | M60: Return air Damper regulation feedback
K61: 排风阀控制 | L61: EDC | M61: Exhaust air Damper regulation control
K62: 排风阀反馈 | L62: EDB | M62: Exhaust air Damper regulation feedback
K63: 新风阀控制 | L63: FDC | M63: Fresh air Damper regulation control
K64: 新风阀反馈 | L64: FDB | M64: Fresh air Damper regulation feedback
K65: 加湿器开反馈 | L65: HFOB | M65: Humidifier open feedback
K66: 加湿器关反馈 | L66: HFSB | M66: Humidifier shut feedback
K67: 加湿器开控制 | L67: HFOC | M67: Humidifier open control
K68: 加湿器关控制 | L68: HFSC | M68: Humidifier shut control
K69: 加湿器控制 | L69: HFC | M69: Humidifier control
K70: 加湿器反馈 | L70: HFB | M70: Humidifier Feedback
K71: 水阀控制 | L71: WVC | M71: Water Valve control
K72: 水阀反馈 | L72: WVB | M72: Water Valve Feedback
K73: 水阀开反馈 | L73: WVOB | M73: Water Valve open Feedback
K74: 水阀关反馈 | L74: WVSB | M74: Water Valve shut Feedback
K75: 水阀开控制 | L75: WVOC | M75: Water Valve open control
K76: 水阀关控制 | L76: WVSC | M76: Water Valve shut control
K77: <吾悦特殊功能>
K78: 电磁阀开启状态 | L78: EVR | M78: Electromagnetic valve run
K79: 电磁阀自动状态 | L79: EVA | M79: Electromagnetic valve auto
K80: 电磁阀开关控制 | L80: EVC | M80: Electromagnetic valve control
B81: <送排风系统>> | K81: <送排风功能>
A82: 1 | B82: 送风机 | C82: SAF | D82: Supply fan | K82: 运行状态 | L82: R | M82: Run
A83: 2 | B83: 排风机 | C83: EAF | D83: Air exhaust fan | K83: 故障状态 | L83: F | M83: Fault
A84: 3 | B84: 排烟机 | C84: ESF | D84: Somke exhaust fan | K84: 自动状态 | L84: A | M84: Auto
A85: 4 | B85: 双速风机 | C85: EMF | D85: Multipurpose exhaust fan | K85: 启停控制 | L85: C | M85: Control
B86: <给排水系统> | K86: <给排水功能>
A87: 1 | B87: 潜污泵井 | C87: SWP | D87: Submersible sewage pump/sump | K87: 泵1运行状态 | L87: R1
A88: 2 | B88: 生活水泵 | C88: LWP | D88: Life Water pump | K88: 泵1故障状态 | L88: F1
A89: 3 | B89: 消防水泵 | C89: FWP | D89: Fire water pump | K89: 泵1启停控制 | L89: C1
A90: 4 | B90: 生活水箱 | C90: LWT | D90: Life water tank | K90: 泵2运行状态 | L90: R2
A91: 5 | B91: 消防水箱 | C91: FWT | D91: Fire water tank | K91: 泵2故障状态 | L91: F2
A92: 6 | B92: 其它水箱 | C92: OWT | D92: Other water tank | K92: 泵2启停控制 | L92: C2
A93: 7 | B93: 隔油池 | C93: OST | D93: oil separator | K93: 泵3运行状态 | L93: R3
A94: 8 | B94: 污水提升 | C94: SST | D94: Sewage lifting | K94: 泵3故障状态 | L94: F3
A95: 9 | B95: 膨胀水箱 | C95: EWT | D95: Swell water tank | K95: 泵3启停控制 | L95: C3
A96: 10 | B96: 生活水系统 | C96: DWS | D96: domestic water system | K96: 超高液位 | L96: SHL | M96: Super high level
K97: 高液位 | L97: HL | M97: High level
K98: 低液位 | L98: LL | M98: Low level
K99: 超低液位 | L99: SLL | M99: Super low level
K100: 液位高度 | L100: LLH | M100: Liquid level height
B101: <电梯系统> | K101: <电梯功能>
A102: 1 | B102: 扶梯 | C102: LET | D102: level Escalator | K102: 上行状态 | L102: US | M102: Upward state
A103: 2 | B103: 垂直电梯 | C103: VET | D103: Vertical elevator | K103: 下行状态 | L103: DS | M103: Downward state
K104: 楼层 | L104: FL
K105: 运行状态 | L105: R
K106: 故障状态 | L106: F
K107: 门状态 | L107: DR | M107: DOOR
B108: <环境监测系统> | K108: <环境功能>
A109: 1 | B109: 室内环境状态 | C109: IES | D109: Indoor environmental state | K109: 照度状态 | L109: I | M109: Illumination
A110: 2 | B110: 室外环境状态 | C110: OES | D110: Outdoor environmental state | K110: 温度状态 | L110: T | M110: Temperature
K111: 湿度状态 | L111: H | M111: Humidity
K112: 露点温度 | L112: DPT | M112: Dew point temperature
K113: 静压状态 | L113: SPT | M113: Static Pressure Transducer
K114: 一氧化碳浓度状态 | L114: CO
K115: 二氧化碳浓度状态 | L115: CO2
K116: 甲烷浓度状态 | L116: CH4
K117: 氧气浓度状态 | L117: O2
K118: 氨气浓度状态 | L118: NH4
K119: 可吸入颗粒物2.5状态 | L119: PM25 | M119: ug/m3
K120: 可吸入颗粒物10状态 | L120: PM10 | M120: ug/m3
K121: 可挥发气体状态 | L121: VOC | M121: ug/m3
K122: 可吸入颗粒物1状态 | L122: PM1 | M122: ug/m3
K123: 甲醛浓度状态 | L123: CH2O | M123: ug/m3
B124: <冷热源系统> | K124: <冷热源功能>
A125: 1 | B125: 冷水机组 | C125: CHR | D125: CHILLER | K125: 运行状态 | L125: R | M125: Run
A126: 2 | B126: 风冷热泵机组 | C126: ACHP | D126: Air-cooled heat pump | K126: 故障状态 | L126: F | M126: Fault
A127: 3 | B127: 水源热泵机组 | C127: CHR | D127: 按冷机缩写命名 | K127: 自动状态 | L127: A | M127: Auto
A128: 4 | B128: 地源热泵机组 | C128: CHR | D128: 按冷机缩写命名 | K128: 启停控制 | L128: C | M128: Control
A129: 5 | B129: 冷冻水泵 | C129: CHP | D129: Chilled water pump | K129: 变频器频率控制 | L129: VFC | M129: VFD frequency control
A130: 6 | B130: 冷却水泵 | C130: CLP | D130: Cooling water pump | K130: 变频器频率反馈 | L130: VFB | M130: VFD frequency feedback
A131: 7 | B131: 冷却塔 | C131: CLT | D131: Cooling water tower | K131: 水流开关 | L131: FS | M131: Flow switch
A132: 8 | B132: 蝶阀 | C132: BFV | D132: Butterfly valve | K132: 供水温度 | L132: ST | M132: Supply water temperature
A133: 9 | B133: 旁通阀 | C133: BPV | D133: Bypass valve | K133: 回水温度 | L133: RT | M133: Return water temperature
A134: 10 | B134: 冷冻水回路 | C134: CHS | D134: Chilled water system | K134: 供水压力 | L134: SP | M134: Supply water Pressure
A135: 11 | B135: 冷却水回路 | C135: CLS | D135: Cooling water system | K135: 回水压力 | L135: RP | M135: Return water Pressure
A136: 12 | B136: 一次侧热水回路 | C136: PHS | D136: Primary hot water system | K136: 供水流量 | L136: SF | M136: Supply water flow
A137: 13 | B137: 二次侧热水回路 | C137: SHS | D137: Secondary hot water system | K137: 回水流量 | L137: RF | M137: Return water flow
A138: 14 | B138: 锅炉 | C138: BLR | D138: Boiler | K138: 水阀控制 | L138: WVC | M138: Water Valve control
A139: 15 | B139: 热水循环泵 | C139: BFP | D139: Boiler feed water pump | K139: 水阀反馈 | L139: WVB | M139: Water Valve Feedback
A140: 16 | B140: 板式换热器 | C140: HEX | D140: Heat exchanger | K140: 供水阀开状态 | L140: SOB
A141: 17 | B141: 补水泵 | C141: RWP | D141: Replenishing water pump | K141: 供水阀关状态 | L141: SSB
A142: 18 | B142: 分集水器 | C142: D | D142: distributor | K142: 回水阀开状态 | L142: ROB
K143: 回水阀关状态 | L143: RSB
K144: 供水阀开控制 | L144: SOC
K145: 供水阀关控制 | L145: SSC
K146: 回水阀开控制 | L146: ROC
K147: 回水阀关控制 | L147: RSC
K148: <冷却塔功能>
K149: 高速运行状态 | L149: R1
K150: 高速故障状态 | L150: F1
K151: 高速启停控制 | L151: C1
K152: 低速运行状态 | L152: R2
K153: 低速故障状态 | L153: F2
K154: 低速启停控制 | L154: C2
K155: <锅炉功能>
K156: 大火 | L156: HF | M156: High fire
K157: 中火 | L157: MF | M157: Middle fire
K158: 小火 | L158: LF | M158: Low fire
B159: <照明系统> | E159: 楼层 | G159: 箱子编号 | I159: 回路数量 | K159: <照明功能>
A160: 1 | B160: 照明控制箱 | C160: LCB | D160: Lighting control box | E160: 地下三层 | F160: B3 | G160: 1# | H160: A | I160: 1 | J160: 01 | K160: 回路开关 | L160: C | M160: Control
A161: 2 | B161: 照明调光箱 | C161: LDB | D161: Lighting dimming zone | E161: 地下二层 | F161: B2 | G161: 2# | H161: B | I161: 2 | J161: 02 | K161: 场景反馈 | L161: SF | M161: Scene feedback
A162: 3 | B162: 照明面板 | C162: LCP | D162: Smart lighting panel | E162: 地下一层 | F162: B1 | G162: 3# | H162: C | I162: 3 | J162: 03 | K162: 场景控制 | L162: SC | M162: Scene Control
E163: 夹层 | F163: BM | G163: 4# | H163: D | I163: 4 | J163: 04 | K163: 电流检测值 | L163: CD | M163: Current detection
E164: 一层 | F164: 01 | G164: 5# | H164: E | I164: 5 | J164: 05 | K164: 人体感应开关 | L164: MIS | M164: Mobile induction switch
E165: 二层 | F165: 02 | G165: 6# | H165: F | I165: 6 | J165: 06 | K165: 照度 | L165: I | M165: illumination
F166: ··· | H166: ··· | J166: ··· | K166: 回路调节 | L166: D | M166: Dimming
E167: 屋面 | F167: RF | G167: 26# | H167: Z | I167: 99 | J167: 99
G168: 27# | H168: 1
G169: 28# | H169: 2
H170: ···
G171: 35# | H171: 9
B172: <能耗系统> | K172: <电表>
A173: 1 | B173: 电表 | C173: EM | D173: electricity meter | K173: 用户电能 | L173: AE
A174: 2 | B174: 水表 | C174: WM | D174: water meter | K174: A相电压 | L174: UA
A175: 3 | B175: 预付费电表 | C175: PEM | D175: Prepaid electricity meter | K175: B相电压 | L175: UB
A176: 4 | B176: 预付费水表 | C176: PWM | D176: Prepaid water meter | K176: C相电压 | L176: UC
A177: 5 | B177: 热表 | C177: HM | D177: heat meter | K177: AB相电压 | L177: UAB
K178: BC相电压 | L178: UBC
K179: CA相电压 | L179: UCA
K180: A相电流 | L180: IA
K181: B相电流 | L181: IB
K182: C相电流 | L182: IC
K183: 总有功功率 | L183: AP
K184: 预付费电表继电器控制 | L184: RC
K185: 仪表清零 | L185: MC
K186: <水表>
K187: 用水总量 | L187: TWC
K188: 阀门状态 | L188: VS
K189: 阀门开关控制 | L189: VS
B190: <系统基础>> | K190: <中间变量>>
A191: 1 | B191: 控制箱 | C191: BOX | K191: 模块地址状态 | L191: DS | M191: Device Status
A192: 2 | B192: 控制器 | C192: DEV | D192: Device | K192: 模块在线比例 | L192: OR | M192: Online Ratio
A193: 3 | B193: AI通道 | C193: Device | K193: 硬件总点位 | L193: THB | M193: Total hardware bit
A194: 4 | B194: 命令 | C194: CMD | K194: 设定温度值 | L194: TSET | M194: Temperature Set
A195: 5 | B195: 高压综合主开关柜 | C195: HVM | D195: High voltage main switchgear | K195: 季节模式 | L195: SM | M195: Season Mode
A196: 6 | B196: 高压综合备开关柜 | C196: HVS | D196: High voltage standby switchgear | K196: 水阀反馈换算值 | L196: WVBS | M196: Water Vavle Feedback Switch
A197: 7 | B197: 低压综合主配电柜 | C197: LVM | D197: Low voltage main switchgear | K197: 水阀手动控制 | L197: WVMC | M197: Water Vavle Manual Control
A198: 8 | B198: 低压综合备配电柜 | C198: LVS | D198: Low voltage standby switchgear | K198: 水阀手动控制值 | L198: WVMV | M198: Water Vavle Manual Value
B199: 系统 | C199: SYS | K199: 回风温度换算值 | L199: RTS | M199: Return Temperature Switch
K200: 运行时间累积重置 | L200: RST | M200: Runtime Reset
... 95 more rows

Sheet Base
B1: 4.5 | C1: 1.5 | D1: 1.5 | E1: 1.5 | F1: 1.5 | G1: 1.5 | H1: 1.75 | I1: 1.75 | J1: 35 | AA1: 15 | AB1: 10 | AC1: 10
A2: 12 | C2: 1 | D2: 2 | E2: 3 | F2: 4 | G2: 5 | H2: 6 | I2: 7 | J2: 8 | K2: 9 | L2: 10 | M2: 11 | N2: 12 | O2: 13 | P2: 14 | Q2: 15 | R2: 16 | T2: X | U2: X | V2: X | W2: X
A3: 12 | C3: 17 | D3: 18 | E3: 19 | F3: 20 | G3: 21 | H3: 22 | I3: 23 | J3: 24 | K3: 25 | L3: 26 | M3: 27 | N3: 28 | O3: 29 | P3: 30 | Q3: 31 | R3: 32
A4: 25 | B4: DDC-X-X 现场实施段 | AD4: 调试记录段 | AG4: 下位机声明段 | AP4: 上位机声明段
A5: 20 | B5: 模块类型 | C5: 拨码 | F5: 点位序号 | H5: 端子编号 | J5: 线缆功能.auto | AA5: 设备编号.auto | AB5: 前端接线备注.auto | AD5: DBG | AE5: 调试记录 | AF5: 调试备注 | AG5: PRG | AH5: 设备类型 | AI5: 设备编号 | AJ5: 程序编号 | AK5: 点位功能 | AL5: 接线备注 判断区 | AM5: 变量名.auto | AN5: 编程变量声明.auto | AO5: 编程变量声明(结构整理).auto | AP5: HMI | AQ5: 上位机组态.auto | AR5: 上位机注释.auto | AS5: MODBUS偏置量.auto
A6: 20 | D6: of | E6: on | AB6: 端子编号 | AC6: 线色备注
B7: PM.25D
B8: EXC-1000
B9: IOM.0801R | AO9: ="(* "&B14&"地址: "&B11&" *)" -> (* IOM 0801R 地址: 2 *)
B10: addr | C10: 1 | D10: =BIN2DEC(MID((TEXT(DEC2BIN(B11),REPT(0,5))),5,1)) -> 0 | E10: =BIN2DEC(MID((TEXT(DEC2BIN(B11),REPT(0,5))),5,1)) -> 0 | F10: 1 | H10: 1 | I10: C | J10: =AH10&AA10&"-"&AK10 -> 潜污泵井SUMP-01-泵1运行状态 | AA10: =IF(AI10="","",AI10) -> SUMP-01 | AB10: =_xlfn.IFNA(VLOOKUP(AL10,List!$O$3:$P$444,2,FALSE),"-") -> - | AC10: =_xlfn.IFNA(VLOOKUP(AL10,List!$O$3:$Q$444,3,FALSE),"-") -> - | AE10: 不通过 | AH10: 潜污泵井 | AI10: SUMP-01 | AJ10: B1A01 | AK10: 泵1运行状态 | AL10: =AH10&"-"&AK10 -> 潜污泵井-泵1运行状态 | AM10: =VLOOKUP(AH10,List!$B$3:$D$445,2,FALSE)&AJ10&"_"&VLOOKUP(AK10,List!$K$2:$M$447,2,FALSE) -> SWPB1A01_R1 | AN10: =_xlfn.IFNA("L"&AM10&" "&"AT%I"&B11*16&".0"&" "&":BOOL;"&" "&"(*"&J10&"*)"," ") -> LSWPB1A01_R1 AT%I32.0 :BOOL; (*潜污泵井SUMP-01-泵1运行状态*) | AO10: =IFERROR(REPLACE(REPLACE(AN10,SEARCH("AT%",AN10),,REPT(" ",25-SEARCH("AT%",AN10))),SEARCH(":",REPLACE(AN10,SEARCH("AT%",AN10),,REPT(" ",25-SEARCH("AT%",AN10)))),,REPT(" ",40-SEARCH(":",REPLACE(AN10,SEARCH("AT%",AN10),,REPT(" ",25-SEARCH("AT%",AN10))))))," ") -> LSWPB1A01_R1 AT%I32.0 :BOOL; (*潜污泵井SUMP-01-泵1运行状态*) | AQ10: =AM10 -> SWPB1A01_R1 | AR10: =J10 -> 潜污泵井SUMP-01-泵1运行状态 | AS10: =10000+($B11*16*8+F10-1) -> 10256
B11: 2 | C11: 2 | D11: =BIN2DEC(MID((TEXT(DEC2BIN(B11),REPT(0,5))),4,1)) -> 1 | E11: =BIN2DEC(MID((TEXT(DEC2BIN(B11),REPT(0,5))),4,1)) -> 1 | F11: 2 | H11: 2 | I11: C | J11: =AH11&AA11&"-"&AK11 -> 潜污泵井SUMP-01-泵1故障状态 | AA11: =IF(AI11="","",AI11) -> SUMP-01 | AB11: =_xlfn.IFNA(VLOOKUP(AL11,List!$O$3:$P$444,2,FALSE),"-") -> - | AC11: =_xlfn.IFNA(VLOOKUP(AL11,List!$O$3:$Q$444,3,FALSE),"-") -> - | AE11: 不通过 | AH11: 潜污泵井 | AI11: SUMP-01 | AJ11: B1A01 | AK11: 泵1故障状态 | AL11: =AH11&"-"&AK11 -> 潜污泵井-泵1故障状态 | AM11: =VLOOKUP(AH11,List!$B$3:$D$445,2,FALSE)&AJ11&"_"&VLOOKUP(AK11,List!$K$2:$M$447,2,FALSE) -> SWPB1A01_F1 | AN11: =_xlfn.IFNA("L"&AM11&" "&"AT%I"&B11*16&".1"&" "&":BOOL;"&" "&"(*"&J11&"*)"," ") -> LSWPB1A01_F1 AT%I32.1 :BOOL; (*潜污泵井SUMP-01-泵1故障状态*) | AO11: LSWPB1A01_F1 AT%I32.1 :BOOL; (*潜污泵井SUMP-01-泵1故障状态*) | AQ11: =AM11 -> SWPB1A01_F1 | AR11: =J11 -> 潜污泵井SUMP-01-泵1故障状态 | AS11: =AS10+1 -> 10257
B12: kbs | C12: 3 | D12: =BIN2DEC(MID((TEXT(DEC2BIN(B11),REPT(0,5))),3,1)) -> 0 | E12: =BIN2DEC(MID((TEXT(DEC2BIN(B11),REPT(0,5))),3,1)) -> 0 | F12: 3 | H12: 3 | I12: C | J12: =AH12&AA12&"-"&AK12 -> 潜污泵井SUMP-01-泵2运行状态 | AA12: SUMP-01 | AB12: =_xlfn.IFNA(VLOOKUP(AL12,List!$O$3:$P$444,2,FALSE),"-") -> - | AC12: =_xlfn.IFNA(VLOOKUP(AL12,List!$O$3:$Q$444,3,FALSE),"-") -> - | AE12: 不通过 | AH12: 潜污泵井 | AI12: SUMP-01 | AJ12: B1A01 | AK12: 泵2运行状态 | AL12: 潜污泵井-泵2运行状态 | AM12: =VLOOKUP(AH12,List!$B$3:$D$445,2,FALSE)&AJ12&"_"&VLOOKUP(AK12,List!$K$2:$M$447,2,FALSE) -> SWPB1A01_R2 | AN12: =_xlfn.IFNA("L"&AM12&" "&"AT%I"&B11*16&".2"&" "&":BOOL;"&" "&"(*"&J12&"*)"," ") -> LSWPB1A01_R2 AT%I32.2 :BOOL; (*潜污泵井SUMP-01-泵2运行状态*) | AO12: LSWPB1A01_R2 AT%I32.2 :BOOL; (*潜污泵井SUMP-01-泵2运行状态*) | AQ12: SWPB1A01_R2 | AR12: 潜污泵井SUMP-01-泵2运行状态 | AS12: =AS11+1 -> 10258
B13: 50 | C13: 4 | D13: =BIN2DEC(MID((TEXT(DEC2BIN(B11),REPT(0,5))),2,1)) -> 0 | E13: =BIN2DEC(MID((TEXT(DEC2BIN(B11),REPT(0,5))),2,1)) -> 0 | F13: 4 | H13: 4 | I13: C | J13: =AH13&AA13&"-"&AK13 -> 潜污泵井SUMP-01-泵2故障状态 | AA13: SUMP-01 | AB13: =_xlfn.IFNA(VLOOKUP(AL13,List!$O$3:$P$444,2,FALSE),"-") -> - | AC13: =_xlfn.IFNA(VLOOKUP(AL13,List!$O$3:$Q$444,3,FALSE),"-") -> - | AE13: 不通过 | AH13: 潜污泵井 | AI13: SUMP-01 | AJ13: B1A01 | AK13: 泵2故障状态 | AL13: 潜污泵井-泵2故障状态 | AM13: =VLOOKUP(AH13,List!$B$3:$D$445,2,FALSE)&AJ13&"_"&VLOOKUP(AK13,List!$K$2:$M$447,2,FALSE) -> SWPB1A01_F2 | AN13: =_xlfn.IFNA("L"&AM13&" "&"AT%I"&B11*16&".3"&" "&":BOOL;"&" "&"(*"&J13&"*)"," ") -> LSWPB1A01_F2 AT%I32.3 :BOOL; (*潜污泵井SUMP-01-泵2故障状态*) | AO13: LSWPB1A01_F2 AT%I32.3 :BOOL; (*潜污泵井SUMP-01-泵2故障状态*) | AQ13: SWPB1A01_F2 | AR13: 潜污泵井SUMP-01-泵2故障状态 | AS13: 10259
B14: IOM 0801R | C14: 5 | D14: =BIN2DEC(MID((TEXT(DEC2BIN(B11),REPT(0,5))),1,1)) -> 0 | E14: =BIN2DEC(MID((TEXT(DEC2BIN(B11),REPT(0,5))),1,1)) -> 0 | F14: 5 | H14: 5 | I14: C | J14: 潜污泵井SUMP-01-泵3运行状态 | AA14: SUMP-01 | AB14: =_xlfn.IFNA(VLOOKUP(AL14,List!$O$3:$P$444,2,FALSE),"-") -> - | AC14: =_xlfn.IFNA(VLOOKUP(AL14,List!$O$3:$Q$444,3,FALSE),"-") -> - | AE14: 不通过 | AH14: 潜污泵井 | AI14: SUMP-01 | AJ14: B1A01 | AK14: 泵3运行状态 | AL14: 潜污泵井-泵3运行状态 | AM14: =VLOOKUP(AH14,List!$B$3:$D$445,2,FALSE)&AJ14&"_"&VLOOKUP(AK14,List!$K$2:$M$447,2,FALSE) -> SWPB1A01_R3 | AN14: =_xlfn.IFNA("L"&AM14&" "&"AT%I"&B11*16&".4"&" "&":BOOL;"&" "&"(*"&J14&"*)"," ") -> LSWPB1A01_R3 AT%I32.4 :BOOL; (*潜污泵井SUMP-01-泵3运行状态*) | AO14: LSWPB1A01_R3 AT%I32.4 :BOOL; (*潜污泵井SUMP-01-泵3运行状态*) | AQ14: SWPB1A01_R3 | AR14: 潜污泵井SUMP-01-泵3运行状态 | AS14: 10260
C15: 6 | D15: =BIN2DEC(MID((TEXT(IF(B13=20,1,IF(B13=50,10,IF(B13=125,11,IF(B13=250,100,IF(B13=500,101,IF(B13=800,110,IF(B13=1000,111,0))))))),REPT(0,3))),3,1)) -> 0 | E15: =BIN2DEC(MID((TEXT(IF(B13=20,1,IF(B13=50,10,IF(B13=125,11,IF(B13=250,100,IF(B13=500,101,IF(B13=800,110,IF(B13=1000,111,0))))))),REPT(0,3))),3,1)) -> 0 | F15: 6 | H15: 6 | I15: C | J15: 潜污泵井SUMP-01-泵3故障状态 | AA15: SUMP-01 | AB15: =_xlfn.IFNA(VLOOKUP(AL15,List!$O$3:$P$444,2,FALSE),"-") -> - | AC15: =_xlfn.IFNA(VLOOKUP(AL15,List!$O$3:$Q$444,3,FALSE),"-") -> - | AE15: 不通过 | AH15: 潜污泵井 | AI15: SUMP-01 | AJ15: B1A01 | AK15: 泵3故障状态 | AL15: 潜污泵井-泵3故障状态 | AM15: =VLOOKUP(AH15,List!$B$3:$D$445,2,FALSE)&AJ15&"_"&VLOOKUP(AK15,List!$K$2:$M$447,2,FALSE) -> SWPB1A01_F3 | AN15: =_xlfn.IFNA("L"&AM15&" "&"AT%I"&B11*16&".5"&" "&":BOOL;"&" "&"(*"&J15&"*)"," ") -> LSWPB1A01_F3 AT%I32.5 :BOOL; (*潜污泵井SUMP-01-泵3故障状态*) | AO15: LSWPB1A01_F3 AT%I32.5 :BOOL; (*潜污泵井SUMP-01-泵3故障状态*) | AQ15: SWPB1A01_F3 | AR15: 潜污泵井SUMP-01-泵3故障状态 | AS15: 10261
C16: 7 | D16: =BIN2DEC(MID((TEXT(IF(B13=20,1,IF(B13=50,10,IF(B13=125,11,IF(B13=250,100,IF(B13=500,101,IF(B13=800,110,IF(B13=1000,111,0))))))),REPT(0,3))),2,1)) -> 1 | E16: =BIN2DEC(MID((TEXT(IF(B13=20,1,IF(B13=50,10,IF(B13=125,11,IF(B13=250,100,IF(B13=500,101,IF(B13=800,110,IF(B13=1000,111,0))))))),REPT(0,3))),2,1)) -> 1 | F16: 7 | H16: 7 | I16: C | J16: 潜污泵井SUMP-01-高液位 | AA16: SUMP-01 | AB16: =_xlfn.IFNA(VLOOKUP(AL16,List!$O$3:$P$444,2,FALSE),"-") -> - | AC16: =_xlfn.IFNA(VLOOKUP(AL16,List!$O$3:$Q$444,3,FALSE),"-") -> - | AE16: 不通过 | AH16: 潜污泵井 | AI16: SUMP-01 | AJ16: B1A01 | AK16: 高液位 | AL16: 潜污泵井-高液位 | AM16: =VLOOKUP(AH16,List!$B$3:$D$445,2,FALSE)&AJ16&"_"&VLOOKUP(AK16,List!$K$2:$M$447,2,FALSE) -> SWPB1A01_HL | AN16: =_xlfn.IFNA("L"&AM16&" "&"AT%I"&B11*16&".6"&" "&":BOOL;"&" "&"(*"&J16&"*)"," ") -> LSWPB1A01_HL AT%I32.6 :BOOL; (*潜污泵井SUMP-01-高液位*) | AO16: LSWPB1A01_HL AT%I32.6 :BOOL; (*潜污泵井SUMP-01-高液位*) | AQ16: SWPB1A01_HL | AR16: 潜污泵井SUMP-01-高液位 | AS16: 10262
A17: . | C17: 8 | D17: =BIN2DEC(MID((TEXT(IF(B13=20,1,IF(B13=50,10,IF(B13=125,11,IF(B13=250,100,IF(B13=500,101,IF(B13=800,110,IF(B13=1000,111,0))))))),REPT(0,3))),1,1)) -> 0 | E17: =BIN2DEC(MID((TEXT(IF(B13=20,1,IF(B13=50,10,IF(B13=125,11,IF(B13=250,100,IF(B13=500,101,IF(B13=800,110,IF(B13=1000,111,0))))))),REPT(0,3))),1,1)) -> 0 | F17: 8 | H17: 8 | I17: C | J17: 潜污泵井SUMP-01-低液位 | AA17: SUMP-01 | AB17: =_xlfn.IFNA(VLOOKUP(AL17,List!$O$3:$P$444,2,FALSE),"-") -> - | AC17: =_xlfn.IFNA(VLOOKUP(AL17,List!$O$3:$Q$444,3,FALSE),"-") -> - | AE17: 不通过 | AH17: 潜污泵井 | AI17: SUMP-01 | AJ17: B1A01 | AK17: 低液位 | AL17: 潜污泵井-低液位 | AM17: =VLOOKUP(AH17,List!$B$3:$D$445,2,FALSE)&AJ17&"_"&VLOOKUP(AK17,List!$K$2:$M$447,2,FALSE) -> SWPB1A01_LL | AN17: =_xlfn.IFNA("L"&AM17&" "&"AT%I"&B11*16&".7"&" "&":BOOL;"&" "&"(*"&J17&"*)"," ") -> LSWPB1A01_LL AT%I32.7 :BOOL; (*潜污泵井SUMP-01-低液位*) | AO17: LSWPB1A01_LL AT%I32.7 :BOOL; (*潜污泵井SUMP-01-低液位*) | AQ17: SWPB1A01_LL | AR17: 潜污泵井SUMP-01-低液位 | AS17: 10263
B18: IOM.1601R | AO18: ="(* "&B23&"地址: "&B20&" *)" -> (* IOM 1601R 地址: 3 *)
B19: addr | C19: 1 | D19: =BIN2DEC(MID((TEXT(DEC2BIN(B20),REPT(0,5))),5,1)) -> 1 | E19: =BIN2DEC(MID((TEXT(DEC2BIN(B20),REPT(0,5))),5,1)) -> 1 | F19: 1 | H19: 1 | I19: C | J19: =AH19&AA19&"-"&AK19 -> 空调机组BXJ-1AP(KT)1-1-运行状态 | AA19: =IF(AI19="","",AI19) -> BXJ-1AP(KT)1-1 | AB19: =_xlfn.IFNA(VLOOKUP(AL19,List!$O$3:$P$444,2,FALSE),"-") -> - | AC19: =_xlfn.IFNA(VLOOKUP(AL19,List!$O$3:$Q$444,3,FALSE),"-") -> - | AE19: 不通过 | AH19: 空调机组 | AI19: BXJ-1AP(KT)1-1 | AJ19: 01A01 | AK19: 运行状态 | AL19: =AH19&"-"&AK19 -> 空调机组-运行状态 | AM19: =VLOOKUP(AH19,List!$B$3:$D$445,2,FALSE)&AJ19&"_"&VLOOKUP(AK19,List!$K$2:$M$447,2,FALSE) -> AHU01A01_R | AN19: =_xlfn.IFNA("L"&AM19&" "&"AT%I"&B20*16&".0"&" "&":BOOL;"&" "&"(*"&J19&"*)"," ") -> LAHU01A01_R AT%I48.0 :BOOL; (*空调机组BXJ-1AP(KT)1-1-运行状态*) | AO19: =IFERROR(REPLACE(REPLACE(AN19,SEARCH("AT%",AN19),,REPT(" ",25-SEARCH("AT%",AN19))),SEARCH(":",REPLACE(AN19,SEARCH("AT%",AN19),,REPT(" ",25-SEARCH("AT%",AN19)))),,REPT(" ",40-SEARCH(":",REPLACE(AN19,SEARCH("AT%",AN19),,REPT(" ",25-SEARCH("AT%",AN19))))))," ") -> LAHU01A01_R AT%I48.0 :BOOL; (*空调机组BXJ-1AP(KT)1-1-运行状态*) | AQ19: AHU01A01_R | AR19: =J19 -> 空调机组BXJ-1AP(KT)1-1-运行状态 | AS19: =10000+($B20*16*8+F19-1) -> 10384
B20: 3 | C20: 2 | D20: =BIN2DEC(MID((TEXT(DEC2BIN(B20),REPT(0,5))),4,1)) -> 1 | E20: =BIN2DEC(MID((TEXT(DEC2BIN(B20),REPT(0,5))),4,1)) -> 1 | F20: 2 | H20: 2 | I20: C | J20: 空调机组BXJ-1AP(KT)1-1-故障状态 | AA20: =IF(AI20="","",AI20) -> BXJ-1AP(KT)1-1 | AB20: =_xlfn.IFNA(VLOOKUP(AL20,List!$O$3:$P$444,2,FALSE),"-") -> - | AC20: =_xlfn.IFNA(VLOOKUP(AL20,List!$O$3:$Q$444,3,FALSE),"-") -> - | AE20: 不通过 | AH20: 空调机组 | AI20: BXJ-1AP(KT)1-1 | AJ20: 01A01 | AK20: 故障状态 | AL20: =AH20&"-"&AK20 -> 空调机组-故障状态 | AM20: =VLOOKUP(AH20,List!$B$3:$D$445,2,FALSE)&AJ20&"_"&VLOOKUP(AK20,List!$K$2:$M$447,2,FALSE) -> AHU01A01_F | AN20: =_xlfn.IFNA("L"&AM20&" "&"AT%I"&B20*16&".1"&" "&":BOOL;"&" "&"(*"&J20&"*)"," ") -> LAHU01A01_F AT%I48.1 :BOOL; (*空调机组BXJ-1AP(KT)1-1-故障状态*) | AO20: LAHU01A01_F AT%I48.1 :BOOL; (*空调机组BXJ-1AP(KT)1-1-故障状态*) | AQ20: AHU01A01_F | AR20: =J20 -> 空调机组BXJ-1AP(KT)1-1-故障状态 | AS20: =AS19+1 -> 10385
B21: kbs | C21: 3 | D21: =BIN2DEC(MID((TEXT(DEC2BIN(B20),REPT(0,5))),3,1)) -> 0 | E21: =BIN2DEC(MID((TEXT(DEC2BIN(B20),REPT(0,5))),3,1)) -> 0 | F21: 3 | H21: 3 | I21: C | J21: 空调机组BXJ-1AP(KT)1-1-自动状态 | AA21: BXJ-1AP(KT)1-1 | AB21: =_xlfn.IFNA(VLOOKUP(AL21,List!$O$3:$P$444,2,FALSE),"-") -> - | AC21: =_xlfn.IFNA(VLOOKUP(AL21,List!$O$3:$Q$444,3,FALSE),"-") -> - | AE21: 不通过 | AH21: 空调机组 | AI21: BXJ-1AP(KT)1-1 | AJ21: 01A01 | AK21: 自动状态 | AL21: 空调机组-自动状态 | AM21: =VLOOKUP(AH21,List!$B$3:$D$445,2,FALSE)&AJ21&"_"&VLOOKUP(AK21,List!$K$2:$M$447,2,FALSE) -> AHU01A01_A | AN21: =_xlfn.IFNA("L"&AM21&" "&"AT%I"&B20*16&".2"&" "&":BOOL;"&" "&"(*"&J21&"*)"," ") -> LAHU01A01_A AT%I48.2 :BOOL; (*空调机组BXJ-1AP(KT)1-1-自动状态*) | AO21: LAHU01A01_A AT%I48.2 :BOOL; (*空调机组BXJ-1AP(KT)1-1-自动状态*) | AQ21: AHU01A01_A | AR21: 空调机组BXJ-1AP(KT)1-1-自动状态 | AS21: =AS20+1 -> 10386
B22: 50 | C22: 4 | D22: =BIN2DEC(MID((TEXT(DEC2BIN(B20),REPT(0,5))),2,1)) -> 0 | E22: =BIN2DEC(MID((TEXT(DEC2BIN(B20),REPT(0,5))),2,1)) -> 0 | F22: 4 | H22: 4 | I22: C | J22: 空调机组BXJ-1AP(KT)1-1-风机压差 | AA22: BXJ-1AP(KT)1-1 | AB22: =_xlfn.IFNA(VLOOKUP(AL22,List!$O$3:$P$444,2,FALSE),"-") -> - | AC22: =_xlfn.IFNA(VLOOKUP(AL22,List!$O$3:$Q$444,3,FALSE),"-") -> - | AE22: 不通过 | AH22: 空调机组 | AI22: BXJ-1AP(KT)1-1 | AJ22: 01A01 | AK22: 风机压差 | AL22: 空调机组-风机压差 | AM22: =VLOOKUP(AH22,List!$B$3:$D$445,2,FALSE)&AJ22&"_"&VLOOKUP(AK22,List!$K$2:$M$447,2,FALSE) -> AHU01A01_FPS | AN22: =_xlfn.IFNA("L"&AM22&" "&"AT%I"&B20*16&".3"&" "&":BOOL;"&" "&"(*"&J22&"*)"," ") -> LAHU01A01_FPS AT%I48.3 :BOOL; (*空调机组BXJ-1AP(KT)1-1-风机压差*) | AO22: LAHU01A01_FPS AT%I48.3 :BOOL; (*空调机组BXJ-1AP(KT)1-1-风机压差*) | AQ22: AHU01A01_FPS | AR22: 空调机组BXJ-1AP(KT)1-1-风机压差 | AS22: 10387
B23: IOM 1601R | C23: 5 | D23: =BIN2DEC(MID((TEXT(DEC2BIN(B20),REPT(0,5))),1,1)) -> 0 | E23: =BIN2DEC(MID((TEXT(DEC2BIN(B20),REPT(0,5))),1,1)) -> 0 | F23: 5 | H23: 5 | I23: C | J23: 空调机组BXJ-1AP(KT)1-1-初效滤网压差 | AA23: BXJ-1AP(KT)1-1 | AB23: =_xlfn.IFNA(VLOOKUP(AL23,List!$O$3:$P$444,2,FALSE),"-") -> - | AC23: =_xlfn.IFNA(VLOOKUP(AL23,List!$O$3:$Q$444,3,FALSE),"-") -> - | AE23: 不通过 | AH23: 空调机组 | AI23: BXJ-1AP(KT)1-1 | AJ23: 01A01 | AK23: 初效滤网压差 | AL23: 空调机组-初效滤网压差 | AM23: =VLOOKUP(AH23,List!$B$3:$D$445,2,FALSE)&AJ23&"_"&VLOOKUP(AK23,List!$K$2:$M$447,2,FALSE) -> AHU01A01_IPS | AN23: =_xlfn.IFNA("L"&AM23&" "&"AT%I"&B20*16&".4"&" "&":BOOL;"&" "&"(*"&J23&"*)"," ") -> LAHU01A01_IPS AT%I48.4 :BOOL; (*空调机组BXJ-1AP(KT)1-1-初效滤网压差*) | AO23: LAHU01A01_IPS AT%I48.4 :BOOL; (*空调机组BXJ-1AP(KT)1-1-初效滤网压差*) | AQ23: AHU01A01_IPS | AR23: 空调机组BXJ-1AP(KT)1-1-初效滤网压差 | AS23: 10388
C24: 6 | D24: =BIN2DEC(MID((TEXT(IF(B22=20,1,IF(B22=50,10,IF(B22=125,11,IF(B22=250,100,IF(B22=500,101,IF(B22=800,110,IF(B22=1000,111,0))))))),REPT(0,3))),3,1)) -> 0 | E24: =BIN2DEC(MID((TEXT(IF(B22=20,1,IF(B22=50,10,IF(B22=125,11,IF(B22=250,100,IF(B22=500,101,IF(B22=800,110,IF(B22=1000,111,0))))))),REPT(0,3))),3,1)) -> 0 | F24: 6 | H24: 6 | I24: C | J24: 空调机组BXJ-1AP(KT)1-1-低温断路开关 | AA24: BXJ-1AP(KT)1-1 | AB24: =_xlfn.IFNA(VLOOKUP(AL24,List!$O$3:$P$444,2,FALSE),"-") -> - | AC24: =_xlfn.IFNA(VLOOKUP(AL24,List!$O$3:$Q$444,3,FALSE),"-") -> - | AE24: 不通过 | AH24: 空调机组 | AI24: BXJ-1AP(KT)1-1 | AJ24: 01A01 | AK24: 低温断路开关 | AL24: 空调机组-低温断路开关 | AM24: =VLOOKUP(AH24,List!$B$3:$D$445,2,FALSE)&AJ24&"_"&VLOOKUP(AK24,List!$K$2:$M$447,2,FALSE) -> AHU01A01_AFS | AN24: =_xlfn.IFNA("L"&AM24&" "&"AT%I"&B20*16&".5"&" "&":BOOL;"&" "&"(*"&J24&"*)"," ") -> LAHU01A01_AFS AT%I48.5 :BOOL; (*空调机组BXJ-1AP(KT)1-1-低温断路开关*) | AO24: LAHU01A01_AFS AT%I48.5 :BOOL; (*空调机组BXJ-1AP(KT)1-1-低温断路开关*) | AQ24: AHU01A01_AFS | AR24: 空调机组BXJ-1AP(KT)1-1-低温断路开关 | AS24: 10389
C25: 7 | D25: =BIN2DEC(MID((TEXT(IF(B22=20,1,IF(B22=50,10,IF(B22=125,11,IF(B22=250,100,IF(B22=500,101,IF(B22=800,110,IF(B22=1000,111,0))))))),REPT(0,3))),2,1)) -> 1 | E25: =BIN2DEC(MID((TEXT(IF(B22=20,1,IF(B22=50,10,IF(B22=125,11,IF(B22=250,100,IF(B22=500,101,IF(B22=800,110,IF(B22=1000,111,0))))))),REPT(0,3))),2,1)) -> 1 | F25: 7 | H25: 7 | I25: C | J25: 风机盘管BXJ-1AP(KT)1-7-运行状态 | AA25: BXJ-1AP(KT)1-7 | AB25: =_xlfn.IFNA(VLOOKUP(AL25,List!$O$3:$P$444,2,FALSE),"-") -> - | AC25: =_xlfn.IFNA(VLOOKUP(AL25,List!$O$3:$Q$444,3,FALSE),"-") -> - | AE25: 不通过 | AH25: 风机盘管 | AI25: BXJ-1AP(KT)1-7 | AJ25: 01A07 | AK25: 运行状态 | AL25: 风机盘管-运行状态 | AM25: =VLOOKUP(AH25,List!$B$3:$D$445,2,FALSE)&AJ25&"_"&VLOOKUP(AK25,List!$K$2:$M$447,2,FALSE) -> FCU01A07_R | AN25: =_xlfn.IFNA("L"&AM25&" "&"AT%I"&B20*16&".6"&" "&":BOOL;"&" "&"(*"&J25&"*)"," ") -> LFCU01A07_R AT%I48.6 :BOOL; (*风机盘管BXJ-1AP(KT)1-7-运行状态*) | AO25: LFCU01A07_R AT%I48.6 :BOOL; (*风机盘管BXJ-1AP(KT)1-7-运行状态*) | AQ25: FCU01A07_R | AR25: 风机盘管BXJ-1AP(KT)1-7-运行状态 | AS25: 10390
C26: 8 | D26: =BIN2DEC(MID((TEXT(IF(B22=20,1,IF(B22=50,10,IF(B22=125,11,IF(B22=250,100,IF(B22=500,101,IF(B22=800,110,IF(B22=1000,111,0))))))),REPT(0,3))),1,1)) -> 0 | E26: =BIN2DEC(MID((TEXT(IF(B22=20,1,IF(B22=50,10,IF(B22=125,11,IF(B22=250,100,IF(B22=500,101,IF(B22=800,110,IF(B22=1000,111,0))))))),REPT(0,3))),1,1)) -> 0 | F26: 8 | H26: 8 | I26: C | J26: 风机盘管BXJ-1AP(KT)1-7-自动状态 | AA26: BXJ-1AP(KT)1-7 | AB26: =_xlfn.IFNA(VLOOKUP(AL26,List!$O$3:$P$444,2,FALSE),"-") -> - | AC26: =_xlfn.IFNA(VLOOKUP(AL26,List!$O$3:$Q$444,3,FALSE),"-") -> - | AE26: 不通过 | AH26: 风机盘管 | AI26: BXJ-1AP(KT)1-7 | AJ26: 01A07 | AK26: 自动状态 | AL26: 风机盘管-自动状态 | AM26: =VLOOKUP(AH26,List!$B$3:$D$445,2,FALSE)&AJ26&"_"&VLOOKUP(AK26,List!$K$2:$M$447,2,FALSE) -> FCU01A07_A | AN26: =_xlfn.IFNA("L"&AM26&" "&"AT%I"&B20*16&".7"&" "&":BOOL;"&" "&"(*"&J26&"*)"," ") -> LFCU01A07_A AT%I48.7 :BOOL; (*风机盘管BXJ-1AP(KT)1-7-自动状态*) | AO26: LFCU01A07_A AT%I48.7 :BOOL; (*风机盘管BXJ-1AP(KT)1-7-自动状态*) | AQ26: FCU01A07_A | AR26: 风机盘管BXJ-1AP(KT)1-7-自动状态 | AS26: 10391
F27: 9 | H27: 9 | I27: C | J27: 风机盘管BXJ-1AP(KT)1-7-电磁阀开启状态 | AA27: BXJ-1AP(KT)1-7 | AB27: =_xlfn.IFNA(VLOOKUP(AL27,List!$O$3:$P$444,2,FALSE),"-") -> - | AC27: =_xlfn.IFNA(VLOOKUP(AL27,List!$O$3:$Q$444,3,FALSE),"-") -> - | AE27: 不通过 | AH27: 风机盘管 | AI27: BXJ-1AP(KT)1-7 | AJ27: 01A07 | AK27: 电磁阀开启状态 | AL27: 风机盘管-电磁阀开启状态 | AM27: =VLOOKUP(AH27,List!$B$3:$D$445,2,FALSE)&AJ27&"_"&VLOOKUP(AK27,List!$K$2:$M$447,2,FALSE) -> FCU01A07_EVR | AN27: =_xlfn.IFNA("L"&AM27&" "&"AT%I"&B20*16+1&".0"&" "&":BOOL;"&" "&"(*"&J27&"*)"," ") -> LFCU01A07_EVR AT%I49.0 :BOOL; (*风机盘管BXJ-1AP(KT)1-7-电磁阀开启状态*) | AO27: LFCU01A07_EVR AT%I49.0 :BOOL; (*风机盘管BXJ-1AP(KT)1-7-电磁阀开启状态*) | AQ27: FCU01A07_EVR | AR27: 风机盘管BXJ-1AP(KT)1-7-电磁阀开启状态 | AS27: 10392
F28: 10 | H28: 10 | I28: C | J28: 风机盘管BXJ-1AP(KT)1-7-电磁阀自动状态 | AA28: =IF(AI28="","",AI28) -> BXJ-1AP(KT)1-7 | AB28: =_xlfn.IFNA(VLOOKUP(AL28,List!$O$3:$P$444,2,FALSE),"-") -> - | AC28: =_xlfn.IFNA(VLOOKUP(AL28,List!$O$3:$Q$444,3,FALSE),"-") -> - | AE28: 不通过 | AH28: 风机盘管 | AI28: BXJ-1AP(KT)1-7 | AJ28: 01A07 | AK28: 电磁阀自动状态 | AL28: =AH28&"-"&AK28 -> 风机盘管-电磁阀自动状态 | AM28: =VLOOKUP(AH28,List!$B$3:$D$445,2,FALSE)&AJ28&"_"&VLOOKUP(AK28,List!$K$2:$M$447,2,FALSE) -> FCU01A07_EVA | AN28: =_xlfn.IFNA("L"&AM28&" "&"AT%I"&B20*16+1&".1"&" "&":BOOL;"&" "&"(*"&J28&"*)"," ") -> LFCU01A07_EVA AT%I49.1 :BOOL; (*风机盘管BXJ-1AP(KT)1-7-电磁阀自动状态*) | AO28: LFCU01A07_EVA AT%I49.1 :BOOL; (*风机盘管BXJ-1AP(KT)1-7-电磁阀自动状态*) | AQ28: FCU01A07_EVA | AR28: =J28 -> 风机盘管BXJ-1AP(KT)1-7-电磁阀自动状态 | AS28: 10393
F29: 11 | H29: 11 | I29: C | J29: - | AB29: =_xlfn.IFNA(VLOOKUP(AL29,List!$O$3:$P$444,2,FALSE),"-") -> - | AC29: =_xlfn.IFNA(VLOOKUP(AL29,List!$O$3:$Q$444,3,FALSE),"-") -> - | AE29: 不通过 | AL29: - | AM29: =VLOOKUP(AH29,List!$B$3:$D$445,2,FALSE)&AJ29&"_"&VLOOKUP(AK29,List!$K$2:$M$447,2,FALSE) ->  | AN29: =_xlfn.IFNA("L"&AM29&" "&"AT%I"&B20*16+1&".2"&" "&":BOOL;"&" "&"(*"&J29&"*)"," ") ->  | AR29: - | AS29: 10394
F30: 12 | H30: 12 | I30: C | J30: - | AB30: =_xlfn.IFNA(VLOOKUP(AL30,List!$O$3:$P$444,2,FALSE),"-") -> - | AC30: =_xlfn.IFNA(VLOOKUP(AL30,List!$O$3:$Q$444,3,FALSE),"-") -> - | AE30: 不通过 | AL30: - | AM30: =VLOOKUP(AH30,List!$B$3:$D$445,2,FALSE)&AJ30&"_"&VLOOKUP(AK30,List!$K$2:$M$447,2,FALSE) ->  | AN30: =_xlfn.IFNA("L"&AM30&" "&"AT%I"&B20*16+1&".3"&" "&":BOOL;"&" "&"(*"&J30&"*)"," ") ->  | AR30: - | AS30: 10395
F31: 13 | H31: 13 | I31: C | J31: - | AB31: =_xlfn.IFNA(VLOOKUP(AL31,List!$O$3:$P$444,2,FALSE),"-") -> - | AC31: =_xlfn.IFNA(VLOOKUP(AL31,List!$O$3:$Q$444,3,FALSE),"-") -> - | AE31: 不通过 | AL31: - | AM31: =VLOOKUP(AH31,List!$B$3:$D$445,2,FALSE)&AJ31&"_"&VLOOKUP(AK31,List!$K$2:$M$447,2,FALSE) ->  | AN31: =_xlfn.IFNA("L"&AM31&" "&"AT%I"&B20*16+1&".4"&" "&":BOOL;"&" "&"(*"&J31&"*)"," ") ->  | AR31: - | AS31: 10396
F32: 14 | H32: 14 | I32: C | J32: - | AB32: =_xlfn.IFNA(VLOOKUP(AL32,List!$O$3:$P$444,2,FALSE),"-") -> - | AC32: =_xlfn.IFNA(VLOOKUP(AL32,List!$O$3:$Q$444,3,FALSE),"-") -> - | AE32: 不通过 | AL32: - | AM32: =VLOOKUP(AH32,List!$B$3:$D$445,2,FALSE)&AJ32&"_"&VLOOKUP(AK32,List!$K$2:$M$447,2,FALSE) ->  | AN32: =_xlfn.IFNA("L"&AM32&" "&"AT%I"&B20*16+1&".5"&" "&":BOOL;"&" "&"(*"&J32&"*)"," ") ->  | AR32: - | AS32: 10397
F33: 15 | H33: 15 | I33: C | J33: - | AB33: =_xlfn.IFNA(VLOOKUP(AL33,List!$O$3:$P$444,2,FALSE),"-") -> - | AC33: =_xlfn.IFNA(VLOOKUP(AL33,List!$O$3:$Q$444,3,FALSE),"-") -> - | AE33: 不通过 | AL33: - | AM33: =VLOOKUP(AH33,List!$B$3:$D$445,2,FALSE)&AJ33&"_"&VLOOKUP(AK33,List!$K$2:$M$447,2,FALSE) ->  | AN33: =_xlfn.IFNA("L"&AM33&" "&"AT%I"&B20*16+1&".6"&" "&":BOOL;"&" "&"(*"&J33&"*)"," ") ->  | AR33: - | AS33: 10398
A34: . | F34: 16 | H34: 16 | I34: C | J34: - | AB34: =_xlfn.IFNA(VLOOKUP(AL34,List!$O$3:$P$444,2,FALSE),"-") -> - | AC34: =_xlfn.IFNA(VLOOKUP(AL34,List!$O$3:$Q$444,3,FALSE),"-") -> - | AE34: 不通过 | AL34: - | AM34: =VLOOKUP(AH34,List!$B$3:$D$445,2,FALSE)&AJ34&"_"&VLOOKUP(AK34,List!$K$2:$M$447,2,FALSE) ->  | AN34: =_xlfn.IFNA("L"&AM34&" "&"AT%I"&B20*16+1&".7"&" "&":BOOL;"&" "&"(*"&J34&"*)"," ") ->  | AR34: - | AS34: 10399
B35: IOM 0801D | AO35: ="(* "&B40&"地址: "&B37&" *)" -> (* IOM 0801D地址: 4 *)
B36: addr | C36: 1 | D36: =BIN2DEC(MID((TEXT(DEC2BIN(B37),REPT(0,5))),5,1)) -> 0 | E36: =BIN2DEC(MID((TEXT(DEC2BIN(B37),REPT(0,5))),5,1)) -> 0 | F36: 1 | H36: 1+ | I36: 1- | J36: =AH36&AA36&"-"&AK36 -> 空调机组BXJ-1AP(KT)1-1-启停控制 | AA36: =IF(AI36="","",AI36) -> BXJ-1AP(KT)1-1 | AB36: =_xlfn.IFNA(VLOOKUP(AL36,List!$O$3:$P$444,2,FALSE),"-") -> - | AC36: =_xlfn.IFNA(VLOOKUP(AL36,List!$O$3:$Q$444,3,FALSE),"-") -> - | AE36: 不通过 | AH36: 空调机组 | AI36: BXJ-1AP(KT)1-1 | AJ36: 01A01 | AK36: 启停控制 | AL36: =AH36&"-"&AK36 -> 空调机组-启停控制 | AM36: =VLOOKUP(AH36,List!$B$3:$D$445,2,FALSE)&AJ36&"_"&VLOOKUP(AK36,List!$K$2:$M$447,2,FALSE) -> AHU01A01_C | AN36: =_xlfn.IFNA("L"&AM36&" "&"AT%Q"&B37*16&".0"&" "&":BOOL;"&" "&"(*"&J36&"*)"," ") -> LAHU01A01_C AT%Q64.0 :BOOL; (*空调机组BXJ-1AP(KT)1-1-启停控制*) | AO36: =IFERROR(REPLACE(REPLACE(AN36,SEARCH("AT%",AN36),,REPT(" ",25-SEARCH("AT%",AN36))),SEARCH(":",REPLACE(AN36,SEARCH("AT%",AN36),,REPT(" ",25-SEARCH("AT%",AN36)))),,REPT(" ",40-SEARCH(":",REPLACE(AN36,SEARCH("AT%",AN36),,REPT(" ",25-SEARCH("AT%",AN36))))))," ") -> LAHU01A01_C AT%Q64.0 :BOOL; (*空调机组BXJ-1AP(KT)1-1-启停控制*) | AQ36: AHU01A01_C | AR36: =J36 -> 空调机组BXJ-1AP(KT)1-1-启停控制 | AS36: =($B37*16*8+F36-1) -> 512
B37: 4 | C37: 2 | D37: =BIN2DEC(MID((TEXT(DEC2BIN(B37),REPT(0,5))),4,1)) -> 0 | E37: =BIN2DEC(MID((TEXT(DEC2BIN(B37),REPT(0,5))),4,1)) -> 0 | F37: 2 | H37: 2+ | I37: 2- | J37: 风机盘管BXJ-1AP(KT)1-7-启停控制 | AA37: =IF(AI37="","",AI37) -> BXJ-1AP(KT)1-7 | AB37: =_xlfn.IFNA(VLOOKUP(AL37,List!$O$3:$P$444,2,FALSE),"-") -> - | AC37: =_xlfn.IFNA(VLOOKUP(AL37,List!$O$3:$Q$444,3,FALSE),"-") -> - | AE37: 不通过 | AH37: 风机盘管 | AI37: BXJ-1AP(KT)1-7 | AJ37: 01A07 | AK37: 启停控制 | AL37: =AH37&"-"&AK37 -> 风机盘管-启停控制 | AM37: =VLOOKUP(AH37,List!$B$3:$D$445,2,FALSE)&AJ37&"_"&VLOOKUP(AK37,List!$K$2:$M$447,2,FALSE) -> FCU01A07_C | AN37: =_xlfn.IFNA("L"&AM37&" "&"AT%Q"&B37*16&".1"&" "&":BOOL;"&" "&"(*"&J37&"*)"," ") -> LFCU01A07_C AT%Q64.1 :BOOL; (*风机盘管BXJ-1AP(KT)1-7-启停控制*) | AO37: LFCU01A07_C AT%Q64.1 :BOOL; (*风机盘管BXJ-1AP(KT)1-7-启停控制*) | AQ37: FCU01A07_C | AR37: =J37 -> 风机盘管BXJ-1AP(KT)1-7-启停控制 | AS37: =AS36+1 -> 513
B38: kbs | C38: 3 | D38: =BIN2DEC(MID((TEXT(DEC2BIN(B37),REPT(0,5))),3,1)) -> 1 | E38: =BIN2DEC(MID((TEXT(DEC2BIN(B37),REPT(0,5))),3,1)) -> 1 | F38: 3 | H38: 3+ | I38: 3- | J38: 风机盘管BXJ-1AP(KT)1-7-电磁阀开关控制 | AA38: BXJ-1AP(KT)1-7 | AB38: =_xlfn.IFNA(VLOOKUP(AL38,List!$O$3:$P$444,2,FALSE),"-") -> - | AC38: =_xlfn.IFNA(VLOOKUP(AL38,List!$O$3:$Q$444,3,FALSE),"-") -> - | AE38: 不通过 | AH38: 风机盘管 | AI38: BXJ-1AP(KT)1-7 | AJ38: 01A07 | AK38: 电磁阀开关控制 | AL38: 风机盘管-电磁阀开关控制 | AM38: =VLOOKUP(AH38,List!$B$3:$D$445,2,FALSE)&AJ38&"_"&VLOOKUP(AK38,List!$K$2:$M$447,2,FALSE) -> FCU01A07_EVC | AN38: =_xlfn.IFNA("L"&AM38&" "&"AT%Q"&B37*16&".2"&" "&":BOOL;"&" "&"(*"&J38&"*)"," ") -> LFCU01A07_EVC AT%Q64.2 :BOOL; (*风机盘管BXJ-1AP(KT)1-7-电磁阀开关控制*) | AO38: LFCU01A07_EVC AT%Q64.2 :BOOL; (*风机盘管BXJ-1AP(KT)1-7-电磁阀开关控制*) | AQ38: FCU01A07_EVC | AR38: 风机盘管BXJ-1AP(KT)1-7-电磁阀开关控制 | AS38: =AS37+1 -> 514
B39: 50 | C39: 4 | D39: =BIN2DEC(MID((TEXT(DEC2BIN(B37),REPT(0,5))),2,1)) -> 0 | E39: =BIN2DEC(MID((TEXT(DEC2BIN(B37),REPT(0,5))),2,1)) -> 0 | F39: 4 | H39: 4+ | I39: 4- | J39: - | AB39: =_xlfn.IFNA(VLOOKUP(AL39,List!$O$3:$P$444,2,FALSE),"-") -> - | AC39: =_xlfn.IFNA(VLOOKUP(AL39,List!$O$3:$Q$444,3,FALSE),"-") -> - | AE39: 不通过 | AL39: - | AM39: =VLOOKUP(AH39,List!$B$3:$D$445,2,FALSE)&AJ39&"_"&VLOOKUP(AK39,List!$K$2:$M$447,2,FALSE) ->  | AN39: =_xlfn.IFNA("L"&AM39&" "&"AT%Q"&B37*16&".3"&" "&":BOOL;"&" "&"(*"&J39&"*)"," ") ->  | AR39: - | AS39: 515
B40: IOM 0801D | C40: 5 | D40: =BIN2DEC(MID((TEXT(DEC2BIN(B37),REPT(0,5))),1,1)) -> 0 | E40: =BIN2DEC(MID((TEXT(DEC2BIN(B37),REPT(0,5))),1,1)) -> 0 | F40: 5 | H40: 5+ | I40: 5- | J40: - | AB40: =_xlfn.IFNA(VLOOKUP(AL40,List!$O$3:$P$444,2,FALSE),"-") -> - | AC40: =_xlfn.IFNA(VLOOKUP(AL40,List!$O$3:$Q$444,3,FALSE),"-") -> - | AE40: 不通过 | AL40: - | AM40: =VLOOKUP(AH40,List!$B$3:$D$445,2,FALSE)&AJ40&"_"&VLOOKUP(AK40,List!$K$2:$M$447,2,FALSE) ->  | AN40: =_xlfn.IFNA("L"&AM40&" "&"AT%Q"&B37*16&".4"&" "&":BOOL;"&" "&"(*"&J40&"*)"," ") ->  | AR40: - | AS40: 516
C41: 6 | D41: =BIN2DEC(MID((TEXT(IF(B39=20,1,IF(B39=50,10,IF(B39=125,11,IF(B39=250,100,IF(B39=500,101,IF(B39=800,110,IF(B39=1000,111,0))))))),REPT(0,3))),3,1)) -> 0 | E41: =BIN2DEC(MID((TEXT(IF(B39=20,1,IF(B39=50,10,IF(B39=125,11,IF(B39=250,100,IF(B39=500,101,IF(B39=800,110,IF(B39=1000,111,0))))))),REPT(0,3))),3,1)) -> 0 | F41: 6 | H41: 6+ | I41: 6- | J41: - | AB41: =_xlfn.IFNA(VLOOKUP(AL41,List!$O$3:$P$444,2,FALSE),"-") -> - | AC41: =_xlfn.IFNA(VLOOKUP(AL41,List!$O$3:$Q$444,3,FALSE),"-") -> - | AE41: 不通过 | AL41: - | AM41: =VLOOKUP(AH41,List!$B$3:$D$445,2,FALSE)&AJ41&"_"&VLOOKUP(AK41,List!$K$2:$M$447,2,FALSE) ->  | AN41: =_xlfn.IFNA("L"&AM41&" "&"AT%Q"&B37*16&".5"&" "&":BOOL;"&" "&"(*"&J41&"*)"," ") ->  | AR41: - | AS41: 517
C42: 7 | D42: =BIN2DEC(MID((TEXT(IF(B39=20,1,IF(B39=50,10,IF(B39=125,11,IF(B39=250,100,IF(B39=500,101,IF(B39=800,110,IF(B39=1000,111,0))))))),REPT(0,3))),2,1)) -> 1 | E42: =BIN2DEC(MID((TEXT(IF(B39=20,1,IF(B39=50,10,IF(B39=125,11,IF(B39=250,100,IF(B39=500,101,IF(B39=800,110,IF(B39=1000,111,0))))))),REPT(0,3))),2,1)) -> 1 | F42: 7 | H42: 7+ | I42: 7- | J42: - | AB42: =_xlfn.IFNA(VLOOKUP(AL42,List!$O$3:$P$444,2,FALSE),"-") -> - | AC42: =_xlfn.IFNA(VLOOKUP(AL42,List!$O$3:$Q$444,3,FALSE),"-") -> - | AE42: 不通过 | AL42: - | AM42: =VLOOKUP(AH42,List!$B$3:$D$445,2,FALSE)&AJ42&"_"&VLOOKUP(AK42,List!$K$2:$M$447,2,FALSE) ->  | AN42: =_xlfn.IFNA("L"&AM42&" "&"AT%Q"&B37*16&".6"&" "&":BOOL;"&" "&"(*"&J42&"*)"," ") ->  | AR42: - | AS42: 518
A43: . | C43: 8 | D43: =BIN2DEC(MID((TEXT(IF(B39=20,1,IF(B39=50,10,IF(B39=125,11,IF(B39=250,100,IF(B39=500,101,IF(B39=800,110,IF(B39=1000,111,0))))))),REPT(0,3))),1,1)) -> 0 | E43: =BIN2DEC(MID((TEXT(IF(B39=20,1,IF(B39=50,10,IF(B39=125,11,IF(B39=250,100,IF(B39=500,101,IF(B39=800,110,IF(B39=1000,111,0))))))),REPT(0,3))),1,1)) -> 0 | F43: 8 | H43: 8+ | I43: 8- | J43: - | AB43: =_xlfn.IFNA(VLOOKUP(AL43,List!$O$3:$P$444,2,FALSE),"-") -> - | AC43: =_xlfn.IFNA(VLOOKUP(AL43,List!$O$3:$Q$444,3,FALSE),"-") -> - | AE43: 不通过 | AL43: - | AM43: =VLOOKUP(AH43,List!$B$3:$D$445,2,FALSE)&AJ43&"_"&VLOOKUP(AK43,List!$K$2:$M$447,2,FALSE) ->  | AN43: =_xlfn.IFNA("L"&AM43&" "&"AT%Q"&B37*16&".7"&" "&":BOOL;"&" "&"(*"&J43&"*)"," ") ->  | AR43: - | AS43: 519
B44: IOM 1601D | AO44: ="(* "&B49&"地址: "&B46&" *)" -> (* IOM 1601D地址: 3 *)
B45: addr | C45: 1 | D45: =BIN2DEC(MID((TEXT(DEC2BIN(B46),REPT(0,5))),5,1)) -> 1 | E45: =BIN2DEC(MID((TEXT(DEC2BIN(B46),REPT(0,5))),5,1)) -> 1 | F45: 1 | H45: 1+ | I45: 1- | J45: =AH45&AA45&"-"&AK45 -> - | AA45: =IF(AI45="","",AI45) ->  | AB45: =_xlfn.IFNA(VLOOKUP(AL45,List!$O$3:$P$444,2,FALSE),"-") -> - | AC45: =_xlfn.IFNA(VLOOKUP(AL45,List!$O$3:$Q$444,3,FALSE),"-") -> - | AE45: 不通过 | AL45: =AH45&"-"&AK45 -> - | AM45: =VLOOKUP(AH45,List!$B$3:$D$445,2,FALSE)&AJ45&"_"&VLOOKUP(AK45,List!$K$2:$M$447,2,FALSE) ->  | AN45: =_xlfn.IFNA("L"&AM45&" "&"AT%Q"&B46*16&".0"&" "&":BOOL;"&" "&"(*"&J45&"*)"," ") ->  | AO45: =IFERROR(REPLACE(REPLACE(AN45,SEARCH("AT%",AN45),,REPT(" ",25-SEARCH("AT%",AN45))),SEARCH(":",REPLACE(AN45,SEARCH("AT%",AN45),,REPT(" ",25-SEARCH("AT%",AN45)))),,REPT(" ",40-SEARCH(":",REPLACE(AN45,SEARCH("AT%",AN45),,REPT(" ",25-SEARCH("AT%",AN45))))))," ") ->  | AR45: =J45 -> - | AS45: =($B46*16*8+F45-1) -> 384
B46: 3 | C46: 2 | D46: =BIN2DEC(MID((TEXT(DEC2BIN(B46),REPT(0,5))),4,1)) -> 1 | E46: =BIN2DEC(MID((TEXT(DEC2BIN(B46),REPT(0,5))),4,1)) -> 1 | F46: 2 | H46: 2+ | I46: 2- | J46: - | AA46: =IF(AI46="","",AI46) ->  | AB46: =_xlfn.IFNA(VLOOKUP(AL46,List!$O$3:$P$444,2,FALSE),"-") -> - | AC46: =_xlfn.IFNA(VLOOKUP(AL46,List!$O$3:$Q$444,3,FALSE),"-") -> - | AE46: 不通过 | AL46: =AH46&"-"&AK46 -> - | AM46: =VLOOKUP(AH46,List!$B$3:$D$445,2,FALSE)&AJ46&"_"&VLOOKUP(AK46,List!$K$2:$M$447,2,FALSE) ->  | AN46: =_xlfn.IFNA("L"&AM46&" "&"AT%Q"&B46*16&".1"&" "&":BOOL;"&" "&"(*"&J46&"*)"," ") ->  | AR46: =J46 -> - | AS46: =AS45+1 -> 385
B47: kbs | C47: 3 | D47: =BIN2DEC(MID((TEXT(DEC2BIN(B46),REPT(0,5))),3,1)) -> 0 | E47: =BIN2DEC(MID((TEXT(DEC2BIN(B46),REPT(0,5))),3,1)) -> 0 | F47: 3 | H47: 3+ | I47: 3- | J47: - | AB47: =_xlfn.IFNA(VLOOKUP(AL47,List!$O$3:$P$444,2,FALSE),"-") -> - | AC47: =_xlfn.IFNA(VLOOKUP(AL47,List!$O$3:$Q$444,3,FALSE),"-") -> - | AE47: 不通过 | AL47: - | AM47: =VLOOKUP(AH47,List!$B$3:$D$445,2,FALSE)&AJ47&"_"&VLOOKUP(AK47,List!$K$2:$M$447,2,FALSE) ->  | AN47: =_xlfn.IFNA("L"&AM47&" "&"AT%Q"&B46*16&".2"&" "&":BOOL;"&" "&"(*"&J47&"*)"," ") ->  | AR47: - | AS47: =AS46+1 -> 386
B48: 50 | C48: 4 | D48: =BIN2DEC(MID((TEXT(DEC2BIN(B46),REPT(0,5))),2,1)) -> 0 | E48: =BIN2DEC(MID((TEXT(DEC2BIN(B46),REPT(0,5))),2,1)) -> 0 | F48: 4 | H48: 4+ | I48: 4- | J48: - | AB48: =_xlfn.IFNA(VLOOKUP(AL48,List!$O$3:$P$444,2,FALSE),"-") -> - | AC48: =_xlfn.IFNA(VLOOKUP(AL48,List!$O$3:$Q$444,3,FALSE),"-") -> - | AE48: 不通过 | AL48: - | AM48: =VLOOKUP(AH48,List!$B$3:$D$445,2,FALSE)&AJ48&"_"&VLOOKUP(AK48,List!$K$2:$M$447,2,FALSE) ->  | AN48: =_xlfn.IFNA("L"&AM48&" "&"AT%Q"&B46*16&".3"&" "&":BOOL;"&" "&"(*"&J48&"*)"," ") ->  | AR48: - | AS48: 387
B49: IOM 1601D | C49: 5 | D49: =BIN2DEC(MID((TEXT(DEC2BIN(B46),REPT(0,5))),1,1)) -> 0 | E49: =BIN2DEC(MID((TEXT(DEC2BIN(B46),REPT(0,5))),1,1)) -> 0 | F49: 5 | H49: 5+ | I49: 5- | J49: - | AB49: =_xlfn.IFNA(VLOOKUP(AL49,List!$O$3:$P$444,2,FALSE),"-") -> - | AC49: =_xlfn.IFNA(VLOOKUP(AL49,List!$O$3:$Q$444,3,FALSE),"-") -> - | AE49: 不通过 | AL49: - | AM49: =VLOOKUP(AH49,List!$B$3:$D$445,2,FALSE)&AJ49&"_"&VLOOKUP(AK49,List!$K$2:$M$447,2,FALSE) ->  | AN49: =_xlfn.IFNA("L"&AM49&" "&"AT%Q"&B46*16&".4"&" "&":BOOL;"&" "&"(*"&J49&"*)"," ") ->  | AR49: - | AS49: 388
C50: 6 | D50: =BIN2DEC(MID((TEXT(IF(B48=20,1,IF(B48=50,10,IF(B48=125,11,IF(B48=250,100,IF(B48=500,101,IF(B48=800,110,IF(B48=1000,111,0))))))),REPT(0,3))),3,1)) -> 0 | E50: =BIN2DEC(MID((TEXT(IF(B48=20,1,IF(B48=50,10,IF(B48=125,11,IF(B48=250,100,IF(B48=500,101,IF(B48=800,110,IF(B48=1000,111,0))))))),REPT(0,3))),3,1)) -> 0 | F50: 6 | H50: 6+ | I50: 6- | J50: - | AB50: =_xlfn.IFNA(VLOOKUP(AL50,List!$O$3:$P$444,2,FALSE),"-") -> - | AC50: =_xlfn.IFNA(VLOOKUP(AL50,List!$O$3:$Q$444,3,FALSE),"-") -> - | AE50: 不通过 | AL50: - | AM50: =VLOOKUP(AH50,List!$B$3:$D$445,2,FALSE)&AJ50&"_"&VLOOKUP(AK50,List!$K$2:$M$447,2,FALSE) ->  | AN50: =_xlfn.IFNA("L"&AM50&" "&"AT%Q"&B46*16&".5"&" "&":BOOL;"&" "&"(*"&J50&"*)"," ") ->  | AR50: - | AS50: 389
C51: 7 | D51: =BIN2DEC(MID((TEXT(IF(B48=20,1,IF(B48=50,10,IF(B48=125,11,IF(B48=250,100,IF(B48=500,101,IF(B48=800,110,IF(B48=1000,111,0))))))),REPT(0,3))),2,1)) -> 1 | E51: =BIN2DEC(MID((TEXT(IF(B48=20,1,IF(B48=50,10,IF(B48=125,11,IF(B48=250,100,IF(B48=500,101,IF(B48=800,110,IF(B48=1000,111,0))))))),REPT(0,3))),2,1)) -> 1 | F51: 7 | H51: 7+ | I51: 7- | J51: - | AB51: =_xlfn.IFNA(VLOOKUP(AL51,List!$O$3:$P$444,2,FALSE),"-") -> - | AC51: =_xlfn.IFNA(VLOOKUP(AL51,List!$O$3:$Q$444,3,FALSE),"-") -> - | AE51: 不通过 | AL51: - | AM51: =VLOOKUP(AH51,List!$B$3:$D$445,2,FALSE)&AJ51&"_"&VLOOKUP(AK51,List!$K$2:$M$447,2,FALSE) ->  | AN51: =_xlfn.IFNA("L"&AM51&" "&"AT%Q"&B46*16&".6"&" "&":BOOL;"&" "&"(*"&J51&"*)"," ") ->  | AR51: - | AS51: 390
C52: 8 | D52: =BIN2DEC(MID((TEXT(IF(B48=20,1,IF(B48=50,10,IF(B48=125,11,IF(B48=250,100,IF(B48=500,101,IF(B48=800,110,IF(B48=1000,111,0))))))),REPT(0,3))),1,1)) -> 0 | E52: =BIN2DEC(MID((TEXT(IF(B48=20,1,IF(B48=50,10,IF(B48=125,11,IF(B48=250,100,IF(B48=500,101,IF(B48=800,110,IF(B48=1000,111,0))))))),REPT(0,3))),1,1)) -> 0 | F52: 8 | H52: 8+ | I52: 8- | J52: - | AB52: =_xlfn.IFNA(VLOOKUP(AL52,List!$O$3:$P$444,2,FALSE),"-") -> - | AC52: =_xlfn.IFNA(VLOOKUP(AL52,List!$O$3:$Q$444,3,FALSE),"-") -> - | AE52: 不通过 | AL52: - | AM52: =VLOOKUP(AH52,List!$B$3:$D$445,2,FALSE)&AJ52&"_"&VLOOKUP(AK52,List!$K$2:$M$447,2,FALSE) ->  | AN52: =_xlfn.IFNA("L"&AM52&" "&"AT%Q"&B46*16&".7"&" "&":BOOL;"&" "&"(*"&J52&"*)"," ") ->  | AR52: - | AS52: 391
F53: 9 | H53: 9+ | I53: 9- | J53: - | AB53: =_xlfn.IFNA(VLOOKUP(AL53,List!$O$3:$P$444,2,FALSE),"-") -> - | AC53: =_xlfn.IFNA(VLOOKUP(AL53,List!$O$3:$Q$444,3,FALSE),"-") -> - | AE53: 不通过 | AL53: - | AM53: =VLOOKUP(AH53,List!$B$3:$D$445,2,FALSE)&AJ53&"_"&VLOOKUP(AK53,List!$K$2:$M$447,2,FALSE) ->  | AN53: =_xlfn.IFNA("L"&AM53&" "&"AT%Q"&B46*16+1&".0"&" "&":BOOL;"&" "&"(*"&J53&"*)"," ") ->  | AR53: - | AS53: 392
F54: 10 | H54: 10+ | I54: 10- | J54: - | AA54: =IF(AI54="","",AI54) ->  | AB54: =_xlfn.IFNA(VLOOKUP(AL54,List!$O$3:$P$444,2,FALSE),"-") -> - | AC54: =_xlfn.IFNA(VLOOKUP(AL54,List!$O$3:$Q$444,3,FALSE),"-") -> - | AE54: 不通过 | AL54: =AH54&"-"&AK54 -> - | AM54: =VLOOKUP(AH54,List!$B$3:$D$445,2,FALSE)&AJ54&"_"&VLOOKUP(AK54,List!$K$2:$M$447,2,FALSE) ->  | AN54: =_xlfn.IFNA("L"&AM54&" "&"AT%Q"&B46*16+1&".1"&" "&":BOOL;"&" "&"(*"&J54&"*)"," ") ->  | AR54: =J54 -> - | AS54: 393
F55: 11 | H55: 11+ | I55: 11- | J55: - | AB55: =_xlfn.IFNA(VLOOKUP(AL55,List!$O$3:$P$444,2,FALSE),"-") -> - | AC55: =_xlfn.IFNA(VLOOKUP(AL55,List!$O$3:$Q$444,3,FALSE),"-") -> - | AE55: 不通过 | AL55: - | AM55: =VLOOKUP(AH55,List!$B$3:$D$445,2,FALSE)&AJ55&"_"&VLOOKUP(AK55,List!$K$2:$M$447,2,FALSE) ->  | AN55: =_xlfn.IFNA("L"&AM55&" "&"AT%Q"&B46*16+1&".2"&" "&":BOOL;"&" "&"(*"&J55&"*)"," ") ->  | AR55: - | AS55: 394
F56: 12 | H56: 12+ | I56: 12- | J56: - | AB56: =_xlfn.IFNA(VLOOKUP(AL56,List!$O$3:$P$444,2,FALSE),"-") -> - | AC56: =_xlfn.IFNA(VLOOKUP(AL56,List!$O$3:$Q$444,3,FALSE),"-") -> - | AE56: 不通过 | AL56: - | AM56: =VLOOKUP(AH56,List!$B$3:$D$445,2,FALSE)&AJ56&"_"&VLOOKUP(AK56,List!$K$2:$M$447,2,FALSE) ->  | AN56: =_xlfn.IFNA("L"&AM56&" "&"AT%Q"&B46*16+1&".3"&" "&":BOOL;"&" "&"(*"&J56&"*)"," ") ->  | AR56: - | AS56: 395
F57: 13 | H57: 13+ | I57: 13- | J57: - | AB57: =_xlfn.IFNA(VLOOKUP(AL57,List!$O$3:$P$444,2,FALSE),"-") -> - | AC57: =_xlfn.IFNA(VLOOKUP(AL57,List!$O$3:$Q$444,3,FALSE),"-") -> - | AE57: 不通过 | AL57: - | AM57: =VLOOKUP(AH57,List!$B$3:$D$445,2,FALSE)&AJ57&"_"&VLOOKUP(AK57,List!$K$2:$M$447,2,FALSE) ->  | AN57: =_xlfn.IFNA("L"&AM57&" "&"AT%Q"&B46*16+1&".4"&" "&":BOOL;"&" "&"(*"&J57&"*)"," ") ->  | AR57: - | AS57: 396
F58: 14 | H58: 14+ | I58: 14- | J58: - | AB58: =_xlfn.IFNA(VLOOKUP(AL58,List!$O$3:$P$444,2,FALSE),"-") -> - | AC58: =_xlfn.IFNA(VLOOKUP(AL58,List!$O$3:$Q$444,3,FALSE),"-") -> - | AE58: 不通过 | AL58: - | AM58: =VLOOKUP(AH58,List!$B$3:$D$445,2,FALSE)&AJ58&"_"&VLOOKUP(AK58,List!$K$2:$M$447,2,FALSE) ->  | AN58: =_xlfn.IFNA("L"&AM58&" "&"AT%Q"&B46*16+1&".5"&" "&":BOOL;"&" "&"(*"&J58&"*)"," ") ->  | AR58: - | AS58: 397
F59: 15 | H59: 15+ | I59: 15- | J59: - | AB59: =_xlfn.IFNA(VLOOKUP(AL59,List!$O$3:$P$444,2,FALSE),"-") -> - | AC59: =_xlfn.IFNA(VLOOKUP(AL59,List!$O$3:$Q$444,3,FALSE),"-") -> - | AE59: 不通过 | AL59: - | AM59: =VLOOKUP(AH59,List!$B$3:$D$445,2,FALSE)&AJ59&"_"&VLOOKUP(AK59,List!$K$2:$M$447,2,FALSE) ->  | AN59: =_xlfn.IFNA("L"&AM59&" "&"AT%Q"&B46*16+1&".6"&" "&":BOOL;"&" "&"(*"&J59&"*)"," ") ->  | AR59: - | AS59: 398
A60: . | F60: 16 | H60: 16+ | I60: 16- | J60: - | AB60: =_xlfn.IFNA(VLOOKUP(AL60,List!$O$3:$P$444,2,FALSE),"-") -> - | AC60: =_xlfn.IFNA(VLOOKUP(AL60,List!$O$3:$Q$444,3,FALSE),"-") -> - | AE60: 不通过 | AL60: - | AM60: =VLOOKUP(AH60,List!$B$3:$D$445,2,FALSE)&AJ60&"_"&VLOOKUP(AK60,List!$K$2:$M$447,2,FALSE) ->  | AN60: =_xlfn.IFNA("L"&AM60&" "&"AT%Q"&B46*16+1&".7"&" "&":BOOL;"&" "&"(*"&J60&"*)"," ") ->  | AR60: - | AS60: 399
B61: =B66 -> IOM 0801U | AO61: ="(* "&B66&"地址: "&B63&" *)" -> (* IOM 0801U地址: 5 *)
B62: addr | C62: 1 | D62: =BIN2DEC(MID((TEXT(DEC2BIN(B63),REPT(0,5))),5,1)) -> 1 | E62: =BIN2DEC(MID((TEXT(DEC2BIN(B63),REPT(0,5))),5,1)) -> 1 | F62: 1 | H62: 1 | I62: 0V | J62: =AH62&AA62&"-"&AK62 -> 空调机组BXJ-1AP(KT)1-1-回风温度 | AA62: =IF(AI62="","",AI62) -> BXJ-1AP(KT)1-1 | AB62: =_xlfn.IFNA(VLOOKUP(AL62,List!$O$3:$P$444,2,FALSE),"-") -> - | AC62: =_xlfn.IFNA(VLOOKUP(AL62,List!$O$3:$Q$444,3,FALSE),"-") -> - | AE62: 不通过 | AH62: 空调机组 | AI62: BXJ-1AP(KT)1-1 | AJ62: 01A01 | AK62: 回风温度 | AL62: =AH62&"-"&AK62 -> 空调机组-回风温度 | AM62: =VLOOKUP(AH62,List!$B$3:$D$445,2,FALSE)&AJ62&"_"&VLOOKUP(AK62,List!$K$2:$M$447,2,FALSE) -> AHU01A01_RT | AN62: =_xlfn.IFNA("L"&AM62&" "&"AT%I"&B63*16&".0"&" "&":INT ;"&" "&"(*"&J62&"*)"," ") -> LAHU01A01_RT AT%I80.0 :INT ; (*空调机组BXJ-1AP(KT)1-1-回风温度*) | AO62: =IFERROR(REPLACE(REPLACE(AN62,SEARCH("AT%",AN62),,REPT(" ",25-SEARCH("AT%",AN62))),SEARCH(":",REPLACE(AN62,SEARCH("AT%",AN62),,REPT(" ",25-SEARCH("AT%",AN62)))),,REPT(" ",40-SEARCH(":",REPLACE(AN62,SEARCH("AT%",AN62),,REPT(" ",25-SEARCH("AT%",AN62))))))," ") -> LAHU01A01_RT AT%I80.0 :INT ; (*空调机组BXJ-1AP(KT)1-1-回风温度*) | AQ62: AHU01A01_RT | AR62: =J62 -> 空调机组BXJ-1AP(KT)1-1-回风温度 | AS62: =30000+($B63*8+F62-1) -> 30040
B63: 5 | C63: 2 | D63: =BIN2DEC(MID((TEXT(DEC2BIN(B63),REPT(0,5))),4,1)) -> 0 | E63: =BIN2DEC(MID((TEXT(DEC2BIN(B63),REPT(0,5))),4,1)) -> 0 | F63: 2 | H63: 2 | I63: 0V | J63: 空调机组BXJ-1AP(KT)1-1-水阀反馈 | AA63: =IF(AI63="","",AI63) -> BXJ-1AP(KT)1-1 | AB63: =_xlfn.IFNA(VLOOKUP(AL63,List!$O$3:$P$444,2,FALSE),"-") -> - | AC63: =_xlfn.IFNA(VLOOKUP(AL63,List!$O$3:$Q$444,3,FALSE),"-") -> - | AE63: 不通过 | AH63: 空调机组 | AI63: BXJ-1AP(KT)1-1 | AJ63: 01A01 | AK63: 水阀反馈 | AL63: =AH63&"-"&AK63 -> 空调机组-水阀反馈 | AM63: =VLOOKUP(AH63,List!$B$3:$D$445,2,FALSE)&AJ63&"_"&VLOOKUP(AK63,List!$K$2:$M$447,2,FALSE) -> AHU01A01_WVB | AN63: =_xlfn.IFNA("L"&AM63&" "&"AT%I"&B63*16+2&".0"&" "&":INT ;"&" "&"(*"&J63&"*)"," ") -> LAHU01A01_WVB AT%I82.0 :INT ; (*空调机组BXJ-1AP(KT)1-1-水阀反馈*) | AO63: LAHU01A01_WVB AT%I82.0 :INT ; (*空调机组BXJ-1AP(KT)1-1-水阀反馈*) | AQ63: AHU01A01_WVB | AR63: =J63 -> 空调机组BXJ-1AP(KT)1-1-水阀反馈 | AS63: =AS62+1 -> 30041
B64: kbs | C64: 3 | D64: =BIN2DEC(MID((TEXT(DEC2BIN(B63),REPT(0,5))),3,1)) -> 1 | E64: =BIN2DEC(MID((TEXT(DEC2BIN(B63),REPT(0,5))),3,1)) -> 1 | F64: 3 | H64: 3 | I64: 0V | J64: 风机盘管BXJ-1AP(KT)1-7-温度状态 | AA64: BXJ-1AP(KT)1-7 | AB64: =_xlfn.IFNA(VLOOKUP(AL64,List!$O$3:$P$444,2,FALSE),"-") -> - | AC64: =_xlfn.IFNA(VLOOKUP(AL64,List!$O$3:$Q$444,3,FALSE),"-") -> - | AE64: 不通过 | AH64: 风机盘管 | AI64: BXJ-1AP(KT)1-7 | AJ64: 01A07 | AK64: 温度状态 | AL64: 风机盘管-温度状态 | AM64: =VLOOKUP(AH64,List!$B$3:$D$445,2,FALSE)&AJ64&"_"&VLOOKUP(AK64,List!$K$2:$M$447,2,FALSE) -> FCU01A07_T | AN64: =_xlfn.IFNA("L"&AM64&" "&"AT%I"&B63*16+4&".0"&" "&":INT ;"&" "&"(*"&J64&"*)"," ") -> LFCU01A07_T AT%I84.0 :INT ; (*风机盘管BXJ-1AP(KT)1-7-温度状态*) | AO64: LFCU01A07_T AT%I84.0 :INT ; (*风机盘管BXJ-1AP(KT)1-7-温度状态*) | AQ64: FCU01A07_T | AR64: 风机盘管BXJ-1AP(KT)1-7-温度状态 | AS64: =AS63+1 -> 30042
B65: 50 | C65: 4 | D65: =BIN2DEC(MID((TEXT(DEC2BIN(B63),REPT(0,5))),2,1)) -> 0 | E65: =BIN2DEC(MID((TEXT(DEC2BIN(B63),REPT(0,5))),2,1)) -> 0 | F65: 4 | H65: 4 | I65: 0V | J65: - | AB65: =_xlfn.IFNA(VLOOKUP(AL65,List!$O$3:$P$444,2,FALSE),"-") -> - | AC65: =_xlfn.IFNA(VLOOKUP(AL65,List!$O$3:$Q$444,3,FALSE),"-") -> - | AE65: 不通过 | AL65: - | AM65: =VLOOKUP(AH65,List!$B$3:$D$445,2,FALSE)&AJ65&"_"&VLOOKUP(AK65,List!$K$2:$M$447,2,FALSE) ->  | AN65: =_xlfn.IFNA("L"&AM65&" "&"AT%I"&B63*16+6&".0"&" "&":INT ;"&" "&"(*"&J65&"*)"," ") ->  | AR65: - | AS65: 30043
B66: IOM 0801U | C66: 5 | D66: =BIN2DEC(MID((TEXT(DEC2BIN(B63),REPT(0,5))),1,1)) -> 0 | E66: =BIN2DEC(MID((TEXT(DEC2BIN(B63),REPT(0,5))),1,1)) -> 0 | F66: 5 | H66: 5 | I66: 0V | J66: - | AB66: =_xlfn.IFNA(VLOOKUP(AL66,List!$O$3:$P$444,2,FALSE),"-") -> - | AC66: =_xlfn.IFNA(VLOOKUP(AL66,List!$O$3:$Q$444,3,FALSE),"-") -> - | AE66: 不通过 | AL66: - | AM66: =VLOOKUP(AH66,List!$B$3:$D$445,2,FALSE)&AJ66&"_"&VLOOKUP(AK66,List!$K$2:$M$447,2,FALSE) ->  | AN66: =_xlfn.IFNA("L"&AM66&" "&"AT%I"&B63*16+8&".0"&" "&":INT ;"&" "&"(*"&J66&"*)"," ") ->  | AR66: - | AS66: 30044
C67: 6 | D67: =BIN2DEC(MID((TEXT(IF(B65=20,1,IF(B65=50,10,IF(B65=125,11,IF(B65=250,100,IF(B65=500,101,IF(B65=800,110,IF(B65=1000,111,0))))))),REPT(0,3))),3,1)) -> 0 | E67: =BIN2DEC(MID((TEXT(IF(B65=20,1,IF(B65=50,10,IF(B65=125,11,IF(B65=250,100,IF(B65=500,101,IF(B65=800,110,IF(B65=1000,111,0))))))),REPT(0,3))),3,1)) -> 0 | F67: 6 | H67: 6 | I67: 0V | J67: - | AA67: =IF(AI67="","",AI67) ->  | AB67: =_xlfn.IFNA(VLOOKUP(AL67,List!$O$3:$P$444,2,FALSE),"-") -> - | AC67: =_xlfn.IFNA(VLOOKUP(AL67,List!$O$3:$Q$444,3,FALSE),"-") -> - | AE67: 不通过 | AL67: - | AM67: =VLOOKUP(AH67,List!$B$3:$D$445,2,FALSE)&AJ67&"_"&VLOOKUP(AK67,List!$K$2:$M$447,2,FALSE) ->  | AN67: =_xlfn.IFNA("L"&AM67&" "&"AT%I"&B63*16+10&".0"&" "&":INT ;"&" "&"(*"&J67&"*)"," ") ->  | AR67: =J67 -> - | AS67: 30045
C68: 7 | D68: =BIN2DEC(MID((TEXT(IF(B65=20,1,IF(B65=50,10,IF(B65=125,11,IF(B65=250,100,IF(B65=500,101,IF(B65=800,110,IF(B65=1000,111,0))))))),REPT(0,3))),2,1)) -> 1 | E68: =BIN2DEC(MID((TEXT(IF(B65=20,1,IF(B65=50,10,IF(B65=125,11,IF(B65=250,100,IF(B65=500,101,IF(B65=800,110,IF(B65=1000,111,0))))))),REPT(0,3))),2,1)) -> 1 | F68: 7 | H68: 7 | I68: 0V | J68: - | AB68: =_xlfn.IFNA(VLOOKUP(AL68,List!$O$3:$P$444,2,FALSE),"-") -> - | AC68: =_xlfn.IFNA(VLOOKUP(AL68,List!$O$3:$Q$444,3,FALSE),"-") -> - | AE68: 不通过 | AL68: - | AM68: =VLOOKUP(AH68,List!$B$3:$D$445,2,FALSE)&AJ68&"_"&VLOOKUP(AK68,List!$K$2:$M$447,2,FALSE) ->  | AN68: =_xlfn.IFNA("L"&AM68&" "&"AT%I"&B63*16+12&".0"&" "&":INT ;"&" "&"(*"&J68&"*)"," ") ->  | AR68: - | AS68: 30046
A69: . | C69: 8 | D69: =BIN2DEC(MID((TEXT(IF(B65=20,1,IF(B65=50,10,IF(B65=125,11,IF(B65=250,100,IF(B65=500,101,IF(B65=800,110,IF(B65=1000,111,0))))))),REPT(0,3))),1,1)) -> 0 | E69: =BIN2DEC(MID((TEXT(IF(B65=20,1,IF(B65=50,10,IF(B65=125,11,IF(B65=250,100,IF(B65=500,101,IF(B65=800,110,IF(B65=1000,111,0))))))),REPT(0,3))),1,1)) -> 0 | F69: 8 | H69: 8 | I69: 0V | J69: - | AB69: =_xlfn.IFNA(VLOOKUP(AL69,List!$O$3:$P$444,2,FALSE),"-") -> - | AC69: =_xlfn.IFNA(VLOOKUP(AL69,List!$O$3:$Q$444,3,FALSE),"-") -> - | AE69: 不通过 | AL69: - | AM69: =VLOOKUP(AH69,List!$B$3:$D$445,2,FALSE)&AJ69&"_"&VLOOKUP(AK69,List!$K$2:$M$447,2,FALSE) ->  | AN69: =_xlfn.IFNA("L"&AM69&" "&"AT%I"&B63*16+14&".0"&" "&":INT ;"&" "&"(*"&J69&"*)"," ") ->  | AR69: - | AS69: 30047
B70: =B75 -> IOM 0401U | AO70: ="(* "&B75&"地址: "&B72&" *)" -> (* IOM 0401U地址: 5 *)
B71: addr | C71: 1 | D71: =BIN2DEC(MID((TEXT(DEC2BIN(B72),REPT(0,5))),5,1)) -> 1 | E71: =BIN2DEC(MID((TEXT(DEC2BIN(B72),REPT(0,5))),5,1)) -> 1 | F71: 1 | H71: 1 | I71: 0V | J71: =AH71&AA71&"-"&AK71 -> - | AA71: =IF(AI71="","",AI71) ->  | AB71: =_xlfn.IFNA(VLOOKUP(AL71,List!$O$3:$P$444,2,FALSE),"-") -> - | AC71: =_xlfn.IFNA(VLOOKUP(AL71,List!$O$3:$Q$444,3,FALSE),"-") -> - | AE71: 不通过 | AL71: =AH71&"-"&AK71 -> - | AM71: =VLOOKUP(AH71,List!$B$3:$D$445,2,FALSE)&AJ71&"_"&VLOOKUP(AK71,List!$K$2:$M$447,2,FALSE) ->  | AN71: =_xlfn.IFNA("L"&AM71&" "&"AT%I"&B72*16&".0"&" "&":INT ;"&" "&"(*"&J71&"*)"," ") ->  | AO71: =IFERROR(REPLACE(REPLACE(AN71,SEARCH("AT%",AN71),,REPT(" ",25-SEARCH("AT%",AN71))),SEARCH(":",REPLACE(AN71,SEARCH("AT%",AN71),,REPT(" ",25-SEARCH("AT%",AN71)))),,REPT(" ",40-SEARCH(":",REPLACE(AN71,SEARCH("AT%",AN71),,REPT(" ",25-SEARCH("AT%",AN71))))))," ") ->  | AR71: =J71 -> - | AS71: =30000+($B72*8+F71-1) -> 30040
B72: 5 | C72: 2 | D72: =BIN2DEC(MID((TEXT(DEC2BIN(B72),REPT(0,5))),4,1)) -> 0 | E72: =BIN2DEC(MID((TEXT(DEC2BIN(B72),REPT(0,5))),4,1)) -> 0 | F72: 2 | H72: 2 | I72: 0V | J72: - | AA72: =IF(AI72="","",AI72) ->  | AB72: =_xlfn.IFNA(VLOOKUP(AL72,List!$O$3:$P$444,2,FALSE),"-") -> - | AC72: =_xlfn.IFNA(VLOOKUP(AL72,List!$O$3:$Q$444,3,FALSE),"-") -> - | AE72: 不通过 | AL72: =AH72&"-"&AK72 -> - | AM72: =VLOOKUP(AH72,List!$B$3:$D$445,2,FALSE)&AJ72&"_"&VLOOKUP(AK72,List!$K$2:$M$447,2,FALSE) ->  | AN72: =_xlfn.IFNA("L"&AM72&" "&"AT%I"&B72*16+2&".0"&" "&":INT ;"&" "&"(*"&J72&"*)"," ") ->  | AR72: =J72 -> - | AS72: =AS71+1 -> 30041
B73: kbs | C73: 3 | D73: =BIN2DEC(MID((TEXT(DEC2BIN(B72),REPT(0,5))),3,1)) -> 1 | E73: =BIN2DEC(MID((TEXT(DEC2BIN(B72),REPT(0,5))),3,1)) -> 1 | F73: 3 | H73: 3 | I73: 0V | J73: - | AB73: =_xlfn.IFNA(VLOOKUP(AL73,List!$O$3:$P$444,2,FALSE),"-") -> - | AC73: =_xlfn.IFNA(VLOOKUP(AL73,List!$O$3:$Q$444,3,FALSE),"-") -> - | AE73: 不通过 | AL73: - | AM73: =VLOOKUP(AH73,List!$B$3:$D$445,2,FALSE)&AJ73&"_"&VLOOKUP(AK73,List!$K$2:$M$447,2,FALSE) ->  | AN73: =_xlfn.IFNA("L"&AM73&" "&"AT%I"&B72*16+4&".0"&" "&":INT ;"&" "&"(*"&J73&"*)"," ") ->  | AR73: - | AS73: =AS72+1 -> 30042
B74: 50 | C74: 4 | D74: =BIN2DEC(MID((TEXT(DEC2BIN(B72),REPT(0,5))),2,1)) -> 0 | E74: =BIN2DEC(MID((TEXT(DEC2BIN(B72),REPT(0,5))),2,1)) -> 0 | F74: 4 | H74: 4 | I74: 0V | J74: - | AB74: =_xlfn.IFNA(VLOOKUP(AL74,List!$O$3:$P$444,2,FALSE),"-") -> - | AC74: =_xlfn.IFNA(VLOOKUP(AL74,List!$O$3:$Q$444,3,FALSE),"-") -> - | AE74: 不通过 | AL74: - | AM74: =VLOOKUP(AH74,List!$B$3:$D$445,2,FALSE)&AJ74&"_"&VLOOKUP(AK74,List!$K$2:$M$447,2,FALSE) ->  | AN74: =_xlfn.IFNA("L"&AM74&" "&"AT%I"&B72*16+6&".0"&" "&":INT ;"&" "&"(*"&J74&"*)"," ") ->  | AR74: - | AS74: 30043
B75: IOM 0401U | C75: 5 | D75: =BIN2DEC(MID((TEXT(DEC2BIN(B72),REPT(0,5))),1,1)) -> 0 | E75: =BIN2DEC(MID((TEXT(DEC2BIN(B72),REPT(0,5))),1,1)) -> 0
C76: 6 | D76: =BIN2DEC(MID((TEXT(IF(B74=20,1,IF(B74=50,10,IF(B74=125,11,IF(B74=250,100,IF(B74=500,101,IF(B74=800,110,IF(B74=1000,111,0))))))),REPT(0,3))),3,1)) -> 0 | E76: =BIN2DEC(MID((TEXT(IF(B74=20,1,IF(B74=50,10,IF(B74=125,11,IF(B74=250,100,IF(B74=500,101,IF(B74=800,110,IF(B74=1000,111,0))))))),REPT(0,3))),3,1)) -> 0
C77: 7 | D77: =BIN2DEC(MID((TEXT(IF(B74=20,1,IF(B74=50,10,IF(B74=125,11,IF(B74=250,100,IF(B74=500,101,IF(B74=800,110,IF(B74=1000,111,0))))))),REPT(0,3))),2,1)) -> 1 | E77: =BIN2DEC(MID((TEXT(IF(B74=20,1,IF(B74=50,10,IF(B74=125,11,IF(B74=250,100,IF(B74=500,101,IF(B74=800,110,IF(B74=1000,111,0))))))),REPT(0,3))),2,1)) -> 1
A78: . | C78: 8 | D78: =BIN2DEC(MID((TEXT(IF(B74=20,1,IF(B74=50,10,IF(B74=125,11,IF(B74=250,100,IF(B74=500,101,IF(B74=800,110,IF(B74=1000,111,0))))))),REPT(0,3))),1,1)) -> 0 | E78: =BIN2DEC(MID((TEXT(IF(B74=20,1,IF(B74=50,10,IF(B74=125,11,IF(B74=250,100,IF(B74=500,101,IF(B74=800,110,IF(B74=1000,111,0))))))),REPT(0,3))),1,1)) -> 0
B79: =B84 -> IOM 0401A | AO79: ="(* "&B84&"地址: "&B81&" *)" -> (* IOM 0401A地址: 6 *)
B80: addr | C80: 1 | D80: =BIN2DEC(MID((TEXT(DEC2BIN(B81),REPT(0,5))),5,1)) -> 0 | E80: =BIN2DEC(MID((TEXT(DEC2BIN(B81),REPT(0,5))),5,1)) -> 0 | F80: 1 | H80: 1 | I80: 2 | J80: =AH80&AA80&"-"&AK80 -> 空调机组BXJ-1AP(KT)1-1-水阀控制 | AA80: =IF(AI80="","",AI80) -> BXJ-1AP(KT)1-1 | AB80: =_xlfn.IFNA(VLOOKUP(AL80,List!$O$3:$P$444,2,FALSE),"-") -> - | AC80: =_xlfn.IFNA(VLOOKUP(AL80,List!$O$3:$Q$444,3,FALSE),"-") -> - | AE80: 不通过 | AH80: 空调机组 | AI80: BXJ-1AP(KT)1-1 | AJ80: 01A01 | AK80: 水阀控制 | AL80: =AH80&"-"&AK80 -> 空调机组-水阀控制 | AM80: =VLOOKUP(AH80,List!$B$3:$D$445,2,FALSE)&AJ80&"_"&VLOOKUP(AK80,List!$K$2:$M$447,2,FALSE) -> AHU01A01_WVC | AN80: =_xlfn.IFNA("L"&AM80&" "&"AT%Q"&B81*16&".0"&" "&":INT ;"&" "&"(*"&J80&"*)"," ") -> LAHU01A01_WVC AT%Q96.0 :INT ; (*空调机组BXJ-1AP(KT)1-1-水阀控制*) | AO80: =IFERROR(REPLACE(REPLACE(AN80,SEARCH("AT%",AN80),,REPT(" ",25-SEARCH("AT%",AN80))),SEARCH(":",REPLACE(AN80,SEARCH("AT%",AN80),,REPT(" ",25-SEARCH("AT%",AN80)))),,REPT(" ",40-SEARCH(":",REPLACE(AN80,SEARCH("AT%",AN80),,REPT(" ",25-SEARCH("AT%",AN80))))))," ") -> LAHU01A01_WVC AT%Q96.0 :INT ; (*空调机组BXJ-1AP(KT)1-1-水阀控制*) | AQ80: =AM80 -> AHU01A01_WVC | AR80: =J80 -> 空调机组BXJ-1AP(KT)1-1-水阀控制 | AS80: =40000+($B81*8+F80-1) -> 40048
B81: 6 | C81: 2 | D81: =BIN2DEC(MID((TEXT(DEC2BIN(B81),REPT(0,5))),4,1)) -> 1 | E81: =BIN2DEC(MID((TEXT(DEC2BIN(B81),REPT(0,5))),4,1)) -> 1 | F81: 2 | H81: 3 | I81: 4 | J81: =AH81&AA81&"-"&AK81 -> - | AA81: =IF(AI81="","",AI81) ->  | AB81: =_xlfn.IFNA(VLOOKUP(AL81,List!$O$3:$P$444,2,FALSE),"-") -> - | AC81: =_xlfn.IFNA(VLOOKUP(AL81,List!$O$3:$Q$444,3,FALSE),"-") -> - | AE81: 不通过 | AL81: =AH81&"-"&AK81 -> - | AM81: =VLOOKUP(AH81,List!$B$3:$D$445,2,FALSE)&AJ81&"_"&VLOOKUP(AK81,List!$K$2:$M$447,2,FALSE) ->  | AN81: =_xlfn.IFNA("L"&AM81&" "&"AT%Q"&B81*16+2&".0"&" "&":INT ;"&" "&"(*"&J81&"*)"," ") ->  | AR81: =J81 -> - | AS81: =AS80+1 -> 40049
B82: kbs | C82: 3 | D82: =BIN2DEC(MID((TEXT(DEC2BIN(B81),REPT(0,5))),3,1)) -> 1 | E82: =BIN2DEC(MID((TEXT(DEC2BIN(B81),REPT(0,5))),3,1)) -> 1 | F82: 3 | H82: 5 | I82: 6 | J82: =AH82&AA82&"-"&AK82 -> - | AB82: =_xlfn.IFNA(VLOOKUP(AL82,List!$O$3:$P$444,2,FALSE),"-") -> - | AC82: =_xlfn.IFNA(VLOOKUP(AL82,List!$O$3:$Q$444,3,FALSE),"-") -> - | AE82: 不通过 | AL82: - | AM82: =VLOOKUP(AH82,List!$B$3:$D$445,2,FALSE)&AJ82&"_"&VLOOKUP(AK82,List!$K$2:$M$447,2,FALSE) ->  | AN82: =_xlfn.IFNA("L"&AM82&" "&"AT%Q"&B81*16+4&".0"&" "&":INT ;"&" "&"(*"&J82&"*)"," ") ->  | AR82: - | AS82: =AS81+1 -> 40050
B83: 50 | C83: 4 | D83: =BIN2DEC(MID((TEXT(DEC2BIN(B81),REPT(0,5))),2,1)) -> 0 | E83: =BIN2DEC(MID((TEXT(DEC2BIN(B81),REPT(0,5))),2,1)) -> 0 | F83: 4 | H83: 7 | I83: 8 | J83: =AH83&AA83&"-"&AK83 -> - | AB83: =_xlfn.IFNA(VLOOKUP(AL83,List!$O$3:$P$444,2,FALSE),"-") -> - | AC83: =_xlfn.IFNA(VLOOKUP(AL83,List!$O$3:$Q$444,3,FALSE),"-") -> - | AE83: 不通过 | AL83: - | AM83: =VLOOKUP(AH83,List!$B$3:$D$445,2,FALSE)&AJ83&"_"&VLOOKUP(AK83,List!$K$2:$M$447,2,FALSE) ->  | AN83: =_xlfn.IFNA("L"&AM83&" "&"AT%Q"&B81*16+6&".0"&" "&":INT ;"&" "&"(*"&J83&"*)"," ") ->  | AR83: - | AS83: 40051
B84: IOM 0401A | C84: 5 | D84: =BIN2DEC(MID((TEXT(DEC2BIN(B81),REPT(0,5))),1,1)) -> 0 | E84: =BIN2DEC(MID((TEXT(DEC2BIN(B81),REPT(0,5))),1,1)) -> 0 | F84: 0 | H84: 0 | I84: 0 | AL84: -
C85: 6 | D85: =BIN2DEC(MID((TEXT(IF(B83=20,1,IF(B83=50,10,IF(B83=125,11,IF(B83=250,100,IF(B83=500,101,IF(B83=800,110,IF(B83=1000,111,0))))))),REPT(0,3))),3,1)) -> 0 | E85: =BIN2DEC(MID((TEXT(IF(B83=20,1,IF(B83=50,10,IF(B83=125,11,IF(B83=250,100,IF(B83=500,101,IF(B83=800,110,IF(B83=1000,111,0))))))),REPT(0,3))),3,1)) -> 0 | F85: 0 | H85: 0 | I85: 0 | AL85: -
C86: 7 | D86: =BIN2DEC(MID((TEXT(IF(B83=20,1,IF(B83=50,10,IF(B83=125,11,IF(B83=250,100,IF(B83=500,101,IF(B83=800,110,IF(B83=1000,111,0))))))),REPT(0,3))),2,1)) -> 1 | E86: =BIN2DEC(MID((TEXT(IF(B83=20,1,IF(B83=50,10,IF(B83=125,11,IF(B83=250,100,IF(B83=500,101,IF(B83=800,110,IF(B83=1000,111,0))))))),REPT(0,3))),2,1)) -> 1 | F86: 0 | H86: 0 | I86: 0 | AL86: -
A87: . | C87: 8 | D87: =BIN2DEC(MID((TEXT(IF(B83=20,1,IF(B83=50,10,IF(B83=125,11,IF(B83=250,100,IF(B83=500,101,IF(B83=800,110,IF(B83=1000,111,0))))))),REPT(0,3))),1,1)) -> 0 | E87: =BIN2DEC(MID((TEXT(IF(B83=20,1,IF(B83=50,10,IF(B83=125,11,IF(B83=250,100,IF(B83=500,101,IF(B83=800,110,IF(B83=1000,111,0))))))),REPT(0,3))),1,1)) -> 0 | F87: 0 | H87: 0 | I87: 0 | AL87: -
B88: DC24V
B89: DC24V 电源 | H89: + | I89: - | AA89: =IF(AI89="","",AI89) ->  | AB89: =_xlfn.IFNA(VLOOKUP(J89,List!$O$3:$P$444,2,FALSE),"-") -> - | AC89: =_xlfn.IFNA(VLOOKUP(J89,List!$O$3:$Q$444,3,FALSE),"-") -> -
H90: + | I90: - | AA90: =IF(AI90="","",AI90) ->  | AB90: =_xlfn.IFNA(VLOOKUP(J90,List!$O$3:$P$444,2,FALSE),"-") -> - | AC90: =_xlfn.IFNA(VLOOKUP(J90,List!$O$3:$Q$444,3,FALSE),"-") -> -
H91: + | I91: - | AB91: =_xlfn.IFNA(VLOOKUP(J91,List!$O$3:$P$444,2,FALSE),"-") -> - | AC91: =_xlfn.IFNA(VLOOKUP(J91,List!$O$3:$Q$444,3,FALSE),"-") -> -
H92: + | I92: - | AB92: =_xlfn.IFNA(VLOOKUP(J92,List!$O$3:$P$444,2,FALSE),"-") -> - | AC92: =_xlfn.IFNA(VLOOKUP(J92,List!$O$3:$Q$444,3,FALSE),"-") -> -
H93: + | I93: - | AB93: =_xlfn.IFNA(VLOOKUP(J93,List!$O$3:$P$444,2,FALSE),"-") -> - | AC93: =_xlfn.IFNA(VLOOKUP(J93,List!$O$3:$Q$444,3,FALSE),"-") -> -
H94: + | I94: - | AA94: =IF(AI94="","",AI94) ->  | AB94: =_xlfn.IFNA(VLOOKUP(J94,List!$O$3:$P$444,2,FALSE),"-") -> - | AC94: =_xlfn.IFNA(VLOOKUP(J94,List!$O$3:$Q$444,3,FALSE),"-") -> -
H95: + | I95: - | AB95: =_xlfn.IFNA(VLOOKUP(J95,List!$O$3:$P$444,2,FALSE),"-") -> - | AC95: =_xlfn.IFNA(VLOOKUP(J95,List!$O$3:$Q$444,3,FALSE),"-") -> -
H96: + | I96: - | AB96: =_xlfn.IFNA(VLOOKUP(J96,List!$O$3:$P$444,2,FALSE),"-") -> - | AC96: =_xlfn.IFNA(VLOOKUP(J96,List!$O$3:$Q$444,3,FALSE),"-") -> -
H97: + | I97: - | AB97: =_xlfn.IFNA(VLOOKUP(J97,List!$O$3:$P$444,2,FALSE),"-") -> - | AC97: =_xlfn.IFNA(VLOOKUP(J97,List!$O$3:$Q$444,3,FALSE),"-") -> -
A98: . | H98: + | I98: - | AA98: =IF(AI98="","",AI98) ->  | AB98: =_xlfn.IFNA(VLOOKUP(J98,List!$O$3:$P$444,2,FALSE),"-") -> - | AC98: =_xlfn.IFNA(VLOOKUP(J98,List!$O$3:$Q$444,3,FALSE),"-") -> -
B99: AC24V
B100: AC24V 电源 | H100: L | I100: N | AA100: =IF(AI100="","",AI100) ->  | AB100: =_xlfn.IFNA(VLOOKUP(J100,List!$O$3:$P$444,2,FALSE),"-") -> - | AC100: =_xlfn.IFNA(VLOOKUP(J100,List!$O$3:$Q$444,3,FALSE),"-") -> -
H101: L | I101: N | AA101: =IF(AI101="","",AI101) ->  | AB101: =_xlfn.IFNA(VLOOKUP(J101,List!$O$3:$P$444,2,FALSE),"-") -> - | AC101: =_xlfn.IFNA(VLOOKUP(J101,List!$O$3:$Q$444,3,FALSE),"-") -> -
H102: L | I102: N | AB102: =_xlfn.IFNA(VLOOKUP(J102,List!$O$3:$P$444,2,FALSE),"-") -> - | AC102: =_xlfn.IFNA(VLOOKUP(J102,List!$O$3:$Q$444,3,FALSE),"-") -> -
H103: L | I103: N | AB103: =_xlfn.IFNA(VLOOKUP(J103,List!$O$3:$P$444,2,FALSE),"-") -> - | AC103: =_xlfn.IFNA(VLOOKUP(J103,List!$O$3:$Q$444,3,FALSE),"-") -> -
H104: L | I104: N | AB104: =_xlfn.IFNA(VLOOKUP(J104,List!$O$3:$P$444,2,FALSE),"-") -> - | AC104: =_xlfn.IFNA(VLOOKUP(J104,List!$O$3:$Q$444,3,FALSE),"-") -> -
H105: L | I105: N | AA105: =IF(AI105="","",AI105) ->  | AB105: =_xlfn.IFNA(VLOOKUP(J105,List!$O$3:$P$444,2,FALSE),"-") -> - | AC105: =_xlfn.IFNA(VLOOKUP(J105,List!$O$3:$Q$444,3,FALSE),"-") -> -
H106: L | I106: N | AB106: =_xlfn.IFNA(VLOOKUP(J106,List!$O$3:$P$444,2,FALSE),"-") -> - | AC106: =_xlfn.IFNA(VLOOKUP(J106,List!$O$3:$Q$444,3,FALSE),"-") -> -
H107: L | I107: N | AB107: =_xlfn.IFNA(VLOOKUP(J107,List!$O$3:$P$444,2,FALSE),"-") -> - | AC107: =_xlfn.IFNA(VLOOKUP(J107,List!$O$3:$Q$444,3,FALSE),"-") -> -
H108: L | I108: N | AB108: =_xlfn.IFNA(VLOOKUP(J108,List!$O$3:$P$444,2,FALSE),"-") -> - | AC108: =_xlfn.IFNA(VLOOKUP(J108,List!$O$3:$Q$444,3,FALSE),"-") -> -
A109: . | H109: L | I109: N | AA109: =IF(AI109="","",AI109) ->  | AB109: =_xlfn.IFNA(VLOOKUP(J109,List!$O$3:$P$444,2,FALSE),"-") -> - | AC109: =_xlfn.IFNA(VLOOKUP(J109,List!$O$3:$Q$444,3,FALSE),"-") -> -
B110: EXC-61610 | AO110: ="(* "&B110&"地址: "&B112&" *)" -> (* EXC-61610地址: 0 *)
B111: addr | C111: =B110 -> EXC-61610 | F111: DI1 | H111: 1 | I111: COM | J111: =AH111&AA111&"-"&AK111 -> P新风机组BXJ-1AP(KT)1-2-运行状态 | AA111: =IF(AI111="","",AI111) -> BXJ-1AP(KT)1-2 | AB111: =_xlfn.IFNA(VLOOKUP(AL111,List!$O$3:$P$444,2,FALSE),"-") -> - | AC111: =_xlfn.IFNA(VLOOKUP(AL111,List!$O$3:$Q$444,3,FALSE),"-") -> - | AE111: 不通过 | AH111: P新风机组 | AI111: BXJ-1AP(KT)1-2 | AJ111: 01A02 | AK111: 运行状态 | AL111: =AH111&"-"&AK111 -> P新风机组-运行状态 | AM111: =VLOOKUP(AH111,List!$B$3:$D$445,2,FALSE)&AJ111&"_"&VLOOKUP(AK111,List!$K$2:$M$447,2,FALSE) -> PAU01A02_R | AN111: =_xlfn.IFNA("L"&AM111&" "&"AT%I0.0"&" "&":BOOL;"&" "&"(*"&J111&"*)"," ") -> LPAU01A02_R AT%I0.0 :BOOL; (*P新风机组BXJ-1AP(KT)1-2-运行状态*) | AO111: =IFERROR(REPLACE(REPLACE(AN111,SEARCH("AT%",AN111),,REPT(" ",25-SEARCH("AT%",AN111))),SEARCH(":",REPLACE(AN111,SEARCH("AT%",AN111),,REPT(" ",25-SEARCH("AT%",AN111)))),,REPT(" ",40-SEARCH(":",REPLACE(AN111,SEARCH("AT%",AN111),,REPT(" ",25-SEARCH("AT%",AN111))))))," ") -> LPAU01A02_R AT%I0.0 :BOOL; (*P新风机组BXJ-1AP(KT)1-2-运行状态*) | AQ111: =AM111 -> PAU01A02_R | AR111: =J111 -> P新风机组BXJ-1AP(KT)1-2-运行状态 | AS111: =10000+($B112*16*8+H111-1) -> 10000
B112: 0 | F112: DI2 | H112: 2 | J112: P新风机组BXJ-1AP(KT)1-2-故障状态 | AA112: =IF(AI112="","",AI112) -> BXJ-1AP(KT)1-2 | AB112: =_xlfn.IFNA(VLOOKUP(AL112,List!$O$3:$P$444,2,FALSE),"-") -> - | AC112: =_xlfn.IFNA(VLOOKUP(AL112,List!$O$3:$Q$444,3,FALSE),"-") -> - | AE112: 不通过 | AH112: P新风机组 | AI112: BXJ-1AP(KT)1-2 | AJ112: 01A02 | AK112: 故障状态 | AL112: =AH112&"-"&AK112 -> P新风机组-故障状态 | AM112: =VLOOKUP(AH112,List!$B$3:$D$445,2,FALSE)&AJ112&"_"&VLOOKUP(AK112,List!$K$2:$M$447,2,FALSE) -> PAU01A02_F | AN112: =_xlfn.IFNA("L"&AM112&" "&"AT%I0.1"&" "&":BOOL;"&" "&"(*"&J112&"*)"," ") -> LPAU01A02_F AT%I0.1 :BOOL; (*P新风机组BXJ-1AP(KT)1-2-故障状态*) | AO112: LPAU01A02_F AT%I0.1 :BOOL; (*P新风机组BXJ-1AP(KT)1-2-故障状态*) | AQ112: PAU01A02_F | AR112: =J112 -> P新风机组BXJ-1AP(KT)1-2-故障状态 | AS112: =AS111+1 -> 10001
B113: kbs | F113: DI3 | H113: 3 | J113: P新风机组BXJ-1AP(KT)1-2-自动状态 | AA113: BXJ-1AP(KT)1-2 | AB113: =_xlfn.IFNA(VLOOKUP(AL113,List!$O$3:$P$444,2,FALSE),"-") -> - | AC113: =_xlfn.IFNA(VLOOKUP(AL113,List!$O$3:$Q$444,3,FALSE),"-") -> - | AE113: 不通过 | AH113: P新风机组 | AI113: BXJ-1AP(KT)1-2 | AJ113: 01A02 | AK113: 自动状态 | AL113: P新风机组-自动状态 | AM113: =VLOOKUP(AH113,List!$B$3:$D$445,2,FALSE)&AJ113&"_"&VLOOKUP(AK113,List!$K$2:$M$447,2,FALSE) -> PAU01A02_A | AN113: =_xlfn.IFNA("L"&AM113&" "&"AT%I0.2"&" "&":BOOL;"&" "&"(*"&J113&"*)"," ") -> LPAU01A02_A AT%I0.2 :BOOL; (*P新风机组BXJ-1AP(KT)1-2-自动状态*) | AO113: LPAU01A02_A AT%I0.2 :BOOL; (*P新风机组BXJ-1AP(KT)1-2-自动状态*) | AQ113: PAU01A02_A | AR113: P新风机组BXJ-1AP(KT)1-2-自动状态 | AS113: =AS112+1 -> 10002
B114: 50 | F114: DI4 | H114: 4 | I114: COM | J114: P新风机组BXJ-1AP(KT)1-2-风机压差 | AA114: BXJ-1AP(KT)1-2 | AB114: =_xlfn.IFNA(VLOOKUP(AL114,List!$O$3:$P$444,2,FALSE),"-") -> - | AC114: =_xlfn.IFNA(VLOOKUP(AL114,List!$O$3:$Q$444,3,FALSE),"-") -> - | AE114: 不通过 | AH114: P新风机组 | AI114: BXJ-1AP(KT)1-2 | AJ114: 01A02 | AK114: 风机压差 | AL114: P新风机组-风机压差 | AM114: =VLOOKUP(AH114,List!$B$3:$D$445,2,FALSE)&AJ114&"_"&VLOOKUP(AK114,List!$K$2:$M$447,2,FALSE) -> PAU01A02_FPS | AN114: =_xlfn.IFNA("L"&AM114&" "&"AT%I0.3"&" "&":BOOL;"&" "&"(*"&J114&"*)"," ") -> LPAU01A02_FPS AT%I0.3 :BOOL; (*P新风机组BXJ-1AP(KT)1-2-风机压差*) | AO114: LPAU01A02_FPS AT%I0.3 :BOOL; (*P新风机组BXJ-1AP(KT)1-2-风机压差*) | AQ114: PAU01A02_FPS | AR114: P新风机组BXJ-1AP(KT)1-2-风机压差 | AS114: 10003
F115: DI5 | H115: 5 | J115: P新风机组BXJ-1AP(KT)1-2-初效滤网压差 | AA115: BXJ-1AP(KT)1-2 | AB115: =_xlfn.IFNA(VLOOKUP(AL115,List!$O$3:$P$444,2,FALSE),"-") -> - | AC115: =_xlfn.IFNA(VLOOKUP(AL115,List!$O$3:$Q$444,3,FALSE),"-") -> - | AE115: 不通过 | AH115: P新风机组 | AI115: BXJ-1AP(KT)1-2 | AJ115: 01A02 | AK115: 初效滤网压差 | AL115: P新风机组-初效滤网压差 | AM115: =VLOOKUP(AH115,List!$B$3:$D$445,2,FALSE)&AJ115&"_"&VLOOKUP(AK115,List!$K$2:$M$447,2,FALSE) -> PAU01A02_IPS | AN115: =_xlfn.IFNA("L"&AM115&" "&"AT%I0.4"&" "&":BOOL;"&" "&"(*"&J115&"*)"," ") -> LPAU01A02_IPS AT%I0.4 :BOOL; (*P新风机组BXJ-1AP(KT)1-2-初效滤网压差*) | AO115: LPAU01A02_IPS AT%I0.4 :BOOL; (*P新风机组BXJ-1AP(KT)1-2-初效滤网压差*) | AQ115: PAU01A02_IPS | AR115: P新风机组BXJ-1AP(KT)1-2-初效滤网压差 | AS115: 10004
F116: DI6 | H116: 6 | J116: P新风机组BXJ-1AP(KT)1-2-低温断路开关 | AA116: BXJ-1AP(KT)1-2 | AB116: =_xlfn.IFNA(VLOOKUP(AL116,List!$O$3:$P$444,2,FALSE),"-") -> - | AC116: =_xlfn.IFNA(VLOOKUP(AL116,List!$O$3:$Q$444,3,FALSE),"-") -> - | AE116: 不通过 | AH116: P新风机组 | AI116: BXJ-1AP(KT)1-2 | AJ116: 01A02 | AK116: 低温断路开关 | AL116: P新风机组-低温断路开关 | AM116: =VLOOKUP(AH116,List!$B$3:$D$445,2,FALSE)&AJ116&"_"&VLOOKUP(AK116,List!$K$2:$M$447,2,FALSE) -> PAU01A02_AFS | AN116: =_xlfn.IFNA("L"&AM116&" "&"AT%I0.5"&" "&":BOOL;"&" "&"(*"&J116&"*)"," ") -> LPAU01A02_AFS AT%I0.5 :BOOL; (*P新风机组BXJ-1AP(KT)1-2-低温断路开关*) | AO116: LPAU01A02_AFS AT%I0.5 :BOOL; (*P新风机组BXJ-1AP(KT)1-2-低温断路开关*) | AQ116: PAU01A02_AFS | AR116: P新风机组BXJ-1AP(KT)1-2-低温断路开关 | AS116: 10005
F117: DI7 | H117: 7 | I117: COM | J117: P新风机组BXJ-1AP(KT)1-2-新风阀开状态 | AA117: BXJ-1AP(KT)1-2 | AB117: =_xlfn.IFNA(VLOOKUP(AL117,List!$O$3:$P$444,2,FALSE),"-") -> - | AC117: =_xlfn.IFNA(VLOOKUP(AL117,List!$O$3:$Q$444,3,FALSE),"-") -> - | AE117: 不通过 | AH117: P新风机组 | AI117: BXJ-1AP(KT)1-2 | AJ117: 01A02 | AK117: 新风阀开状态 | AL117: P新风机组-新风阀开状态 | AM117: =VLOOKUP(AH117,List!$B$3:$D$445,2,FALSE)&AJ117&"_"&VLOOKUP(AK117,List!$K$2:$M$447,2,FALSE) -> PAU01A02_FDOB | AN117: =_xlfn.IFNA("L"&AM117&" "&"AT%I0.6"&" "&":BOOL;"&" "&"(*"&J117&"*)"," ") -> LPAU01A02_FDOB AT%I0.6 :BOOL; (*P新风机组BXJ-1AP(KT)1-2-新风阀开状态*) | AO117: LPAU01A02_FDOB AT%I0.6 :BOOL; (*P新风机组BXJ-1AP(KT)1-2-新风阀开状态*) | AQ117: PAU01A02_FDOB | AR117: P新风机组BXJ-1AP(KT)1-2-新风阀开状态 | AS117: 10006
A118: . | F118: DI8 | H118: 8 | J118: P新风机组BXJ-1AP(KT)1-2-新风阀关状态 | AA118: BXJ-1AP(KT)1-2 | AB118: =_xlfn.IFNA(VLOOKUP(AL118,List!$O$3:$P$444,2,FALSE),"-") -> - | AC118: =_xlfn.IFNA(VLOOKUP(AL118,List!$O$3:$Q$444,3,FALSE),"-") -> - | AE118: 不通过 | AH118: P新风机组 | AI118: BXJ-1AP(KT)1-2 | AJ118: 01A02 | AK118: 新风阀关状态 | AL118: P新风机组-新风阀关状态 | AM118: =VLOOKUP(AH118,List!$B$3:$D$445,2,FALSE)&AJ118&"_"&VLOOKUP(AK118,List!$K$2:$M$447,2,FALSE) -> PAU01A02_FDSB | AN118: =_xlfn.IFNA("L"&AM118&" "&"AT%I0.7"&" "&":BOOL;"&" "&"(*"&J118&"*)"," ") -> LPAU01A02_FDSB AT%I0.7 :BOOL; (*P新风机组BXJ-1AP(KT)1-2-新风阀关状态*) | AO118: LPAU01A02_FDSB AT%I0.7 :BOOL; (*P新风机组BXJ-1AP(KT)1-2-新风阀关状态*) | AQ118: PAU01A02_FDSB | AR118: P新风机组BXJ-1AP(KT)1-2-新风阀关状态 | AS118: 10007
F119: DI9 | H119: 9 | J119: - | AB119: =_xlfn.IFNA(VLOOKUP(AL119,List!$O$3:$P$444,2,FALSE),"-") -> - | AC119: =_xlfn.IFNA(VLOOKUP(AL119,List!$O$3:$Q$444,3,FALSE),"-") -> - | AE119: 不通过 | AL119: - | AM119: =VLOOKUP(AH119,List!$B$3:$D$445,2,FALSE)&AJ119&"_"&VLOOKUP(AK119,List!$K$2:$M$447,2,FALSE) ->  | AN119: =_xlfn.IFNA("L"&AM119&" "&"AT%I1.0"&" "&":BOOL;"&" "&"(*"&J119&"*)"," ") ->  | AR119: - | AS119: =10000+(($B112*16+1)*8+H119-9) -> 10008
F120: DI10 | H120: 10 | I120: COM | J120: - | AA120: =IF(AI120="","",AI120) ->  | AB120: =_xlfn.IFNA(VLOOKUP(AL120,List!$O$3:$P$444,2,FALSE),"-") -> - | AC120: =_xlfn.IFNA(VLOOKUP(AL120,List!$O$3:$Q$444,3,FALSE),"-") -> - | AE120: 不通过 | AL120: =AH120&"-"&AK120 -> - | AM120: =VLOOKUP(AH120,List!$B$3:$D$445,2,FALSE)&AJ120&"_"&VLOOKUP(AK120,List!$K$2:$M$447,2,FALSE) ->  | AN120: =_xlfn.IFNA("L"&AM120&" "&"AT%I1.1"&" "&":BOOL;"&" "&"(*"&J120&"*)"," ") ->  | AR120: =J120 -> - | AS120: =AS119+1 -> 10009
F121: DI11 | H121: 11 | J121: - | AB121: =_xlfn.IFNA(VLOOKUP(AL121,List!$O$3:$P$444,2,FALSE),"-") -> - | AC121: =_xlfn.IFNA(VLOOKUP(AL121,List!$O$3:$Q$444,3,FALSE),"-") -> - | AE121: 不通过 | AL121: - | AM121: =VLOOKUP(AH121,List!$B$3:$D$445,2,FALSE)&AJ121&"_"&VLOOKUP(AK121,List!$K$2:$M$447,2,FALSE) ->  | AN121: =_xlfn.IFNA("L"&AM121&" "&"AT%I1.2"&" "&":BOOL;"&" "&"(*"&J121&"*)"," ") ->  | AR121: - | AS121: =AS120+1 -> 10010
F122: DI12 | H122: 12 | J122: - | AB122: =_xlfn.IFNA(VLOOKUP(AL122,List!$O$3:$P$444,2,FALSE),"-") -> - | AC122: =_xlfn.IFNA(VLOOKUP(AL122,List!$O$3:$Q$444,3,FALSE),"-") -> - | AE122: 不通过 | AL122: - | AM122: =VLOOKUP(AH122,List!$B$3:$D$445,2,FALSE)&AJ122&"_"&VLOOKUP(AK122,List!$K$2:$M$447,2,FALSE) ->  | AN122: =_xlfn.IFNA("L"&AM122&" "&"AT%I1.3"&" "&":BOOL;"&" "&"(*"&J122&"*)"," ") ->  | AR122: - | AS122: 10011
F123: DO1 | H123: 1+ | I123: 1- | J123: P新风机组BXJ-1AP(KT)1-2-启停控制 | AA123: BXJ-1AP(KT)1-2 | AB123: =_xlfn.IFNA(VLOOKUP(AL123,List!$O$3:$P$444,2,FALSE),"-") -> - | AC123: =_xlfn.IFNA(VLOOKUP(AL123,List!$O$3:$Q$444,3,FALSE),"-") -> - | AE123: 不通过 | AH123: P新风机组 | AI123: BXJ-1AP(KT)1-2 | AJ123: 01A02 | AK123: 启停控制 | AL123: P新风机组-启停控制 | AM123: =VLOOKUP(AH123,List!$B$3:$D$445,2,FALSE)&AJ123&"_"&VLOOKUP(AK123,List!$K$2:$M$447,2,FALSE) -> PAU01A02_C | AN123: =_xlfn.IFNA("L"&AM123&" "&"AT%Q0.0"&" "&":BOOL;"&" "&"(*"&J123&"*)"," ") -> LPAU01A02_C AT%Q0.0 :BOOL; (*P新风机组BXJ-1AP(KT)1-2-启停控制*) | AO123: LPAU01A02_C AT%Q0.0 :BOOL; (*P新风机组BXJ-1AP(KT)1-2-启停控制*) | AQ123: PAU01A02_C | AR123: P新风机组BXJ-1AP(KT)1-2-启停控制 | AS123: =($B112*16*8+LEFT(H123,1)-1) -> 0
F124: DO2 | H124: 2+ | I124: 2- | J124: P新风机组BXJ-1AP(KT)1-2-新风阀开控制 | AA124: BXJ-1AP(KT)1-2 | AB124: =_xlfn.IFNA(VLOOKUP(AL124,List!$O$3:$P$444,2,FALSE),"-") -> - | AC124: =_xlfn.IFNA(VLOOKUP(AL124,List!$O$3:$Q$444,3,FALSE),"-") -> - | AE124: 不通过 | AH124: P新风机组 | AI124: BXJ-1AP(KT)1-2 | AJ124: 01A02 | AK124: 新风阀开控制 | AL124: P新风机组-新风阀开控制 | AM124: =VLOOKUP(AH124,List!$B$3:$D$445,2,FALSE)&AJ124&"_"&VLOOKUP(AK124,List!$K$2:$M$447,2,FALSE) -> PAU01A02_FDOC | AN124: =_xlfn.IFNA("L"&AM124&" "&"AT%Q0.1"&" "&":BOOL;"&" "&"(*"&J124&"*)"," ") -> LPAU01A02_FDOC AT%Q0.1 :BOOL; (*P新风机组BXJ-1AP(KT)1-2-新风阀开控制*) | AO124: LPAU01A02_FDOC AT%Q0.1 :BOOL; (*P新风机组BXJ-1AP(KT)1-2-新风阀开控制*) | AQ124: PAU01A02_FDOC | AR124: P新风机组BXJ-1AP(KT)1-2-新风阀开控制 | AS124: 1
F125: DO3 | H125: 3+ | I125: 3- | J125: P新风机组BXJ-1AP(KT)1-2-新风阀关控制 | AA125: BXJ-1AP(KT)1-2 | AB125: =_xlfn.IFNA(VLOOKUP(AL125,List!$O$3:$P$444,2,FALSE),"-") -> - | AC125: =_xlfn.IFNA(VLOOKUP(AL125,List!$O$3:$Q$444,3,FALSE),"-") -> - | AE125: 不通过 | AH125: P新风机组 | AI125: BXJ-1AP(KT)1-2 | AJ125: 01A02 | AK125: 新风阀关控制 | AL125: P新风机组-新风阀关控制 | AM125: =VLOOKUP(AH125,List!$B$3:$D$445,2,FALSE)&AJ125&"_"&VLOOKUP(AK125,List!$K$2:$M$447,2,FALSE) -> PAU01A02_FDSC | AN125: =_xlfn.IFNA("L"&AM125&" "&"AT%Q0.2"&" "&":BOOL;"&" "&"(*"&J125&"*)"," ") -> LPAU01A02_FDSC AT%Q0.2 :BOOL; (*P新风机组BXJ-1AP(KT)1-2-新风阀关控制*) | AO125: LPAU01A02_FDSC AT%Q0.2 :BOOL; (*P新风机组BXJ-1AP(KT)1-2-新风阀关控制*) | AQ125: PAU01A02_FDSC | AR125: P新风机组BXJ-1AP(KT)1-2-新风阀关控制 | AS125: 2
F126: DO4 | H126: 4+ | I126: 4- | J126: - | AB126: =_xlfn.IFNA(VLOOKUP(AL126,List!$O$3:$P$444,2,FALSE),"-") -> - | AC126: =_xlfn.IFNA(VLOOKUP(AL126,List!$O$3:$Q$444,3,FALSE),"-") -> - | AE126: 不通过 | AL126: - | AM126: =VLOOKUP(AH126,List!$B$3:$D$445,2,FALSE)&AJ126&"_"&VLOOKUP(AK126,List!$K$2:$M$447,2,FALSE) ->  | AN126: =_xlfn.IFNA("L"&AM126&" "&"AT%Q0.3"&" "&":BOOL;"&" "&"(*"&J126&"*)"," ") ->  | AR126: - | AS126: 3
F127: DO5 | H127: 5+ | I127: 5- | J127: - | AB127: =_xlfn.IFNA(VLOOKUP(AL127,List!$O$3:$P$444,2,FALSE),"-") -> - | AC127: =_xlfn.IFNA(VLOOKUP(AL127,List!$O$3:$Q$444,3,FALSE),"-") -> - | AE127: 不通过 | AL127: - | AM127: =VLOOKUP(AH127,List!$B$3:$D$445,2,FALSE)&AJ127&"_"&VLOOKUP(AK127,List!$K$2:$M$447,2,FALSE) ->  | AN127: =_xlfn.IFNA("L"&AM127&" "&"AT%Q0.4"&" "&":BOOL;"&" "&"(*"&J127&"*)"," ") ->  | AR127: - | AS127: 4
F128: DO6 | H128: 6+ | I128: 6- | J128: - | AA128: =IF(AI128="","",AI128) ->  | AB128: =_xlfn.IFNA(VLOOKUP(AL128,List!$O$3:$P$444,2,FALSE),"-") -> - | AC128: =_xlfn.IFNA(VLOOKUP(AL128,List!$O$3:$Q$444,3,FALSE),"-") -> - | AE128: 不通过 | AL128: =AH128&"-"&AK128 -> - | AM128: =VLOOKUP(AH128,List!$B$3:$D$445,2,FALSE)&AJ128&"_"&VLOOKUP(AK128,List!$K$2:$M$447,2,FALSE) ->  | AN128: =_xlfn.IFNA("L"&AM128&" "&"AT%Q0.5"&" "&":BOOL;"&" "&"(*"&J128&"*)"," ") ->  | AR128: =J128 -> - | AS128: 5
F129: AI1 | H129: 1 | I129: 0 V | J129: P新风机组BXJ-1AP(KT)1-2-送风温度 | AA129: BXJ-1AP(KT)1-2 | AB129: =_xlfn.IFNA(VLOOKUP(AL129,List!$O$3:$P$444,2,FALSE),"-") -> - | AC129: =_xlfn.IFNA(VLOOKUP(AL129,List!$O$3:$Q$444,3,FALSE),"-") -> - | AE129: 不通过 | AH129: P新风机组 | AI129: BXJ-1AP(KT)1-2 | AJ129: 01A02 | AK129: 送风温度 | AL129: P新风机组-送风温度 | AM129: =VLOOKUP(AH129,List!$B$3:$D$445,2,FALSE)&AJ129&"_"&VLOOKUP(AK129,List!$K$2:$M$447,2,FALSE) -> PAU01A02_ST | AN129: =_xlfn.IFNA("L"&AM129&" "&"AT%I2.0"&" "&":INT ;"&" "&"(*"&J129&"*)"," ") -> LPAU01A02_ST AT%I2.0 :INT ; (*P新风机组BXJ-1AP(KT)1-2-送风温度*) | AO129: LPAU01A02_ST AT%I2.0 :INT ; (*P新风机组BXJ-1AP(KT)1-2-送风温度*) | AQ129: PAU01A02_ST | AR129: P新风机组BXJ-1AP(KT)1-2-送风温度 | AS129: =30000+($B112*8+LEFT(H129,1)) -> 30001
F130: AI2 | H130: 2 | J130: P新风机组BXJ-1AP(KT)1-2-水阀反馈 | AA130: BXJ-1AP(KT)1-2 | AB130: =_xlfn.IFNA(VLOOKUP(AL130,List!$O$3:$P$444,2,FALSE),"-") -> - | AC130: =_xlfn.IFNA(VLOOKUP(AL130,List!$O$3:$Q$444,3,FALSE),"-") -> - | AE130: 不通过 | AH130: P新风机组 | AI130: BXJ-1AP(KT)1-2 | AJ130: 01A02 | AK130: 水阀反馈 | AL130: P新风机组-水阀反馈 | AM130: =VLOOKUP(AH130,List!$B$3:$D$445,2,FALSE)&AJ130&"_"&VLOOKUP(AK130,List!$K$2:$M$447,2,FALSE) -> PAU01A02_WVB | AN130: =_xlfn.IFNA("L"&AM130&" "&"AT%I4.0"&" "&":INT ;"&" "&"(*"&J130&"*)"," ") -> LPAU01A02_WVB AT%I4.0 :INT ; (*P新风机组BXJ-1AP(KT)1-2-水阀反馈*) | AO130: LPAU01A02_WVB AT%I4.0 :INT ; (*P新风机组BXJ-1AP(KT)1-2-水阀反馈*) | AQ130: PAU01A02_WVB | AR130: P新风机组BXJ-1AP(KT)1-2-水阀反馈 | AS130: 30002
F131: AI3 | H131: 3 | I131: 0 V | J131: P新风机组BXJ-1AP(KT)1-2-变频器频率反馈 | AA131: BXJ-1AP(KT)1-2 | AB131: =_xlfn.IFNA(VLOOKUP(AL131,List!$O$3:$P$444,2,FALSE),"-") -> - | AC131: =_xlfn.IFNA(VLOOKUP(AL131,List!$O$3:$Q$444,3,FALSE),"-") -> - | AE131: 不通过 | AH131: P新风机组 | AI131: BXJ-1AP(KT)1-2 | AJ131: 01A02 | AK131: 变频器频率反馈 | AL131: P新风机组-变频器频率反馈 | AM131: =VLOOKUP(AH131,List!$B$3:$D$445,2,FALSE)&AJ131&"_"&VLOOKUP(AK131,List!$K$2:$M$447,2,FALSE) -> PAU01A02_VFB | AN131: =_xlfn.IFNA("L"&AM131&" "&"AT%I6.0"&" "&":INT ;"&" "&"(*"&J131&"*)"," ") -> LPAU01A02_VFB AT%I6.0 :INT ; (*P新风机组BXJ-1AP(KT)1-2-变频器频率反馈*) | AO131: LPAU01A02_VFB AT%I6.0 :INT ; (*P新风机组BXJ-1AP(KT)1-2-变频器频率反馈*) | AQ131: PAU01A02_VFB | AR131: P新风机组BXJ-1AP(KT)1-2-变频器频率反馈 | AS131: 30003
F132: AI4 | H132: 4 | J132: - | AB132: =_xlfn.IFNA(VLOOKUP(AL132,List!$O$3:$P$444,2,FALSE),"-") -> - | AC132: =_xlfn.IFNA(VLOOKUP(AL132,List!$O$3:$Q$444,3,FALSE),"-") -> - | AE132: 不通过 | AL132: - | AM132: =VLOOKUP(AH132,List!$B$3:$D$445,2,FALSE)&AJ132&"_"&VLOOKUP(AK132,List!$K$2:$M$447,2,FALSE) ->  | AN132: =_xlfn.IFNA("L"&AM132&" "&"AT%I8.0"&" "&":INT ;"&" "&"(*"&J132&"*)"," ") ->  | AR132: - | AS132: 30004
F133: AI5 | H133: 5 | I133: 0 V | J133: - | AB133: =_xlfn.IFNA(VLOOKUP(AL133,List!$O$3:$P$444,2,FALSE),"-") -> - | AC133: =_xlfn.IFNA(VLOOKUP(AL133,List!$O$3:$Q$444,3,FALSE),"-") -> - | AE133: 不通过 | AL133: - | AM133: =VLOOKUP(AH133,List!$B$3:$D$445,2,FALSE)&AJ133&"_"&VLOOKUP(AK133,List!$K$2:$M$447,2,FALSE) ->  | AN133: =_xlfn.IFNA("L"&AM133&" "&"AT%I10.0"&" "&":INT ;"&" "&"(*"&J133&"*)"," ") ->  | AR133: - | AS133: 30005
A134: . | F134: AI6 | H134: 6 | J134: - | AB134: =_xlfn.IFNA(VLOOKUP(AL134,List!$O$3:$P$444,2,FALSE),"-") -> - | AC134: =_xlfn.IFNA(VLOOKUP(AL134,List!$O$3:$Q$444,3,FALSE),"-") -> - | AE134: 不通过 | AL134: - | AM134: =VLOOKUP(AH134,List!$B$3:$D$445,2,FALSE)&AJ134&"_"&VLOOKUP(AK134,List!$K$2:$M$447,2,FALSE) ->  | AN134: =_xlfn.IFNA("L"&AM134&" "&"AT%I12.0"&" "&":INT ;"&" "&"(*"&J134&"*)"," ") ->  | AR134: - | AS134: 30006
F135: AO1 | H135: 1+ | I135: 1- | J135: P新风机组BXJ-1AP(KT)1-2-水阀控制 | AA135: BXJ-1AP(KT)1-2 | AB135: =_xlfn.IFNA(VLOOKUP(AL135,List!$O$3:$P$444,2,FALSE),"-") -> - | AC135: =_xlfn.IFNA(VLOOKUP(AL135,List!$O$3:$Q$444,3,FALSE),"-") -> - | AE135: 不通过 | AH135: P新风机组 | AI135: BXJ-1AP(KT)1-2 | AJ135: 01A02 | AK135: 水阀控制 | AL135: P新风机组-水阀控制 | AM135: =VLOOKUP(AH135,List!$B$3:$D$445,2,FALSE)&AJ135&"_"&VLOOKUP(AK135,List!$K$2:$M$447,2,FALSE) -> PAU01A02_WVC | AN135: =_xlfn.IFNA("L"&AM135&" "&"AT%Q8.0"&" "&":INT ;"&" "&"(*"&J135&"*)"," ") -> LPAU01A02_WVC AT%Q8.0 :INT ; (*P新风机组BXJ-1AP(KT)1-2-水阀控制*) | AO135: LPAU01A02_WVC AT%Q8.0 :INT ; (*P新风机组BXJ-1AP(KT)1-2-水阀控制*) | AQ135: PAU01A02_WVC | AR135: P新风机组BXJ-1AP(KT)1-2-水阀控制 | AS135: =40000+($B112*8+LEFT(H135,1)+3) -> 40004
F136: AO2 | H136: 2+ | I136: 2- | J136: P新风机组BXJ-1AP(KT)1-2-变频器频率控制 | AA136: =IF(AI136="","",AI136) -> BXJ-1AP(KT)1-2 | AB136: =_xlfn.IFNA(VLOOKUP(AL136,List!$O$3:$P$444,2,FALSE),"-") -> - | AC136: =_xlfn.IFNA(VLOOKUP(AL136,List!$O$3:$Q$444,3,FALSE),"-") -> - | AE136: 不通过 | AH136: P新风机组 | AI136: BXJ-1AP(KT)1-2 | AJ136: 01A02 | AK136: 变频器频率控制 | AL136: =AH136&"-"&AK136 -> P新风机组-变频器频率控制 | AM136: =VLOOKUP(AH136,List!$B$3:$D$445,2,FALSE)&AJ136&"_"&VLOOKUP(AK136,List!$K$2:$M$447,2,FALSE) -> PAU01A02_VFC | AN136: =_xlfn.IFNA("L"&AM136&" "&"AT%Q10.0"&" "&":INT ;"&" "&"(*"&J136&"*)"," ") -> LPAU01A02_VFC AT%Q10.0 :INT ; (*P新风机组BXJ-1AP(KT)1-2-变频器频率控制*) | AO136: LPAU01A02_VFC AT%Q10.0 :INT ; (*P新风机组BXJ-1AP(KT)1-2-变频器频率控制*) | AQ136: PAU01A02_VFC | AR136: =J136 -> P新风机组BXJ-1AP(KT)1-2-变频器频率控制 | AS136: =AS135+1 -> 40005
F137: AO3 | H137: 3+ | I137: 3- | J137: - | AB137: =_xlfn.IFNA(VLOOKUP(AL137,List!$O$3:$P$444,2,FALSE),"-") -> - | AC137: =_xlfn.IFNA(VLOOKUP(AL137,List!$O$3:$Q$444,3,FALSE),"-") -> - | AE137: 不通过 | AL137: - | AM137: =VLOOKUP(AH137,List!$B$3:$D$445,2,FALSE)&AJ137&"_"&VLOOKUP(AK137,List!$K$2:$M$447,2,FALSE) ->  | AN137: =_xlfn.IFNA("L"&AM137&" "&"AT%Q12.0"&" "&":INT ;"&" "&"(*"&J137&"*)"," ") ->  | AR137: - | AS137: =AS136+1 -> 40006
F138: AO4 | H138: 4+ | I138: 4- | J138: - | AB138: =_xlfn.IFNA(VLOOKUP(AL138,List!$O$3:$P$444,2,FALSE),"-") -> - | AC138: =_xlfn.IFNA(VLOOKUP(AL138,List!$O$3:$Q$444,3,FALSE),"-") -> - | AE138: 不通过 | AL138: - | AM138: =VLOOKUP(AH138,List!$B$3:$D$445,2,FALSE)&AJ138&"_"&VLOOKUP(AK138,List!$K$2:$M$447,2,FALSE) ->  | AN138: =_xlfn.IFNA("L"&AM138&" "&"AT%Q14.0"&" "&":INT ;"&" "&"(*"&J138&"*)"," ") ->  | AR138: - | AS138: 40007
F139: AI1 | J139: AI1配置 | AB139: =_xlfn.IFNA(VLOOKUP(AL139,List!$O$3:$P$444,2,FALSE),"-") -> - | AC139: =_xlfn.IFNA(VLOOKUP(AL139,List!$O$3:$Q$444,3,FALSE),"-") -> - | AH139: AI通道 | AJ139: 01 | AK139: AI1配置 | AL139: AI通道-AI1配置 | AM139: =VLOOKUP(AH139,List!$B$3:$D$445,2,FALSE)&AJ139&"_"&VLOOKUP(AK139,List!$K$2:$M$447,2,FALSE) -> Device01_MO1 | AN139: =_xlfn.IFNA("L"&AM139&" "&"AT%Q2.0"&" "&":BYTE;"&" "&"(*"&J139&"*)"," ") -> LDevice01_MO1 AT%Q2.0 :BYTE; (*AI1配置*) | AO139: =IFERROR(REPLACE(REPLACE(AN139,SEARCH("AT%",AN139),,REPT(" ",25-SEARCH("AT%",AN139))),SEARCH(":",REPLACE(AN139,SEARCH("AT%",AN139),,REPT(" ",25-SEARCH("AT%",AN139)))),,REPT(" ",40-SEARCH(":",REPLACE(AN139,SEARCH("AT%",AN139),,REPT(" ",25-SEARCH("AT%",AN139))))))," ") -> LDevice01_MO1 AT%Q2.0 :BYTE; (*AI1配置*) | AQ139: Device01_MO1 | AR139: AI1配置 | AS139: =AS135-3 -> 40001
A140: . | F140: AI2 | J140: AI2配置 | AB140: =_xlfn.IFNA(VLOOKUP(AL140,List!$O$3:$P$444,2,FALSE),"-") -> - | AC140: =_xlfn.IFNA(VLOOKUP(AL140,List!$O$3:$Q$444,3,FALSE),"-") -> - | AH140: AI通道 | AJ140: 01 | AK140: AI2配置 | AL140: AI通道-AI2配置 | AM140: =VLOOKUP(AH140,List!$B$3:$D$445,2,FALSE)&AJ140&"_"&VLOOKUP(AK140,List!$K$2:$M$447,2,FALSE) -> Device01_MO2 | AN140: =_xlfn.IFNA("L"&AM140&" "&"AT%Q3.0"&" "&":BYTE;"&" "&"(*"&J140&"*)"," ") -> LDevice01_MO2 AT%Q3.0 :BYTE; (*AI2配置*) | AO140: LDevice01_MO2 AT%Q3.0 :BYTE; (*AI2配置*) | AQ140: Device01_MO2 | AR140: AI2配置 | AS140: =AS139 -> 40001
F141: AI3 | J141: AI3配置 | AB141: =_xlfn.IFNA(VLOOKUP(AL141,List!$O$3:$P$444,2,FALSE),"-") -> - | AC141: =_xlfn.IFNA(VLOOKUP(AL141,List!$O$3:$Q$444,3,FALSE),"-") -> - | AH141: AI通道 | AJ141: 01 | AK141: AI3配置 | AL141: AI通道-AI3配置 | AM141: =VLOOKUP(AH141,List!$B$3:$D$445,2,FALSE)&AJ141&"_"&VLOOKUP(AK141,List!$K$2:$M$447,2,FALSE) -> Device01_MO3 | AN141: =_xlfn.IFNA("L"&AM141&" "&"AT%Q4.0"&" "&":BYTE;"&" "&"(*"&J141&"*)"," ") -> LDevice01_MO3 AT%Q4.0 :BYTE; (*AI3配置*) | AO141: LDevice01_MO3 AT%Q4.0 :BYTE; (*AI3配置*) | AQ141: Device01_MO3 | AR141: AI3配置 | AS141: =AS135-2 -> 40002
F142: AI4 | J142: AI4配置 | AA142: =IF(AI142="","",AI142) ->  | AB142: =_xlfn.IFNA(VLOOKUP(AL142,List!$O$3:$P$444,2,FALSE),"-") -> - | AC142: =_xlfn.IFNA(VLOOKUP(AL142,List!$O$3:$Q$444,3,FALSE),"-") -> - | AH142: AI通道 | AJ142: 01 | AK142: AI4配置 | AL142: =AH142&"-"&AK142 -> AI通道-AI4配置 | AM142: =VLOOKUP(AH142,List!$B$3:$D$445,2,FALSE)&AJ142&"_"&VLOOKUP(AK142,List!$K$2:$M$447,2,FALSE) -> Device01_MO4 | AN142: =_xlfn.IFNA("L"&AM142&" "&"AT%Q5.0"&" "&":BYTE;"&" "&"(*"&J142&"*)"," ") -> LDevice01_MO4 AT%Q5.0 :BYTE; (*AI4配置*) | AO142: LDevice01_MO4 AT%Q5.0 :BYTE; (*AI4配置*) | AQ142: Device01_MO4 | AR142: =J142 -> AI4配置 | AS142: =AS141 -> 40002
F143: AI5 | J143: AI5配置 | AB143: =_xlfn.IFNA(VLOOKUP(AL143,List!$O$3:$P$444,2,FALSE),"-") -> - | AC143: =_xlfn.IFNA(VLOOKUP(AL143,List!$O$3:$Q$444,3,FALSE),"-") -> - | AH143: AI通道 | AJ143: 01 | AK143: AI5配置 | AL143: AI通道-AI5配置 | AM143: =VLOOKUP(AH143,List!$B$3:$D$445,2,FALSE)&AJ143&"_"&VLOOKUP(AK143,List!$K$2:$M$447,2,FALSE) -> Device01_MO5 | AN143: =_xlfn.IFNA("L"&AM143&" "&"AT%Q6.0"&" "&":BYTE;"&" "&"(*"&J143&"*)"," ") -> LDevice01_MO5 AT%Q6.0 :BYTE; (*AI5配置*) | AO143: LDevice01_MO5 AT%Q6.0 :BYTE; (*AI5配置*) | AQ143: Device01_MO5 | AR143: AI5配置 | AS143: =AS135-1 -> 40003
A144: . | F144: AI6 | J144: AI6配置 | AB144: =_xlfn.IFNA(VLOOKUP(AL144,List!$O$3:$P$444,2,FALSE),"-") -> - | AC144: =_xlfn.IFNA(VLOOKUP(AL144,List!$O$3:$Q$444,3,FALSE),"-") -> - | AH144: AI通道 | AJ144: 01 | AK144: AI6配置 | AL144: AI通道-AI6配置 | AM144: =VLOOKUP(AH144,List!$B$3:$D$445,2,FALSE)&AJ144&"_"&VLOOKUP(AK144,List!$K$2:$M$447,2,FALSE) -> Device01_MO6 | AN144: =_xlfn.IFNA("L"&AM144&" "&"AT%Q7.0"&" "&":BYTE;"&" "&"(*"&J144&"*)"," ") -> LDevice01_MO6 AT%Q7.0 :BYTE; (*AI6配置*) | AO144: LDevice01_MO6 AT%Q7.0 :BYTE; (*AI6配置*) | AQ144: Device01_MO6 | AR144: AI6配置 | AS144: =AS143 -> 40003
B145: EXC-61610-IO | AO145: ="(* "&B145&"地址: "&B147&" *)" -> (* EXC-61610-IO地址: 1 *)
B146: addr | C146: =B145 -> EXC-61610-IO | F146: DI1 | H146: 1 | I146: COM | J146: =AH146&AA146&"-"&AK146 -> 排风机EAF-B1-01-运行状态 | AA146: =IF(AI146="","",AI146) -> EAF-B1-01 | AB146: =_xlfn.IFNA(VLOOKUP(AL146,List!$O$3:$P$444,2,FALSE),"-") -> - | AC146: =_xlfn.IFNA(VLOOKUP(AL146,List!$O$3:$Q$444,3,FALSE),"-") -> - | AE146: 不通过 | AH146: 排风机 | AI146: EAF-B1-01 | AJ146: B1A01 | AK146: 运行状态 | AL146: =AH146&"-"&AK146 -> 排风机-运行状态 | AM146: =VLOOKUP(AH146,List!$B$3:$D$445,2,FALSE)&AJ146&"_"&VLOOKUP(AK146,List!$K$2:$M$447,2,FALSE) -> EAFB1A01_R | AN146: =_xlfn.IFNA("L"&AM146&" "&"AT%I"&B147*16&".0"&" "&":BOOL;"&" "&"(*"&J146&"*)"," ") -> LEAFB1A01_R AT%I16.0 :BOOL; (*排风机EAF-B1-01-运行状态*) | AO146: =IFERROR(REPLACE(REPLACE(AN146,SEARCH("AT%",AN146),,REPT(" ",25-SEARCH("AT%",AN146))),SEARCH(":",REPLACE(AN146,SEARCH("AT%",AN146),,REPT(" ",25-SEARCH("AT%",AN146)))),,REPT(" ",40-SEARCH(":",REPLACE(AN146,SEARCH("AT%",AN146),,REPT(" ",25-SEARCH("AT%",AN146))))))," ") -> LEAFB1A01_R AT%I16.0 :BOOL; (*排风机EAF-B1-01-运行状态*) | AQ146: EAFB1A01_R | AR146: =J146 -> 排风机EAF-B1-01-运行状态 | AS146: =10000+($B147*16*8+H146-1) -> 10128
B147: 1 | F147: DI2 | H147: 2 | J147: 排风机EAF-B1-01-故障状态 | AA147: =IF(AI147="","",AI147) -> EAF-B1-01 | AB147: =_xlfn.IFNA(VLOOKUP(AL147,List!$O$3:$P$444,2,FALSE),"-") -> - | AC147: =_xlfn.IFNA(VLOOKUP(AL147,List!$O$3:$Q$444,3,FALSE),"-") -> - | AE147: 不通过 | AH147: 排风机 | AI147: EAF-B1-01 | AJ147: B1A01 | AK147: 故障状态 | AL147: =AH147&"-"&AK147 -> 排风机-故障状态 | AM147: =VLOOKUP(AH147,List!$B$3:$D$445,2,FALSE)&AJ147&"_"&VLOOKUP(AK147,List!$K$2:$M$447,2,FALSE) -> EAFB1A01_F | AN147: =_xlfn.IFNA("L"&AM147&" "&"AT%I"&B147*16&".1"&" "&":BOOL;"&" "&"(*"&J147&"*)"," ") -> LEAFB1A01_F AT%I16.1 :BOOL; (*排风机EAF-B1-01-故障状态*) | AO147: LEAFB1A01_F AT%I16.1 :BOOL; (*排风机EAF-B1-01-故障状态*) | AQ147: EAFB1A01_F | AR147: =J147 -> 排风机EAF-B1-01-故障状态 | AS147: =AS146+1 -> 10129
B148: kbs | F148: DI3 | H148: 3 | J148: 排风机EAF-B1-01-自动状态 | AA148: EAF-B1-01 | AB148: =_xlfn.IFNA(VLOOKUP(AL148,List!$O$3:$P$444,2,FALSE),"-") -> - | AC148: =_xlfn.IFNA(VLOOKUP(AL148,List!$O$3:$Q$444,3,FALSE),"-") -> - | AE148: 不通过 | AH148: 排风机 | AI148: EAF-B1-01 | AJ148: B1A01 | AK148: 自动状态 | AL148: 排风机-自动状态 | AM148: =VLOOKUP(AH148,List!$B$3:$D$445,2,FALSE)&AJ148&"_"&VLOOKUP(AK148,List!$K$2:$M$447,2,FALSE) -> EAFB1A01_A | AN148: =_xlfn.IFNA("L"&AM148&" "&"AT%I"&B147*16&".2"&" "&":BOOL;"&" "&"(*"&J148&"*)"," ") -> LEAFB1A01_A AT%I16.2 :BOOL; (*排风机EAF-B1-01-自动状态*) | AO148: LEAFB1A01_A AT%I16.2 :BOOL; (*排风机EAF-B1-01-自动状态*) | AQ148: EAFB1A01_A | AR148: 排风机EAF-B1-01-自动状态 | AS148: =AS147+1 -> 10130
B149: 50 | F149: DI4 | H149: 4 | I149: COM | J149: - | AB149: =_xlfn.IFNA(VLOOKUP(AL149,List!$O$3:$P$444,2,FALSE),"-") -> - | AC149: =_xlfn.IFNA(VLOOKUP(AL149,List!$O$3:$Q$444,3,FALSE),"-") -> - | AE149: 不通过 | AL149: - | AM149: =VLOOKUP(AH149,List!$B$3:$D$445,2,FALSE)&AJ149&"_"&VLOOKUP(AK149,List!$K$2:$M$447,2,FALSE) ->  | AN149: =_xlfn.IFNA("L"&AM149&" "&"AT%I"&B147*16&".3"&" "&":BOOL;"&" "&"(*"&J149&"*)"," ") ->  | AR149: - | AS149: 10131
F150: DI5 | H150: 5 | J150: - | AB150: =_xlfn.IFNA(VLOOKUP(AL150,List!$O$3:$P$444,2,FALSE),"-") -> - | AC150: =_xlfn.IFNA(VLOOKUP(AL150,List!$O$3:$Q$444,3,FALSE),"-") -> - | AE150: 不通过 | AL150: - | AM150: =VLOOKUP(AH150,List!$B$3:$D$445,2,FALSE)&AJ150&"_"&VLOOKUP(AK150,List!$K$2:$M$447,2,FALSE) ->  | AN150: =_xlfn.IFNA("L"&AM150&" "&"AT%I"&B147*16&".4"&" "&":BOOL;"&" "&"(*"&J150&"*)"," ") ->  | AR150: - | AS150: 10132
F151: DI6 | H151: 6 | J151: - | AB151: =_xlfn.IFNA(VLOOKUP(AL151,List!$O$3:$P$444,2,FALSE),"-") -> - | AC151: =_xlfn.IFNA(VLOOKUP(AL151,List!$O$3:$Q$444,3,FALSE),"-") -> - | AE151: 不通过 | AL151: - | AM151: =VLOOKUP(AH151,List!$B$3:$D$445,2,FALSE)&AJ151&"_"&VLOOKUP(AK151,List!$K$2:$M$447,2,FALSE) ->  | AN151: =_xlfn.IFNA("L"&AM151&" "&"AT%I"&B147*16&".5"&" "&":BOOL;"&" "&"(*"&J151&"*)"," ") ->  | AR151: - | AS151: 10133
F152: DI7 | H152: 7 | I152: COM | J152: - | AB152: =_xlfn.IFNA(VLOOKUP(AL152,List!$O$3:$P$444,2,FALSE),"-") -> - | AC152: =_xlfn.IFNA(VLOOKUP(AL152,List!$O$3:$Q$444,3,FALSE),"-") -> - | AE152: 不通过 | AL152: - | AM152: =VLOOKUP(AH152,List!$B$3:$D$445,2,FALSE)&AJ152&"_"&VLOOKUP(AK152,List!$K$2:$M$447,2,FALSE) ->  | AN152: =_xlfn.IFNA("L"&AM152&" "&"AT%I"&B147*16&".6"&" "&":BOOL;"&" "&"(*"&J152&"*)"," ") ->  | AR152: - | AS152: 10134
A153: . | F153: DI8 | H153: 8 | J153: - | AB153: =_xlfn.IFNA(VLOOKUP(AL153,List!$O$3:$P$444,2,FALSE),"-") -> - | AC153: =_xlfn.IFNA(VLOOKUP(AL153,List!$O$3:$Q$444,3,FALSE),"-") -> - | AE153: 不通过 | AL153: - | AM153: =VLOOKUP(AH153,List!$B$3:$D$445,2,FALSE)&AJ153&"_"&VLOOKUP(AK153,List!$K$2:$M$447,2,FALSE) ->  | AN153: =_xlfn.IFNA("L"&AM153&" "&"AT%I"&B147*16&".7"&" "&":BOOL;"&" "&"(*"&J153&"*)"," ") ->  | AR153: - | AS153: 10135
F154: DI9 | H154: 9 | J154: - | AB154: =_xlfn.IFNA(VLOOKUP(AL154,List!$O$3:$P$444,2,FALSE),"-") -> - | AC154: =_xlfn.IFNA(VLOOKUP(AL154,List!$O$3:$Q$444,3,FALSE),"-") -> - | AE154: 不通过 | AL154: - | AM154: =VLOOKUP(AH154,List!$B$3:$D$445,2,FALSE)&AJ154&"_"&VLOOKUP(AK154,List!$K$2:$M$447,2,FALSE) ->  | AN154: =_xlfn.IFNA("L"&AM154&" "&"AT%I"&(B147*16+1)&".0"&" "&":BOOL;"&" "&"(*"&J154&"*)"," ") ->  | AR154: - | AS154: =10000+(($B147*16+1)*8+H154-9) -> 10136
F155: DI10 | H155: 10 | I155: COM | J155: - | AA155: =IF(AI155="","",AI155) ->  | AB155: =_xlfn.IFNA(VLOOKUP(AL155,List!$O$3:$P$444,2,FALSE),"-") -> - | AC155: =_xlfn.IFNA(VLOOKUP(AL155,List!$O$3:$Q$444,3,FALSE),"-") -> - | AE155: 不通过 | AL155: =AH155&"-"&AK155 -> - | AM155: =VLOOKUP(AH155,List!$B$3:$D$445,2,FALSE)&AJ155&"_"&VLOOKUP(AK155,List!$K$2:$M$447,2,FALSE) ->  | AN155: =_xlfn.IFNA("L"&AM155&" "&"AT%I"&(B147*16+1)&".1"&" "&":BOOL;"&" "&"(*"&J155&"*)"," ") ->  | AR155: =J155 -> - | AS155: =AS154+1 -> 10137
F156: DI11 | H156: 11 | J156: - | AB156: =_xlfn.IFNA(VLOOKUP(AL156,List!$O$3:$P$444,2,FALSE),"-") -> - | AC156: =_xlfn.IFNA(VLOOKUP(AL156,List!$O$3:$Q$444,3,FALSE),"-") -> - | AE156: 不通过 | AL156: - | AM156: =VLOOKUP(AH156,List!$B$3:$D$445,2,FALSE)&AJ156&"_"&VLOOKUP(AK156,List!$K$2:$M$447,2,FALSE) ->  | AN156: =_xlfn.IFNA("L"&AM156&" "&"AT%I"&(B147*16+1)&".2"&" "&":BOOL;"&" "&"(*"&J156&"*)"," ") ->  | AR156: - | AS156: =AS155+1 -> 10138
F157: DI12 | H157: 12 | J157: - | AB157: =_xlfn.IFNA(VLOOKUP(AL157,List!$O$3:$P$444,2,FALSE),"-") -> - | AC157: =_xlfn.IFNA(VLOOKUP(AL157,List!$O$3:$Q$444,3,FALSE),"-") -> - | AE157: 不通过 | AL157: - | AM157: =VLOOKUP(AH157,List!$B$3:$D$445,2,FALSE)&AJ157&"_"&VLOOKUP(AK157,List!$K$2:$M$447,2,FALSE) ->  | AN157: =_xlfn.IFNA("L"&AM157&" "&"AT%I"&(B147*16+1)&".3"&" "&":BOOL;"&" "&"(*"&J157&"*)"," ") ->  | AR157: - | AS157: 10139
F158: DO1 | H158: 1+ | I158: 1- | J158: 排风机EAF-B1-01-启停控制 | AA158: EAF-B1-01 | AB158: =_xlfn.IFNA(VLOOKUP(AL158,List!$O$3:$P$444,2,FALSE),"-") -> - | AC158: =_xlfn.IFNA(VLOOKUP(AL158,List!$O$3:$Q$444,3,FALSE),"-") -> - | AE158: 不通过 | AH158: 排风机 | AI158: EAF-B1-01 | AJ158: B1A01 | AK158: 启停控制 | AL158: 排风机-启停控制 | AM158: =VLOOKUP(AH158,List!$B$3:$D$445,2,FALSE)&AJ158&"_"&VLOOKUP(AK158,List!$K$2:$M$447,2,FALSE) -> EAFB1A01_C | AN158: =_xlfn.IFNA("L"&AM158&" "&"AT%Q"&B147*16&".0"&" "&":BOOL;"&" "&"(*"&J158&"*)"," ") -> LEAFB1A01_C AT%Q16.0 :BOOL; (*排风机EAF-B1-01-启停控制*) | AO158: LEAFB1A01_C AT%Q16.0 :BOOL; (*排风机EAF-B1-01-启停控制*) | AQ158: EAFB1A01_C | AR158: 排风机EAF-B1-01-启停控制 | AS158: =($B147*16*8+LEFT(H158,1)-1) -> 128
F159: DO2 | H159: 2+ | I159: 2- | J159: - | AB159: =_xlfn.IFNA(VLOOKUP(AL159,List!$O$3:$P$444,2,FALSE),"-") -> - | AC159: =_xlfn.IFNA(VLOOKUP(AL159,List!$O$3:$Q$444,3,FALSE),"-") -> - | AE159: 不通过 | AL159: - | AM159: =VLOOKUP(AH159,List!$B$3:$D$445,2,FALSE)&AJ159&"_"&VLOOKUP(AK159,List!$K$2:$M$447,2,FALSE) ->  | AN159: =_xlfn.IFNA("L"&AM159&" "&"AT%Q"&B147*16&".1"&" "&":BOOL;"&" "&"(*"&J159&"*)"," ") ->  | AR159: - | AS159: =AS158+1 -> 129
F160: DO3 | H160: 3+ | I160: 3- | J160: - | AB160: =_xlfn.IFNA(VLOOKUP(AL160,List!$O$3:$P$444,2,FALSE),"-") -> - | AC160: =_xlfn.IFNA(VLOOKUP(AL160,List!$O$3:$Q$444,3,FALSE),"-") -> - | AE160: 不通过 | AL160: - | AM160: =VLOOKUP(AH160,List!$B$3:$D$445,2,FALSE)&AJ160&"_"&VLOOKUP(AK160,List!$K$2:$M$447,2,FALSE) ->  | AN160: =_xlfn.IFNA("L"&AM160&" "&"AT%Q"&B147*16&".2"&" "&":BOOL;"&" "&"(*"&J160&"*)"," ") ->  | AR160: - | AS160: 130
F161: DO4 | H161: 4+ | I161: 4- | J161: - | AB161: =_xlfn.IFNA(VLOOKUP(AL161,List!$O$3:$P$444,2,FALSE),"-") -> - | AC161: =_xlfn.IFNA(VLOOKUP(AL161,List!$O$3:$Q$444,3,FALSE),"-") -> - | AE161: 不通过 | AL161: - | AM161: =VLOOKUP(AH161,List!$B$3:$D$445,2,FALSE)&AJ161&"_"&VLOOKUP(AK161,List!$K$2:$M$447,2,FALSE) ->  | AN161: =_xlfn.IFNA("L"&AM161&" "&"AT%Q"&B147*16&".3"&" "&":BOOL;"&" "&"(*"&J161&"*)"," ") ->  | AR161: - | AS161: 131
F162: DO5 | H162: 5+ | I162: 5- | J162: - | AB162: =_xlfn.IFNA(VLOOKUP(AL162,List!$O$3:$P$444,2,FALSE),"-") -> - | AC162: =_xlfn.IFNA(VLOOKUP(AL162,List!$O$3:$Q$444,3,FALSE),"-") -> - | AE162: 不通过 | AL162: - | AM162: =VLOOKUP(AH162,List!$B$3:$D$445,2,FALSE)&AJ162&"_"&VLOOKUP(AK162,List!$K$2:$M$447,2,FALSE) ->  | AN162: =_xlfn.IFNA("L"&AM162&" "&"AT%Q"&B147*16&".4"&" "&":BOOL;"&" "&"(*"&J162&"*)"," ") ->  | AR162: - | AS162: 132
F163: DO6 | H163: 6+ | I163: 6- | J163: - | AA163: =IF(AI163="","",AI163) ->  | AB163: =_xlfn.IFNA(VLOOKUP(AL163,List!$O$3:$P$444,2,FALSE),"-") -> - | AC163: =_xlfn.IFNA(VLOOKUP(AL163,List!$O$3:$Q$444,3,FALSE),"-") -> - | AE163: 不通过 | AL163: =AH163&"-"&AK163 -> - | AM163: =VLOOKUP(AH163,List!$B$3:$D$445,2,FALSE)&AJ163&"_"&VLOOKUP(AK163,List!$K$2:$M$447,2,FALSE) ->  | AN163: =_xlfn.IFNA("L"&AM163&" "&"AT%Q"&B147*16&".5"&" "&":BOOL;"&" "&"(*"&J163&"*)"," ") ->  | AR163: =J163 -> - | AS163: 133
F164: AI1 | H164: 1 | I164: 0 V | J164: 室内环境状态CO-1-一氧化碳浓度状态 | AA164: CO-1 | AB164: =_xlfn.IFNA(VLOOKUP(AL164,List!$O$3:$P$444,2,FALSE),"-") -> - | AC164: =_xlfn.IFNA(VLOOKUP(AL164,List!$O$3:$Q$444,3,FALSE),"-") -> - | AE164: 不通过 | AH164: 室内环境状态 | AI164: CO-1 | AJ164: B1A01 | AK164: 一氧化碳浓度状态 | AL164: 室内环境状态-一氧化碳浓度状态 | AM164: =VLOOKUP(AH164,List!$B$3:$D$445,2,FALSE)&AJ164&"_"&VLOOKUP(AK164,List!$K$2:$M$447,2,FALSE) -> IESB1A01_CO | AN164: =_xlfn.IFNA("L"&AM164&" "&"AT%I"&(B147*16+2)&".0"&" "&":INT ;"&" "&"(*"&J164&"*)"," ") -> LIESB1A01_CO AT%I18.0 :INT ; (*室内环境状态CO-1-一氧化碳浓度状态*) | AO164: LIESB1A01_CO AT%I18.0 :INT ; (*室内环境状态CO-1-一氧化碳浓度状态*) | AQ164: IESB1A01_CO | AR164: 室内环境状态CO-1-一氧化碳浓度状态 | AS164: =30000+($B147*8+LEFT(H164,1)) -> 30009
F165: AI2 | H165: 2 | J165: - | AB165: =_xlfn.IFNA(VLOOKUP(AL165,List!$O$3:$P$444,2,FALSE),"-") -> - | AC165: =_xlfn.IFNA(VLOOKUP(AL165,List!$O$3:$Q$444,3,FALSE),"-") -> - | AE165: 不通过 | AL165: - | AM165: =VLOOKUP(AH165,List!$B$3:$D$445,2,FALSE)&AJ165&"_"&VLOOKUP(AK165,List!$K$2:$M$447,2,FALSE) ->  | AN165: =_xlfn.IFNA("L"&AM165&" "&"AT%I"&(B147*16+4)&".0"&" "&":INT ;"&" "&"(*"&J165&"*)"," ") ->  | AR165: - | AS165: =AS164+1 -> 30010
F166: AI3 | H166: 3 | I166: 0 V | J166: - | AB166: =_xlfn.IFNA(VLOOKUP(AL166,List!$O$3:$P$444,2,FALSE),"-") -> - | AC166: =_xlfn.IFNA(VLOOKUP(AL166,List!$O$3:$Q$444,3,FALSE),"-") -> - | AE166: 不通过 | AL166: - | AM166: =VLOOKUP(AH166,List!$B$3:$D$445,2,FALSE)&AJ166&"_"&VLOOKUP(AK166,List!$K$2:$M$447,2,FALSE) ->  | AN166: =_xlfn.IFNA("L"&AM166&" "&"AT%I"&(B147*16+6)&".0"&" "&":INT ;"&" "&"(*"&J166&"*)"," ") ->  | AR166: - | AS166: 30011
F167: AI4 | H167: 4 | J167: - | AB167: =_xlfn.IFNA(VLOOKUP(AL167,List!$O$3:$P$444,2,FALSE),"-") -> - | AC167: =_xlfn.IFNA(VLOOKUP(AL167,List!$O$3:$Q$444,3,FALSE),"-") -> - | AE167: 不通过 | AL167: - | AM167: =VLOOKUP(AH167,List!$B$3:$D$445,2,FALSE)&AJ167&"_"&VLOOKUP(AK167,List!$K$2:$M$447,2,FALSE) ->  | AN167: =_xlfn.IFNA("L"&AM167&" "&"AT%I"&(B147*16+8)&".0"&" "&":INT ;"&" "&"(*"&J167&"*)"," ") ->  | AR167: - | AS167: 30012
F168: AI5 | H168: 5 | I168: 0 V | J168: - | AB168: =_xlfn.IFNA(VLOOKUP(AL168,List!$O$3:$P$444,2,FALSE),"-") -> - | AC168: =_xlfn.IFNA(VLOOKUP(AL168,List!$O$3:$Q$444,3,FALSE),"-") -> - | AE168: 不通过 | AL168: - | AM168: =VLOOKUP(AH168,List!$B$3:$D$445,2,FALSE)&AJ168&"_"&VLOOKUP(AK168,List!$K$2:$M$447,2,FALSE) ->  | AN168: =_xlfn.IFNA("L"&AM168&" "&"AT%I"&(B147*16+10)&".0"&" "&":INT ;"&" "&"(*"&J168&"*)"," ") ->  | AR168: - | AS168: 30013
A169: . | F169: AI6 | H169: 6 | J169: - | AB169: =_xlfn.IFNA(VLOOKUP(AL169,List!$O$3:$P$444,2,FALSE),"-") -> - | AC169: =_xlfn.IFNA(VLOOKUP(AL169,List!$O$3:$Q$444,3,FALSE),"-") -> - | AE169: 不通过 | AL169: - | AM169: =VLOOKUP(AH169,List!$B$3:$D$445,2,FALSE)&AJ169&"_"&VLOOKUP(AK169,List!$K$2:$M$447,2,FALSE) ->  | AN169: =_xlfn.IFNA("L"&AM169&" "&"AT%I"&(B147*16+12)&".0"&" "&":INT ;"&" "&"(*"&J169&"*)"," ") ->  | AR169: - | AS169: 30014
F170: AO1 | H170: 1+ | I170: 1- | J170: - | AB170: =_xlfn.IFNA(VLOOKUP(AL170,List!$O$3:$P$444,2,FALSE),"-") -> - | AC170: =_xlfn.IFNA(VLOOKUP(AL170,List!$O$3:$Q$444,3,FALSE),"-") -> - | AE170: 不通过 | AL170: - | AM170: =VLOOKUP(AH170,List!$B$3:$D$445,2,FALSE)&AJ170&"_"&VLOOKUP(AK170,List!$K$2:$M$447,2,FALSE) ->  | AN170: =_xlfn.IFNA("L"&AM170&" "&"AT%Q"&(B147*16+8)&".0"&" "&":INT ;"&" "&"(*"&J170&"*)"," ") ->  | AR170: - | AS170: =40000+($B147*8+LEFT(H170,1)+3) -> 40012
F171: AO2 | H171: 2+ | I171: 2- | J171: - | AA171: =IF(AI171="","",AI171) ->  | AB171: =_xlfn.IFNA(VLOOKUP(AL171,List!$O$3:$P$444,2,FALSE),"-") -> - | AC171: =_xlfn.IFNA(VLOOKUP(AL171,List!$O$3:$Q$444,3,FALSE),"-") -> - | AE171: 不通过 | AL171: =AH171&"-"&AK171 -> - | AM171: =VLOOKUP(AH171,List!$B$3:$D$445,2,FALSE)&AJ171&"_"&VLOOKUP(AK171,List!$K$2:$M$447,2,FALSE) ->  | AN171: =_xlfn.IFNA("L"&AM171&" "&"AT%Q"&(B147*16+10)&".0"&" "&":INT ;"&" "&"(*"&J171&"*)"," ") ->  | AR171: =J171 -> - | AS171: =AS170+1 -> 40013
F172: AO3 | H172: 3+ | I172: 3- | J172: - | AB172: =_xlfn.IFNA(VLOOKUP(AL172,List!$O$3:$P$444,2,FALSE),"-") -> - | AC172: =_xlfn.IFNA(VLOOKUP(AL172,List!$O$3:$Q$444,3,FALSE),"-") -> - | AE172: 不通过 | AL172: - | AM172: =VLOOKUP(AH172,List!$B$3:$D$445,2,FALSE)&AJ172&"_"&VLOOKUP(AK172,List!$K$2:$M$447,2,FALSE) ->  | AN172: =_xlfn.IFNA("L"&AM172&" "&"AT%Q"&(B147*16+12)&".0"&" "&":INT ;"&" "&"(*"&J172&"*)"," ") ->  | AR172: - | AS172: =AS171+1 -> 40014
F173: AO4 | H173: 4+ | I173: 4- | J173: - | AB173: =_xlfn.IFNA(VLOOKUP(AL173,List!$O$3:$P$444,2,FALSE),"-") -> - | AC173: =_xlfn.IFNA(VLOOKUP(AL173,List!$O$3:$Q$444,3,FALSE),"-") -> - | AE173: 不通过 | AL173: - | AM173: =VLOOKUP(AH173,List!$B$3:$D$445,2,FALSE)&AJ173&"_"&VLOOKUP(AK173,List!$K$2:$M$447,2,FALSE) ->  | AN173: =_xlfn.IFNA("L"&AM173&" "&"AT%Q"&(B147*16+14)&".0"&" "&":INT ;"&" "&"(*"&J173&"*)"," ") ->  | AR173: - | AS173: 40015
F174: AI1 | J174: AI1配置 | AB174: =_xlfn.IFNA(VLOOKUP(AL174,List!$O$3:$P$444,2,FALSE),"-") -> - | AC174: =_xlfn.IFNA(VLOOKUP(AL174,List!$O$3:$Q$444,3,FALSE),"-") -> - | AH174: AI通道 | AJ174: 02 | AK174: AI1配置 | AL174: AI通道-AI1配置 | AM174: =VLOOKUP(AH174,List!$B$3:$D$445,2,FALSE)&AJ174&"_"&VLOOKUP(AK174,List!$K$2:$M$447,2,FALSE) -> Device02_MO1 | AN174: =_xlfn.IFNA("L"&AM174&" "&"AT%Q"&(B147*16+2)&".0"&" "&":BYTE;"&" "&"(*"&J174&"*)"," ") -> LDevice02_MO1 AT%Q18.0 :BYTE; (*AI1配置*) | AO174: LDevice02_MO1 AT%Q18.0 :BYTE; (*AI1配置*) | AQ174: Device02_MO1 | AR174: AI1配置 | AS174: =AS170-3 -> 40009
A175: . | F175: AI2 | J175: AI2配置 | AB175: =_xlfn.IFNA(VLOOKUP(AL175,List!$O$3:$P$444,2,FALSE),"-") -> - | AC175: =_xlfn.IFNA(VLOOKUP(AL175,List!$O$3:$Q$444,3,FALSE),"-") -> - | AH175: AI通道 | AJ175: 02 | AK175: AI2配置 | AL175: AI通道-AI2配置 | AM175: =VLOOKUP(AH175,List!$B$3:$D$445,2,FALSE)&AJ175&"_"&VLOOKUP(AK175,List!$K$2:$M$447,2,FALSE) -> Device02_MO2 | AN175: =_xlfn.IFNA("L"&AM175&" "&"AT%Q"&(B147*16+3)&".0"&" "&":BYTE;"&" "&"(*"&J175&"*)"," ") -> LDevice02_MO2 AT%Q19.0 :BYTE; (*AI2配置*) | AO175: LDevice02_MO2 AT%Q19.0 :BYTE; (*AI2配置*) | AQ175: =AM175 -> Device02_MO2 | AR175: AI2配置 | AS175: =AS174 -> 40009
F176: AI3 | J176: AI3配置 | AB176: =_xlfn.IFNA(VLOOKUP(AL176,List!$O$3:$P$444,2,FALSE),"-") -> - | AC176: =_xlfn.IFNA(VLOOKUP(AL176,List!$O$3:$Q$444,3,FALSE),"-") -> - | AH176: AI通道 | AJ176: 02 | AK176: AI3配置 | AL176: AI通道-AI3配置 | AM176: =VLOOKUP(AH176,List!$B$3:$D$445,2,FALSE)&AJ176&"_"&VLOOKUP(AK176,List!$K$2:$M$447,2,FALSE) -> Device02_MO3 | AN176: =_xlfn.IFNA("L"&AM176&" "&"AT%Q"&(B147*16+4)&".0"&" "&":BYTE;"&" "&"(*"&J176&"*)"," ") -> LDevice02_MO3 AT%Q20.0 :BYTE; (*AI3配置*) | AO176: LDevice02_MO3 AT%Q20.0 :BYTE; (*AI3配置*) | AQ176: Device02_MO3 | AR176: AI3配置 | AS176: =AS170-2 -> 40010
F177: AI4 | J177: AI4配置 | AA177: =IF(AI177="","",AI177) ->  | AB177: =_xlfn.IFNA(VLOOKUP(AL177,List!$O$3:$P$444,2,FALSE),"-") -> - | AC177: =_xlfn.IFNA(VLOOKUP(AL177,List!$O$3:$Q$444,3,FALSE),"-") -> - | AH177: AI通道 | AJ177: 02 | AK177: AI4配置 | AL177: =AH177&"-"&AK177 -> AI通道-AI4配置 | AM177: =VLOOKUP(AH177,List!$B$3:$D$445,2,FALSE)&AJ177&"_"&VLOOKUP(AK177,List!$K$2:$M$447,2,FALSE) -> Device02_MO4 | AN177: =_xlfn.IFNA("L"&AM177&" "&"AT%Q"&(B147*16+5)&".0"&" "&":BYTE;"&" "&"(*"&J177&"*)"," ") -> LDevice02_MO4 AT%Q21.0 :BYTE; (*AI4配置*) | AO177: LDevice02_MO4 AT%Q21.0 :BYTE; (*AI4配置*) | AQ177: Device02_MO4 | AR177: =J177 -> AI4配置 | AS177: =AS176 -> 40010
F178: AI5 | J178: AI5配置 | AB178: =_xlfn.IFNA(VLOOKUP(AL178,List!$O$3:$P$444,2,FALSE),"-") -> - | AC178: =_xlfn.IFNA(VLOOKUP(AL178,List!$O$3:$Q$444,3,FALSE),"-") -> - | AH178: AI通道 | AJ178: 02 | AK178: AI5配置 | AL178: AI通道-AI5配置 | AM178: =VLOOKUP(AH178,List!$B$3:$D$445,2,FALSE)&AJ178&"_"&VLOOKUP(AK178,List!$K$2:$M$447,2,FALSE) -> Device02_MO5 | AN178: =_xlfn.IFNA("L"&AM178&" "&"AT%Q"&(B147*16+6)&".0"&" "&":BYTE;"&" "&"(*"&J178&"*)"," ") -> LDevice02_MO5 AT%Q22.0 :BYTE; (*AI5配置*) | AO178: LDevice02_MO5 AT%Q22.0 :BYTE; (*AI5配置*) | AQ178: Device02_MO5 | AR178: AI5配置 | AS178: =AS170-1 -> 40011
A179: . | F179: AI6 | J179: AI6配置 | AB179: =_xlfn.IFNA(VLOOKUP(AL179,List!$O$3:$P$444,2,FALSE),"-") -> - | AC179: =_xlfn.IFNA(VLOOKUP(AL179,List!$O$3:$Q$444,3,FALSE),"-") -> - | AH179: AI通道 | AJ179: 02 | AK179: AI6配置 | AL179: AI通道-AI6配置 | AM179: =VLOOKUP(AH179,List!$B$3:$D$445,2,FALSE)&AJ179&"_"&VLOOKUP(AK179,List!$K$2:$M$447,2,FALSE) -> Device02_MO6 | AN179: =_xlfn.IFNA("L"&AM179&" "&"AT%Q"&(B147*16+7)&".0"&" "&":BYTE;"&" "&"(*"&J179&"*)"," ") -> LDevice02_MO6 AT%Q23.0 :BYTE; (*AI6配置*) | AO179: LDevice02_MO6 AT%Q23.0 :BYTE; (*AI6配置*) | AQ179: Device02_MO6 | AR179: AI6配置 | AS179: =AS178 -> 40011
B180: EXC-61608 | AO180: ="(* "&B180&"地址: "&B182&" *)" -> (* EXC-61608地址: 0 *)
B181: addr | C181: =B180 -> EXC-61608 | F181: DI1 | H181: 1 | I181: COM | J181: =AH181&AA181&"-"&AK181 -> - | AA181: =IF(AI181="","",AI181) ->  | AB181: =_xlfn.IFNA(VLOOKUP(AL181,List!$O$3:$P$444,2,FALSE),"-") -> - | AC181: =_xlfn.IFNA(VLOOKUP(AL181,List!$O$3:$Q$444,3,FALSE),"-") -> - | AE181: 不通过 | AL181: =AH181&"-"&AK181 -> - | AM181: =VLOOKUP(AH181,List!$B$3:$D$445,2,FALSE)&AJ181&"_"&VLOOKUP(AK181,List!$K$2:$M$447,2,FALSE) ->  | AN181: =_xlfn.IFNA("L"&AM181&" "&"AT%I0.0"&" "&":BOOL;"&" "&"(*"&J181&"*)"," ") ->  | AO181: =IFERROR(REPLACE(REPLACE(AN181,SEARCH("AT%",AN181),,REPT(" ",25-SEARCH("AT%",AN181))),SEARCH(":",REPLACE(AN181,SEARCH("AT%",AN181),,REPT(" ",25-SEARCH("AT%",AN181)))),,REPT(" ",40-SEARCH(":",REPLACE(AN181,SEARCH("AT%",AN181),,REPT(" ",25-SEARCH("AT%",AN181))))))," ") ->  | AQ181: =AM181 ->  | AR181: =J181 -> - | AS181: =10000+($B182*16*8+H181-1) -> 10000
B182: 0 | F182: DI2 | H182: 2 | J182: - | AA182: =IF(AI182="","",AI182) ->  | AB182: =_xlfn.IFNA(VLOOKUP(AL182,List!$O$3:$P$444,2,FALSE),"-") -> - | AC182: =_xlfn.IFNA(VLOOKUP(AL182,List!$O$3:$Q$444,3,FALSE),"-") -> - | AE182: 不通过 | AL182: - | AM182: =VLOOKUP(AH182,List!$B$3:$D$445,2,FALSE)&AJ182&"_"&VLOOKUP(AK182,List!$K$2:$M$447,2,FALSE) ->  | AN182: =_xlfn.IFNA("L"&AM182&" "&"AT%I0.1"&" "&":BOOL;"&" "&"(*"&J182&"*)"," ") ->  | AR182: =J182 -> - | AS182: =AS181+1 -> 10001
B183: kbs | F183: DI3 | H183: 3 | J183: - | AB183: =_xlfn.IFNA(VLOOKUP(AL183,List!$O$3:$P$444,2,FALSE),"-") -> - | AC183: =_xlfn.IFNA(VLOOKUP(AL183,List!$O$3:$Q$444,3,FALSE),"-") -> - | AE183: 不通过 | AL183: - | AM183: =VLOOKUP(AH183,List!$B$3:$D$445,2,FALSE)&AJ183&"_"&VLOOKUP(AK183,List!$K$2:$M$447,2,FALSE) ->  | AN183: =_xlfn.IFNA("L"&AM183&" "&"AT%I0.2"&" "&":BOOL;"&" "&"(*"&J183&"*)"," ") ->  | AR183: - | AS183: =AS182+1 -> 10002
B184: 50 | F184: DI4 | H184: 4 | I184: COM | J184: - | AB184: =_xlfn.IFNA(VLOOKUP(AL184,List!$O$3:$P$444,2,FALSE),"-") -> - | AC184: =_xlfn.IFNA(VLOOKUP(AL184,List!$O$3:$Q$444,3,FALSE),"-") -> - | AE184: 不通过 | AL184: - | AM184: =VLOOKUP(AH184,List!$B$3:$D$445,2,FALSE)&AJ184&"_"&VLOOKUP(AK184,List!$K$2:$M$447,2,FALSE) ->  | AN184: =_xlfn.IFNA("L"&AM184&" "&"AT%I0.3"&" "&":BOOL;"&" "&"(*"&J184&"*)"," ") ->  | AR184: - | AS184: 10003
F185: DI5 | H185: 5 | J185: - | AB185: =_xlfn.IFNA(VLOOKUP(AL185,List!$O$3:$P$444,2,FALSE),"-") -> - | AC185: =_xlfn.IFNA(VLOOKUP(AL185,List!$O$3:$Q$444,3,FALSE),"-") -> - | AE185: 不通过 | AL185: - | AM185: =VLOOKUP(AH185,List!$B$3:$D$445,2,FALSE)&AJ185&"_"&VLOOKUP(AK185,List!$K$2:$M$447,2,FALSE) ->  | AN185: =_xlfn.IFNA("L"&AM185&" "&"AT%I0.4"&" "&":BOOL;"&" "&"(*"&J185&"*)"," ") ->  | AR185: - | AS185: 10004
F186: DI6 | H186: 6 | J186: - | AB186: =_xlfn.IFNA(VLOOKUP(AL186,List!$O$3:$P$444,2,FALSE),"-") -> - | AC186: =_xlfn.IFNA(VLOOKUP(AL186,List!$O$3:$Q$444,3,FALSE),"-") -> - | AE186: 不通过 | AL186: - | AM186: =VLOOKUP(AH186,List!$B$3:$D$445,2,FALSE)&AJ186&"_"&VLOOKUP(AK186,List!$K$2:$M$447,2,FALSE) ->  | AN186: =_xlfn.IFNA("L"&AM186&" "&"AT%I0.5"&" "&":BOOL;"&" "&"(*"&J186&"*)"," ") ->  | AR186: - | AS186: 10005
F187: DI7 | H187: 7 | I187: COM | J187: - | AB187: =_xlfn.IFNA(VLOOKUP(AL187,List!$O$3:$P$444,2,FALSE),"-") -> - | AC187: =_xlfn.IFNA(VLOOKUP(AL187,List!$O$3:$Q$444,3,FALSE),"-") -> - | AE187: 不通过 | AL187: - | AM187: =VLOOKUP(AH187,List!$B$3:$D$445,2,FALSE)&AJ187&"_"&VLOOKUP(AK187,List!$K$2:$M$447,2,FALSE) ->  | AN187: =_xlfn.IFNA("L"&AM187&" "&"AT%I0.6"&" "&":BOOL;"&" "&"(*"&J187&"*)"," ") ->  | AR187: - | AS187: 10006
A188: . | F188: DI8 | H188: 8 | J188: - | AB188: =_xlfn.IFNA(VLOOKUP(AL188,List!$O$3:$P$444,2,FALSE),"-") -> - | AC188: =_xlfn.IFNA(VLOOKUP(AL188,List!$O$3:$Q$444,3,FALSE),"-") -> - | AE188: 不通过 | AL188: - | AM188: =VLOOKUP(AH188,List!$B$3:$D$445,2,FALSE)&AJ188&"_"&VLOOKUP(AK188,List!$K$2:$M$447,2,FALSE) ->  | AN188: =_xlfn.IFNA("L"&AM188&" "&"AT%I0.7"&" "&":BOOL;"&" "&"(*"&J188&"*)"," ") ->  | AR188: - | AS188: 10007
F189: DI9 | H189: 9 | J189: - | AB189: =_xlfn.IFNA(VLOOKUP(AL189,List!$O$3:$P$444,2,FALSE),"-") -> - | AC189: =_xlfn.IFNA(VLOOKUP(AL189,List!$O$3:$Q$444,3,FALSE),"-") -> - | AE189: 不通过 | AL189: - | AM189: =VLOOKUP(AH189,List!$B$3:$D$445,2,FALSE)&AJ189&"_"&VLOOKUP(AK189,List!$K$2:$M$447,2,FALSE) ->  | AN189: =_xlfn.IFNA("L"&AM189&" "&"AT%I1.0"&" "&":BOOL;"&" "&"(*"&J189&"*)"," ") ->  | AR189: - | AS189: =10000+(($B182*16+1)*8+H189-9) -> 10008
F190: DI10 | H190: 10 | I190: COM | J190: - | AB190: =_xlfn.IFNA(VLOOKUP(AL190,List!$O$3:$P$444,2,FALSE),"-") -> - | AC190: =_xlfn.IFNA(VLOOKUP(AL190,List!$O$3:$Q$444,3,FALSE),"-") -> - | AE190: 不通过 | AL190: - | AM190: =VLOOKUP(AH190,List!$B$3:$D$445,2,FALSE)&AJ190&"_"&VLOOKUP(AK190,List!$K$2:$M$447,2,FALSE) ->  | AN190: =_xlfn.IFNA("L"&AM190&" "&"AT%I1.1"&" "&":BOOL;"&" "&"(*"&J190&"*)"," ") ->  | AR190: - | AS190: =AS189+1 -> 10009
F191: DI11 | H191: 11 | J191: - | AB191: =_xlfn.IFNA(VLOOKUP(AL191,List!$O$3:$P$444,2,FALSE),"-") -> - | AC191: =_xlfn.IFNA(VLOOKUP(AL191,List!$O$3:$Q$444,3,FALSE),"-") -> - | AE191: 不通过 | AL191: - | AM191: =VLOOKUP(AH191,List!$B$3:$D$445,2,FALSE)&AJ191&"_"&VLOOKUP(AK191,List!$K$2:$M$447,2,FALSE) ->  | AN191: =_xlfn.IFNA("L"&AM191&" "&"AT%I1.2"&" "&":BOOL;"&" "&"(*"&J191&"*)"," ") ->  | AR191: - | AS191: =AS190+1 -> 10010
F192: DI12 | H192: 12 | J192: - | AB192: =_xlfn.IFNA(VLOOKUP(AL192,List!$O$3:$P$444,2,FALSE),"-") -> - | AC192: =_xlfn.IFNA(VLOOKUP(AL192,List!$O$3:$Q$444,3,FALSE),"-") -> - | AE192: 不通过 | AL192: - | AM192: =VLOOKUP(AH192,List!$B$3:$D$445,2,FALSE)&AJ192&"_"&VLOOKUP(AK192,List!$K$2:$M$447,2,FALSE) ->  | AN192: =_xlfn.IFNA("L"&AM192&" "&"AT%I1.3"&" "&":BOOL;"&" "&"(*"&J192&"*)"," ") ->  | AR192: - | AS192: 10011
F193: DI13 | H193: 13 | I193: COM | J193: - | AB193: =_xlfn.IFNA(VLOOKUP(AL193,List!$O$3:$P$444,2,FALSE),"-") -> - | AC193: =_xlfn.IFNA(VLOOKUP(AL193,List!$O$3:$Q$444,3,FALSE),"-") -> - | AE193: 不通过 | AL193: - | AM193: =VLOOKUP(AH193,List!$B$3:$D$445,2,FALSE)&AJ193&"_"&VLOOKUP(AK193,List!$K$2:$M$447,2,FALSE) ->  | AN193: =_xlfn.IFNA("L"&AM193&" "&"AT%I1.4"&" "&":BOOL;"&" "&"(*"&J193&"*)"," ") ->  | AR193: - | AS193: 10012
F194: DI14 | H194: 14 | J194: - | AB194: =_xlfn.IFNA(VLOOKUP(AL194,List!$O$3:$P$444,2,FALSE),"-") -> - | AC194: =_xlfn.IFNA(VLOOKUP(AL194,List!$O$3:$Q$444,3,FALSE),"-") -> - | AE194: 不通过 | AL194: - | AM194: =VLOOKUP(AH194,List!$B$3:$D$445,2,FALSE)&AJ194&"_"&VLOOKUP(AK194,List!$K$2:$M$447,2,FALSE) ->  | AN194: =_xlfn.IFNA("L"&AM194&" "&"AT%I1.5"&" "&":BOOL;"&" "&"(*"&J194&"*)"," ") ->  | AR194: - | AS194: 10013
F195: DI15 | H195: 15 | J195: - | AB195: =_xlfn.IFNA(VLOOKUP(AL195,List!$O$3:$P$444,2,FALSE),"-") -> - | AC195: =_xlfn.IFNA(VLOOKUP(AL195,List!$O$3:$Q$444,3,FALSE),"-") -> - | AE195: 不通过 | AL195: - | AM195: =VLOOKUP(AH195,List!$B$3:$D$445,2,FALSE)&AJ195&"_"&VLOOKUP(AK195,List!$K$2:$M$447,2,FALSE) ->  | AN195: =_xlfn.IFNA("L"&AM195&" "&"AT%I1.6"&" "&":BOOL;"&" "&"(*"&J195&"*)"," ") ->  | AR195: - | AS195: 10014
F196: DI16 | H196: 16 | I196: COM | J196: - | AB196: =_xlfn.IFNA(VLOOKUP(AL196,List!$O$3:$P$444,2,FALSE),"-") -> - | AC196: =_xlfn.IFNA(VLOOKUP(AL196,List!$O$3:$Q$444,3,FALSE),"-") -> - | AE196: 不通过 | AL196: - | AM196: =VLOOKUP(AH196,List!$B$3:$D$445,2,FALSE)&AJ196&"_"&VLOOKUP(AK196,List!$K$2:$M$447,2,FALSE) ->  | AN196: =_xlfn.IFNA("L"&AM196&" "&"AT%I1.7"&" "&":BOOL;"&" "&"(*"&J196&"*)"," ") ->  | AR196: - | AS196: 10015
F197: DI17 | H197: 17 | J197: - | AB197: =_xlfn.IFNA(VLOOKUP(AL197,List!$O$3:$P$444,2,FALSE),"-") -> - | AC197: =_xlfn.IFNA(VLOOKUP(AL197,List!$O$3:$Q$444,3,FALSE),"-") -> - | AE197: 不通过 | AL197: - | AM197: =VLOOKUP(AH197,List!$B$3:$D$445,2,FALSE)&AJ197&"_"&VLOOKUP(AK197,List!$K$2:$M$447,2,FALSE) ->  | AN197: =_xlfn.IFNA("L"&AM197&" "&"AT%I2.0"&" "&":BOOL;"&" "&"(*"&J197&"*)"," ") ->  | AR197: - | AS197: 10016
F198: DI18 | H198: 18 | J198: - | AB198: =_xlfn.IFNA(VLOOKUP(AL198,List!$O$3:$P$444,2,FALSE),"-") -> - | AC198: =_xlfn.IFNA(VLOOKUP(AL198,List!$O$3:$Q$444,3,FALSE),"-") -> - | AE198: 不通过 | AL198: - | AM198: =VLOOKUP(AH198,List!$B$3:$D$445,2,FALSE)&AJ198&"_"&VLOOKUP(AK198,List!$K$2:$M$447,2,FALSE) ->  | AN198: =_xlfn.IFNA("L"&AM198&" "&"AT%I2.1"&" "&":BOOL;"&" "&"(*"&J198&"*)"," ") ->  | AR198: - | AS198: 10017
F199: DI19 | H199: 19 | I199: COM | J199: - | AB199: =_xlfn.IFNA(VLOOKUP(AL199,List!$O$3:$P$444,2,FALSE),"-") -> - | AC199: =_xlfn.IFNA(VLOOKUP(AL199,List!$O$3:$Q$444,3,FALSE),"-") -> - | AE199: 不通过 | AL199: - | AM199: =VLOOKUP(AH199,List!$B$3:$D$445,2,FALSE)&AJ199&"_"&VLOOKUP(AK199,List!$K$2:$M$447,2,FALSE) ->  | AN199: =_xlfn.IFNA("L"&AM199&" "&"AT%I2.2"&" "&":BOOL;"&" "&"(*"&J199&"*)"," ") ->  | AR199: - | AS199: 10018
F200: DI20 | H200: 20 | J200: - | AB200: =_xlfn.IFNA(VLOOKUP(AL200,List!$O$3:$P$444,2,FALSE),"-") -> - | AC200: =_xlfn.IFNA(VLOOKUP(AL200,List!$O$3:$Q$444,3,FALSE),"-") -> - | AE200: 不通过 | AL200: - | AM200: =VLOOKUP(AH200,List!$B$3:$D$445,2,FALSE)&AJ200&"_"&VLOOKUP(AK200,List!$K$2:$M$447,2,FALSE) ->  | AN200: =_xlfn.IFNA("L"&AM200&" "&"AT%I2.3"&" "&":BOOL;"&" "&"(*"&J200&"*)"," ") ->  | AR200: - | AS200: 10019
... 308 more rows

Sheet 主CPU
A1: NI 0-1023 NQ 1024-2047
A2: 设备类型 | B2: 总线编号 | C2: P2P标记 | D2: 程序编号 | E2: 点位功能 | F2: 发送地址 接收地址 | H2: 数据类型 整除验证 | I2: 数据类型 | J2: 变量备注 | K2: 变量名.auto | L2: 编程变量声明.auto | M2: 编程变量声明(结构整理).auto
A4: 从CPU-->主控CPU | F4: 接收地址.auto | G4: 发送地址
A5: 命令 | B5: I | C5: M | D5: 00001 | E5: 心跳值 | F5: 5000.0 | G5: 6000.0 | H5: =IF((IF(OR(I5="INT",I5="WORD",I5="BOOL"),MOD(F5,2),MOD(F5,4)))=0,"验证通过","验证失败") -> 验证通过 | I5: INT | J5: 1#CPU心跳反馈 | K5: =B5&VLOOKUP(A5,List!$B$3:$D$445,2,FALSE)&D5&"_"&VLOOKUP(E5,List!$K$2:$M$447,2,FALSE) -> ICMD00001_DHV | L5: =K5&" "&"AT%"&C5&F5&" "&":"&I5&";"&" "&"(*"&J5&"*)" -> ICMD00001_DHV AT%M5000.0 :INT; (*1#CPU心跳反馈*) | M5: =REPLACE(REPLACE(L5,SEARCH("AT%",L5),,REPT(" ",25-SEARCH("AT%",L5))),SEARCH(":",REPLACE(L5,SEARCH("AT%",L5),,REPT(" ",25-SEARCH("AT%",L5)))),,REPT(" ",40-SEARCH(":",REPLACE(L5,SEARCH("AT%",L5),,REPT(" ",25-SEARCH("AT%",L5)))))) -> ICMD00001_DHV AT%M5000.0 :INT; (*1#CPU心跳反馈*)
A6: 命令 | B6: I | C6: M | D6: 00002 | E6: 心跳值 | F6: =IF(OR(I5="REAL",I5="DWORD",I5="DINT"),(IF(OR(I6="REAL",I6="DWORD",I6="DINT"),F5+4+MOD(F5,4),F5+4)),(IF(OR(I6="REAL",I6="DWORD",I6="DINT"),F5+4+MOD(F5,4),F5+2)))&".0" -> 5002.0 | G6: 6000.0 | H6: =IF((IF(OR(I6="INT",I6="WORD",I6="BOOL"),MOD(F6,2),MOD(F6,4)))=0,"验证通过","验证失败") -> 验证通过 | I6: INT | J6: 2#CPU心跳反馈 | K6: =B6&VLOOKUP(A6,List!$B$3:$D$445,2,FALSE)&D6&"_"&VLOOKUP(E6,List!$K$2:$M$447,2,FALSE) -> ICMD00002_DHV | L6: ICMD00002_DHV AT%M5002.0 :INT; (*2#CPU心跳反馈*) | M6: ICMD00002_DHV AT%M5002.0 :INT; (*2#CPU心跳反馈*)
A7: 命令 | B7: I | C7: M | D7: 00003 | E7: 心跳值 | F7: 5004.0 | G7: 6000.0 | H7: 验证通过 | I7: INT | J7: 3#CPU心跳反馈 | K7: =B7&VLOOKUP(A7,List!$B$3:$D$445,2,FALSE)&D7&"_"&VLOOKUP(E7,List!$K$2:$M$447,2,FALSE) -> ICMD00003_DHV | L7: ICMD00003_DHV AT%M5004.0 :INT; (*3#CPU心跳反馈*) | M7: ICMD00003_DHV AT%M5004.0 :INT; (*3#CPU心跳反馈*)
A8: 命令 | B8: I | C8: M | D8: 00004 | E8: 心跳值 | F8: 5006.0 | G8: 6000.0 | H8: 验证通过 | I8: INT | J8: 4#CPU心跳反馈 | K8: =B8&VLOOKUP(A8,List!$B$3:$D$445,2,FALSE)&D8&"_"&VLOOKUP(E8,List!$K$2:$M$447,2,FALSE) -> ICMD00004_DHV | L8: ICMD00004_DHV AT%M5006.0 :INT; (*4#CPU心跳反馈*) | M8: ICMD00004_DHV AT%M5006.0 :INT; (*4#CPU心跳反馈*)
A9: 命令 | B9: I | C9: M | D9: 00005 | E9: 心跳值 | F9: 5008.0 | G9: 6000.0 | H9: 验证通过 | I9: INT | J9: 5#CPU心跳反馈 | K9: =B9&VLOOKUP(A9,List!$B$3:$D$445,2,FALSE)&D9&"_"&VLOOKUP(E9,List!$K$2:$M$447,2,FALSE) -> ICMD00005_DHV | L9: ICMD00005_DHV AT%M5008.0 :INT; (*5#CPU心跳反馈*) | M9: ICMD00005_DHV AT%M5008.0 :INT; (*5#CPU心跳反馈*)
A10: 命令 | B10: I | C10: M | D10: 00006 | E10: 心跳值 | F10: 5010.0 | G10: 6000.0 | H10: 验证通过 | I10: INT | J10: 6#CPU心跳反馈 | K10: =B10&VLOOKUP(A10,List!$B$3:$D$445,2,FALSE)&D10&"_"&VLOOKUP(E10,List!$K$2:$M$447,2,FALSE) -> ICMD00006_DHV | L10: ICMD00006_DHV AT%M5010.0 :INT; (*6#CPU心跳反馈*) | M10: ICMD00006_DHV AT%M5010.0 :INT; (*6#CPU心跳反馈*)
A11: 命令 | B11: I | C11: M | D11: 00007 | E11: 心跳值 | F11: 5012.0 | G11: 6000.0 | H11: 验证通过 | I11: INT | J11: 7#CPU心跳反馈 | K11: =B11&VLOOKUP(A11,List!$B$3:$D$445,2,FALSE)&D11&"_"&VLOOKUP(E11,List!$K$2:$M$447,2,FALSE) -> ICMD00007_DHV | L11: ICMD00007_DHV AT%M5012.0 :INT; (*7#CPU心跳反馈*) | M11: ICMD00007_DHV AT%M5012.0 :INT; (*7#CPU心跳反馈*)
A12: 命令 | B12: I | C12: M | D12: 00008 | E12: 心跳值 | F12: 5014.0 | G12: 6000.0 | H12: 验证通过 | I12: INT | J12: 8#CPU心跳反馈 | K12: =B12&VLOOKUP(A12,List!$B$3:$D$445,2,FALSE)&D12&"_"&VLOOKUP(E12,List!$K$2:$M$447,2,FALSE) -> ICMD00008_DHV | L12: ICMD00008_DHV AT%M5014.0 :INT; (*8#CPU心跳反馈*) | M12: ICMD00008_DHV AT%M5014.0 :INT; (*8#CPU心跳反馈*)
A13: 命令 | B13: I | C13: M | D13: 00009 | E13: 心跳值 | F13: 5016.0 | G13: 6000.0 | H13: 验证通过 | I13: INT | J13: 9#CPU心跳反馈 | K13: =B13&VLOOKUP(A13,List!$B$3:$D$445,2,FALSE)&D13&"_"&VLOOKUP(E13,List!$K$2:$M$447,2,FALSE) -> ICMD00009_DHV | L13: ICMD00009_DHV AT%M5016.0 :INT; (*9#CPU心跳反馈*) | M13: ICMD00009_DHV AT%M5016.0 :INT; (*9#CPU心跳反馈*)
A14: 命令 | B14: I | C14: M | D14: 00010 | E14: 心跳值 | F14: 5018.0 | G14: 6000.0 | H14: 验证通过 | I14: INT | J14: 10#CPU心跳反馈 | K14: =B14&VLOOKUP(A14,List!$B$3:$D$445,2,FALSE)&D14&"_"&VLOOKUP(E14,List!$K$2:$M$447,2,FALSE) -> ICMD00010_DHV | L14: ICMD00010_DHV AT%M5018.0 :INT; (*10#CPU心跳反馈*) | M14: ICMD00010_DHV AT%M5018.0 :INT; (*10#CPU心跳反馈*)
A15: 命令 | B15: I | C15: M | D15: 00011 | E15: 心跳值 | F15: 5020.0 | G15: 6000.0 | H15: 验证通过 | I15: INT | J15: 11#CPU心跳反馈 | K15: =B15&VLOOKUP(A15,List!$B$3:$D$445,2,FALSE)&D15&"_"&VLOOKUP(E15,List!$K$2:$M$447,2,FALSE) -> ICMD00011_DHV | L15: ICMD00011_DHV AT%M5020.0 :INT; (*11#CPU心跳反馈*) | M15: ICMD00011_DHV AT%M5020.0 :INT; (*11#CPU心跳反馈*)
A16: 命令 | B16: I | C16: M | D16: 00012 | E16: 心跳值 | F16: 5022.0 | G16: 6000.0 | H16: 验证通过 | I16: INT | J16: 12#CPU心跳反馈 | K16: =B16&VLOOKUP(A16,List!$B$3:$D$445,2,FALSE)&D16&"_"&VLOOKUP(E16,List!$K$2:$M$447,2,FALSE) -> ICMD00012_DHV | L16: ICMD00012_DHV AT%M5022.0 :INT; (*12#CPU心跳反馈*) | M16: ICMD00012_DHV AT%M5022.0 :INT; (*12#CPU心跳反馈*)
A17: 命令 | B17: I | C17: M | D17: 00013 | E17: 心跳值 | F17: 5024.0 | G17: 6000.0 | H17: 验证通过 | I17: INT | J17: 13#CPU心跳反馈 | K17: =B17&VLOOKUP(A17,List!$B$3:$D$445,2,FALSE)&D17&"_"&VLOOKUP(E17,List!$K$2:$M$447,2,FALSE) -> ICMD00013_DHV | L17: ICMD00013_DHV AT%M5024.0 :INT; (*13#CPU心跳反馈*) | M17: ICMD00013_DHV AT%M5024.0 :INT; (*13#CPU心跳反馈*)
A18: 命令 | B18: I | C18: M | D18: 00014 | E18: 心跳值 | F18: 5026.0 | G18: 6000.0 | H18: 验证通过 | I18: INT | J18: 14#CPU心跳反馈 | K18: =B18&VLOOKUP(A18,List!$B$3:$D$445,2,FALSE)&D18&"_"&VLOOKUP(E18,List!$K$2:$M$447,2,FALSE) -> ICMD00014_DHV | L18: ICMD00014_DHV AT%M5026.0 :INT; (*14#CPU心跳反馈*) | M18: ICMD00014_DHV AT%M5026.0 :INT; (*14#CPU心跳反馈*)
A19: 命令 | B19: I | C19: M | D19: 00015 | E19: 心跳值 | F19: 5028.0 | G19: 6000.0 | H19: 验证通过 | I19: INT | J19: 15#CPU心跳反馈 | K19: =B19&VLOOKUP(A19,List!$B$3:$D$445,2,FALSE)&D19&"_"&VLOOKUP(E19,List!$K$2:$M$447,2,FALSE) -> ICMD00015_DHV | L19: ICMD00015_DHV AT%M5028.0 :INT; (*15#CPU心跳反馈*) | M19: ICMD00015_DHV AT%M5028.0 :INT; (*15#CPU心跳反馈*)
A20: 命令 | B20: I | C20: M | D20: 00016 | E20: 心跳值 | F20: 5030.0 | G20: 6000.0 | H20: 验证通过 | I20: INT | J20: 16#CPU心跳反馈 | K20: =B20&VLOOKUP(A20,List!$B$3:$D$445,2,FALSE)&D20&"_"&VLOOKUP(E20,List!$K$2:$M$447,2,FALSE) -> ICMD00016_DHV | L20: ICMD00016_DHV AT%M5030.0 :INT; (*16#CPU心跳反馈*) | M20: ICMD00016_DHV AT%M5030.0 :INT; (*16#CPU心跳反馈*)
A21: 命令 | B21: I | C21: M | D21: 00017 | E21: 心跳值 | F21: 5032.0 | G21: 6000.0 | H21: 验证通过 | I21: INT | J21: 17#CPU心跳反馈 | K21: =B21&VLOOKUP(A21,List!$B$3:$D$445,2,FALSE)&D21&"_"&VLOOKUP(E21,List!$K$2:$M$447,2,FALSE) -> ICMD00017_DHV | L21: =K21&" "&"AT%"&C21&F21&" "&":"&I21&";"&" "&"(*"&J21&"*)" -> ICMD00017_DHV AT%M5032.0 :INT; (*17#CPU心跳反馈*) | M21: =REPLACE(REPLACE(L21,SEARCH("AT%",L21),,REPT(" ",25-SEARCH("AT%",L21))),SEARCH(":",REPLACE(L21,SEARCH("AT%",L21),,REPT(" ",25-SEARCH("AT%",L21)))),,REPT(" ",40-SEARCH(":",REPLACE(L21,SEARCH("AT%",L21),,REPT(" ",25-SEARCH("AT%",L21)))))) -> ICMD00017_DHV AT%M5032.0 :INT; (*17#CPU心跳反馈*)
A22: 命令 | B22: I | C22: M | D22: 00018 | E22: 心跳值 | F22: 5034.0 | G22: 6000.0 | H22: 验证通过 | I22: INT | J22: 18#CPU心跳反馈 | K22: =B22&VLOOKUP(A22,List!$B$3:$D$445,2,FALSE)&D22&"_"&VLOOKUP(E22,List!$K$2:$M$447,2,FALSE) -> ICMD00018_DHV | L22: ICMD00018_DHV AT%M5034.0 :INT; (*18#CPU心跳反馈*) | M22: ICMD00018_DHV AT%M5034.0 :INT; (*18#CPU心跳反馈*)
A23: 命令 | B23: I | C23: M | D23: 00019 | E23: 心跳值 | F23: 5036.0 | G23: 6000.0 | H23: 验证通过 | I23: INT | J23: 19#CPU心跳反馈 | K23: =B23&VLOOKUP(A23,List!$B$3:$D$445,2,FALSE)&D23&"_"&VLOOKUP(E23,List!$K$2:$M$447,2,FALSE) -> ICMD00019_DHV | L23: ICMD00019_DHV AT%M5036.0 :INT; (*19#CPU心跳反馈*) | M23: ICMD00019_DHV AT%M5036.0 :INT; (*19#CPU心跳反馈*)
A24: 命令 | B24: I | C24: M | D24: 00020 | E24: 心跳值 | F24: 5038.0 | G24: 6000.0 | H24: 验证通过 | I24: INT | J24: 20#CPU心跳反馈 | K24: =B24&VLOOKUP(A24,List!$B$3:$D$445,2,FALSE)&D24&"_"&VLOOKUP(E24,List!$K$2:$M$447,2,FALSE) -> ICMD00020_DHV | L24: ICMD00020_DHV AT%M5038.0 :INT; (*20#CPU心跳反馈*) | M24: ICMD00020_DHV AT%M5038.0 :INT; (*20#CPU心跳反馈*)
A25: 命令 | B25: I | C25: M | D25: 00021 | E25: 心跳值 | F25: 5040.0 | G25: 6000.0 | H25: 验证通过 | I25: INT | J25: 21#CPU心跳反馈 | K25: =B25&VLOOKUP(A25,List!$B$3:$D$445,2,FALSE)&D25&"_"&VLOOKUP(E25,List!$K$2:$M$447,2,FALSE) -> ICMD00021_DHV | L25: ICMD00021_DHV AT%M5040.0 :INT; (*21#CPU心跳反馈*) | M25: ICMD00021_DHV AT%M5040.0 :INT; (*21#CPU心跳反馈*)
A26: 命令 | B26: I | C26: M | D26: 00022 | E26: 心跳值 | F26: 5042.0 | G26: 6000.0 | H26: 验证通过 | I26: INT | J26: 22#CPU心跳反馈 | K26: =B26&VLOOKUP(A26,List!$B$3:$D$445,2,FALSE)&D26&"_"&VLOOKUP(E26,List!$K$2:$M$447,2,FALSE) -> ICMD00022_DHV | L26: ICMD00022_DHV AT%M5042.0 :INT; (*22#CPU心跳反馈*) | M26: ICMD00022_DHV AT%M5042.0 :INT; (*22#CPU心跳反馈*)
A27: 命令 | B27: I | C27: M | D27: 00023 | E27: 心跳值 | F27: 5044.0 | G27: 6000.0 | H27: 验证通过 | I27: INT | J27: 23#CPU心跳反馈 | K27: =B27&VLOOKUP(A27,List!$B$3:$D$445,2,FALSE)&D27&"_"&VLOOKUP(E27,List!$K$2:$M$447,2,FALSE) -> ICMD00023_DHV | L27: ICMD00023_DHV AT%M5044.0 :INT; (*23#CPU心跳反馈*) | M27: ICMD00023_DHV AT%M5044.0 :INT; (*23#CPU心跳反馈*)
A28: 命令 | B28: I | C28: M | D28: 00024 | E28: 心跳值 | F28: 5046.0 | G28: 6000.0 | H28: 验证通过 | I28: INT | J28: 24#CPU心跳反馈 | K28: =B28&VLOOKUP(A28,List!$B$3:$D$445,2,FALSE)&D28&"_"&VLOOKUP(E28,List!$K$2:$M$447,2,FALSE) -> ICMD00024_DHV | L28: ICMD00024_DHV AT%M5046.0 :INT; (*24#CPU心跳反馈*) | M28: ICMD00024_DHV AT%M5046.0 :INT; (*24#CPU心跳反馈*)
A29: 命令 | B29: I | C29: M | D29: 00025 | E29: 心跳值 | F29: 5048.0 | G29: 6000.0 | H29: 验证通过 | I29: INT | J29: 25#CPU心跳反馈 | K29: =B29&VLOOKUP(A29,List!$B$3:$D$445,2,FALSE)&D29&"_"&VLOOKUP(E29,List!$K$2:$M$447,2,FALSE) -> ICMD00025_DHV | L29: =K29&" "&"AT%"&C29&F29&" "&":"&I29&";"&" "&"(*"&J29&"*)" -> ICMD00025_DHV AT%M5048.0 :INT; (*25#CPU心跳反馈*) | M29: =REPLACE(REPLACE(L29,SEARCH("AT%",L29),,REPT(" ",25-SEARCH("AT%",L29))),SEARCH(":",REPLACE(L29,SEARCH("AT%",L29),,REPT(" ",25-SEARCH("AT%",L29)))),,REPT(" ",40-SEARCH(":",REPLACE(L29,SEARCH("AT%",L29),,REPT(" ",25-SEARCH("AT%",L29)))))) -> ICMD00025_DHV AT%M5048.0 :INT; (*25#CPU心跳反馈*)
A30: 命令 | B30: I | C30: M | D30: 00026 | E30: 心跳值 | F30: 5050.0 | G30: 6000.0 | H30: 验证通过 | I30: INT | J30: 26#CPU心跳反馈 | K30: =B30&VLOOKUP(A30,List!$B$3:$D$445,2,FALSE)&D30&"_"&VLOOKUP(E30,List!$K$2:$M$447,2,FALSE) -> ICMD00026_DHV | L30: ICMD00026_DHV AT%M5050.0 :INT; (*26#CPU心跳反馈*) | M30: ICMD00026_DHV AT%M5050.0 :INT; (*26#CPU心跳反馈*)
A31: 命令 | B31: I | C31: M | D31: 00027 | E31: 心跳值 | F31: 5052.0 | G31: 6000.0 | H31: 验证通过 | I31: INT | J31: 27#CPU心跳反馈 | K31: =B31&VLOOKUP(A31,List!$B$3:$D$445,2,FALSE)&D31&"_"&VLOOKUP(E31,List!$K$2:$M$447,2,FALSE) -> ICMD00027_DHV | L31: ICMD00027_DHV AT%M5052.0 :INT; (*27#CPU心跳反馈*) | M31: ICMD00027_DHV AT%M5052.0 :INT; (*27#CPU心跳反馈*)
A32: 命令 | B32: I | C32: M | D32: 00028 | E32: 心跳值 | F32: 5054.0 | G32: 6000.0 | H32: 验证通过 | I32: INT | J32: 28#CPU心跳反馈 | K32: =B32&VLOOKUP(A32,List!$B$3:$D$445,2,FALSE)&D32&"_"&VLOOKUP(E32,List!$K$2:$M$447,2,FALSE) -> ICMD00028_DHV | L32: ICMD00028_DHV AT%M5054.0 :INT; (*28#CPU心跳反馈*) | M32: ICMD00028_DHV AT%M5054.0 :INT; (*28#CPU心跳反馈*)
A33: 命令 | B33: I | C33: M | D33: 00029 | E33: 心跳值 | F33: 5056.0 | G33: 6000.0 | H33: 验证通过 | I33: INT | J33: 29#CPU心跳反馈 | K33: =B33&VLOOKUP(A33,List!$B$3:$D$445,2,FALSE)&D33&"_"&VLOOKUP(E33,List!$K$2:$M$447,2,FALSE) -> ICMD00029_DHV | L33: =K33&" "&"AT%"&C33&F33&" "&":"&I33&";"&" "&"(*"&J33&"*)" -> ICMD00029_DHV AT%M5056.0 :INT; (*29#CPU心跳反馈*) | M33: =REPLACE(REPLACE(L33,SEARCH("AT%",L33),,REPT(" ",25-SEARCH("AT%",L33))),SEARCH(":",REPLACE(L33,SEARCH("AT%",L33),,REPT(" ",25-SEARCH("AT%",L33)))),,REPT(" ",40-SEARCH(":",REPLACE(L33,SEARCH("AT%",L33),,REPT(" ",25-SEARCH("AT%",L33)))))) -> ICMD00029_DHV AT%M5056.0 :INT; (*29#CPU心跳反馈*)
A34: 命令 | B34: I | C34: M | D34: 00030 | E34: 心跳值 | F34: 5058.0 | G34: 6000.0 | H34: 验证通过 | I34: INT | J34: 30#CPU心跳反馈 | K34: =B34&VLOOKUP(A34,List!$B$3:$D$445,2,FALSE)&D34&"_"&VLOOKUP(E34,List!$K$2:$M$447,2,FALSE) -> ICMD00030_DHV | L34: ICMD00030_DHV AT%M5058.0 :INT; (*30#CPU心跳反馈*) | M34: ICMD00030_DHV AT%M5058.0 :INT; (*30#CPU心跳反馈*)
A35: 命令 | B35: I | C35: M | D35: 00031 | E35: 心跳值 | F35: 5060.0 | G35: 6000.0 | H35: 验证通过 | I35: INT | J35: 31#CPU心跳反馈 | K35: =B35&VLOOKUP(A35,List!$B$3:$D$445,2,FALSE)&D35&"_"&VLOOKUP(E35,List!$K$2:$M$447,2,FALSE) -> ICMD00031_DHV | L35: =K35&" "&"AT%"&C35&F35&" "&":"&I35&";"&" "&"(*"&J35&"*)" -> ICMD00031_DHV AT%M5060.0 :INT; (*31#CPU心跳反馈*) | M35: =REPLACE(REPLACE(L35,SEARCH("AT%",L35),,REPT(" ",25-SEARCH("AT%",L35))),SEARCH(":",REPLACE(L35,SEARCH("AT%",L35),,REPT(" ",25-SEARCH("AT%",L35)))),,REPT(" ",40-SEARCH(":",REPLACE(L35,SEARCH("AT%",L35),,REPT(" ",25-SEARCH("AT%",L35)))))) -> ICMD00031_DHV AT%M5060.0 :INT; (*31#CPU心跳反馈*)
A36: 命令 | B36: I | C36: M | D36: 00032 | E36: 心跳值 | F36: 5062.0 | G36: 6000.0 | H36: 验证通过 | I36: INT | J36: 32#CPU心跳反馈 | K36: =B36&VLOOKUP(A36,List!$B$3:$D$445,2,FALSE)&D36&"_"&VLOOKUP(E36,List!$K$2:$M$447,2,FALSE) -> ICMD00032_DHV | L36: =K36&" "&"AT%"&C36&F36&" "&":"&I36&";"&" "&"(*"&J36&"*)" -> ICMD00032_DHV AT%M5062.0 :INT; (*32#CPU心跳反馈*) | M36: =REPLACE(REPLACE(L36,SEARCH("AT%",L36),,REPT(" ",25-SEARCH("AT%",L36))),SEARCH(":",REPLACE(L36,SEARCH("AT%",L36),,REPT(" ",25-SEARCH("AT%",L36)))),,REPT(" ",40-SEARCH(":",REPLACE(L36,SEARCH("AT%",L36),,REPT(" ",25-SEARCH("AT%",L36)))))) -> ICMD00032_DHV AT%M5062.0 :INT; (*32#CPU心跳反馈*)
A37: 主控CPU-->从CPU（地上） | F37: 发送地址 | G37: 接收地址.auto
A38: 命令 | B38: RNQ | C38: M | D38: 00000 | E38: 心跳值 | F38: 4000.0 | H38: =IF((IF(OR(I38="INT",I38="WORD",I38="BOOL"),MOD(F38,2),MOD(F38,4)))=0,"验证通过","验证失败") -> 验证通过 | I38: INT | J38: 心跳值 | K38: =B38&VLOOKUP(A38,List!$B$3:$D$445,2,FALSE)&D38&"_"&VLOOKUP(E38,List!$K$2:$M$447,2,FALSE) -> RNQCMD00000_DHV | L38: =K38&" "&"AT%"&C38&F38&" "&":"&I38&";"&" "&"(*"&J38&"*)" -> RNQCMD00000_DHV AT%M4000.0 :INT; (*心跳值*) | M38: =REPLACE(REPLACE(L38,SEARCH("AT%",L38),,REPT(" ",25-SEARCH("AT%",L38))),SEARCH(":",REPLACE(L38,SEARCH("AT%",L38),,REPT(" ",25-SEARCH("AT%",L38)))),,REPT(" ",40-SEARCH(":",REPLACE(L38,SEARCH("AT%",L38),,REPT(" ",25-SEARCH("AT%",L38)))))) -> RNQCMD00000_DHV AT%M4000.0 :INT; (*心跳值*)
A39: 空调机组 | B39: RNQ | C39: M | D39: 00000 | E39: 新云模式 | F39: =IF(OR(I38="REAL",I38="DWORD",I38="DINT"),(IF(OR(I39="REAL",I39="DWORD",I39="DINT"),F38+4+MOD(F38,4),F38+4)),(IF(OR(I39="REAL",I39="DWORD",I39="DINT"),F38+4+MOD(F38,4),F38+2)))&".0" -> 4002.0 | H39: 验证通过 | I39: BOOL | J39: 空调机组新云模式 | K39: =B39&VLOOKUP(A39,List!$B$3:$D$445,2,FALSE)&D39&"_"&VLOOKUP(E39,List!$K$2:$M$447,2,FALSE) -> RNQAHU00000_CM | L39: RNQAHU00000_CM AT%M4002.0 :BOOL; (*空调机组新云模式*) | M39: RNQAHU00000_CM AT%M4002.0 :BOOL; (*空调机组新云模式*)
A40: 风机盘管 | B40: RNQ | C40: M | D40: 00000 | E40: 新云模式 | F40: =IF(OR(I39="REAL",I39="DWORD",I39="DINT"),(IF(OR(I40="REAL",I40="DWORD",I40="DINT"),F39+4+MOD(F39,4),F39+4)),(IF(OR(I40="REAL",I40="DWORD",I40="DINT"),F39+4+MOD(F39,4),F39+2)))&".0" -> 4004.0 | H40: 验证通过 | I40: BOOL | J40: 风机盘管新云模式 | K40: =B40&VLOOKUP(A40,List!$B$3:$D$445,2,FALSE)&D40&"_"&VLOOKUP(E40,List!$K$2:$M$447,2,FALSE) -> RNQFCU00000_CM | L40: RNQFCU00000_CM AT%M4004.0 :BOOL; (*风机盘管新云模式*) | M40: RNQFCU00000_CM AT%M4004.0 :BOOL; (*风机盘管新云模式*)
A41: 照明控制箱 | B41: RNQ | C41: M | D41: 00000 | E41: 新云模式 | F41: 4006.0 | H41: 验证通过 | I41: BOOL | J41: 照明控制箱新云模式 | K41: =B41&VLOOKUP(A41,List!$B$3:$D$445,2,FALSE)&D41&"_"&VLOOKUP(E41,List!$K$2:$M$447,2,FALSE) -> RNQLCB00000_CM | L41: RNQLCB00000_CM AT%M4006.0 :BOOL; (*照明控制箱新云模式*) | M41: RNQLCB00000_CM AT%M4006.0 :BOOL; (*照明控制箱新云模式*)
A42: 排风机 | B42: RNQ | C42: M | D42: 00000 | E42: 新云模式 | F42: 4008.0 | H42: =IF((IF(OR(I42="INT",I42="WORD",I42="BOOL"),MOD(F42,2),MOD(F42,4)))=0,"验证通过","验证失败") -> 验证通过 | I42: BOOL | J42: 送排风机新云模式 | K42: =B42&VLOOKUP(A42,List!$B$3:$D$445,2,FALSE)&D42&"_"&VLOOKUP(E42,List!$K$2:$M$447,2,FALSE) -> RNQEAF00000_CM | L42: =K42&" "&"AT%"&C42&F42&" "&":"&I42&";"&" "&"(*"&J42&"*)" -> RNQEAF00000_CM AT%M4008.0 :BOOL; (*送排风机新云模式*) | M42: RNQEAF00000_CM AT%M4008.0 :BOOL; (*送排风机新云模式*)
A43: P新风机组 | B43: RNQ | C43: M | D43: 00000 | E43: 新云模式 | F43: 4010.0 | H43: 验证通过 | I43: BOOL | J43: 新风机组新云模式 | K43: =B43&VLOOKUP(A43,List!$B$3:$D$445,2,FALSE)&D43&"_"&VLOOKUP(E43,List!$K$2:$M$447,2,FALSE) -> RNQPAU00000_CM | L43: RNQPAU00000_CM AT%M4010.0 :BOOL; (*新风机组新云模式*) | M43: RNQPAU00000_CM AT%M4010.0 :BOOL; (*新风机组新云模式*)
A44: 风幕机 | B44: RNQ | C44: M | D44: 00000 | E44: 新云模式 | F44: 4012.0 | H44: 验证通过 | I44: BOOL | J44: 风幕机新云模式 | K44: =B44&VLOOKUP(A44,List!$B$3:$D$445,2,FALSE)&D44&"_"&VLOOKUP(E44,List!$K$2:$M$447,2,FALSE) -> RNQAC00000_CM | L44: RNQAC00000_CM AT%M4012.0 :BOOL; (*风幕机新云模式*) | M44: =REPLACE(REPLACE(L44,SEARCH("AT%",L44),,REPT(" ",25-SEARCH("AT%",L44))),SEARCH(":",REPLACE(L44,SEARCH("AT%",L44),,REPT(" ",25-SEARCH("AT%",L44)))),,REPT(" ",40-SEARCH(":",REPLACE(L44,SEARCH("AT%",L44),,REPT(" ",25-SEARCH("AT%",L44)))))) -> RNQAC00000_CM AT%M4012.0 :BOOL; (*风幕机新云模式*)
A45: 冷水机组 | B45: RNQ | C45: M | D45: 00000 | E45: 新云模式 | F45: 4014.0 | H45: =IF((IF(OR(I45="INT",I45="WORD",I45="BOOL"),MOD(F45,2),MOD(F45,4)))=0,"验证通过","验证失败") -> 验证通过 | I45: BOOL | J45: 冷源新云模式 | K45: =B45&VLOOKUP(A45,List!$B$3:$D$445,2,FALSE)&D45&"_"&VLOOKUP(E45,List!$K$2:$M$447,2,FALSE) -> RNQCHR00000_CM | L45: RNQCHR00000_CM AT%M4014.0 :BOOL; (*冷源新云模式*) | M45: RNQCHR00000_CM AT%M4014.0 :BOOL; (*冷源新云模式*)
A46: 空调机组 | B46: RNQ | C46: M | D46: B3X00 | E46: 设定温度值 | F46: 4020.0 | H46: 验证通过 | I46: REAL | J46: 空调机组B3层温度全局设定 | K46: =B46&VLOOKUP(A46,List!$B$3:$D$445,2,FALSE)&D46&"_"&VLOOKUP(E46,List!$K$2:$M$447,2,FALSE) -> RNQAHUB3X00_TSET | L46: RNQAHUB3X00_TSET AT%M4020.0 :REAL; (*空调机组B3层温度全局设定*) | M46: RNQAHUB3X00_TSET AT%M4020.0 :REAL; (*空调机组B3层温度全局设定*)
A47: 空调机组 | B47: RNQ | C47: M | D47: B2X00 | E47: 设定温度值 | F47: 4024.0 | H47: 验证通过 | I47: REAL | J47: 空调机组B2层温度全局设定 | K47: =B47&VLOOKUP(A47,List!$B$3:$D$445,2,FALSE)&D47&"_"&VLOOKUP(E47,List!$K$2:$M$447,2,FALSE) -> RNQAHUB2X00_TSET | L47: RNQAHUB2X00_TSET AT%M4024.0 :REAL; (*空调机组B2层温度全局设定*) | M47: RNQAHUB2X00_TSET AT%M4024.0 :REAL; (*空调机组B2层温度全局设定*)
A48: 空调机组 | B48: RNQ | C48: M | D48: B1X00 | E48: 设定温度值 | F48: 4028.0 | H48: 验证通过 | I48: REAL | J48: 空调机组B1层温度全局设定 | K48: =B48&VLOOKUP(A48,List!$B$3:$D$445,2,FALSE)&D48&"_"&VLOOKUP(E48,List!$K$2:$M$447,2,FALSE) -> RNQAHUB1X00_TSET | L48: RNQAHUB1X00_TSET AT%M4028.0 :REAL; (*空调机组B1层温度全局设定*) | M48: RNQAHUB1X00_TSET AT%M4028.0 :REAL; (*空调机组B1层温度全局设定*)
A49: 空调机组 | B49: RNQ | C49: M | D49: 01X00 | E49: 设定温度值 | F49: 4032.0 | H49: 验证通过 | I49: REAL | J49: 空调机组1层温度全局设定 | K49: =B49&VLOOKUP(A49,List!$B$3:$D$445,2,FALSE)&D49&"_"&VLOOKUP(E49,List!$K$2:$M$447,2,FALSE) -> RNQAHU01X00_TSET | L49: RNQAHU01X00_TSET AT%M4032.0 :REAL; (*空调机组1层温度全局设定*) | M49: RNQAHU01X00_TSET AT%M4032.0 :REAL; (*空调机组1层温度全局设定*)
A50: 空调机组 | B50: RNQ | C50: M | D50: 02X00 | E50: 设定温度值 | F50: 4036.0 | H50: 验证通过 | I50: REAL | J50: 空调机组2层温度全局设定 | K50: =B50&VLOOKUP(A50,List!$B$3:$D$445,2,FALSE)&D50&"_"&VLOOKUP(E50,List!$K$2:$M$447,2,FALSE) -> RNQAHU02X00_TSET | L50: RNQAHU02X00_TSET AT%M4036.0 :REAL; (*空调机组2层温度全局设定*) | M50: =REPLACE(REPLACE(L50,SEARCH("AT%",L50),,REPT(" ",25-SEARCH("AT%",L50))),SEARCH(":",REPLACE(L50,SEARCH("AT%",L50),,REPT(" ",25-SEARCH("AT%",L50)))),,REPT(" ",40-SEARCH(":",REPLACE(L50,SEARCH("AT%",L50),,REPT(" ",25-SEARCH("AT%",L50)))))) -> RNQAHU02X00_TSET AT%M4036.0 :REAL; (*空调机组2层温度全局设定*)
A51: 空调机组 | B51: RNQ | C51: M | D51: 03X00 | E51: 设定温度值 | F51: 4040.0 | H51: 验证通过 | I51: REAL | J51: 空调机组3层温度全局设定 | K51: =B51&VLOOKUP(A51,List!$B$3:$D$445,2,FALSE)&D51&"_"&VLOOKUP(E51,List!$K$2:$M$447,2,FALSE) -> RNQAHU03X00_TSET | L51: RNQAHU03X00_TSET AT%M4040.0 :REAL; (*空调机组3层温度全局设定*) | M51: RNQAHU03X00_TSET AT%M4040.0 :REAL; (*空调机组3层温度全局设定*)
A52: 空调机组 | B52: RNQ | C52: M | D52: 04X00 | E52: 设定温度值 | F52: 4044.0 | H52: 验证通过 | I52: REAL | J52: 空调机组4层温度全局设定 | K52: =B52&VLOOKUP(A52,List!$B$3:$D$445,2,FALSE)&D52&"_"&VLOOKUP(E52,List!$K$2:$M$447,2,FALSE) -> RNQAHU04X00_TSET | L52: RNQAHU04X00_TSET AT%M4044.0 :REAL; (*空调机组4层温度全局设定*) | M52: RNQAHU04X00_TSET AT%M4044.0 :REAL; (*空调机组4层温度全局设定*)
A53: 空调机组 | B53: RNQ | C53: M | D53: 05X00 | E53: 设定温度值 | F53: 4048.0 | H53: 验证通过 | I53: REAL | J53: 空调机组5层温度全局设定 | K53: =B53&VLOOKUP(A53,List!$B$3:$D$445,2,FALSE)&D53&"_"&VLOOKUP(E53,List!$K$2:$M$447,2,FALSE) -> RNQAHU05X00_TSET | L53: RNQAHU05X00_TSET AT%M4048.0 :REAL; (*空调机组5层温度全局设定*) | M53: RNQAHU05X00_TSET AT%M4048.0 :REAL; (*空调机组5层温度全局设定*)
A54: 空调机组 | B54: RNQ | C54: M | D54: 06X00 | E54: 设定温度值 | F54: 4052.0 | H54: 验证通过 | I54: REAL | J54: 空调机组6层温度全局设定 | K54: =B54&VLOOKUP(A54,List!$B$3:$D$445,2,FALSE)&D54&"_"&VLOOKUP(E54,List!$K$2:$M$447,2,FALSE) -> RNQAHU06X00_TSET | L54: RNQAHU06X00_TSET AT%M4052.0 :REAL; (*空调机组6层温度全局设定*) | M54: RNQAHU06X00_TSET AT%M4052.0 :REAL; (*空调机组6层温度全局设定*)
A55: 空调机组 | B55: RNQ | C55: M | D55: 07X00 | E55: 设定温度值 | F55: 4056.0 | H55: =IF((IF(OR(I55="INT",I55="WORD",I55="BOOL"),MOD(F55,2),MOD(F55,4)))=0,"验证通过","验证失败") -> 验证通过 | I55: REAL | J55: 空调机组7层温度全局设定 | K55: =B55&VLOOKUP(A55,List!$B$3:$D$445,2,FALSE)&D55&"_"&VLOOKUP(E55,List!$K$2:$M$447,2,FALSE) -> RNQAHU07X00_TSET | L55: =K55&" "&"AT%"&C55&F55&" "&":"&I55&";"&" "&"(*"&J55&"*)" -> RNQAHU07X00_TSET AT%M4056.0 :REAL; (*空调机组7层温度全局设定*) | M55: =REPLACE(REPLACE(L55,SEARCH("AT%",L55),,REPT(" ",25-SEARCH("AT%",L55))),SEARCH(":",REPLACE(L55,SEARCH("AT%",L55),,REPT(" ",25-SEARCH("AT%",L55)))),,REPT(" ",40-SEARCH(":",REPLACE(L55,SEARCH("AT%",L55),,REPT(" ",25-SEARCH("AT%",L55)))))) -> RNQAHU07X00_TSET AT%M4056.0 :REAL; (*空调机组7层温度全局设定*)
A56: 空调机组 | B56: RNQ | C56: M | D56: 08X00 | E56: 设定温度值 | F56: 4060.0 | H56: 验证通过 | I56: REAL | J56: 空调机组8层温度全局设定 | K56: =B56&VLOOKUP(A56,List!$B$3:$D$445,2,FALSE)&D56&"_"&VLOOKUP(E56,List!$K$2:$M$447,2,FALSE) -> RNQAHU08X00_TSET | L56: RNQAHU08X00_TSET AT%M4060.0 :REAL; (*空调机组8层温度全局设定*) | M56: RNQAHU08X00_TSET AT%M4060.0 :REAL; (*空调机组8层温度全局设定*)
A57: 空调机组 | B57: RNQ | C57: M | D57: B3X00 | E57: 季节模式 | F57: 4064.0 | H57: 验证通过 | I57: INT | J57: 空调机组B3层季节模式全局设定 | K57: =B57&VLOOKUP(A57,List!$B$3:$D$445,2,FALSE)&D57&"_"&VLOOKUP(E57,List!$K$2:$M$447,2,FALSE) -> RNQAHUB3X00_SM | L57: RNQAHUB3X00_SM AT%M4064.0 :INT; (*空调机组B3层季节模式全局设定*) | M57: RNQAHUB3X00_SM AT%M4064.0 :INT; (*空调机组B3层季节模式全局设定*)
A58: 空调机组 | B58: RNQ | C58: M | D58: B2X00 | E58: 季节模式 | F58: 4066.0 | H58: 验证通过 | I58: INT | J58: 空调机组B2层季节模式全局设定 | K58: =B58&VLOOKUP(A58,List!$B$3:$D$445,2,FALSE)&D58&"_"&VLOOKUP(E58,List!$K$2:$M$447,2,FALSE) -> RNQAHUB2X00_SM | L58: RNQAHUB2X00_SM AT%M4066.0 :INT; (*空调机组B2层季节模式全局设定*) | M58: RNQAHUB2X00_SM AT%M4066.0 :INT; (*空调机组B2层季节模式全局设定*)
A59: 空调机组 | B59: RNQ | C59: M | D59: B1X00 | E59: 季节模式 | F59: 4068.0 | H59: 验证通过 | I59: INT | J59: 空调机组B1层季节模式全局设定 | K59: =B59&VLOOKUP(A59,List!$B$3:$D$445,2,FALSE)&D59&"_"&VLOOKUP(E59,List!$K$2:$M$447,2,FALSE) -> RNQAHUB1X00_SM | L59: RNQAHUB1X00_SM AT%M4068.0 :INT; (*空调机组B1层季节模式全局设定*) | M59: RNQAHUB1X00_SM AT%M4068.0 :INT; (*空调机组B1层季节模式全局设定*)
A60: 空调机组 | B60: RNQ | C60: M | D60: 01X00 | E60: 季节模式 | F60: 4070.0 | H60: 验证通过 | I60: INT | J60: 空调机组1层季节模式全局设定 | K60: =B60&VLOOKUP(A60,List!$B$3:$D$445,2,FALSE)&D60&"_"&VLOOKUP(E60,List!$K$2:$M$447,2,FALSE) -> RNQAHU01X00_SM | L60: RNQAHU01X00_SM AT%M4070.0 :INT; (*空调机组1层季节模式全局设定*) | M60: RNQAHU01X00_SM AT%M4070.0 :INT; (*空调机组1层季节模式全局设定*)
A61: 空调机组 | B61: RNQ | C61: M | D61: 02X00 | E61: 季节模式 | F61: 4072.0 | H61: 验证通过 | I61: INT | J61: 空调机组2层季节模式全局设定 | K61: =B61&VLOOKUP(A61,List!$B$3:$D$445,2,FALSE)&D61&"_"&VLOOKUP(E61,List!$K$2:$M$447,2,FALSE) -> RNQAHU02X00_SM | L61: RNQAHU02X00_SM AT%M4072.0 :INT; (*空调机组2层季节模式全局设定*) | M61: RNQAHU02X00_SM AT%M4072.0 :INT; (*空调机组2层季节模式全局设定*)
A62: 空调机组 | B62: RNQ | C62: M | D62: 03X00 | E62: 季节模式 | F62: 4074.0 | H62: 验证通过 | I62: INT | J62: 空调机组3层季节模式全局设定 | K62: =B62&VLOOKUP(A62,List!$B$3:$D$445,2,FALSE)&D62&"_"&VLOOKUP(E62,List!$K$2:$M$447,2,FALSE) -> RNQAHU03X00_SM | L62: RNQAHU03X00_SM AT%M4074.0 :INT; (*空调机组3层季节模式全局设定*) | M62: RNQAHU03X00_SM AT%M4074.0 :INT; (*空调机组3层季节模式全局设定*)
A63: 空调机组 | B63: RNQ | C63: M | D63: 04X00 | E63: 季节模式 | F63: 4076.0 | H63: 验证通过 | I63: INT | J63: 空调机组4层季节模式全局设定 | K63: =B63&VLOOKUP(A63,List!$B$3:$D$445,2,FALSE)&D63&"_"&VLOOKUP(E63,List!$K$2:$M$447,2,FALSE) -> RNQAHU04X00_SM | L63: RNQAHU04X00_SM AT%M4076.0 :INT; (*空调机组4层季节模式全局设定*) | M63: RNQAHU04X00_SM AT%M4076.0 :INT; (*空调机组4层季节模式全局设定*)
A64: 空调机组 | B64: RNQ | C64: M | D64: 05X00 | E64: 季节模式 | F64: 4078.0 | H64: 验证通过 | I64: INT | J64: 空调机组5层季节模式全局设定 | K64: =B64&VLOOKUP(A64,List!$B$3:$D$445,2,FALSE)&D64&"_"&VLOOKUP(E64,List!$K$2:$M$447,2,FALSE) -> RNQAHU05X00_SM | L64: RNQAHU05X00_SM AT%M4078.0 :INT; (*空调机组5层季节模式全局设定*) | M64: RNQAHU05X00_SM AT%M4078.0 :INT; (*空调机组5层季节模式全局设定*)
A65: 空调机组 | B65: RNQ | C65: M | D65: 06X00 | E65: 季节模式 | F65: 4080.0 | H65: 验证通过 | I65: INT | J65: 空调机组6层季节模式全局设定 | K65: =B65&VLOOKUP(A65,List!$B$3:$D$445,2,FALSE)&D65&"_"&VLOOKUP(E65,List!$K$2:$M$447,2,FALSE) -> RNQAHU06X00_SM | L65: RNQAHU06X00_SM AT%M4080.0 :INT; (*空调机组6层季节模式全局设定*) | M65: RNQAHU06X00_SM AT%M4080.0 :INT; (*空调机组6层季节模式全局设定*)
A66: 空调机组 | B66: RNQ | C66: M | D66: 07X00 | E66: 季节模式 | F66: 4082.0 | H66: =IF((IF(OR(I66="INT",I66="WORD",I66="BOOL"),MOD(F66,2),MOD(F66,4)))=0,"验证通过","验证失败") -> 验证通过 | I66: INT | J66: 空调机组7层季节模式全局设定 | K66: =B66&VLOOKUP(A66,List!$B$3:$D$445,2,FALSE)&D66&"_"&VLOOKUP(E66,List!$K$2:$M$447,2,FALSE) -> RNQAHU07X00_SM | L66: RNQAHU07X00_SM AT%M4082.0 :INT; (*空调机组7层季节模式全局设定*) | M66: RNQAHU07X00_SM AT%M4082.0 :INT; (*空调机组7层季节模式全局设定*)
A67: 空调机组 | B67: RNQ | C67: M | D67: 08X00 | E67: 季节模式 | F67: 4084.0 | H67: 验证通过 | I67: INT | J67: 空调机组8层季节模式全局设定 | K67: =B67&VLOOKUP(A67,List!$B$3:$D$445,2,FALSE)&D67&"_"&VLOOKUP(E67,List!$K$2:$M$447,2,FALSE) -> RNQAHU08X00_SM | L67: RNQAHU08X00_SM AT%M4084.0 :INT; (*空调机组8层季节模式全局设定*) | M67: RNQAHU08X00_SM AT%M4084.0 :INT; (*空调机组8层季节模式全局设定*)
A68: 空调机组 | B68: RNQ | C68: M | D68: B3X00 | E68: 程序控制 | F68: 4086.0 | H68: 验证通过 | I68: BOOL | J68: 空调机组B3层启停控制 | K68: =B68&VLOOKUP(A68,List!$B$3:$D$445,2,FALSE)&D68&"_"&VLOOKUP(E68,List!$K$2:$M$447,2,FALSE) -> RNQAHUB3X00_PC | L68: RNQAHUB3X00_PC AT%M4086.0 :BOOL; (*空调机组B3层启停控制*) | M68: RNQAHUB3X00_PC AT%M4086.0 :BOOL; (*空调机组B3层启停控制*)
A69: 空调机组 | B69: RNQ | C69: M | D69: B2X00 | E69: 程序控制 | F69: 4088.0 | H69: 验证通过 | I69: BOOL | J69: 空调机组B2层启停控制 | K69: =B69&VLOOKUP(A69,List!$B$3:$D$445,2,FALSE)&D69&"_"&VLOOKUP(E69,List!$K$2:$M$447,2,FALSE) -> RNQAHUB2X00_PC | L69: RNQAHUB2X00_PC AT%M4088.0 :BOOL; (*空调机组B2层启停控制*) | M69: RNQAHUB2X00_PC AT%M4088.0 :BOOL; (*空调机组B2层启停控制*)
A70: 空调机组 | B70: RNQ | C70: M | D70: B1X00 | E70: 程序控制 | F70: 4090.0 | H70: 验证通过 | I70: BOOL | J70: 空调机组B1层启停控制 | K70: =B70&VLOOKUP(A70,List!$B$3:$D$445,2,FALSE)&D70&"_"&VLOOKUP(E70,List!$K$2:$M$447,2,FALSE) -> RNQAHUB1X00_PC | L70: RNQAHUB1X00_PC AT%M4090.0 :BOOL; (*空调机组B1层启停控制*) | M70: RNQAHUB1X00_PC AT%M4090.0 :BOOL; (*空调机组B1层启停控制*)
A71: 空调机组 | B71: RNQ | C71: M | D71: 01X00 | E71: 程序控制 | F71: 4092.0 | H71: 验证通过 | I71: BOOL | J71: 空调机组1层启停控制 | K71: =B71&VLOOKUP(A71,List!$B$3:$D$445,2,FALSE)&D71&"_"&VLOOKUP(E71,List!$K$2:$M$447,2,FALSE) -> RNQAHU01X00_PC | L71: RNQAHU01X00_PC AT%M4092.0 :BOOL; (*空调机组1层启停控制*) | M71: RNQAHU01X00_PC AT%M4092.0 :BOOL; (*空调机组1层启停控制*)
A72: 空调机组 | B72: RNQ | C72: M | D72: 02X00 | E72: 程序控制 | F72: 4094.0 | H72: 验证通过 | I72: BOOL | J72: 空调机组2层启停控制 | K72: =B72&VLOOKUP(A72,List!$B$3:$D$445,2,FALSE)&D72&"_"&VLOOKUP(E72,List!$K$2:$M$447,2,FALSE) -> RNQAHU02X00_PC | L72: RNQAHU02X00_PC AT%M4094.0 :BOOL; (*空调机组2层启停控制*) | M72: RNQAHU02X00_PC AT%M4094.0 :BOOL; (*空调机组2层启停控制*)
A73: 空调机组 | B73: RNQ | C73: M | D73: 03X00 | E73: 程序控制 | F73: 4096.0 | H73: 验证通过 | I73: BOOL | J73: 空调机组3层启停控制 | K73: =B73&VLOOKUP(A73,List!$B$3:$D$445,2,FALSE)&D73&"_"&VLOOKUP(E73,List!$K$2:$M$447,2,FALSE) -> RNQAHU03X00_PC | L73: RNQAHU03X00_PC AT%M4096.0 :BOOL; (*空调机组3层启停控制*) | M73: RNQAHU03X00_PC AT%M4096.0 :BOOL; (*空调机组3层启停控制*)
A74: 空调机组 | B74: RNQ | C74: M | D74: 04X00 | E74: 程序控制 | F74: 4098.0 | H74: 验证通过 | I74: BOOL | J74: 空调机组4层启停控制 | K74: =B74&VLOOKUP(A74,List!$B$3:$D$445,2,FALSE)&D74&"_"&VLOOKUP(E74,List!$K$2:$M$447,2,FALSE) -> RNQAHU04X00_PC | L74: RNQAHU04X00_PC AT%M4098.0 :BOOL; (*空调机组4层启停控制*) | M74: RNQAHU04X00_PC AT%M4098.0 :BOOL; (*空调机组4层启停控制*)
A75: 空调机组 | B75: RNQ | C75: M | D75: 05X00 | E75: 程序控制 | F75: 4100.0 | H75: 验证通过 | I75: BOOL | J75: 空调机组5层启停控制 | K75: =B75&VLOOKUP(A75,List!$B$3:$D$445,2,FALSE)&D75&"_"&VLOOKUP(E75,List!$K$2:$M$447,2,FALSE) -> RNQAHU05X00_PC | L75: RNQAHU05X00_PC AT%M4100.0 :BOOL; (*空调机组5层启停控制*) | M75: RNQAHU05X00_PC AT%M4100.0 :BOOL; (*空调机组5层启停控制*)
A76: 空调机组 | B76: RNQ | C76: M | D76: 06X00 | E76: 程序控制 | F76: 4102.0 | H76: 验证通过 | I76: BOOL | J76: 空调机组6层启停控制 | K76: =B76&VLOOKUP(A76,List!$B$3:$D$445,2,FALSE)&D76&"_"&VLOOKUP(E76,List!$K$2:$M$447,2,FALSE) -> RNQAHU06X00_PC | L76: RNQAHU06X00_PC AT%M4102.0 :BOOL; (*空调机组6层启停控制*) | M76: RNQAHU06X00_PC AT%M4102.0 :BOOL; (*空调机组6层启停控制*)
A77: 空调机组 | B77: RNQ | C77: M | D77: 07X00 | E77: 程序控制 | F77: 4104.0 | H77: =IF((IF(OR(I77="INT",I77="WORD",I77="BOOL"),MOD(F77,2),MOD(F77,4)))=0,"验证通过","验证失败") -> 验证通过 | I77: BOOL | J77: 空调机组7层启停控制 | K77: =B77&VLOOKUP(A77,List!$B$3:$D$445,2,FALSE)&D77&"_"&VLOOKUP(E77,List!$K$2:$M$447,2,FALSE) -> RNQAHU07X00_PC | L77: RNQAHU07X00_PC AT%M4104.0 :BOOL; (*空调机组7层启停控制*) | M77: RNQAHU07X00_PC AT%M4104.0 :BOOL; (*空调机组7层启停控制*)
A78: 空调机组 | B78: RNQ | C78: M | D78: 08X00 | E78: 程序控制 | F78: 4106.0 | H78: 验证通过 | I78: BOOL | J78: 空调机组8层启停控制 | K78: =B78&VLOOKUP(A78,List!$B$3:$D$445,2,FALSE)&D78&"_"&VLOOKUP(E78,List!$K$2:$M$447,2,FALSE) -> RNQAHU08X00_PC | L78: RNQAHU08X00_PC AT%M4106.0 :BOOL; (*空调机组8层启停控制*) | M78: RNQAHU08X00_PC AT%M4106.0 :BOOL; (*空调机组8层启停控制*)
A79: 风机盘管 | B79: RNQ | C79: M | D79: B3X00 | E79: 设定温度值 | F79: 4112.0 | H79: =IF((IF(OR(I79="INT",I79="WORD",I79="BOOL"),MOD(F79,2),MOD(F79,4)))=0,"验证通过","验证失败") -> 验证通过 | I79: REAL | J79: 风机盘管B3层温度全局设定 | K79: =B79&VLOOKUP(A79,List!$B$3:$D$445,2,FALSE)&D79&"_"&VLOOKUP(E79,List!$K$2:$M$447,2,FALSE) -> RNQFCUB3X00_TSET | L79: =K79&" "&"AT%"&C79&F79&" "&":"&I79&";"&" "&"(*"&J79&"*)" -> RNQFCUB3X00_TSET AT%M4112.0 :REAL; (*风机盘管B3层温度全局设定*) | M79: RNQFCUB3X00_TSET AT%M4112.0 :REAL; (*风机盘管B3层温度全局设定*)
A80: 风机盘管 | B80: RNQ | C80: M | D80: B2X00 | E80: 设定温度值 | F80: 4116.0 | H80: 验证通过 | I80: REAL | J80: 风机盘管B2层温度全局设定 | K80: =B80&VLOOKUP(A80,List!$B$3:$D$445,2,FALSE)&D80&"_"&VLOOKUP(E80,List!$K$2:$M$447,2,FALSE) -> RNQFCUB2X00_TSET | L80: RNQFCUB2X00_TSET AT%M4116.0 :REAL; (*风机盘管B2层温度全局设定*) | M80: =REPLACE(REPLACE(L80,SEARCH("AT%",L80),,REPT(" ",25-SEARCH("AT%",L80))),SEARCH(":",REPLACE(L80,SEARCH("AT%",L80),,REPT(" ",25-SEARCH("AT%",L80)))),,REPT(" ",40-SEARCH(":",REPLACE(L80,SEARCH("AT%",L80),,REPT(" ",25-SEARCH("AT%",L80)))))) -> RNQFCUB2X00_TSET AT%M4116.0 :REAL; (*风机盘管B2层温度全局设定*)
A81: 风机盘管 | B81: RNQ | C81: M | D81: B1X00 | E81: 设定温度值 | F81: 4120.0 | H81: 验证通过 | I81: REAL | J81: 风机盘管B1层温度全局设定 | K81: =B81&VLOOKUP(A81,List!$B$3:$D$445,2,FALSE)&D81&"_"&VLOOKUP(E81,List!$K$2:$M$447,2,FALSE) -> RNQFCUB1X00_TSET | L81: RNQFCUB1X00_TSET AT%M4120.0 :REAL; (*风机盘管B1层温度全局设定*) | M81: RNQFCUB1X00_TSET AT%M4120.0 :REAL; (*风机盘管B1层温度全局设定*)
A82: 风机盘管 | B82: RNQ | C82: M | D82: 01X00 | E82: 设定温度值 | F82: 4124.0 | H82: 验证通过 | I82: REAL | J82: 风机盘管1层温度全局设定 | K82: =B82&VLOOKUP(A82,List!$B$3:$D$445,2,FALSE)&D82&"_"&VLOOKUP(E82,List!$K$2:$M$447,2,FALSE) -> RNQFCU01X00_TSET | L82: RNQFCU01X00_TSET AT%M4124.0 :REAL; (*风机盘管1层温度全局设定*) | M82: RNQFCU01X00_TSET AT%M4124.0 :REAL; (*风机盘管1层温度全局设定*)
A83: 风机盘管 | B83: RNQ | C83: M | D83: 02X00 | E83: 设定温度值 | F83: 4128.0 | H83: 验证通过 | I83: REAL | J83: 风机盘管2层温度全局设定 | K83: =B83&VLOOKUP(A83,List!$B$3:$D$445,2,FALSE)&D83&"_"&VLOOKUP(E83,List!$K$2:$M$447,2,FALSE) -> RNQFCU02X00_TSET | L83: RNQFCU02X00_TSET AT%M4128.0 :REAL; (*风机盘管2层温度全局设定*) | M83: RNQFCU02X00_TSET AT%M4128.0 :REAL; (*风机盘管2层温度全局设定*)
A84: 风机盘管 | B84: RNQ | C84: M | D84: 03X00 | E84: 设定温度值 | F84: 4132.0 | H84: 验证通过 | I84: REAL | J84: 风机盘管3层温度全局设定 | K84: =B84&VLOOKUP(A84,List!$B$3:$D$445,2,FALSE)&D84&"_"&VLOOKUP(E84,List!$K$2:$M$447,2,FALSE) -> RNQFCU03X00_TSET | L84: RNQFCU03X00_TSET AT%M4132.0 :REAL; (*风机盘管3层温度全局设定*) | M84: RNQFCU03X00_TSET AT%M4132.0 :REAL; (*风机盘管3层温度全局设定*)
A85: 风机盘管 | B85: RNQ | C85: M | D85: 04X00 | E85: 设定温度值 | F85: 4136.0 | H85: 验证通过 | I85: REAL | J85: 风机盘管4层温度全局设定 | K85: =B85&VLOOKUP(A85,List!$B$3:$D$445,2,FALSE)&D85&"_"&VLOOKUP(E85,List!$K$2:$M$447,2,FALSE) -> RNQFCU04X00_TSET | L85: RNQFCU04X00_TSET AT%M4136.0 :REAL; (*风机盘管4层温度全局设定*) | M85: RNQFCU04X00_TSET AT%M4136.0 :REAL; (*风机盘管4层温度全局设定*)
A86: 风机盘管 | B86: RNQ | C86: M | D86: 05X00 | E86: 设定温度值 | F86: 4140.0 | H86: 验证通过 | I86: REAL | J86: 风机盘管5层温度全局设定 | K86: =B86&VLOOKUP(A86,List!$B$3:$D$445,2,FALSE)&D86&"_"&VLOOKUP(E86,List!$K$2:$M$447,2,FALSE) -> RNQFCU05X00_TSET | L86: RNQFCU05X00_TSET AT%M4140.0 :REAL; (*风机盘管5层温度全局设定*) | M86: RNQFCU05X00_TSET AT%M4140.0 :REAL; (*风机盘管5层温度全局设定*)
A87: 风机盘管 | B87: RNQ | C87: M | D87: 06X00 | E87: 设定温度值 | F87: 4144.0 | H87: 验证通过 | I87: REAL | J87: 风机盘管6层温度全局设定 | K87: =B87&VLOOKUP(A87,List!$B$3:$D$445,2,FALSE)&D87&"_"&VLOOKUP(E87,List!$K$2:$M$447,2,FALSE) -> RNQFCU06X00_TSET | L87: RNQFCU06X00_TSET AT%M4144.0 :REAL; (*风机盘管6层温度全局设定*) | M87: RNQFCU06X00_TSET AT%M4144.0 :REAL; (*风机盘管6层温度全局设定*)
A88: 风机盘管 | B88: RNQ | C88: M | D88: 07X00 | E88: 设定温度值 | F88: 4148.0 | H88: 验证通过 | I88: REAL | J88: 风机盘管7层温度全局设定 | K88: =B88&VLOOKUP(A88,List!$B$3:$D$445,2,FALSE)&D88&"_"&VLOOKUP(E88,List!$K$2:$M$447,2,FALSE) -> RNQFCU07X00_TSET | L88: =K88&" "&"AT%"&C88&F88&" "&":"&I88&";"&" "&"(*"&J88&"*)" -> RNQFCU07X00_TSET AT%M4148.0 :REAL; (*风机盘管7层温度全局设定*) | M88: =REPLACE(REPLACE(L88,SEARCH("AT%",L88),,REPT(" ",25-SEARCH("AT%",L88))),SEARCH(":",REPLACE(L88,SEARCH("AT%",L88),,REPT(" ",25-SEARCH("AT%",L88)))),,REPT(" ",40-SEARCH(":",REPLACE(L88,SEARCH("AT%",L88),,REPT(" ",25-SEARCH("AT%",L88)))))) -> RNQFCU07X00_TSET AT%M4148.0 :REAL; (*风机盘管7层温度全局设定*)
A89: 风机盘管 | B89: RNQ | C89: M | D89: 08X00 | E89: 设定温度值 | F89: 4152.0 | H89: 验证通过 | I89: REAL | J89: 风机盘管8层温度全局设定 | K89: =B89&VLOOKUP(A89,List!$B$3:$D$445,2,FALSE)&D89&"_"&VLOOKUP(E89,List!$K$2:$M$447,2,FALSE) -> RNQFCU08X00_TSET | L89: RNQFCU08X00_TSET AT%M4152.0 :REAL; (*风机盘管8层温度全局设定*) | M89: RNQFCU08X00_TSET AT%M4152.0 :REAL; (*风机盘管8层温度全局设定*)
A90: 风机盘管 | B90: RNQ | C90: M | D90: B3X00 | E90: 季节模式 | F90: 4156.0 | H90: 验证通过 | I90: INT | J90: 风机盘管B3层季节模式全局设定 | K90: =B90&VLOOKUP(A90,List!$B$3:$D$445,2,FALSE)&D90&"_"&VLOOKUP(E90,List!$K$2:$M$447,2,FALSE) -> RNQFCUB3X00_SM | L90: =K90&" "&"AT%"&C90&F90&" "&":"&I90&";"&" "&"(*"&J90&"*)" -> RNQFCUB3X00_SM AT%M4156.0 :INT; (*风机盘管B3层季节模式全局设定*) | M90: =REPLACE(REPLACE(L90,SEARCH("AT%",L90),,REPT(" ",25-SEARCH("AT%",L90))),SEARCH(":",REPLACE(L90,SEARCH("AT%",L90),,REPT(" ",25-SEARCH("AT%",L90)))),,REPT(" ",40-SEARCH(":",REPLACE(L90,SEARCH("AT%",L90),,REPT(" ",25-SEARCH("AT%",L90)))))) -> RNQFCUB3X00_SM AT%M4156.0 :INT; (*风机盘管B3层季节模式全局设定*)
A91: 风机盘管 | B91: RNQ | C91: M | D91: B2X00 | E91: 季节模式 | F91: 4158.0 | H91: 验证通过 | I91: INT | J91: 风机盘管B2层季节模式全局设定 | K91: =B91&VLOOKUP(A91,List!$B$3:$D$445,2,FALSE)&D91&"_"&VLOOKUP(E91,List!$K$2:$M$447,2,FALSE) -> RNQFCUB2X00_SM | L91: RNQFCUB2X00_SM AT%M4158.0 :INT; (*风机盘管B2层季节模式全局设定*) | M91: RNQFCUB2X00_SM AT%M4158.0 :INT; (*风机盘管B2层季节模式全局设定*)
A92: 风机盘管 | B92: RNQ | C92: M | D92: B1X00 | E92: 季节模式 | F92: 4160.0 | H92: 验证通过 | I92: INT | J92: 风机盘管B1层季节模式全局设定 | K92: =B92&VLOOKUP(A92,List!$B$3:$D$445,2,FALSE)&D92&"_"&VLOOKUP(E92,List!$K$2:$M$447,2,FALSE) -> RNQFCUB1X00_SM | L92: RNQFCUB1X00_SM AT%M4160.0 :INT; (*风机盘管B1层季节模式全局设定*) | M92: RNQFCUB1X00_SM AT%M4160.0 :INT; (*风机盘管B1层季节模式全局设定*)
A93: 风机盘管 | B93: RNQ | C93: M | D93: 01X00 | E93: 季节模式 | F93: 4162.0 | H93: 验证通过 | I93: INT | J93: 风机盘管1层季节模式全局设定 | K93: =B93&VLOOKUP(A93,List!$B$3:$D$445,2,FALSE)&D93&"_"&VLOOKUP(E93,List!$K$2:$M$447,2,FALSE) -> RNQFCU01X00_SM | L93: RNQFCU01X00_SM AT%M4162.0 :INT; (*风机盘管1层季节模式全局设定*) | M93: RNQFCU01X00_SM AT%M4162.0 :INT; (*风机盘管1层季节模式全局设定*)
A94: 风机盘管 | B94: RNQ | C94: M | D94: 02X00 | E94: 季节模式 | F94: 4164.0 | H94: 验证通过 | I94: INT | J94: 风机盘管2层季节模式全局设定 | K94: =B94&VLOOKUP(A94,List!$B$3:$D$445,2,FALSE)&D94&"_"&VLOOKUP(E94,List!$K$2:$M$447,2,FALSE) -> RNQFCU02X00_SM | L94: RNQFCU02X00_SM AT%M4164.0 :INT; (*风机盘管2层季节模式全局设定*) | M94: RNQFCU02X00_SM AT%M4164.0 :INT; (*风机盘管2层季节模式全局设定*)
A95: 风机盘管 | B95: RNQ | C95: M | D95: 03X00 | E95: 季节模式 | F95: 4166.0 | H95: 验证通过 | I95: INT | J95: 风机盘管3层季节模式全局设定 | K95: =B95&VLOOKUP(A95,List!$B$3:$D$445,2,FALSE)&D95&"_"&VLOOKUP(E95,List!$K$2:$M$447,2,FALSE) -> RNQFCU03X00_SM | L95: RNQFCU03X00_SM AT%M4166.0 :INT; (*风机盘管3层季节模式全局设定*) | M95: RNQFCU03X00_SM AT%M4166.0 :INT; (*风机盘管3层季节模式全局设定*)
A96: 风机盘管 | B96: RNQ | C96: M | D96: 04X00 | E96: 季节模式 | F96: 4168.0 | H96: 验证通过 | I96: INT | J96: 风机盘管4层季节模式全局设定 | K96: =B96&VLOOKUP(A96,List!$B$3:$D$445,2,FALSE)&D96&"_"&VLOOKUP(E96,List!$K$2:$M$447,2,FALSE) -> RNQFCU04X00_SM | L96: RNQFCU04X00_SM AT%M4168.0 :INT; (*风机盘管4层季节模式全局设定*) | M96: RNQFCU04X00_SM AT%M4168.0 :INT; (*风机盘管4层季节模式全局设定*)
A97: 风机盘管 | B97: RNQ | C97: M | D97: 05X00 | E97: 季节模式 | F97: 4170.0 | H97: 验证通过 | I97: INT | J97: 风机盘管5层季节模式全局设定 | K97: =B97&VLOOKUP(A97,List!$B$3:$D$445,2,FALSE)&D97&"_"&VLOOKUP(E97,List!$K$2:$M$447,2,FALSE) -> RNQFCU05X00_SM | L97: RNQFCU05X00_SM AT%M4170.0 :INT; (*风机盘管5层季节模式全局设定*) | M97: RNQFCU05X00_SM AT%M4170.0 :INT; (*风机盘管5层季节模式全局设定*)
A98: 风机盘管 | B98: RNQ | C98: M | D98: 06X00 | E98: 季节模式 | F98: 4172.0 | H98: 验证通过 | I98: INT | J98: 风机盘管6层季节模式全局设定 | K98: =B98&VLOOKUP(A98,List!$B$3:$D$445,2,FALSE)&D98&"_"&VLOOKUP(E98,List!$K$2:$M$447,2,FALSE) -> RNQFCU06X00_SM | L98: RNQFCU06X00_SM AT%M4172.0 :INT; (*风机盘管6层季节模式全局设定*) | M98: RNQFCU06X00_SM AT%M4172.0 :INT; (*风机盘管6层季节模式全局设定*)
A99: 风机盘管 | B99: RNQ | C99: M | D99: 07X00 | E99: 季节模式 | F99: 4174.0 | H99: 验证通过 | I99: INT | J99: 风机盘管7层季节模式全局设定 | K99: =B99&VLOOKUP(A99,List!$B$3:$D$445,2,FALSE)&D99&"_"&VLOOKUP(E99,List!$K$2:$M$447,2,FALSE) -> RNQFCU07X00_SM | L99: RNQFCU07X00_SM AT%M4174.0 :INT; (*风机盘管7层季节模式全局设定*) | M99: RNQFCU07X00_SM AT%M4174.0 :INT; (*风机盘管7层季节模式全局设定*)
A100: 风机盘管 | B100: RNQ | C100: M | D100: 08X00 | E100: 季节模式 | F100: 4176.0 | H100: 验证通过 | I100: INT | J100: 风机盘管8层季节模式全局设定 | K100: =B100&VLOOKUP(A100,List!$B$3:$D$445,2,FALSE)&D100&"_"&VLOOKUP(E100,List!$K$2:$M$447,2,FALSE) -> RNQFCU08X00_SM | L100: RNQFCU08X00_SM AT%M4176.0 :INT; (*风机盘管8层季节模式全局设定*) | M100: RNQFCU08X00_SM AT%M4176.0 :INT; (*风机盘管8层季节模式全局设定*)
A101: 风机盘管 | B101: RNQ | C101: M | D101: B3X00 | E101: 程序控制 | F101: 4178.0 | H101: 验证通过 | I101: BOOL | J101: 风机盘管B3层启停控制 | K101: =B101&VLOOKUP(A101,List!$B$3:$D$445,2,FALSE)&D101&"_"&VLOOKUP(E101,List!$K$2:$M$447,2,FALSE) -> RNQFCUB3X00_PC | L101: RNQFCUB3X00_PC AT%M4178.0 :BOOL; (*风机盘管B3层启停控制*) | M101: RNQFCUB3X00_PC AT%M4178.0 :BOOL; (*风机盘管B3层启停控制*)
A102: 风机盘管 | B102: RNQ | C102: M | D102: B2X00 | E102: 程序控制 | F102: 4180.0 | H102: 验证通过 | I102: BOOL | J102: 风机盘管B2层启停控制 | K102: =B102&VLOOKUP(A102,List!$B$3:$D$445,2,FALSE)&D102&"_"&VLOOKUP(E102,List!$K$2:$M$447,2,FALSE) -> RNQFCUB2X00_PC | L102: RNQFCUB2X00_PC AT%M4180.0 :BOOL; (*风机盘管B2层启停控制*) | M102: RNQFCUB2X00_PC AT%M4180.0 :BOOL; (*风机盘管B2层启停控制*)
A103: 风机盘管 | B103: RNQ | C103: M | D103: B1X00 | E103: 程序控制 | F103: 4182.0 | H103: 验证通过 | I103: BOOL | J103: 风机盘管B1层启停控制 | K103: =B103&VLOOKUP(A103,List!$B$3:$D$445,2,FALSE)&D103&"_"&VLOOKUP(E103,List!$K$2:$M$447,2,FALSE) -> RNQFCUB1X00_PC | L103: RNQFCUB1X00_PC AT%M4182.0 :BOOL; (*风机盘管B1层启停控制*) | M103: RNQFCUB1X00_PC AT%M4182.0 :BOOL; (*风机盘管B1层启停控制*)
A104: 风机盘管 | B104: RNQ | C104: M | D104: 01X00 | E104: 程序控制 | F104: =IF(OR(I103="REAL",I103="DWORD",I103="DINT"),(IF(OR(I104="REAL",I104="DWORD",I104="DINT"),F103+4+MOD(F103,4),F103+4)),(IF(OR(I104="REAL",I104="DWORD",I104="DINT"),F103+4+MOD(F103,4),F103+2)))&".0" -> 4184.0 | H104: 验证通过 | I104: BOOL | J104: 风机盘管1层启停控制 | K104: =B104&VLOOKUP(A104,List!$B$3:$D$445,2,FALSE)&D104&"_"&VLOOKUP(E104,List!$K$2:$M$447,2,FALSE) -> RNQFCU01X00_PC | L104: RNQFCU01X00_PC AT%M4184.0 :BOOL; (*风机盘管1层启停控制*) | M104: RNQFCU01X00_PC AT%M4184.0 :BOOL; (*风机盘管1层启停控制*)
A105: 风机盘管 | B105: RNQ | C105: M | D105: 02X00 | E105: 程序控制 | F105: 4186.0 | H105: 验证通过 | I105: BOOL | J105: 风机盘管2层启停控制 | K105: =B105&VLOOKUP(A105,List!$B$3:$D$445,2,FALSE)&D105&"_"&VLOOKUP(E105,List!$K$2:$M$447,2,FALSE) -> RNQFCU02X00_PC | L105: RNQFCU02X00_PC AT%M4186.0 :BOOL; (*风机盘管2层启停控制*) | M105: RNQFCU02X00_PC AT%M4186.0 :BOOL; (*风机盘管2层启停控制*)
A106: 风机盘管 | B106: RNQ | C106: M | D106: 03X00 | E106: 程序控制 | F106: 4188.0 | H106: 验证通过 | I106: BOOL | J106: 风机盘管3层启停控制 | K106: =B106&VLOOKUP(A106,List!$B$3:$D$445,2,FALSE)&D106&"_"&VLOOKUP(E106,List!$K$2:$M$447,2,FALSE) -> RNQFCU03X00_PC | L106: RNQFCU03X00_PC AT%M4188.0 :BOOL; (*风机盘管3层启停控制*) | M106: RNQFCU03X00_PC AT%M4188.0 :BOOL; (*风机盘管3层启停控制*)
A107: 风机盘管 | B107: RNQ | C107: M | D107: 04X00 | E107: 程序控制 | F107: 4190.0 | H107: 验证通过 | I107: BOOL | J107: 风机盘管4层启停控制 | K107: =B107&VLOOKUP(A107,List!$B$3:$D$445,2,FALSE)&D107&"_"&VLOOKUP(E107,List!$K$2:$M$447,2,FALSE) -> RNQFCU04X00_PC | L107: RNQFCU04X00_PC AT%M4190.0 :BOOL; (*风机盘管4层启停控制*) | M107: RNQFCU04X00_PC AT%M4190.0 :BOOL; (*风机盘管4层启停控制*)
A108: 风机盘管 | B108: RNQ | C108: M | D108: 05X00 | E108: 程序控制 | F108: 4192.0 | H108: 验证通过 | I108: BOOL | J108: 风机盘管5层启停控制 | K108: =B108&VLOOKUP(A108,List!$B$3:$D$445,2,FALSE)&D108&"_"&VLOOKUP(E108,List!$K$2:$M$447,2,FALSE) -> RNQFCU05X00_PC | L108: RNQFCU05X00_PC AT%M4192.0 :BOOL; (*风机盘管5层启停控制*) | M108: RNQFCU05X00_PC AT%M4192.0 :BOOL; (*风机盘管5层启停控制*)
A109: 风机盘管 | B109: RNQ | C109: M | D109: 06X00 | E109: 程序控制 | F109: 4194.0 | H109: 验证通过 | I109: BOOL | J109: 风机盘管6层启停控制 | K109: =B109&VLOOKUP(A109,List!$B$3:$D$445,2,FALSE)&D109&"_"&VLOOKUP(E109,List!$K$2:$M$447,2,FALSE) -> RNQFCU06X00_PC | L109: RNQFCU06X00_PC AT%M4194.0 :BOOL; (*风机盘管6层启停控制*) | M109: RNQFCU06X00_PC AT%M4194.0 :BOOL; (*风机盘管6层启停控制*)
A110: 风机盘管 | B110: RNQ | C110: M | D110: 07X00 | E110: 程序控制 | F110: 4196.0 | H110: =IF((IF(OR(I110="INT",I110="WORD",I110="BOOL"),MOD(F110,2),MOD(F110,4)))=0,"验证通过","验证失败") -> 验证通过 | I110: BOOL | J110: 风机盘管7层启停控制 | K110: =B110&VLOOKUP(A110,List!$B$3:$D$445,2,FALSE)&D110&"_"&VLOOKUP(E110,List!$K$2:$M$447,2,FALSE) -> RNQFCU07X00_PC | L110: =K110&" "&"AT%"&C110&F110&" "&":"&I110&";"&" "&"(*"&J110&"*)" -> RNQFCU07X00_PC AT%M4196.0 :BOOL; (*风机盘管7层启停控制*) | M110: =REPLACE(REPLACE(L110,SEARCH("AT%",L110),,REPT(" ",25-SEARCH("AT%",L110))),SEARCH(":",REPLACE(L110,SEARCH("AT%",L110),,REPT(" ",25-SEARCH("AT%",L110)))),,REPT(" ",40-SEARCH(":",REPLACE(L110,SEARCH("AT%",L110),,REPT(" ",25-SEARCH("AT%",L110)))))) -> RNQFCU07X00_PC AT%M4196.0 :BOOL; (*风机盘管7层启停控制*)
A111: 风机盘管 | B111: RNQ | C111: M | D111: 08X00 | E111: 程序控制 | F111: =IF(OR(I110="REAL",I110="DWORD",I110="DINT"),(IF(OR(I111="REAL",I111="DWORD",I111="DINT"),F110+4+MOD(F110,4),F110+4)),(IF(OR(I111="REAL",I111="DWORD",I111="DINT"),F110+4+MOD(F110,4),F110+2)))&".0" -> 4198.0 | H111: 验证通过 | I111: BOOL | J111: 风机盘管8层启停控制 | K111: =B111&VLOOKUP(A111,List!$B$3:$D$445,2,FALSE)&D111&"_"&VLOOKUP(E111,List!$K$2:$M$447,2,FALSE) -> RNQFCU08X00_PC | L111: RNQFCU08X00_PC AT%M4198.0 :BOOL; (*风机盘管8层启停控制*) | M111: RNQFCU08X00_PC AT%M4198.0 :BOOL; (*风机盘管8层启停控制*)
A112: 照明控制箱 | B112: RNQ | C112: M | D112: B3X0A | E112: 启停控制 | F112: 4200.0 | H112: 验证通过 | I112: BOOL | J112: 基础照明A B3层全局启停控制 | K112: =B112&VLOOKUP(A112,List!$B$3:$D$445,2,FALSE)&D112&"_"&VLOOKUP(E112,List!$K$2:$M$447,2,FALSE) -> RNQLCBB3X0A_C | L112: RNQLCBB3X0A_C AT%M4200.0 :BOOL; (*基础照明A B3层全局启停控制*) | M112: RNQLCBB3X0A_C AT%M4200.0 :BOOL; (*基础照明A B3层全局启停控制*)
A113: 照明控制箱 | B113: RNQ | C113: M | D113: B2X0A | E113: 启停控制 | F113: =IF(OR(I112="REAL",I112="DWORD",I112="DINT"),(IF(OR(I113="REAL",I113="DWORD",I113="DINT"),F112+4+MOD(F112,4),F112+4)),(IF(OR(I113="REAL",I113="DWORD",I113="DINT"),F112+4+MOD(F112,4),F112+2)))&".0" -> 4202.0 | H113: 验证通过 | I113: BOOL | J113: 基础照明A B2层全局启停控制 | K113: =B113&VLOOKUP(A113,List!$B$3:$D$445,2,FALSE)&D113&"_"&VLOOKUP(E113,List!$K$2:$M$447,2,FALSE) -> RNQLCBB2X0A_C | L113: RNQLCBB2X0A_C AT%M4202.0 :BOOL; (*基础照明A B2层全局启停控制*) | M113: RNQLCBB2X0A_C AT%M4202.0 :BOOL; (*基础照明A B2层全局启停控制*)
A114: 照明控制箱 | B114: RNQ | C114: M | D114: B1X0A | E114: 启停控制 | F114: 4204.0 | H114: 验证通过 | I114: BOOL | J114: 基础照明A B1层全局启停控制 | K114: =B114&VLOOKUP(A114,List!$B$3:$D$445,2,FALSE)&D114&"_"&VLOOKUP(E114,List!$K$2:$M$447,2,FALSE) -> RNQLCBB1X0A_C | L114: RNQLCBB1X0A_C AT%M4204.0 :BOOL; (*基础照明A B1层全局启停控制*) | M114: RNQLCBB1X0A_C AT%M4204.0 :BOOL; (*基础照明A B1层全局启停控制*)
A115: 照明控制箱 | B115: RNQ | C115: M | D115: 01X0A | E115: 启停控制 | F115: 4206.0 | H115: 验证通过 | I115: BOOL | J115: 基础照明A 1层全局启停控制 | K115: =B115&VLOOKUP(A115,List!$B$3:$D$445,2,FALSE)&D115&"_"&VLOOKUP(E115,List!$K$2:$M$447,2,FALSE) -> RNQLCB01X0A_C | L115: RNQLCB01X0A_C AT%M4206.0 :BOOL; (*基础照明A 1层全局启停控制*) | M115: RNQLCB01X0A_C AT%M4206.0 :BOOL; (*基础照明A 1层全局启停控制*)
A116: 照明控制箱 | B116: RNQ | C116: M | D116: 02X0A | E116: 启停控制 | F116: 4208.0 | H116: 验证通过 | I116: BOOL | J116: 基础照明A 2层全局启停控制 | K116: =B116&VLOOKUP(A116,List!$B$3:$D$445,2,FALSE)&D116&"_"&VLOOKUP(E116,List!$K$2:$M$447,2,FALSE) -> RNQLCB02X0A_C | L116: RNQLCB02X0A_C AT%M4208.0 :BOOL; (*基础照明A 2层全局启停控制*) | M116: RNQLCB02X0A_C AT%M4208.0 :BOOL; (*基础照明A 2层全局启停控制*)
A117: 照明控制箱 | B117: RNQ | C117: M | D117: 03X0A | E117: 启停控制 | F117: 4210.0 | H117: 验证通过 | I117: BOOL | J117: 基础照明A 3层全局启停控制 | K117: =B117&VLOOKUP(A117,List!$B$3:$D$445,2,FALSE)&D117&"_"&VLOOKUP(E117,List!$K$2:$M$447,2,FALSE) -> RNQLCB03X0A_C | L117: RNQLCB03X0A_C AT%M4210.0 :BOOL; (*基础照明A 3层全局启停控制*) | M117: RNQLCB03X0A_C AT%M4210.0 :BOOL; (*基础照明A 3层全局启停控制*)
A118: 照明控制箱 | B118: RNQ | C118: M | D118: 04X0A | E118: 启停控制 | F118: 4212.0 | H118: 验证通过 | I118: BOOL | J118: 基础照明A 4层全局启停控制 | K118: =B118&VLOOKUP(A118,List!$B$3:$D$445,2,FALSE)&D118&"_"&VLOOKUP(E118,List!$K$2:$M$447,2,FALSE) -> RNQLCB04X0A_C | L118: =K118&" "&"AT%"&C118&F118&" "&":"&I118&";"&" "&"(*"&J118&"*)" -> RNQLCB04X0A_C AT%M4212.0 :BOOL; (*基础照明A 4层全局启停控制*) | M118: RNQLCB04X0A_C AT%M4212.0 :BOOL; (*基础照明A 4层全局启停控制*)
A119: 照明控制箱 | B119: RNQ | C119: M | D119: 05X0A | E119: 启停控制 | F119: 4214.0 | H119: 验证通过 | I119: BOOL | J119: 基础照明A 5层全局启停控制 | K119: =B119&VLOOKUP(A119,List!$B$3:$D$445,2,FALSE)&D119&"_"&VLOOKUP(E119,List!$K$2:$M$447,2,FALSE) -> RNQLCB05X0A_C | L119: RNQLCB05X0A_C AT%M4214.0 :BOOL; (*基础照明A 5层全局启停控制*) | M119: RNQLCB05X0A_C AT%M4214.0 :BOOL; (*基础照明A 5层全局启停控制*)
A120: 照明控制箱 | B120: RNQ | C120: M | D120: 06X0A | E120: 启停控制 | F120: 4216.0 | H120: 验证通过 | I120: BOOL | J120: 基础照明A 6层全局启停控制 | K120: =B120&VLOOKUP(A120,List!$B$3:$D$445,2,FALSE)&D120&"_"&VLOOKUP(E120,List!$K$2:$M$447,2,FALSE) -> RNQLCB06X0A_C | L120: RNQLCB06X0A_C AT%M4216.0 :BOOL; (*基础照明A 6层全局启停控制*) | M120: RNQLCB06X0A_C AT%M4216.0 :BOOL; (*基础照明A 6层全局启停控制*)
A121: 照明控制箱 | B121: RNQ | C121: M | D121: 07X0A | E121: 启停控制 | F121: 4218.0 | H121: =IF((IF(OR(I121="INT",I121="WORD",I121="BOOL"),MOD(F121,2),MOD(F121,4)))=0,"验证通过","验证失败") -> 验证通过 | I121: BOOL | J121: 基础照明A 7层全局启停控制 | K121: =B121&VLOOKUP(A121,List!$B$3:$D$445,2,FALSE)&D121&"_"&VLOOKUP(E121,List!$K$2:$M$447,2,FALSE) -> RNQLCB07X0A_C | L121: =K121&" "&"AT%"&C121&F121&" "&":"&I121&";"&" "&"(*"&J121&"*)" -> RNQLCB07X0A_C AT%M4218.0 :BOOL; (*基础照明A 7层全局启停控制*) | M121: =REPLACE(REPLACE(L121,SEARCH("AT%",L121),,REPT(" ",25-SEARCH("AT%",L121))),SEARCH(":",REPLACE(L121,SEARCH("AT%",L121),,REPT(" ",25-SEARCH("AT%",L121)))),,REPT(" ",40-SEARCH(":",REPLACE(L121,SEARCH("AT%",L121),,REPT(" ",25-SEARCH("AT%",L121)))))) -> RNQLCB07X0A_C AT%M4218.0 :BOOL; (*基础照明A 7层全局启停控制*)
A122: 照明控制箱 | B122: RNQ | C122: M | D122: 08X0A | E122: 启停控制 | F122: 4220.0 | H122: 验证通过 | I122: BOOL | J122: 基础照明A 8层全局启停控制 | K122: =B122&VLOOKUP(A122,List!$B$3:$D$445,2,FALSE)&D122&"_"&VLOOKUP(E122,List!$K$2:$M$447,2,FALSE) -> RNQLCB08X0A_C | L122: RNQLCB08X0A_C AT%M4220.0 :BOOL; (*基础照明A 8层全局启停控制*) | M122: RNQLCB08X0A_C AT%M4220.0 :BOOL; (*基础照明A 8层全局启停控制*)
A123: 照明控制箱 | B123: RNQ | C123: M | D123: B3X0B | E123: 启停控制 | F123: 4222.0 | H123: 验证通过 | I123: BOOL | J123: 基础照明B B3层全局启停控制 | K123: =B123&VLOOKUP(A123,List!$B$3:$D$445,2,FALSE)&D123&"_"&VLOOKUP(E123,List!$K$2:$M$447,2,FALSE) -> RNQLCBB3X0B_C | L123: RNQLCBB3X0B_C AT%M4222.0 :BOOL; (*基础照明B B3层全局启停控制*) | M123: RNQLCBB3X0B_C AT%M4222.0 :BOOL; (*基础照明B B3层全局启停控制*)
A124: 照明控制箱 | B124: RNQ | C124: M | D124: B2X0B | E124: 启停控制 | F124: 4224.0 | H124: 验证通过 | I124: BOOL | J124: 基础照明B B2层全局启停控制 | K124: =B124&VLOOKUP(A124,List!$B$3:$D$445,2,FALSE)&D124&"_"&VLOOKUP(E124,List!$K$2:$M$447,2,FALSE) -> RNQLCBB2X0B_C | L124: RNQLCBB2X0B_C AT%M4224.0 :BOOL; (*基础照明B B2层全局启停控制*) | M124: RNQLCBB2X0B_C AT%M4224.0 :BOOL; (*基础照明B B2层全局启停控制*)
A125: 照明控制箱 | B125: RNQ | C125: M | D125: B1X0B | E125: 启停控制 | F125: 4226.0 | H125: 验证通过 | I125: BOOL | J125: 基础照明B B1层全局启停控制 | K125: =B125&VLOOKUP(A125,List!$B$3:$D$445,2,FALSE)&D125&"_"&VLOOKUP(E125,List!$K$2:$M$447,2,FALSE) -> RNQLCBB1X0B_C | L125: RNQLCBB1X0B_C AT%M4226.0 :BOOL; (*基础照明B B1层全局启停控制*) | M125: RNQLCBB1X0B_C AT%M4226.0 :BOOL; (*基础照明B B1层全局启停控制*)
A126: 照明控制箱 | B126: RNQ | C126: M | D126: 01X0B | E126: 启停控制 | F126: 4228.0 | H126: 验证通过 | I126: BOOL | J126: 基础照明B 1层全局启停控制 | K126: =B126&VLOOKUP(A126,List!$B$3:$D$445,2,FALSE)&D126&"_"&VLOOKUP(E126,List!$K$2:$M$447,2,FALSE) -> RNQLCB01X0B_C | L126: RNQLCB01X0B_C AT%M4228.0 :BOOL; (*基础照明B 1层全局启停控制*) | M126: RNQLCB01X0B_C AT%M4228.0 :BOOL; (*基础照明B 1层全局启停控制*)
A127: 照明控制箱 | B127: RNQ | C127: M | D127: 02X0B | E127: 启停控制 | F127: 4230.0 | H127: 验证通过 | I127: BOOL | J127: 基础照明B 2层全局启停控制 | K127: =B127&VLOOKUP(A127,List!$B$3:$D$445,2,FALSE)&D127&"_"&VLOOKUP(E127,List!$K$2:$M$447,2,FALSE) -> RNQLCB02X0B_C | L127: RNQLCB02X0B_C AT%M4230.0 :BOOL; (*基础照明B 2层全局启停控制*) | M127: RNQLCB02X0B_C AT%M4230.0 :BOOL; (*基础照明B 2层全局启停控制*)
A128: 照明控制箱 | B128: RNQ | C128: M | D128: 03X0B | E128: 启停控制 | F128: 4232.0 | H128: 验证通过 | I128: BOOL | J128: 基础照明B 3层全局启停控制 | K128: =B128&VLOOKUP(A128,List!$B$3:$D$445,2,FALSE)&D128&"_"&VLOOKUP(E128,List!$K$2:$M$447,2,FALSE) -> RNQLCB03X0B_C | L128: RNQLCB03X0B_C AT%M4232.0 :BOOL; (*基础照明B 3层全局启停控制*) | M128: RNQLCB03X0B_C AT%M4232.0 :BOOL; (*基础照明B 3层全局启停控制*)
A129: 照明控制箱 | B129: RNQ | C129: M | D129: 04X0B | E129: 启停控制 | F129: 4234.0 | H129: 验证通过 | I129: BOOL | J129: 基础照明B 4层全局启停控制 | K129: =B129&VLOOKUP(A129,List!$B$3:$D$445,2,FALSE)&D129&"_"&VLOOKUP(E129,List!$K$2:$M$447,2,FALSE) -> RNQLCB04X0B_C | L129: RNQLCB04X0B_C AT%M4234.0 :BOOL; (*基础照明B 4层全局启停控制*) | M129: RNQLCB04X0B_C AT%M4234.0 :BOOL; (*基础照明B 4层全局启停控制*)
A130: 照明控制箱 | B130: RNQ | C130: M | D130: 05X0B | E130: 启停控制 | F130: 4236.0 | H130: 验证通过 | I130: BOOL | J130: 基础照明B 5层全局启停控制 | K130: =B130&VLOOKUP(A130,List!$B$3:$D$445,2,FALSE)&D130&"_"&VLOOKUP(E130,List!$K$2:$M$447,2,FALSE) -> RNQLCB05X0B_C | L130: RNQLCB05X0B_C AT%M4236.0 :BOOL; (*基础照明B 5层全局启停控制*) | M130: RNQLCB05X0B_C AT%M4236.0 :BOOL; (*基础照明B 5层全局启停控制*)
A131: 照明控制箱 | B131: RNQ | C131: M | D131: 06X0B | E131: 启停控制 | F131: 4238.0 | H131: 验证通过 | I131: BOOL | J131: 基础照明B 6层全局启停控制 | K131: =B131&VLOOKUP(A131,List!$B$3:$D$445,2,FALSE)&D131&"_"&VLOOKUP(E131,List!$K$2:$M$447,2,FALSE) -> RNQLCB06X0B_C | L131: RNQLCB06X0B_C AT%M4238.0 :BOOL; (*基础照明B 6层全局启停控制*) | M131: RNQLCB06X0B_C AT%M4238.0 :BOOL; (*基础照明B 6层全局启停控制*)
A132: 照明控制箱 | B132: RNQ | C132: M | D132: 07X0B | E132: 启停控制 | F132: 4240.0 | H132: =IF((IF(OR(I132="INT",I132="WORD",I132="BOOL"),MOD(F132,2),MOD(F132,4)))=0,"验证通过","验证失败") -> 验证通过 | I132: BOOL | J132: 基础照明B 7层全局启停控制 | K132: =B132&VLOOKUP(A132,List!$B$3:$D$445,2,FALSE)&D132&"_"&VLOOKUP(E132,List!$K$2:$M$447,2,FALSE) -> RNQLCB07X0B_C | L132: =K132&" "&"AT%"&C132&F132&" "&":"&I132&";"&" "&"(*"&J132&"*)" -> RNQLCB07X0B_C AT%M4240.0 :BOOL; (*基础照明B 7层全局启停控制*) | M132: =REPLACE(REPLACE(L132,SEARCH("AT%",L132),,REPT(" ",25-SEARCH("AT%",L132))),SEARCH(":",REPLACE(L132,SEARCH("AT%",L132),,REPT(" ",25-SEARCH("AT%",L132)))),,REPT(" ",40-SEARCH(":",REPLACE(L132,SEARCH("AT%",L132),,REPT(" ",25-SEARCH("AT%",L132)))))) -> RNQLCB07X0B_C AT%M4240.0 :BOOL; (*基础照明B 7层全局启停控制*)
A133: 照明控制箱 | B133: RNQ | C133: M | D133: 08X0B | E133: 启停控制 | F133: 4242.0 | H133: 验证通过 | I133: BOOL | J133: 基础照明B 8层全局启停控制 | K133: =B133&VLOOKUP(A133,List!$B$3:$D$445,2,FALSE)&D133&"_"&VLOOKUP(E133,List!$K$2:$M$447,2,FALSE) -> RNQLCB08X0B_C | L133: RNQLCB08X0B_C AT%M4242.0 :BOOL; (*基础照明B 8层全局启停控制*) | M133: RNQLCB08X0B_C AT%M4242.0 :BOOL; (*基础照明B 8层全局启停控制*)
A134: 照明控制箱 | B134: RNQ | C134: M | D134: B3X0C | E134: 启停控制 | F134: 4244.0 | H134: 验证通过 | I134: BOOL | J134: 灯带 B3层全局启停控制 | K134: =B134&VLOOKUP(A134,List!$B$3:$D$445,2,FALSE)&D134&"_"&VLOOKUP(E134,List!$K$2:$M$447,2,FALSE) -> RNQLCBB3X0C_C | L134: RNQLCBB3X0C_C AT%M4244.0 :BOOL; (*灯带 B3层全局启停控制*) | M134: RNQLCBB3X0C_C AT%M4244.0 :BOOL; (*灯带 B3层全局启停控制*)
A135: 照明控制箱 | B135: RNQ | C135: M | D135: B2X0C | E135: 启停控制 | F135: 4246.0 | H135: 验证通过 | I135: BOOL | J135: 灯带 B2层全局启停控制 | K135: =B135&VLOOKUP(A135,List!$B$3:$D$445,2,FALSE)&D135&"_"&VLOOKUP(E135,List!$K$2:$M$447,2,FALSE) -> RNQLCBB2X0C_C | L135: RNQLCBB2X0C_C AT%M4246.0 :BOOL; (*灯带 B2层全局启停控制*) | M135: RNQLCBB2X0C_C AT%M4246.0 :BOOL; (*灯带 B2层全局启停控制*)
A136: 照明控制箱 | B136: RNQ | C136: M | D136: B1X0C | E136: 启停控制 | F136: 4248.0 | H136: 验证通过 | I136: BOOL | J136: 灯带 B1层全局启停控制 | K136: =B136&VLOOKUP(A136,List!$B$3:$D$445,2,FALSE)&D136&"_"&VLOOKUP(E136,List!$K$2:$M$447,2,FALSE) -> RNQLCBB1X0C_C | L136: RNQLCBB1X0C_C AT%M4248.0 :BOOL; (*灯带 B1层全局启停控制*) | M136: RNQLCBB1X0C_C AT%M4248.0 :BOOL; (*灯带 B1层全局启停控制*)
A137: 照明控制箱 | B137: RNQ | C137: M | D137: 01X0C | E137: 启停控制 | F137: 4250.0 | H137: 验证通过 | I137: BOOL | J137: 灯带 1层全局启停控制 | K137: =B137&VLOOKUP(A137,List!$B$3:$D$445,2,FALSE)&D137&"_"&VLOOKUP(E137,List!$K$2:$M$447,2,FALSE) -> RNQLCB01X0C_C | L137: RNQLCB01X0C_C AT%M4250.0 :BOOL; (*灯带 1层全局启停控制*) | M137: RNQLCB01X0C_C AT%M4250.0 :BOOL; (*灯带 1层全局启停控制*)
A138: 照明控制箱 | B138: RNQ | C138: M | D138: 02X0C | E138: 启停控制 | F138: 4252.0 | H138: 验证通过 | I138: BOOL | J138: 灯带 2层全局启停控制 | K138: =B138&VLOOKUP(A138,List!$B$3:$D$445,2,FALSE)&D138&"_"&VLOOKUP(E138,List!$K$2:$M$447,2,FALSE) -> RNQLCB02X0C_C | L138: RNQLCB02X0C_C AT%M4252.0 :BOOL; (*灯带 2层全局启停控制*) | M138: RNQLCB02X0C_C AT%M4252.0 :BOOL; (*灯带 2层全局启停控制*)
A139: 照明控制箱 | B139: RNQ | C139: M | D139: 03X0C | E139: 启停控制 | F139: 4254.0 | H139: 验证通过 | I139: BOOL | J139: 灯带 3层全局启停控制 | K139: =B139&VLOOKUP(A139,List!$B$3:$D$445,2,FALSE)&D139&"_"&VLOOKUP(E139,List!$K$2:$M$447,2,FALSE) -> RNQLCB03X0C_C | L139: RNQLCB03X0C_C AT%M4254.0 :BOOL; (*灯带 3层全局启停控制*) | M139: RNQLCB03X0C_C AT%M4254.0 :BOOL; (*灯带 3层全局启停控制*)
A140: 照明控制箱 | B140: RNQ | C140: M | D140: 04X0C | E140: 启停控制 | F140: 4256.0 | H140: 验证通过 | I140: BOOL | J140: 灯带 4层全局启停控制 | K140: =B140&VLOOKUP(A140,List!$B$3:$D$445,2,FALSE)&D140&"_"&VLOOKUP(E140,List!$K$2:$M$447,2,FALSE) -> RNQLCB04X0C_C | L140: RNQLCB04X0C_C AT%M4256.0 :BOOL; (*灯带 4层全局启停控制*) | M140: RNQLCB04X0C_C AT%M4256.0 :BOOL; (*灯带 4层全局启停控制*)
A141: 照明控制箱 | B141: RNQ | C141: M | D141: 05X0C | E141: 启停控制 | F141: 4258.0 | H141: 验证通过 | I141: BOOL | J141: 灯带 5层全局启停控制 | K141: =B141&VLOOKUP(A141,List!$B$3:$D$445,2,FALSE)&D141&"_"&VLOOKUP(E141,List!$K$2:$M$447,2,FALSE) -> RNQLCB05X0C_C | L141: RNQLCB05X0C_C AT%M4258.0 :BOOL; (*灯带 5层全局启停控制*) | M141: RNQLCB05X0C_C AT%M4258.0 :BOOL; (*灯带 5层全局启停控制*)
A142: 照明控制箱 | B142: RNQ | C142: M | D142: 06X0C | E142: 启停控制 | F142: 4260.0 | H142: 验证通过 | I142: BOOL | J142: 灯带 6层全局启停控制 | K142: =B142&VLOOKUP(A142,List!$B$3:$D$445,2,FALSE)&D142&"_"&VLOOKUP(E142,List!$K$2:$M$447,2,FALSE) -> RNQLCB06X0C_C | L142: RNQLCB06X0C_C AT%M4260.0 :BOOL; (*灯带 6层全局启停控制*) | M142: RNQLCB06X0C_C AT%M4260.0 :BOOL; (*灯带 6层全局启停控制*)
A143: 照明控制箱 | B143: RNQ | C143: M | D143: 07X0C | E143: 启停控制 | F143: 4262.0 | H143: =IF((IF(OR(I143="INT",I143="WORD",I143="BOOL"),MOD(F143,2),MOD(F143,4)))=0,"验证通过","验证失败") -> 验证通过 | I143: BOOL | J143: 灯带 7层全局启停控制 | K143: =B143&VLOOKUP(A143,List!$B$3:$D$445,2,FALSE)&D143&"_"&VLOOKUP(E143,List!$K$2:$M$447,2,FALSE) -> RNQLCB07X0C_C | L143: =K143&" "&"AT%"&C143&F143&" "&":"&I143&";"&" "&"(*"&J143&"*)" -> RNQLCB07X0C_C AT%M4262.0 :BOOL; (*灯带 7层全局启停控制*) | M143: =REPLACE(REPLACE(L143,SEARCH("AT%",L143),,REPT(" ",25-SEARCH("AT%",L143))),SEARCH(":",REPLACE(L143,SEARCH("AT%",L143),,REPT(" ",25-SEARCH("AT%",L143)))),,REPT(" ",40-SEARCH(":",REPLACE(L143,SEARCH("AT%",L143),,REPT(" ",25-SEARCH("AT%",L143)))))) -> RNQLCB07X0C_C AT%M4262.0 :BOOL; (*灯带 7层全局启停控制*)
A144: 照明控制箱 | B144: RNQ | C144: M | D144: 08X0C | E144: 启停控制 | F144: 4264.0 | H144: 验证通过 | I144: BOOL | J144: 灯带 8层全局启停控制 | K144: =B144&VLOOKUP(A144,List!$B$3:$D$445,2,FALSE)&D144&"_"&VLOOKUP(E144,List!$K$2:$M$447,2,FALSE) -> RNQLCB08X0C_C | L144: RNQLCB08X0C_C AT%M4264.0 :BOOL; (*灯带 8层全局启停控制*) | M144: RNQLCB08X0C_C AT%M4264.0 :BOOL; (*灯带 8层全局启停控制*)
A145: 照明控制箱 | B145: RNQ | C145: M | D145: B3X0D | E145: 启停控制 | F145: 4266.0 | H145: 验证通过 | I145: BOOL | J145: 广告 B3层全局启停控制 | K145: =B145&VLOOKUP(A145,List!$B$3:$D$445,2,FALSE)&D145&"_"&VLOOKUP(E145,List!$K$2:$M$447,2,FALSE) -> RNQLCBB3X0D_C | L145: RNQLCBB3X0D_C AT%M4266.0 :BOOL; (*广告 B3层全局启停控制*) | M145: RNQLCBB3X0D_C AT%M4266.0 :BOOL; (*广告 B3层全局启停控制*)
A146: 照明控制箱 | B146: RNQ | C146: M | D146: B2X0D | E146: 启停控制 | F146: 4268.0 | H146: 验证通过 | I146: BOOL | J146: 广告 B2层全局启停控制 | K146: =B146&VLOOKUP(A146,List!$B$3:$D$445,2,FALSE)&D146&"_"&VLOOKUP(E146,List!$K$2:$M$447,2,FALSE) -> RNQLCBB2X0D_C | L146: RNQLCBB2X0D_C AT%M4268.0 :BOOL; (*广告 B2层全局启停控制*) | M146: RNQLCBB2X0D_C AT%M4268.0 :BOOL; (*广告 B2层全局启停控制*)
A147: 照明控制箱 | B147: RNQ | C147: M | D147: B1X0D | E147: 启停控制 | F147: 4270.0 | H147: 验证通过 | I147: BOOL | J147: 广告 B1层全局启停控制 | K147: =B147&VLOOKUP(A147,List!$B$3:$D$445,2,FALSE)&D147&"_"&VLOOKUP(E147,List!$K$2:$M$447,2,FALSE) -> RNQLCBB1X0D_C | L147: RNQLCBB1X0D_C AT%M4270.0 :BOOL; (*广告 B1层全局启停控制*) | M147: RNQLCBB1X0D_C AT%M4270.0 :BOOL; (*广告 B1层全局启停控制*)
A148: 照明控制箱 | B148: RNQ | C148: M | D148: 01X0D | E148: 启停控制 | F148: 4272.0 | H148: 验证通过 | I148: BOOL | J148: 广告 1层全局启停控制 | K148: =B148&VLOOKUP(A148,List!$B$3:$D$445,2,FALSE)&D148&"_"&VLOOKUP(E148,List!$K$2:$M$447,2,FALSE) -> RNQLCB01X0D_C | L148: RNQLCB01X0D_C AT%M4272.0 :BOOL; (*广告 1层全局启停控制*) | M148: RNQLCB01X0D_C AT%M4272.0 :BOOL; (*广告 1层全局启停控制*)
A149: 照明控制箱 | B149: RNQ | C149: M | D149: 02X0D | E149: 启停控制 | F149: 4274.0 | H149: 验证通过 | I149: BOOL | J149: 广告 2层全局启停控制 | K149: =B149&VLOOKUP(A149,List!$B$3:$D$445,2,FALSE)&D149&"_"&VLOOKUP(E149,List!$K$2:$M$447,2,FALSE) -> RNQLCB02X0D_C | L149: RNQLCB02X0D_C AT%M4274.0 :BOOL; (*广告 2层全局启停控制*) | M149: RNQLCB02X0D_C AT%M4274.0 :BOOL; (*广告 2层全局启停控制*)
A150: 照明控制箱 | B150: RNQ | C150: M | D150: 03X0D | E150: 启停控制 | F150: 4276.0 | H150: 验证通过 | I150: BOOL | J150: 广告 3层全局启停控制 | K150: =B150&VLOOKUP(A150,List!$B$3:$D$445,2,FALSE)&D150&"_"&VLOOKUP(E150,List!$K$2:$M$447,2,FALSE) -> RNQLCB03X0D_C | L150: RNQLCB03X0D_C AT%M4276.0 :BOOL; (*广告 3层全局启停控制*) | M150: RNQLCB03X0D_C AT%M4276.0 :BOOL; (*广告 3层全局启停控制*)
A151: 照明控制箱 | B151: RNQ | C151: M | D151: 04X0D | E151: 启停控制 | F151: 4278.0 | H151: 验证通过 | I151: BOOL | J151: 广告 4层全局启停控制 | K151: =B151&VLOOKUP(A151,List!$B$3:$D$445,2,FALSE)&D151&"_"&VLOOKUP(E151,List!$K$2:$M$447,2,FALSE) -> RNQLCB04X0D_C | L151: RNQLCB04X0D_C AT%M4278.0 :BOOL; (*广告 4层全局启停控制*) | M151: RNQLCB04X0D_C AT%M4278.0 :BOOL; (*广告 4层全局启停控制*)
A152: 照明控制箱 | B152: RNQ | C152: M | D152: 05X0D | E152: 启停控制 | F152: 4280.0 | H152: 验证通过 | I152: BOOL | J152: 广告 5层全局启停控制 | K152: =B152&VLOOKUP(A152,List!$B$3:$D$445,2,FALSE)&D152&"_"&VLOOKUP(E152,List!$K$2:$M$447,2,FALSE) -> RNQLCB05X0D_C | L152: RNQLCB05X0D_C AT%M4280.0 :BOOL; (*广告 5层全局启停控制*) | M152: RNQLCB05X0D_C AT%M4280.0 :BOOL; (*广告 5层全局启停控制*)
A153: 照明控制箱 | B153: RNQ | C153: M | D153: 06X0D | E153: 启停控制 | F153: 4282.0 | H153: 验证通过 | I153: BOOL | J153: 广告 6层全局启停控制 | K153: =B153&VLOOKUP(A153,List!$B$3:$D$445,2,FALSE)&D153&"_"&VLOOKUP(E153,List!$K$2:$M$447,2,FALSE) -> RNQLCB06X0D_C | L153: RNQLCB06X0D_C AT%M4282.0 :BOOL; (*广告 6层全局启停控制*) | M153: RNQLCB06X0D_C AT%M4282.0 :BOOL; (*广告 6层全局启停控制*)
A154: 照明控制箱 | B154: RNQ | C154: M | D154: 07X0D | E154: 启停控制 | F154: 4284.0 | H154: =IF((IF(OR(I154="INT",I154="WORD",I154="BOOL"),MOD(F154,2),MOD(F154,4)))=0,"验证通过","验证失败") -> 验证通过 | I154: BOOL | J154: 广告 7层全局启停控制 | K154: =B154&VLOOKUP(A154,List!$B$3:$D$445,2,FALSE)&D154&"_"&VLOOKUP(E154,List!$K$2:$M$447,2,FALSE) -> RNQLCB07X0D_C | L154: =K154&" "&"AT%"&C154&F154&" "&":"&I154&";"&" "&"(*"&J154&"*)" -> RNQLCB07X0D_C AT%M4284.0 :BOOL; (*广告 7层全局启停控制*) | M154: =REPLACE(REPLACE(L154,SEARCH("AT%",L154),,REPT(" ",25-SEARCH("AT%",L154))),SEARCH(":",REPLACE(L154,SEARCH("AT%",L154),,REPT(" ",25-SEARCH("AT%",L154)))),,REPT(" ",40-SEARCH(":",REPLACE(L154,SEARCH("AT%",L154),,REPT(" ",25-SEARCH("AT%",L154)))))) -> RNQLCB07X0D_C AT%M4284.0 :BOOL; (*广告 7层全局启停控制*)
A155: 照明控制箱 | B155: RNQ | C155: M | D155: 08X0D | E155: 启停控制 | F155: 4286.0 | H155: 验证通过 | I155: BOOL | J155: 广告 8层全局启停控制 | K155: =B155&VLOOKUP(A155,List!$B$3:$D$445,2,FALSE)&D155&"_"&VLOOKUP(E155,List!$K$2:$M$447,2,FALSE) -> RNQLCB08X0D_C | L155: RNQLCB08X0D_C AT%M4286.0 :BOOL; (*广告 8层全局启停控制*) | M155: RNQLCB08X0D_C AT%M4286.0 :BOOL; (*广告 8层全局启停控制*)
A156: 照明控制箱 | B156: RNQ | C156: M | D156: B3X0E | E156: 启停控制 | F156: 4288.0 | H156: 验证通过 | I156: BOOL | J156: 标识 B3层全局启停控制 | K156: =B156&VLOOKUP(A156,List!$B$3:$D$445,2,FALSE)&D156&"_"&VLOOKUP(E156,List!$K$2:$M$447,2,FALSE) -> RNQLCBB3X0E_C | L156: RNQLCBB3X0E_C AT%M4288.0 :BOOL; (*标识 B3层全局启停控制*) | M156: RNQLCBB3X0E_C AT%M4288.0 :BOOL; (*标识 B3层全局启停控制*)
A157: 照明控制箱 | B157: RNQ | C157: M | D157: B2X0E | E157: 启停控制 | F157: 4290.0 | H157: 验证通过 | I157: BOOL | J157: 标识 B2层全局启停控制 | K157: =B157&VLOOKUP(A157,List!$B$3:$D$445,2,FALSE)&D157&"_"&VLOOKUP(E157,List!$K$2:$M$447,2,FALSE) -> RNQLCBB2X0E_C | L157: RNQLCBB2X0E_C AT%M4290.0 :BOOL; (*标识 B2层全局启停控制*) | M157: RNQLCBB2X0E_C AT%M4290.0 :BOOL; (*标识 B2层全局启停控制*)
A158: 照明控制箱 | B158: RNQ | C158: M | D158: B1X0E | E158: 启停控制 | F158: 4292.0 | H158: 验证通过 | I158: BOOL | J158: 标识 B1层全局启停控制 | K158: =B158&VLOOKUP(A158,List!$B$3:$D$445,2,FALSE)&D158&"_"&VLOOKUP(E158,List!$K$2:$M$447,2,FALSE) -> RNQLCBB1X0E_C | L158: RNQLCBB1X0E_C AT%M4292.0 :BOOL; (*标识 B1层全局启停控制*) | M158: RNQLCBB1X0E_C AT%M4292.0 :BOOL; (*标识 B1层全局启停控制*)
A159: 照明控制箱 | B159: RNQ | C159: M | D159: 01X0E | E159: 启停控制 | F159: 4294.0 | H159: 验证通过 | I159: BOOL | J159: 标识 1层全局启停控制 | K159: =B159&VLOOKUP(A159,List!$B$3:$D$445,2,FALSE)&D159&"_"&VLOOKUP(E159,List!$K$2:$M$447,2,FALSE) -> RNQLCB01X0E_C | L159: RNQLCB01X0E_C AT%M4294.0 :BOOL; (*标识 1层全局启停控制*) | M159: RNQLCB01X0E_C AT%M4294.0 :BOOL; (*标识 1层全局启停控制*)
A160: 照明控制箱 | B160: RNQ | C160: M | D160: 02X0E | E160: 启停控制 | F160: 4296.0 | H160: 验证通过 | I160: BOOL | J160: 标识 2层全局启停控制 | K160: =B160&VLOOKUP(A160,List!$B$3:$D$445,2,FALSE)&D160&"_"&VLOOKUP(E160,List!$K$2:$M$447,2,FALSE) -> RNQLCB02X0E_C | L160: RNQLCB02X0E_C AT%M4296.0 :BOOL; (*标识 2层全局启停控制*) | M160: RNQLCB02X0E_C AT%M4296.0 :BOOL; (*标识 2层全局启停控制*)
A161: 照明控制箱 | B161: RNQ | C161: M | D161: 03X0E | E161: 启停控制 | F161: 4298.0 | H161: =IF((IF(OR(I161="INT",I161="WORD",I161="BOOL"),MOD(F161,2),MOD(F161,4)))=0,"验证通过","验证失败") -> 验证通过 | I161: BOOL | J161: 标识 3层全局启停控制 | K161: =B161&VLOOKUP(A161,List!$B$3:$D$445,2,FALSE)&D161&"_"&VLOOKUP(E161,List!$K$2:$M$447,2,FALSE) -> RNQLCB03X0E_C | L161: RNQLCB03X0E_C AT%M4298.0 :BOOL; (*标识 3层全局启停控制*) | M161: RNQLCB03X0E_C AT%M4298.0 :BOOL; (*标识 3层全局启停控制*)
A162: 照明控制箱 | B162: RNQ | C162: M | D162: 04X0E | E162: 启停控制 | F162: 4300.0 | H162: 验证通过 | I162: BOOL | J162: 标识 4层全局启停控制 | K162: =B162&VLOOKUP(A162,List!$B$3:$D$445,2,FALSE)&D162&"_"&VLOOKUP(E162,List!$K$2:$M$447,2,FALSE) -> RNQLCB04X0E_C | L162: RNQLCB04X0E_C AT%M4300.0 :BOOL; (*标识 4层全局启停控制*) | M162: RNQLCB04X0E_C AT%M4300.0 :BOOL; (*标识 4层全局启停控制*)
A163: 照明控制箱 | B163: RNQ | C163: M | D163: 05X0E | E163: 启停控制 | F163: 4302.0 | H163: 验证通过 | I163: BOOL | J163: 标识 5层全局启停控制 | K163: =B163&VLOOKUP(A163,List!$B$3:$D$445,2,FALSE)&D163&"_"&VLOOKUP(E163,List!$K$2:$M$447,2,FALSE) -> RNQLCB05X0E_C | L163: RNQLCB05X0E_C AT%M4302.0 :BOOL; (*标识 5层全局启停控制*) | M163: RNQLCB05X0E_C AT%M4302.0 :BOOL; (*标识 5层全局启停控制*)
A164: 照明控制箱 | B164: RNQ | C164: M | D164: 06X0E | E164: 启停控制 | F164: 4304.0 | H164: 验证通过 | I164: BOOL | J164: 标识 6层全局启停控制 | K164: =B164&VLOOKUP(A164,List!$B$3:$D$445,2,FALSE)&D164&"_"&VLOOKUP(E164,List!$K$2:$M$447,2,FALSE) -> RNQLCB06X0E_C | L164: RNQLCB06X0E_C AT%M4304.0 :BOOL; (*标识 6层全局启停控制*) | M164: =REPLACE(REPLACE(L164,SEARCH("AT%",L164),,REPT(" ",25-SEARCH("AT%",L164))),SEARCH(":",REPLACE(L164,SEARCH("AT%",L164),,REPT(" ",25-SEARCH("AT%",L164)))),,REPT(" ",40-SEARCH(":",REPLACE(L164,SEARCH("AT%",L164),,REPT(" ",25-SEARCH("AT%",L164)))))) -> RNQLCB06X0E_C AT%M4304.0 :BOOL; (*标识 6层全局启停控制*)
A165: 照明控制箱 | B165: RNQ | C165: M | D165: 07X0E | E165: 启停控制 | F165: 4306.0 | H165: 验证通过 | I165: BOOL | J165: 标识 7层全局启停控制 | K165: =B165&VLOOKUP(A165,List!$B$3:$D$445,2,FALSE)&D165&"_"&VLOOKUP(E165,List!$K$2:$M$447,2,FALSE) -> RNQLCB07X0E_C | L165: =K165&" "&"AT%"&C165&F165&" "&":"&I165&";"&" "&"(*"&J165&"*)" -> RNQLCB07X0E_C AT%M4306.0 :BOOL; (*标识 7层全局启停控制*) | M165: RNQLCB07X0E_C AT%M4306.0 :BOOL; (*标识 7层全局启停控制*)
A166: 照明控制箱 | B166: RNQ | C166: M | D166: 08X0E | E166: 启停控制 | F166: 4308.0 | H166: 验证通过 | I166: BOOL | J166: 标识 8层全局启停控制 | K166: =B166&VLOOKUP(A166,List!$B$3:$D$445,2,FALSE)&D166&"_"&VLOOKUP(E166,List!$K$2:$M$447,2,FALSE) -> RNQLCB08X0E_C | L166: RNQLCB08X0E_C AT%M4308.0 :BOOL; (*标识 8层全局启停控制*) | M166: =REPLACE(REPLACE(L166,SEARCH("AT%",L166),,REPT(" ",25-SEARCH("AT%",L166))),SEARCH(":",REPLACE(L166,SEARCH("AT%",L166),,REPT(" ",25-SEARCH("AT%",L166)))),,REPT(" ",40-SEARCH(":",REPLACE(L166,SEARCH("AT%",L166),,REPT(" ",25-SEARCH("AT%",L166)))))) -> RNQLCB08X0E_C AT%M4308.0 :BOOL; (*标识 8层全局启停控制*)
A167: 照明控制箱 | B167: RNQ | C167: M | D167: B3X0F | E167: 启停控制 | F167: 4310.0 | H167: 验证通过 | I167: BOOL | J167: 备用 B3层全局启停控制 | K167: =B167&VLOOKUP(A167,List!$B$3:$D$445,2,FALSE)&D167&"_"&VLOOKUP(E167,List!$K$2:$M$447,2,FALSE) -> RNQLCBB3X0F_C | L167: RNQLCBB3X0F_C AT%M4310.0 :BOOL; (*备用 B3层全局启停控制*) | M167: RNQLCBB3X0F_C AT%M4310.0 :BOOL; (*备用 B3层全局启停控制*)
A168: 照明控制箱 | B168: RNQ | C168: M | D168: B2X0F | E168: 启停控制 | F168: 4312.0 | H168: 验证通过 | I168: BOOL | J168: 备用 B2层全局启停控制 | K168: =B168&VLOOKUP(A168,List!$B$3:$D$445,2,FALSE)&D168&"_"&VLOOKUP(E168,List!$K$2:$M$447,2,FALSE) -> RNQLCBB2X0F_C | L168: RNQLCBB2X0F_C AT%M4312.0 :BOOL; (*备用 B2层全局启停控制*) | M168: RNQLCBB2X0F_C AT%M4312.0 :BOOL; (*备用 B2层全局启停控制*)
A169: 照明控制箱 | B169: RNQ | C169: M | D169: B1X0F | E169: 启停控制 | F169: 4314.0 | H169: 验证通过 | I169: BOOL | J169: 备用 B1层全局启停控制 | K169: =B169&VLOOKUP(A169,List!$B$3:$D$445,2,FALSE)&D169&"_"&VLOOKUP(E169,List!$K$2:$M$447,2,FALSE) -> RNQLCBB1X0F_C | L169: RNQLCBB1X0F_C AT%M4314.0 :BOOL; (*备用 B1层全局启停控制*) | M169: RNQLCBB1X0F_C AT%M4314.0 :BOOL; (*备用 B1层全局启停控制*)
A170: 照明控制箱 | B170: RNQ | C170: M | D170: 01X0F | E170: 启停控制 | F170: 4316.0 | H170: 验证通过 | I170: BOOL | J170: 备用 1层全局启停控制 | K170: =B170&VLOOKUP(A170,List!$B$3:$D$445,2,FALSE)&D170&"_"&VLOOKUP(E170,List!$K$2:$M$447,2,FALSE) -> RNQLCB01X0F_C | L170: RNQLCB01X0F_C AT%M4316.0 :BOOL; (*备用 1层全局启停控制*) | M170: RNQLCB01X0F_C AT%M4316.0 :BOOL; (*备用 1层全局启停控制*)
A171: 照明控制箱 | B171: RNQ | C171: M | D171: 02X0F | E171: 启停控制 | F171: 4318.0 | H171: 验证通过 | I171: BOOL | J171: 备用 2层全局启停控制 | K171: =B171&VLOOKUP(A171,List!$B$3:$D$445,2,FALSE)&D171&"_"&VLOOKUP(E171,List!$K$2:$M$447,2,FALSE) -> RNQLCB02X0F_C | L171: RNQLCB02X0F_C AT%M4318.0 :BOOL; (*备用 2层全局启停控制*) | M171: RNQLCB02X0F_C AT%M4318.0 :BOOL; (*备用 2层全局启停控制*)
A172: 照明控制箱 | B172: RNQ | C172: M | D172: 03X0F | E172: 启停控制 | F172: 4320.0 | H172: 验证通过 | I172: BOOL | J172: 备用 3层全局启停控制 | K172: =B172&VLOOKUP(A172,List!$B$3:$D$445,2,FALSE)&D172&"_"&VLOOKUP(E172,List!$K$2:$M$447,2,FALSE) -> RNQLCB03X0F_C | L172: RNQLCB03X0F_C AT%M4320.0 :BOOL; (*备用 3层全局启停控制*) | M172: RNQLCB03X0F_C AT%M4320.0 :BOOL; (*备用 3层全局启停控制*)
A173: 照明控制箱 | B173: RNQ | C173: M | D173: 04X0F | E173: 启停控制 | F173: 4322.0 | H173: 验证通过 | I173: BOOL | J173: 备用 4层全局启停控制 | K173: =B173&VLOOKUP(A173,List!$B$3:$D$445,2,FALSE)&D173&"_"&VLOOKUP(E173,List!$K$2:$M$447,2,FALSE) -> RNQLCB04X0F_C | L173: RNQLCB04X0F_C AT%M4322.0 :BOOL; (*备用 4层全局启停控制*) | M173: RNQLCB04X0F_C AT%M4322.0 :BOOL; (*备用 4层全局启停控制*)
A174: 照明控制箱 | B174: RNQ | C174: M | D174: 05X0F | E174: 启停控制 | F174: 4324.0 | H174: 验证通过 | I174: BOOL | J174: 备用 5层全局启停控制 | K174: =B174&VLOOKUP(A174,List!$B$3:$D$445,2,FALSE)&D174&"_"&VLOOKUP(E174,List!$K$2:$M$447,2,FALSE) -> RNQLCB05X0F_C | L174: RNQLCB05X0F_C AT%M4324.0 :BOOL; (*备用 5层全局启停控制*) | M174: RNQLCB05X0F_C AT%M4324.0 :BOOL; (*备用 5层全局启停控制*)
A175: 照明控制箱 | B175: RNQ | C175: M | D175: 06X0F | E175: 启停控制 | F175: 4326.0 | H175: 验证通过 | I175: BOOL | J175: 备用 6层全局启停控制 | K175: =B175&VLOOKUP(A175,List!$B$3:$D$445,2,FALSE)&D175&"_"&VLOOKUP(E175,List!$K$2:$M$447,2,FALSE) -> RNQLCB06X0F_C | L175: RNQLCB06X0F_C AT%M4326.0 :BOOL; (*备用 6层全局启停控制*) | M175: RNQLCB06X0F_C AT%M4326.0 :BOOL; (*备用 6层全局启停控制*)
A176: 照明控制箱 | B176: RNQ | C176: M | D176: 07X0F | E176: 启停控制 | F176: 4328.0 | H176: 验证通过 | I176: BOOL | J176: 备用 7层全局启停控制 | K176: =B176&VLOOKUP(A176,List!$B$3:$D$445,2,FALSE)&D176&"_"&VLOOKUP(E176,List!$K$2:$M$447,2,FALSE) -> RNQLCB07X0F_C | L176: =K176&" "&"AT%"&C176&F176&" "&":"&I176&";"&" "&"(*"&J176&"*)" -> RNQLCB07X0F_C AT%M4328.0 :BOOL; (*备用 7层全局启停控制*) | M176: =REPLACE(REPLACE(L176,SEARCH("AT%",L176),,REPT(" ",25-SEARCH("AT%",L176))),SEARCH(":",REPLACE(L176,SEARCH("AT%",L176),,REPT(" ",25-SEARCH("AT%",L176)))),,REPT(" ",40-SEARCH(":",REPLACE(L176,SEARCH("AT%",L176),,REPT(" ",25-SEARCH("AT%",L176)))))) -> RNQLCB07X0F_C AT%M4328.0 :BOOL; (*备用 7层全局启停控制*)
A177: 照明控制箱 | B177: RNQ | C177: M | D177: 08X0F | E177: 启停控制 | F177: =IF(OR(I176="REAL",I176="DWORD",I176="DINT"),(IF(OR(I177="REAL",I177="DWORD",I177="DINT"),F176+4+MOD(F176,4),F176+4)),(IF(OR(I177="REAL",I177="DWORD",I177="DINT"),F176+4+MOD(F176,4),F176+2)))&".0" -> 4330.0 | H177: 验证通过 | I177: BOOL | J177: 备用 8层全局启停控制 | K177: =B177&VLOOKUP(A177,List!$B$3:$D$445,2,FALSE)&D177&"_"&VLOOKUP(E177,List!$K$2:$M$447,2,FALSE) -> RNQLCB08X0F_C | L177: RNQLCB08X0F_C AT%M4330.0 :BOOL; (*备用 8层全局启停控制*) | M177: RNQLCB08X0F_C AT%M4330.0 :BOOL; (*备用 8层全局启停控制*)
A178: 照明控制箱 | B178: RNQ | C178: M | D178: B3X0G | E178: 启停控制 | F178: 4332.0 | H178: 验证通过 | I178: BOOL | J178: 备用 B3层全局启停控制 | K178: =B178&VLOOKUP(A178,List!$B$3:$D$445,2,FALSE)&D178&"_"&VLOOKUP(E178,List!$K$2:$M$447,2,FALSE) -> RNQLCBB3X0G_C | L178: RNQLCBB3X0G_C AT%M4332.0 :BOOL; (*备用 B3层全局启停控制*) | M178: RNQLCBB3X0G_C AT%M4332.0 :BOOL; (*备用 B3层全局启停控制*)
A179: 照明控制箱 | B179: RNQ | C179: M | D179: B2X0G | E179: 启停控制 | F179: 4334.0 | H179: 验证通过 | I179: BOOL | J179: 备用 B2层全局启停控制 | K179: =B179&VLOOKUP(A179,List!$B$3:$D$445,2,FALSE)&D179&"_"&VLOOKUP(E179,List!$K$2:$M$447,2,FALSE) -> RNQLCBB2X0G_C | L179: RNQLCBB2X0G_C AT%M4334.0 :BOOL; (*备用 B2层全局启停控制*) | M179: RNQLCBB2X0G_C AT%M4334.0 :BOOL; (*备用 B2层全局启停控制*)
A180: 照明控制箱 | B180: RNQ | C180: M | D180: B1X0G | E180: 启停控制 | F180: 4336.0 | H180: 验证通过 | I180: BOOL | J180: 备用 B1层全局启停控制 | K180: =B180&VLOOKUP(A180,List!$B$3:$D$445,2,FALSE)&D180&"_"&VLOOKUP(E180,List!$K$2:$M$447,2,FALSE) -> RNQLCBB1X0G_C | L180: RNQLCBB1X0G_C AT%M4336.0 :BOOL; (*备用 B1层全局启停控制*) | M180: RNQLCBB1X0G_C AT%M4336.0 :BOOL; (*备用 B1层全局启停控制*)
A181: 照明控制箱 | B181: RNQ | C181: M | D181: 01X0G | E181: 启停控制 | F181: 4338.0 | H181: 验证通过 | I181: BOOL | J181: 备用 1层全局启停控制 | K181: =B181&VLOOKUP(A181,List!$B$3:$D$445,2,FALSE)&D181&"_"&VLOOKUP(E181,List!$K$2:$M$447,2,FALSE) -> RNQLCB01X0G_C | L181: RNQLCB01X0G_C AT%M4338.0 :BOOL; (*备用 1层全局启停控制*) | M181: RNQLCB01X0G_C AT%M4338.0 :BOOL; (*备用 1层全局启停控制*)
A182: 照明控制箱 | B182: RNQ | C182: M | D182: 02X0G | E182: 启停控制 | F182: 4340.0 | H182: 验证通过 | I182: BOOL | J182: 备用 2层全局启停控制 | K182: =B182&VLOOKUP(A182,List!$B$3:$D$445,2,FALSE)&D182&"_"&VLOOKUP(E182,List!$K$2:$M$447,2,FALSE) -> RNQLCB02X0G_C | L182: RNQLCB02X0G_C AT%M4340.0 :BOOL; (*备用 2层全局启停控制*) | M182: RNQLCB02X0G_C AT%M4340.0 :BOOL; (*备用 2层全局启停控制*)
A183: 照明控制箱 | B183: RNQ | C183: M | D183: 03X0G | E183: 启停控制 | F183: 4342.0 | H183: 验证通过 | I183: BOOL | J183: 备用 3层全局启停控制 | K183: =B183&VLOOKUP(A183,List!$B$3:$D$445,2,FALSE)&D183&"_"&VLOOKUP(E183,List!$K$2:$M$447,2,FALSE) -> RNQLCB03X0G_C | L183: RNQLCB03X0G_C AT%M4342.0 :BOOL; (*备用 3层全局启停控制*) | M183: RNQLCB03X0G_C AT%M4342.0 :BOOL; (*备用 3层全局启停控制*)
A184: 照明控制箱 | B184: RNQ | C184: M | D184: 04X0G | E184: 启停控制 | F184: 4344.0 | H184: 验证通过 | I184: BOOL | J184: 备用 4层全局启停控制 | K184: =B184&VLOOKUP(A184,List!$B$3:$D$445,2,FALSE)&D184&"_"&VLOOKUP(E184,List!$K$2:$M$447,2,FALSE) -> RNQLCB04X0G_C | L184: RNQLCB04X0G_C AT%M4344.0 :BOOL; (*备用 4层全局启停控制*) | M184: RNQLCB04X0G_C AT%M4344.0 :BOOL; (*备用 4层全局启停控制*)
A185: 照明控制箱 | B185: RNQ | C185: M | D185: 05X0G | E185: 启停控制 | F185: 4346.0 | H185: 验证通过 | I185: BOOL | J185: 备用 5层全局启停控制 | K185: =B185&VLOOKUP(A185,List!$B$3:$D$445,2,FALSE)&D185&"_"&VLOOKUP(E185,List!$K$2:$M$447,2,FALSE) -> RNQLCB05X0G_C | L185: RNQLCB05X0G_C AT%M4346.0 :BOOL; (*备用 5层全局启停控制*) | M185: RNQLCB05X0G_C AT%M4346.0 :BOOL; (*备用 5层全局启停控制*)
A186: 照明控制箱 | B186: RNQ | C186: M | D186: 06X0G | E186: 启停控制 | F186: 4348.0 | H186: 验证通过 | I186: BOOL | J186: 备用 6层全局启停控制 | K186: =B186&VLOOKUP(A186,List!$B$3:$D$445,2,FALSE)&D186&"_"&VLOOKUP(E186,List!$K$2:$M$447,2,FALSE) -> RNQLCB06X0G_C | L186: RNQLCB06X0G_C AT%M4348.0 :BOOL; (*备用 6层全局启停控制*) | M186: RNQLCB06X0G_C AT%M4348.0 :BOOL; (*备用 6层全局启停控制*)
A187: 照明控制箱 | B187: RNQ | C187: M | D187: 07X0G | E187: 启停控制 | F187: 4350.0 | H187: 验证通过 | I187: BOOL | J187: 备用 7层全局启停控制 | K187: =B187&VLOOKUP(A187,List!$B$3:$D$445,2,FALSE)&D187&"_"&VLOOKUP(E187,List!$K$2:$M$447,2,FALSE) -> RNQLCB07X0G_C | L187: =K187&" "&"AT%"&C187&F187&" "&":"&I187&";"&" "&"(*"&J187&"*)" -> RNQLCB07X0G_C AT%M4350.0 :BOOL; (*备用 7层全局启停控制*) | M187: =REPLACE(REPLACE(L187,SEARCH("AT%",L187),,REPT(" ",25-SEARCH("AT%",L187))),SEARCH(":",REPLACE(L187,SEARCH("AT%",L187),,REPT(" ",25-SEARCH("AT%",L187)))),,REPT(" ",40-SEARCH(":",REPLACE(L187,SEARCH("AT%",L187),,REPT(" ",25-SEARCH("AT%",L187)))))) -> RNQLCB07X0G_C AT%M4350.0 :BOOL; (*备用 7层全局启停控制*)
A188: 照明控制箱 | B188: RNQ | C188: M | D188: 08X0G | E188: 启停控制 | F188: 4352.0 | H188: 验证通过 | I188: BOOL | J188: 备用 8层全局启停控制 | K188: =B188&VLOOKUP(A188,List!$B$3:$D$445,2,FALSE)&D188&"_"&VLOOKUP(E188,List!$K$2:$M$447,2,FALSE) -> RNQLCB08X0G_C | L188: RNQLCB08X0G_C AT%M4352.0 :BOOL; (*备用 8层全局启停控制*) | M188: RNQLCB08X0G_C AT%M4352.0 :BOOL; (*备用 8层全局启停控制*)
A189: 照明控制箱 | B189: RNQ | C189: M | D189: B3X0H | E189: 启停控制 | F189: 4354.0 | H189: 验证通过 | I189: BOOL | J189: 备用 B3层全局启停控制 | K189: =B189&VLOOKUP(A189,List!$B$3:$D$445,2,FALSE)&D189&"_"&VLOOKUP(E189,List!$K$2:$M$447,2,FALSE) -> RNQLCBB3X0H_C | L189: RNQLCBB3X0H_C AT%M4354.0 :BOOL; (*备用 B3层全局启停控制*) | M189: RNQLCBB3X0H_C AT%M4354.0 :BOOL; (*备用 B3层全局启停控制*)
A190: 照明控制箱 | B190: RNQ | C190: M | D190: B2X0H | E190: 启停控制 | F190: 4356.0 | H190: 验证通过 | I190: BOOL | J190: 备用 B2层全局启停控制 | K190: =B190&VLOOKUP(A190,List!$B$3:$D$445,2,FALSE)&D190&"_"&VLOOKUP(E190,List!$K$2:$M$447,2,FALSE) -> RNQLCBB2X0H_C | L190: RNQLCBB2X0H_C AT%M4356.0 :BOOL; (*备用 B2层全局启停控制*) | M190: RNQLCBB2X0H_C AT%M4356.0 :BOOL; (*备用 B2层全局启停控制*)
A191: 照明控制箱 | B191: RNQ | C191: M | D191: B1X0H | E191: 启停控制 | F191: 4358.0 | H191: 验证通过 | I191: BOOL | J191: 备用 B1层全局启停控制 | K191: =B191&VLOOKUP(A191,List!$B$3:$D$445,2,FALSE)&D191&"_"&VLOOKUP(E191,List!$K$2:$M$447,2,FALSE) -> RNQLCBB1X0H_C | L191: RNQLCBB1X0H_C AT%M4358.0 :BOOL; (*备用 B1层全局启停控制*) | M191: RNQLCBB1X0H_C AT%M4358.0 :BOOL; (*备用 B1层全局启停控制*)
A192: 照明控制箱 | B192: RNQ | C192: M | D192: 01X0H | E192: 启停控制 | F192: 4360.0 | H192: 验证通过 | I192: BOOL | J192: 备用 1层全局启停控制 | K192: =B192&VLOOKUP(A192,List!$B$3:$D$445,2,FALSE)&D192&"_"&VLOOKUP(E192,List!$K$2:$M$447,2,FALSE) -> RNQLCB01X0H_C | L192: RNQLCB01X0H_C AT%M4360.0 :BOOL; (*备用 1层全局启停控制*) | M192: RNQLCB01X0H_C AT%M4360.0 :BOOL; (*备用 1层全局启停控制*)
A193: 照明控制箱 | B193: RNQ | C193: M | D193: 02X0H | E193: 启停控制 | F193: 4362.0 | H193: 验证通过 | I193: BOOL | J193: 备用 2层全局启停控制 | K193: =B193&VLOOKUP(A193,List!$B$3:$D$445,2,FALSE)&D193&"_"&VLOOKUP(E193,List!$K$2:$M$447,2,FALSE) -> RNQLCB02X0H_C | L193: RNQLCB02X0H_C AT%M4362.0 :BOOL; (*备用 2层全局启停控制*) | M193: RNQLCB02X0H_C AT%M4362.0 :BOOL; (*备用 2层全局启停控制*)
A194: 照明控制箱 | B194: RNQ | C194: M | D194: 03X0H | E194: 启停控制 | F194: 4364.0 | H194: 验证通过 | I194: BOOL | J194: 备用 3层全局启停控制 | K194: =B194&VLOOKUP(A194,List!$B$3:$D$445,2,FALSE)&D194&"_"&VLOOKUP(E194,List!$K$2:$M$447,2,FALSE) -> RNQLCB03X0H_C | L194: RNQLCB03X0H_C AT%M4364.0 :BOOL; (*备用 3层全局启停控制*) | M194: RNQLCB03X0H_C AT%M4364.0 :BOOL; (*备用 3层全局启停控制*)
A195: 照明控制箱 | B195: RNQ | C195: M | D195: 04X0H | E195: 启停控制 | F195: 4366.0 | H195: 验证通过 | I195: BOOL | J195: 备用 4层全局启停控制 | K195: =B195&VLOOKUP(A195,List!$B$3:$D$445,2,FALSE)&D195&"_"&VLOOKUP(E195,List!$K$2:$M$447,2,FALSE) -> RNQLCB04X0H_C | L195: RNQLCB04X0H_C AT%M4366.0 :BOOL; (*备用 4层全局启停控制*) | M195: RNQLCB04X0H_C AT%M4366.0 :BOOL; (*备用 4层全局启停控制*)
A196: 照明控制箱 | B196: RNQ | C196: M | D196: 05X0H | E196: 启停控制 | F196: 4368.0 | H196: 验证通过 | I196: BOOL | J196: 备用 5层全局启停控制 | K196: =B196&VLOOKUP(A196,List!$B$3:$D$445,2,FALSE)&D196&"_"&VLOOKUP(E196,List!$K$2:$M$447,2,FALSE) -> RNQLCB05X0H_C | L196: =K196&" "&"AT%"&C196&F196&" "&":"&I196&";"&" "&"(*"&J196&"*)" -> RNQLCB05X0H_C AT%M4368.0 :BOOL; (*备用 5层全局启停控制*) | M196: RNQLCB05X0H_C AT%M4368.0 :BOOL; (*备用 5层全局启停控制*)
A197: 照明控制箱 | B197: RNQ | C197: M | D197: 06X0H | E197: 启停控制 | F197: 4370.0 | H197: 验证通过 | I197: BOOL | J197: 备用 6层全局启停控制 | K197: =B197&VLOOKUP(A197,List!$B$3:$D$445,2,FALSE)&D197&"_"&VLOOKUP(E197,List!$K$2:$M$447,2,FALSE) -> RNQLCB06X0H_C | L197: RNQLCB06X0H_C AT%M4370.0 :BOOL; (*备用 6层全局启停控制*) | M197: RNQLCB06X0H_C AT%M4370.0 :BOOL; (*备用 6层全局启停控制*)
A198: 照明控制箱 | B198: RNQ | C198: M | D198: 07X0H | E198: 启停控制 | F198: 4372.0 | H198: 验证通过 | I198: BOOL | J198: 备用 7层全局启停控制 | K198: =B198&VLOOKUP(A198,List!$B$3:$D$445,2,FALSE)&D198&"_"&VLOOKUP(E198,List!$K$2:$M$447,2,FALSE) -> RNQLCB07X0H_C | L198: =K198&" "&"AT%"&C198&F198&" "&":"&I198&";"&" "&"(*"&J198&"*)" -> RNQLCB07X0H_C AT%M4372.0 :BOOL; (*备用 7层全局启停控制*) | M198: =REPLACE(REPLACE(L198,SEARCH("AT%",L198),,REPT(" ",25-SEARCH("AT%",L198))),SEARCH(":",REPLACE(L198,SEARCH("AT%",L198),,REPT(" ",25-SEARCH("AT%",L198)))),,REPT(" ",40-SEARCH(":",REPLACE(L198,SEARCH("AT%",L198),,REPT(" ",25-SEARCH("AT%",L198)))))) -> RNQLCB07X0H_C AT%M4372.0 :BOOL; (*备用 7层全局启停控制*)
A199: 照明控制箱 | B199: RNQ | C199: M | D199: 08X0H | E199: 启停控制 | F199: 4374.0 | H199: 验证通过 | I199: BOOL | J199: 备用 8层全局启停控制 | K199: =B199&VLOOKUP(A199,List!$B$3:$D$445,2,FALSE)&D199&"_"&VLOOKUP(E199,List!$K$2:$M$447,2,FALSE) -> RNQLCB08X0H_C | L199: RNQLCB08X0H_C AT%M4374.0 :BOOL; (*备用 8层全局启停控制*) | M199: RNQLCB08X0H_C AT%M4374.0 :BOOL; (*备用 8层全局启停控制*)
A200: P新风机组 | B200: RNQ | C200: M | D200: 05X00 | E200: 设定温度值 | F200: 4380.0 | H200: 验证通过 | I200: REAL | J200: 新风机组5层温度全局设定 | K200: =B200&VLOOKUP(A200,List!$B$3:$D$445,2,FALSE)&D200&"_"&VLOOKUP(E200,List!$K$2:$M$447,2,FALSE) -> RNQPAU05X00_TSET | L200: RNQPAU05X00_TSET AT%M4380.0 :REAL; (*新风机组5层温度全局设定*) | M200: RNQPAU05X00_TSET AT%M4380.0 :REAL; (*新风机组5层温度全局设定*)
A201: P新风机组 | B201: RNQ | C201: M | D201: 06X00 | E201: 设定温度值 | F201: 4384.0 | H201: 验证通过 | I201: REAL | J201: 新风机组6层温度全局设定 | K201: =B201&VLOOKUP(A201,List!$B$3:$D$445,2,FALSE)&D201&"_"&VLOOKUP(E201,List!$K$2:$M$447,2,FALSE) -> RNQPAU06X00_TSET | L201: RNQPAU06X00_TSET AT%M4384.0 :REAL; (*新风机组6层温度全局设定*) | M201: RNQPAU06X00_TSET AT%M4384.0 :REAL; (*新风机组6层温度全局设定*)
... 768 more rows

Sheet 从CPU
A1: NI 0-1023 NQ 1024-2047
A2: 设备类型 | B2: 总线编号 | C2: P2P标记 | D2: 程序编号 | E2: 点位功能 | F2: 发送地址 接收地址 | H2: 数据类型 整除验证 | I2: 数据类型 | J2: 变量备注 | K2: 变量名.auto | L2: 编程变量声明.auto | M2: 编程变量声明(结构整理).auto
A4: 从CPU（地上）接收 | F4: 接收地址 | G4: 发送地址.auto
A5: 命令 | B5: RNI | C5: M | D5: 00000 | E5: 心跳值 | F5: 5000.0 | H5: =IF((IF(OR(I5="INT",I5="WORD",I5="BOOL"),MOD(F5,2),MOD(F5,4)))=0,"验证通过","验证失败") -> 验证通过 | I5: INT | J5: 心跳值 | K5: =B5&VLOOKUP(A5,List!$B$3:$D$445,2,FALSE)&D5&"_"&VLOOKUP(E5,List!$K$2:$M$447,2,FALSE) -> RNICMD00000_DHV | L5: =K5&" "&"AT%"&C5&F5&" "&":"&I5&";"&" "&"(*"&J5&"*)" -> RNICMD00000_DHV AT%M5000.0 :INT; (*心跳值*) | M5: =REPLACE(REPLACE(L5,SEARCH("AT%",L5),,REPT(" ",25-SEARCH("AT%",L5))),SEARCH(":",REPLACE(L5,SEARCH("AT%",L5),,REPT(" ",25-SEARCH("AT%",L5)))),,REPT(" ",40-SEARCH(":",REPLACE(L5,SEARCH("AT%",L5),,REPT(" ",25-SEARCH("AT%",L5)))))) -> RNICMD00000_DHV AT%M5000.0 :INT; (*心跳值*)
A6: 空调机组 | B6: RNI | C6: M | D6: 00000 | E6: 新云模式 | F6: =IF(OR(I5="REAL",I5="DWORD",I5="DINT"),(IF(OR(I6="REAL",I6="DWORD",I6="DINT"),F5+4+MOD(F5,4),F5+4)),(IF(OR(I6="REAL",I6="DWORD",I6="DINT"),F5+4+MOD(F5,4),F5+2)))&".0" -> 5002.0 | H6: 验证通过 | I6: BOOL | J6: 空调机组新云模式 | K6: =B6&VLOOKUP(A6,List!$B$3:$D$445,2,FALSE)&D6&"_"&VLOOKUP(E6,List!$K$2:$M$447,2,FALSE) -> RNIAHU00000_CM | L6: RNIAHU00000_CM AT%M5002.0 :BOOL; (*空调机组新云模式*) | M6: RNIAHU00000_CM AT%M5002.0 :BOOL; (*空调机组新云模式*)
A7: 风机盘管 | B7: RNI | C7: M | D7: 00000 | E7: 新云模式 | F7: =IF(OR(I6="REAL",I6="DWORD",I6="DINT"),(IF(OR(I7="REAL",I7="DWORD",I7="DINT"),F6+4+MOD(F6,4),F6+4)),(IF(OR(I7="REAL",I7="DWORD",I7="DINT"),F6+4+MOD(F6,4),F6+2)))&".0" -> 5004.0 | H7: 验证通过 | I7: BOOL | J7: 风机盘管新云模式 | K7: =B7&VLOOKUP(A7,List!$B$3:$D$445,2,FALSE)&D7&"_"&VLOOKUP(E7,List!$K$2:$M$447,2,FALSE) -> RNIFCU00000_CM | L7: RNIFCU00000_CM AT%M5004.0 :BOOL; (*风机盘管新云模式*) | M7: RNIFCU00000_CM AT%M5004.0 :BOOL; (*风机盘管新云模式*)
A8: 照明控制箱 | B8: RNI | C8: M | D8: 00000 | E8: 新云模式 | F8: 5006.0 | H8: 验证通过 | I8: BOOL | J8: 照明控制箱新云模式 | K8: =B8&VLOOKUP(A8,List!$B$3:$D$445,2,FALSE)&D8&"_"&VLOOKUP(E8,List!$K$2:$M$447,2,FALSE) -> RNILCB00000_CM | L8: =K8&" "&"AT%"&C8&F8&" "&":"&I8&";"&" "&"(*"&J8&"*)" -> RNILCB00000_CM AT%M5006.0 :BOOL; (*照明控制箱新云模式*) | M8: =REPLACE(REPLACE(L8,SEARCH("AT%",L8),,REPT(" ",25-SEARCH("AT%",L8))),SEARCH(":",REPLACE(L8,SEARCH("AT%",L8),,REPT(" ",25-SEARCH("AT%",L8)))),,REPT(" ",40-SEARCH(":",REPLACE(L8,SEARCH("AT%",L8),,REPT(" ",25-SEARCH("AT%",L8)))))) -> RNILCB00000_CM AT%M5006.0 :BOOL; (*照明控制箱新云模式*)
A9: 排风机 | B9: RNI | C9: M | D9: 00000 | E9: 新云模式 | F9: 5008.0 | H9: 验证通过 | I9: BOOL | J9: 送排风机新云模式 | K9: =B9&VLOOKUP(A9,List!$B$3:$D$445,2,FALSE)&D9&"_"&VLOOKUP(E9,List!$K$2:$M$447,2,FALSE) -> RNIEAF00000_CM | L9: =K9&" "&"AT%"&C9&F9&" "&":"&I9&";"&" "&"(*"&J9&"*)" -> RNIEAF00000_CM AT%M5008.0 :BOOL; (*送排风机新云模式*) | M9: =REPLACE(REPLACE(L9,SEARCH("AT%",L9),,REPT(" ",25-SEARCH("AT%",L9))),SEARCH(":",REPLACE(L9,SEARCH("AT%",L9),,REPT(" ",25-SEARCH("AT%",L9)))),,REPT(" ",40-SEARCH(":",REPLACE(L9,SEARCH("AT%",L9),,REPT(" ",25-SEARCH("AT%",L9)))))) -> RNIEAF00000_CM AT%M5008.0 :BOOL; (*送排风机新云模式*)
A10: P新风机组 | B10: RNI | C10: M | D10: 00000 | E10: 新云模式 | F10: 5010.0 | H10: 验证通过 | I10: BOOL | J10: 新风机组新云模式 | K10: =B10&VLOOKUP(A10,List!$B$3:$D$445,2,FALSE)&D10&"_"&VLOOKUP(E10,List!$K$2:$M$447,2,FALSE) -> RNIPAU00000_CM | L10: RNIPAU00000_CM AT%M5010.0 :BOOL; (*新风机组新云模式*) | M10: RNIPAU00000_CM AT%M5010.0 :BOOL; (*新风机组新云模式*)
A11: 风幕机 | B11: RNI | C11: M | D11: 00000 | E11: 新云模式 | F11: 5012.0 | H11: 验证通过 | I11: BOOL | J11: 风幕机新云模式 | K11: =B11&VLOOKUP(A11,List!$B$3:$D$445,2,FALSE)&D11&"_"&VLOOKUP(E11,List!$K$2:$M$447,2,FALSE) -> RNIAC00000_CM | L11: RNIAC00000_CM AT%M5012.0 :BOOL; (*风幕机新云模式*) | M11: RNIAC00000_CM AT%M5012.0 :BOOL; (*风幕机新云模式*)
A12: 冷水机组 | B12: RNI | C12: M | D12: 00000 | E12: 新云模式 | F12: 5014.0 | H12: 验证通过 | I12: BOOL | J12: 冷源新云模式 | K12: =B12&VLOOKUP(A12,List!$B$3:$D$445,2,FALSE)&D12&"_"&VLOOKUP(E12,List!$K$2:$M$447,2,FALSE) -> RNICHR00000_CM | L12: RNICHR00000_CM AT%M5014.0 :BOOL; (*冷源新云模式*) | M12: RNICHR00000_CM AT%M5014.0 :BOOL; (*冷源新云模式*)
A13: 空调机组 | B13: RNI | C13: M | D13: B3X00 | E13: 设定温度值 | F13: 5020.0 | H13: 验证通过 | I13: REAL | J13: 空调机组B3层温度全局设定 | K13: =B13&VLOOKUP(A13,List!$B$3:$D$445,2,FALSE)&D13&"_"&VLOOKUP(E13,List!$K$2:$M$447,2,FALSE) -> RNIAHUB3X00_TSET | L13: =K13&" "&"AT%"&C13&F13&" "&":"&I13&";"&" "&"(*"&J13&"*)" -> RNIAHUB3X00_TSET AT%M5020.0 :REAL; (*空调机组B3层温度全局设定*) | M13: =REPLACE(REPLACE(L13,SEARCH("AT%",L13),,REPT(" ",25-SEARCH("AT%",L13))),SEARCH(":",REPLACE(L13,SEARCH("AT%",L13),,REPT(" ",25-SEARCH("AT%",L13)))),,REPT(" ",40-SEARCH(":",REPLACE(L13,SEARCH("AT%",L13),,REPT(" ",25-SEARCH("AT%",L13)))))) -> RNIAHUB3X00_TSET AT%M5020.0 :REAL; (*空调机组B3层温度全局设定*)
A14: 空调机组 | B14: RNI | C14: M | D14: B2X00 | E14: 设定温度值 | F14: 5024.0 | H14: 验证通过 | I14: REAL | J14: 空调机组B2层温度全局设定 | K14: =B14&VLOOKUP(A14,List!$B$3:$D$445,2,FALSE)&D14&"_"&VLOOKUP(E14,List!$K$2:$M$447,2,FALSE) -> RNIAHUB2X00_TSET | L14: RNIAHUB2X00_TSET AT%M5024.0 :REAL; (*空调机组B2层温度全局设定*) | M14: RNIAHUB2X00_TSET AT%M5024.0 :REAL; (*空调机组B2层温度全局设定*)
A15: 空调机组 | B15: RNI | C15: M | D15: B1X00 | E15: 设定温度值 | F15: 5028.0 | H15: 验证通过 | I15: REAL | J15: 空调机组B1层温度全局设定 | K15: =B15&VLOOKUP(A15,List!$B$3:$D$445,2,FALSE)&D15&"_"&VLOOKUP(E15,List!$K$2:$M$447,2,FALSE) -> RNIAHUB1X00_TSET | L15: RNIAHUB1X00_TSET AT%M5028.0 :REAL; (*空调机组B1层温度全局设定*) | M15: RNIAHUB1X00_TSET AT%M5028.0 :REAL; (*空调机组B1层温度全局设定*)
A16: 空调机组 | B16: RNI | C16: M | D16: 01X00 | E16: 设定温度值 | F16: 5032.0 | H16: 验证通过 | I16: REAL | J16: 空调机组1层温度全局设定 | K16: =B16&VLOOKUP(A16,List!$B$3:$D$445,2,FALSE)&D16&"_"&VLOOKUP(E16,List!$K$2:$M$447,2,FALSE) -> RNIAHU01X00_TSET | L16: RNIAHU01X00_TSET AT%M5032.0 :REAL; (*空调机组1层温度全局设定*) | M16: RNIAHU01X00_TSET AT%M5032.0 :REAL; (*空调机组1层温度全局设定*)
A17: 空调机组 | B17: RNI | C17: M | D17: 02X00 | E17: 设定温度值 | F17: 5036.0 | H17: 验证通过 | I17: REAL | J17: 空调机组2层温度全局设定 | K17: =B17&VLOOKUP(A17,List!$B$3:$D$445,2,FALSE)&D17&"_"&VLOOKUP(E17,List!$K$2:$M$447,2,FALSE) -> RNIAHU02X00_TSET | L17: RNIAHU02X00_TSET AT%M5036.0 :REAL; (*空调机组2层温度全局设定*) | M17: RNIAHU02X00_TSET AT%M5036.0 :REAL; (*空调机组2层温度全局设定*)
A18: 空调机组 | B18: RNI | C18: M | D18: 03X00 | E18: 设定温度值 | F18: 5040.0 | H18: 验证通过 | I18: REAL | J18: 空调机组3层温度全局设定 | K18: =B18&VLOOKUP(A18,List!$B$3:$D$445,2,FALSE)&D18&"_"&VLOOKUP(E18,List!$K$2:$M$447,2,FALSE) -> RNIAHU03X00_TSET | L18: RNIAHU03X00_TSET AT%M5040.0 :REAL; (*空调机组3层温度全局设定*) | M18: RNIAHU03X00_TSET AT%M5040.0 :REAL; (*空调机组3层温度全局设定*)
A19: 空调机组 | B19: RNI | C19: M | D19: 04X00 | E19: 设定温度值 | F19: 5044.0 | H19: 验证通过 | I19: REAL | J19: 空调机组4层温度全局设定 | K19: =B19&VLOOKUP(A19,List!$B$3:$D$445,2,FALSE)&D19&"_"&VLOOKUP(E19,List!$K$2:$M$447,2,FALSE) -> RNIAHU04X00_TSET | L19: RNIAHU04X00_TSET AT%M5044.0 :REAL; (*空调机组4层温度全局设定*) | M19: RNIAHU04X00_TSET AT%M5044.0 :REAL; (*空调机组4层温度全局设定*)
A20: 空调机组 | B20: RNI | C20: M | D20: 05X00 | E20: 设定温度值 | F20: 5048.0 | H20: 验证通过 | I20: REAL | J20: 空调机组5层温度全局设定 | K20: =B20&VLOOKUP(A20,List!$B$3:$D$445,2,FALSE)&D20&"_"&VLOOKUP(E20,List!$K$2:$M$447,2,FALSE) -> RNIAHU05X00_TSET | L20: RNIAHU05X00_TSET AT%M5048.0 :REAL; (*空调机组5层温度全局设定*) | M20: RNIAHU05X00_TSET AT%M5048.0 :REAL; (*空调机组5层温度全局设定*)
A21: 空调机组 | B21: RNI | C21: M | D21: 06X00 | E21: 设定温度值 | F21: 5052.0 | H21: 验证通过 | I21: REAL | J21: 空调机组6层温度全局设定 | K21: =B21&VLOOKUP(A21,List!$B$3:$D$445,2,FALSE)&D21&"_"&VLOOKUP(E21,List!$K$2:$M$447,2,FALSE) -> RNIAHU06X00_TSET | L21: RNIAHU06X00_TSET AT%M5052.0 :REAL; (*空调机组6层温度全局设定*) | M21: RNIAHU06X00_TSET AT%M5052.0 :REAL; (*空调机组6层温度全局设定*)
A22: 空调机组 | B22: RNI | C22: M | D22: 07X00 | E22: 设定温度值 | F22: 5056.0 | H22: 验证通过 | I22: REAL | J22: 空调机组7层温度全局设定 | K22: =B22&VLOOKUP(A22,List!$B$3:$D$445,2,FALSE)&D22&"_"&VLOOKUP(E22,List!$K$2:$M$447,2,FALSE) -> RNIAHU07X00_TSET | L22: RNIAHU07X00_TSET AT%M5056.0 :REAL; (*空调机组7层温度全局设定*) | M22: RNIAHU07X00_TSET AT%M5056.0 :REAL; (*空调机组7层温度全局设定*)
A23: 空调机组 | B23: RNI | C23: M | D23: 08X00 | E23: 设定温度值 | F23: 5060.0 | H23: 验证通过 | I23: REAL | J23: 空调机组8层温度全局设定 | K23: =B23&VLOOKUP(A23,List!$B$3:$D$445,2,FALSE)&D23&"_"&VLOOKUP(E23,List!$K$2:$M$447,2,FALSE) -> RNIAHU08X00_TSET | L23: RNIAHU08X00_TSET AT%M5060.0 :REAL; (*空调机组8层温度全局设定*) | M23: RNIAHU08X00_TSET AT%M5060.0 :REAL; (*空调机组8层温度全局设定*)
A24: 空调机组 | B24: RNI | C24: M | D24: B3X00 | E24: 季节模式 | F24: 5064.0 | H24: 验证通过 | I24: INT | J24: 空调机组B3层季节模式全局设定 | K24: =B24&VLOOKUP(A24,List!$B$3:$D$445,2,FALSE)&D24&"_"&VLOOKUP(E24,List!$K$2:$M$447,2,FALSE) -> RNIAHUB3X00_SM | L24: RNIAHUB3X00_SM AT%M5064.0 :INT; (*空调机组B3层季节模式全局设定*) | M24: RNIAHUB3X00_SM AT%M5064.0 :INT; (*空调机组B3层季节模式全局设定*)
A25: 空调机组 | B25: RNI | C25: M | D25: B2X00 | E25: 季节模式 | F25: 5066.0 | H25: 验证通过 | I25: INT | J25: 空调机组B2层季节模式全局设定 | K25: =B25&VLOOKUP(A25,List!$B$3:$D$445,2,FALSE)&D25&"_"&VLOOKUP(E25,List!$K$2:$M$447,2,FALSE) -> RNIAHUB2X00_SM | L25: RNIAHUB2X00_SM AT%M5066.0 :INT; (*空调机组B2层季节模式全局设定*) | M25: RNIAHUB2X00_SM AT%M5066.0 :INT; (*空调机组B2层季节模式全局设定*)
A26: 空调机组 | B26: RNI | C26: M | D26: B1X00 | E26: 季节模式 | F26: 5068.0 | H26: 验证通过 | I26: INT | J26: 空调机组B1层季节模式全局设定 | K26: =B26&VLOOKUP(A26,List!$B$3:$D$445,2,FALSE)&D26&"_"&VLOOKUP(E26,List!$K$2:$M$447,2,FALSE) -> RNIAHUB1X00_SM | L26: RNIAHUB1X00_SM AT%M5068.0 :INT; (*空调机组B1层季节模式全局设定*) | M26: RNIAHUB1X00_SM AT%M5068.0 :INT; (*空调机组B1层季节模式全局设定*)
A27: 空调机组 | B27: RNI | C27: M | D27: 01X00 | E27: 季节模式 | F27: 5070.0 | H27: 验证通过 | I27: INT | J27: 空调机组1层季节模式全局设定 | K27: =B27&VLOOKUP(A27,List!$B$3:$D$445,2,FALSE)&D27&"_"&VLOOKUP(E27,List!$K$2:$M$447,2,FALSE) -> RNIAHU01X00_SM | L27: RNIAHU01X00_SM AT%M5070.0 :INT; (*空调机组1层季节模式全局设定*) | M27: RNIAHU01X00_SM AT%M5070.0 :INT; (*空调机组1层季节模式全局设定*)
A28: 空调机组 | B28: RNI | C28: M | D28: 02X00 | E28: 季节模式 | F28: 5072.0 | H28: 验证通过 | I28: INT | J28: 空调机组2层季节模式全局设定 | K28: =B28&VLOOKUP(A28,List!$B$3:$D$445,2,FALSE)&D28&"_"&VLOOKUP(E28,List!$K$2:$M$447,2,FALSE) -> RNIAHU02X00_SM | L28: RNIAHU02X00_SM AT%M5072.0 :INT; (*空调机组2层季节模式全局设定*) | M28: RNIAHU02X00_SM AT%M5072.0 :INT; (*空调机组2层季节模式全局设定*)
A29: 空调机组 | B29: RNI | C29: M | D29: 03X00 | E29: 季节模式 | F29: 5074.0 | H29: 验证通过 | I29: INT | J29: 空调机组3层季节模式全局设定 | K29: =B29&VLOOKUP(A29,List!$B$3:$D$445,2,FALSE)&D29&"_"&VLOOKUP(E29,List!$K$2:$M$447,2,FALSE) -> RNIAHU03X00_SM | L29: RNIAHU03X00_SM AT%M5074.0 :INT; (*空调机组3层季节模式全局设定*) | M29: RNIAHU03X00_SM AT%M5074.0 :INT; (*空调机组3层季节模式全局设定*)
A30: 空调机组 | B30: RNI | C30: M | D30: 04X00 | E30: 季节模式 | F30: 5076.0 | H30: 验证通过 | I30: INT | J30: 空调机组4层季节模式全局设定 | K30: =B30&VLOOKUP(A30,List!$B$3:$D$445,2,FALSE)&D30&"_"&VLOOKUP(E30,List!$K$2:$M$447,2,FALSE) -> RNIAHU04X00_SM | L30: RNIAHU04X00_SM AT%M5076.0 :INT; (*空调机组4层季节模式全局设定*) | M30: RNIAHU04X00_SM AT%M5076.0 :INT; (*空调机组4层季节模式全局设定*)
A31: 空调机组 | B31: RNI | C31: M | D31: 05X00 | E31: 季节模式 | F31: 5078.0 | H31: 验证通过 | I31: INT | J31: 空调机组5层季节模式全局设定 | K31: =B31&VLOOKUP(A31,List!$B$3:$D$445,2,FALSE)&D31&"_"&VLOOKUP(E31,List!$K$2:$M$447,2,FALSE) -> RNIAHU05X00_SM | L31: RNIAHU05X00_SM AT%M5078.0 :INT; (*空调机组5层季节模式全局设定*) | M31: RNIAHU05X00_SM AT%M5078.0 :INT; (*空调机组5层季节模式全局设定*)
A32: 空调机组 | B32: RNI | C32: M | D32: 06X00 | E32: 季节模式 | F32: 5080.0 | H32: 验证通过 | I32: INT | J32: 空调机组6层季节模式全局设定 | K32: =B32&VLOOKUP(A32,List!$B$3:$D$445,2,FALSE)&D32&"_"&VLOOKUP(E32,List!$K$2:$M$447,2,FALSE) -> RNIAHU06X00_SM | L32: RNIAHU06X00_SM AT%M5080.0 :INT; (*空调机组6层季节模式全局设定*) | M32: RNIAHU06X00_SM AT%M5080.0 :INT; (*空调机组6层季节模式全局设定*)
A33: 空调机组 | B33: RNI | C33: M | D33: 07X00 | E33: 季节模式 | F33: 5082.0 | H33: 验证通过 | I33: INT | J33: 空调机组7层季节模式全局设定 | K33: =B33&VLOOKUP(A33,List!$B$3:$D$445,2,FALSE)&D33&"_"&VLOOKUP(E33,List!$K$2:$M$447,2,FALSE) -> RNIAHU07X00_SM | L33: RNIAHU07X00_SM AT%M5082.0 :INT; (*空调机组7层季节模式全局设定*) | M33: RNIAHU07X00_SM AT%M5082.0 :INT; (*空调机组7层季节模式全局设定*)
A34: 空调机组 | B34: RNI | C34: M | D34: 08X00 | E34: 季节模式 | F34: 5084.0 | H34: 验证通过 | I34: INT | J34: 空调机组8层季节模式全局设定 | K34: =B34&VLOOKUP(A34,List!$B$3:$D$445,2,FALSE)&D34&"_"&VLOOKUP(E34,List!$K$2:$M$447,2,FALSE) -> RNIAHU08X00_SM | L34: RNIAHU08X00_SM AT%M5084.0 :INT; (*空调机组8层季节模式全局设定*) | M34: RNIAHU08X00_SM AT%M5084.0 :INT; (*空调机组8层季节模式全局设定*)
A35: 空调机组 | B35: RNI | C35: M | D35: B3X00 | E35: 程序控制 | F35: 5086.0 | H35: 验证通过 | I35: BOOL | J35: 空调机组B3层启停控制 | K35: =B35&VLOOKUP(A35,List!$B$3:$D$445,2,FALSE)&D35&"_"&VLOOKUP(E35,List!$K$2:$M$447,2,FALSE) -> RNIAHUB3X00_PC | L35: RNIAHUB3X00_PC AT%M5086.0 :BOOL; (*空调机组B3层启停控制*) | M35: RNIAHUB3X00_PC AT%M5086.0 :BOOL; (*空调机组B3层启停控制*)
A36: 空调机组 | B36: RNI | C36: M | D36: B2X00 | E36: 程序控制 | F36: 5088.0 | H36: 验证通过 | I36: BOOL | J36: 空调机组B2层启停控制 | K36: =B36&VLOOKUP(A36,List!$B$3:$D$445,2,FALSE)&D36&"_"&VLOOKUP(E36,List!$K$2:$M$447,2,FALSE) -> RNIAHUB2X00_PC | L36: RNIAHUB2X00_PC AT%M5088.0 :BOOL; (*空调机组B2层启停控制*) | M36: RNIAHUB2X00_PC AT%M5088.0 :BOOL; (*空调机组B2层启停控制*)
A37: 空调机组 | B37: RNI | C37: M | D37: B1X00 | E37: 程序控制 | F37: 5090.0 | H37: 验证通过 | I37: BOOL | J37: 空调机组B1层启停控制 | K37: =B37&VLOOKUP(A37,List!$B$3:$D$445,2,FALSE)&D37&"_"&VLOOKUP(E37,List!$K$2:$M$447,2,FALSE) -> RNIAHUB1X00_PC | L37: RNIAHUB1X00_PC AT%M5090.0 :BOOL; (*空调机组B1层启停控制*) | M37: RNIAHUB1X00_PC AT%M5090.0 :BOOL; (*空调机组B1层启停控制*)
A38: 空调机组 | B38: RNI | C38: M | D38: 01X00 | E38: 程序控制 | F38: 5092.0 | H38: 验证通过 | I38: BOOL | J38: 空调机组1层启停控制 | K38: =B38&VLOOKUP(A38,List!$B$3:$D$445,2,FALSE)&D38&"_"&VLOOKUP(E38,List!$K$2:$M$447,2,FALSE) -> RNIAHU01X00_PC | L38: RNIAHU01X00_PC AT%M5092.0 :BOOL; (*空调机组1层启停控制*) | M38: RNIAHU01X00_PC AT%M5092.0 :BOOL; (*空调机组1层启停控制*)
A39: 空调机组 | B39: RNI | C39: M | D39: 02X00 | E39: 程序控制 | F39: 5094.0 | H39: 验证通过 | I39: BOOL | J39: 空调机组2层启停控制 | K39: =B39&VLOOKUP(A39,List!$B$3:$D$445,2,FALSE)&D39&"_"&VLOOKUP(E39,List!$K$2:$M$447,2,FALSE) -> RNIAHU02X00_PC | L39: RNIAHU02X00_PC AT%M5094.0 :BOOL; (*空调机组2层启停控制*) | M39: RNIAHU02X00_PC AT%M5094.0 :BOOL; (*空调机组2层启停控制*)
A40: 空调机组 | B40: RNI | C40: M | D40: 03X00 | E40: 程序控制 | F40: 5096.0 | H40: 验证通过 | I40: BOOL | J40: 空调机组3层启停控制 | K40: =B40&VLOOKUP(A40,List!$B$3:$D$445,2,FALSE)&D40&"_"&VLOOKUP(E40,List!$K$2:$M$447,2,FALSE) -> RNIAHU03X00_PC | L40: RNIAHU03X00_PC AT%M5096.0 :BOOL; (*空调机组3层启停控制*) | M40: RNIAHU03X00_PC AT%M5096.0 :BOOL; (*空调机组3层启停控制*)
A41: 空调机组 | B41: RNI | C41: M | D41: 04X00 | E41: 程序控制 | F41: 5098.0 | H41: 验证通过 | I41: BOOL | J41: 空调机组4层启停控制 | K41: =B41&VLOOKUP(A41,List!$B$3:$D$445,2,FALSE)&D41&"_"&VLOOKUP(E41,List!$K$2:$M$447,2,FALSE) -> RNIAHU04X00_PC | L41: RNIAHU04X00_PC AT%M5098.0 :BOOL; (*空调机组4层启停控制*) | M41: RNIAHU04X00_PC AT%M5098.0 :BOOL; (*空调机组4层启停控制*)
A42: 空调机组 | B42: RNI | C42: M | D42: 05X00 | E42: 程序控制 | F42: 5100.0 | H42: 验证通过 | I42: BOOL | J42: 空调机组5层启停控制 | K42: =B42&VLOOKUP(A42,List!$B$3:$D$445,2,FALSE)&D42&"_"&VLOOKUP(E42,List!$K$2:$M$447,2,FALSE) -> RNIAHU05X00_PC | L42: RNIAHU05X00_PC AT%M5100.0 :BOOL; (*空调机组5层启停控制*) | M42: RNIAHU05X00_PC AT%M5100.0 :BOOL; (*空调机组5层启停控制*)
A43: 空调机组 | B43: RNI | C43: M | D43: 06X00 | E43: 程序控制 | F43: 5102.0 | H43: 验证通过 | I43: BOOL | J43: 空调机组6层启停控制 | K43: =B43&VLOOKUP(A43,List!$B$3:$D$445,2,FALSE)&D43&"_"&VLOOKUP(E43,List!$K$2:$M$447,2,FALSE) -> RNIAHU06X00_PC | L43: RNIAHU06X00_PC AT%M5102.0 :BOOL; (*空调机组6层启停控制*) | M43: RNIAHU06X00_PC AT%M5102.0 :BOOL; (*空调机组6层启停控制*)
A44: 空调机组 | B44: RNI | C44: M | D44: 07X00 | E44: 程序控制 | F44: 5104.0 | H44: 验证通过 | I44: BOOL | J44: 空调机组7层启停控制 | K44: =B44&VLOOKUP(A44,List!$B$3:$D$445,2,FALSE)&D44&"_"&VLOOKUP(E44,List!$K$2:$M$447,2,FALSE) -> RNIAHU07X00_PC | L44: RNIAHU07X00_PC AT%M5104.0 :BOOL; (*空调机组7层启停控制*) | M44: RNIAHU07X00_PC AT%M5104.0 :BOOL; (*空调机组7层启停控制*)
A45: 空调机组 | B45: RNI | C45: M | D45: 08X00 | E45: 程序控制 | F45: 5106.0 | H45: 验证通过 | I45: BOOL | J45: 空调机组8层启停控制 | K45: =B45&VLOOKUP(A45,List!$B$3:$D$445,2,FALSE)&D45&"_"&VLOOKUP(E45,List!$K$2:$M$447,2,FALSE) -> RNIAHU08X00_PC | L45: RNIAHU08X00_PC AT%M5106.0 :BOOL; (*空调机组8层启停控制*) | M45: RNIAHU08X00_PC AT%M5106.0 :BOOL; (*空调机组8层启停控制*)
A46: 风机盘管 | B46: RNI | C46: M | D46: B3X00 | E46: 设定温度值 | F46: 5112.0 | H46: 验证通过 | I46: REAL | J46: 风机盘管B3层温度全局设定 | K46: =B46&VLOOKUP(A46,List!$B$3:$D$445,2,FALSE)&D46&"_"&VLOOKUP(E46,List!$K$2:$M$447,2,FALSE) -> RNIFCUB3X00_TSET | L46: RNIFCUB3X00_TSET AT%M5112.0 :REAL; (*风机盘管B3层温度全局设定*) | M46: RNIFCUB3X00_TSET AT%M5112.0 :REAL; (*风机盘管B3层温度全局设定*)
A47: 风机盘管 | B47: RNI | C47: M | D47: B2X00 | E47: 设定温度值 | F47: 5116.0 | H47: 验证通过 | I47: REAL | J47: 风机盘管B2层温度全局设定 | K47: =B47&VLOOKUP(A47,List!$B$3:$D$445,2,FALSE)&D47&"_"&VLOOKUP(E47,List!$K$2:$M$447,2,FALSE) -> RNIFCUB2X00_TSET | L47: RNIFCUB2X00_TSET AT%M5116.0 :REAL; (*风机盘管B2层温度全局设定*) | M47: RNIFCUB2X00_TSET AT%M5116.0 :REAL; (*风机盘管B2层温度全局设定*)
A48: 风机盘管 | B48: RNI | C48: M | D48: B1X00 | E48: 设定温度值 | F48: 5120.0 | H48: 验证通过 | I48: REAL | J48: 风机盘管B1层温度全局设定 | K48: =B48&VLOOKUP(A48,List!$B$3:$D$445,2,FALSE)&D48&"_"&VLOOKUP(E48,List!$K$2:$M$447,2,FALSE) -> RNIFCUB1X00_TSET | L48: RNIFCUB1X00_TSET AT%M5120.0 :REAL; (*风机盘管B1层温度全局设定*) | M48: RNIFCUB1X00_TSET AT%M5120.0 :REAL; (*风机盘管B1层温度全局设定*)
A49: 风机盘管 | B49: RNI | C49: M | D49: 01X00 | E49: 设定温度值 | F49: 5124.0 | H49: 验证通过 | I49: REAL | J49: 风机盘管1层温度全局设定 | K49: =B49&VLOOKUP(A49,List!$B$3:$D$445,2,FALSE)&D49&"_"&VLOOKUP(E49,List!$K$2:$M$447,2,FALSE) -> RNIFCU01X00_TSET | L49: RNIFCU01X00_TSET AT%M5124.0 :REAL; (*风机盘管1层温度全局设定*) | M49: RNIFCU01X00_TSET AT%M5124.0 :REAL; (*风机盘管1层温度全局设定*)
A50: 风机盘管 | B50: RNI | C50: M | D50: 02X00 | E50: 设定温度值 | F50: 5128.0 | H50: 验证通过 | I50: REAL | J50: 风机盘管2层温度全局设定 | K50: =B50&VLOOKUP(A50,List!$B$3:$D$445,2,FALSE)&D50&"_"&VLOOKUP(E50,List!$K$2:$M$447,2,FALSE) -> RNIFCU02X00_TSET | L50: RNIFCU02X00_TSET AT%M5128.0 :REAL; (*风机盘管2层温度全局设定*) | M50: RNIFCU02X00_TSET AT%M5128.0 :REAL; (*风机盘管2层温度全局设定*)
A51: 风机盘管 | B51: RNI | C51: M | D51: 03X00 | E51: 设定温度值 | F51: 5132.0 | H51: 验证通过 | I51: REAL | J51: 风机盘管3层温度全局设定 | K51: =B51&VLOOKUP(A51,List!$B$3:$D$445,2,FALSE)&D51&"_"&VLOOKUP(E51,List!$K$2:$M$447,2,FALSE) -> RNIFCU03X00_TSET | L51: RNIFCU03X00_TSET AT%M5132.0 :REAL; (*风机盘管3层温度全局设定*) | M51: RNIFCU03X00_TSET AT%M5132.0 :REAL; (*风机盘管3层温度全局设定*)
A52: 风机盘管 | B52: RNI | C52: M | D52: 04X00 | E52: 设定温度值 | F52: 5136.0 | H52: 验证通过 | I52: REAL | J52: 风机盘管4层温度全局设定 | K52: =B52&VLOOKUP(A52,List!$B$3:$D$445,2,FALSE)&D52&"_"&VLOOKUP(E52,List!$K$2:$M$447,2,FALSE) -> RNIFCU04X00_TSET | L52: RNIFCU04X00_TSET AT%M5136.0 :REAL; (*风机盘管4层温度全局设定*) | M52: RNIFCU04X00_TSET AT%M5136.0 :REAL; (*风机盘管4层温度全局设定*)
A53: 风机盘管 | B53: RNI | C53: M | D53: 05X00 | E53: 设定温度值 | F53: 5140.0 | H53: 验证通过 | I53: REAL | J53: 风机盘管5层温度全局设定 | K53: =B53&VLOOKUP(A53,List!$B$3:$D$445,2,FALSE)&D53&"_"&VLOOKUP(E53,List!$K$2:$M$447,2,FALSE) -> RNIFCU05X00_TSET | L53: RNIFCU05X00_TSET AT%M5140.0 :REAL; (*风机盘管5层温度全局设定*) | M53: RNIFCU05X00_TSET AT%M5140.0 :REAL; (*风机盘管5层温度全局设定*)
A54: 风机盘管 | B54: RNI | C54: M | D54: 06X00 | E54: 设定温度值 | F54: 5144.0 | H54: 验证通过 | I54: REAL | J54: 风机盘管6层温度全局设定 | K54: =B54&VLOOKUP(A54,List!$B$3:$D$445,2,FALSE)&D54&"_"&VLOOKUP(E54,List!$K$2:$M$447,2,FALSE) -> RNIFCU06X00_TSET | L54: RNIFCU06X00_TSET AT%M5144.0 :REAL; (*风机盘管6层温度全局设定*) | M54: RNIFCU06X00_TSET AT%M5144.0 :REAL; (*风机盘管6层温度全局设定*)
A55: 风机盘管 | B55: RNI | C55: M | D55: 07X00 | E55: 设定温度值 | F55: 5148.0 | H55: 验证通过 | I55: REAL | J55: 风机盘管7层温度全局设定 | K55: =B55&VLOOKUP(A55,List!$B$3:$D$445,2,FALSE)&D55&"_"&VLOOKUP(E55,List!$K$2:$M$447,2,FALSE) -> RNIFCU07X00_TSET | L55: RNIFCU07X00_TSET AT%M5148.0 :REAL; (*风机盘管7层温度全局设定*) | M55: RNIFCU07X00_TSET AT%M5148.0 :REAL; (*风机盘管7层温度全局设定*)
A56: 风机盘管 | B56: RNI | C56: M | D56: 08X00 | E56: 设定温度值 | F56: 5152.0 | H56: 验证通过 | I56: REAL | J56: 风机盘管8层温度全局设定 | K56: =B56&VLOOKUP(A56,List!$B$3:$D$445,2,FALSE)&D56&"_"&VLOOKUP(E56,List!$K$2:$M$447,2,FALSE) -> RNIFCU08X00_TSET | L56: RNIFCU08X00_TSET AT%M5152.0 :REAL; (*风机盘管8层温度全局设定*) | M56: RNIFCU08X00_TSET AT%M5152.0 :REAL; (*风机盘管8层温度全局设定*)
A57: 风机盘管 | B57: RNI | C57: M | D57: B3X00 | E57: 季节模式 | F57: 5156.0 | H57: 验证通过 | I57: INT | J57: 风机盘管B3层季节模式全局设定 | K57: =B57&VLOOKUP(A57,List!$B$3:$D$445,2,FALSE)&D57&"_"&VLOOKUP(E57,List!$K$2:$M$447,2,FALSE) -> RNIFCUB3X00_SM | L57: RNIFCUB3X00_SM AT%M5156.0 :INT; (*风机盘管B3层季节模式全局设定*) | M57: RNIFCUB3X00_SM AT%M5156.0 :INT; (*风机盘管B3层季节模式全局设定*)
A58: 风机盘管 | B58: RNI | C58: M | D58: B2X00 | E58: 季节模式 | F58: 5158.0 | H58: 验证通过 | I58: INT | J58: 风机盘管B2层季节模式全局设定 | K58: =B58&VLOOKUP(A58,List!$B$3:$D$445,2,FALSE)&D58&"_"&VLOOKUP(E58,List!$K$2:$M$447,2,FALSE) -> RNIFCUB2X00_SM | L58: RNIFCUB2X00_SM AT%M5158.0 :INT; (*风机盘管B2层季节模式全局设定*) | M58: RNIFCUB2X00_SM AT%M5158.0 :INT; (*风机盘管B2层季节模式全局设定*)
A59: 风机盘管 | B59: RNI | C59: M | D59: B1X00 | E59: 季节模式 | F59: 5160.0 | H59: 验证通过 | I59: INT | J59: 风机盘管B1层季节模式全局设定 | K59: =B59&VLOOKUP(A59,List!$B$3:$D$445,2,FALSE)&D59&"_"&VLOOKUP(E59,List!$K$2:$M$447,2,FALSE) -> RNIFCUB1X00_SM | L59: RNIFCUB1X00_SM AT%M5160.0 :INT; (*风机盘管B1层季节模式全局设定*) | M59: RNIFCUB1X00_SM AT%M5160.0 :INT; (*风机盘管B1层季节模式全局设定*)
A60: 风机盘管 | B60: RNI | C60: M | D60: 01X00 | E60: 季节模式 | F60: 5162.0 | H60: 验证通过 | I60: INT | J60: 风机盘管1层季节模式全局设定 | K60: =B60&VLOOKUP(A60,List!$B$3:$D$445,2,FALSE)&D60&"_"&VLOOKUP(E60,List!$K$2:$M$447,2,FALSE) -> RNIFCU01X00_SM | L60: RNIFCU01X00_SM AT%M5162.0 :INT; (*风机盘管1层季节模式全局设定*) | M60: RNIFCU01X00_SM AT%M5162.0 :INT; (*风机盘管1层季节模式全局设定*)
A61: 风机盘管 | B61: RNI | C61: M | D61: 02X00 | E61: 季节模式 | F61: 5164.0 | H61: 验证通过 | I61: INT | J61: 风机盘管2层季节模式全局设定 | K61: =B61&VLOOKUP(A61,List!$B$3:$D$445,2,FALSE)&D61&"_"&VLOOKUP(E61,List!$K$2:$M$447,2,FALSE) -> RNIFCU02X00_SM | L61: RNIFCU02X00_SM AT%M5164.0 :INT; (*风机盘管2层季节模式全局设定*) | M61: RNIFCU02X00_SM AT%M5164.0 :INT; (*风机盘管2层季节模式全局设定*)
A62: 风机盘管 | B62: RNI | C62: M | D62: 03X00 | E62: 季节模式 | F62: 5166.0 | H62: 验证通过 | I62: INT | J62: 风机盘管3层季节模式全局设定 | K62: =B62&VLOOKUP(A62,List!$B$3:$D$445,2,FALSE)&D62&"_"&VLOOKUP(E62,List!$K$2:$M$447,2,FALSE) -> RNIFCU03X00_SM | L62: RNIFCU03X00_SM AT%M5166.0 :INT; (*风机盘管3层季节模式全局设定*) | M62: RNIFCU03X00_SM AT%M5166.0 :INT; (*风机盘管3层季节模式全局设定*)
A63: 风机盘管 | B63: RNI | C63: M | D63: 04X00 | E63: 季节模式 | F63: 5168.0 | H63: 验证通过 | I63: INT | J63: 风机盘管4层季节模式全局设定 | K63: =B63&VLOOKUP(A63,List!$B$3:$D$445,2,FALSE)&D63&"_"&VLOOKUP(E63,List!$K$2:$M$447,2,FALSE) -> RNIFCU04X00_SM | L63: RNIFCU04X00_SM AT%M5168.0 :INT; (*风机盘管4层季节模式全局设定*) | M63: RNIFCU04X00_SM AT%M5168.0 :INT; (*风机盘管4层季节模式全局设定*)
A64: 风机盘管 | B64: RNI | C64: M | D64: 05X00 | E64: 季节模式 | F64: 5170.0 | H64: 验证通过 | I64: INT | J64: 风机盘管5层季节模式全局设定 | K64: =B64&VLOOKUP(A64,List!$B$3:$D$445,2,FALSE)&D64&"_"&VLOOKUP(E64,List!$K$2:$M$447,2,FALSE) -> RNIFCU05X00_SM | L64: RNIFCU05X00_SM AT%M5170.0 :INT; (*风机盘管5层季节模式全局设定*) | M64: RNIFCU05X00_SM AT%M5170.0 :INT; (*风机盘管5层季节模式全局设定*)
A65: 风机盘管 | B65: RNI | C65: M | D65: 06X00 | E65: 季节模式 | F65: 5172.0 | H65: 验证通过 | I65: INT | J65: 风机盘管6层季节模式全局设定 | K65: =B65&VLOOKUP(A65,List!$B$3:$D$445,2,FALSE)&D65&"_"&VLOOKUP(E65,List!$K$2:$M$447,2,FALSE) -> RNIFCU06X00_SM | L65: RNIFCU06X00_SM AT%M5172.0 :INT; (*风机盘管6层季节模式全局设定*) | M65: RNIFCU06X00_SM AT%M5172.0 :INT; (*风机盘管6层季节模式全局设定*)
A66: 风机盘管 | B66: RNI | C66: M | D66: 07X00 | E66: 季节模式 | F66: 5174.0 | H66: 验证通过 | I66: INT | J66: 风机盘管7层季节模式全局设定 | K66: =B66&VLOOKUP(A66,List!$B$3:$D$445,2,FALSE)&D66&"_"&VLOOKUP(E66,List!$K$2:$M$447,2,FALSE) -> RNIFCU07X00_SM | L66: RNIFCU07X00_SM AT%M5174.0 :INT; (*风机盘管7层季节模式全局设定*) | M66: RNIFCU07X00_SM AT%M5174.0 :INT; (*风机盘管7层季节模式全局设定*)
A67: 风机盘管 | B67: RNI | C67: M | D67: 08X00 | E67: 季节模式 | F67: 5176.0 | H67: 验证通过 | I67: INT | J67: 风机盘管8层季节模式全局设定 | K67: =B67&VLOOKUP(A67,List!$B$3:$D$445,2,FALSE)&D67&"_"&VLOOKUP(E67,List!$K$2:$M$447,2,FALSE) -> RNIFCU08X00_SM | L67: RNIFCU08X00_SM AT%M5176.0 :INT; (*风机盘管8层季节模式全局设定*) | M67: RNIFCU08X00_SM AT%M5176.0 :INT; (*风机盘管8层季节模式全局设定*)
A68: 风机盘管 | B68: RNI | C68: M | D68: B3X00 | E68: 程序控制 | F68: 5178.0 | H68: 验证通过 | I68: BOOL | J68: 风机盘管B3层启停控制 | K68: =B68&VLOOKUP(A68,List!$B$3:$D$445,2,FALSE)&D68&"_"&VLOOKUP(E68,List!$K$2:$M$447,2,FALSE) -> RNIFCUB3X00_PC | L68: RNIFCUB3X00_PC AT%M5178.0 :BOOL; (*风机盘管B3层启停控制*) | M68: RNIFCUB3X00_PC AT%M5178.0 :BOOL; (*风机盘管B3层启停控制*)
A69: 风机盘管 | B69: RNI | C69: M | D69: B2X00 | E69: 程序控制 | F69: 5180.0 | H69: 验证通过 | I69: BOOL | J69: 风机盘管B2层启停控制 | K69: =B69&VLOOKUP(A69,List!$B$3:$D$445,2,FALSE)&D69&"_"&VLOOKUP(E69,List!$K$2:$M$447,2,FALSE) -> RNIFCUB2X00_PC | L69: RNIFCUB2X00_PC AT%M5180.0 :BOOL; (*风机盘管B2层启停控制*) | M69: RNIFCUB2X00_PC AT%M5180.0 :BOOL; (*风机盘管B2层启停控制*)
A70: 风机盘管 | B70: RNI | C70: M | D70: B1X00 | E70: 程序控制 | F70: 5182.0 | H70: 验证通过 | I70: BOOL | J70: 风机盘管B1层启停控制 | K70: =B70&VLOOKUP(A70,List!$B$3:$D$445,2,FALSE)&D70&"_"&VLOOKUP(E70,List!$K$2:$M$447,2,FALSE) -> RNIFCUB1X00_PC | L70: RNIFCUB1X00_PC AT%M5182.0 :BOOL; (*风机盘管B1层启停控制*) | M70: RNIFCUB1X00_PC AT%M5182.0 :BOOL; (*风机盘管B1层启停控制*)
A71: 风机盘管 | B71: RNI | C71: M | D71: 01X00 | E71: 程序控制 | F71: =IF(OR(I70="REAL",I70="DWORD",I70="DINT"),(IF(OR(I71="REAL",I71="DWORD",I71="DINT"),F70+4+MOD(F70,4),F70+4)),(IF(OR(I71="REAL",I71="DWORD",I71="DINT"),F70+4+MOD(F70,4),F70+2)))&".0" -> 5184.0 | H71: 验证通过 | I71: BOOL | J71: 风机盘管1层启停控制 | K71: =B71&VLOOKUP(A71,List!$B$3:$D$445,2,FALSE)&D71&"_"&VLOOKUP(E71,List!$K$2:$M$447,2,FALSE) -> RNIFCU01X00_PC | L71: RNIFCU01X00_PC AT%M5184.0 :BOOL; (*风机盘管1层启停控制*) | M71: RNIFCU01X00_PC AT%M5184.0 :BOOL; (*风机盘管1层启停控制*)
A72: 风机盘管 | B72: RNI | C72: M | D72: 02X00 | E72: 程序控制 | F72: 5186.0 | H72: 验证通过 | I72: BOOL | J72: 风机盘管2层启停控制 | K72: =B72&VLOOKUP(A72,List!$B$3:$D$445,2,FALSE)&D72&"_"&VLOOKUP(E72,List!$K$2:$M$447,2,FALSE) -> RNIFCU02X00_PC | L72: RNIFCU02X00_PC AT%M5186.0 :BOOL; (*风机盘管2层启停控制*) | M72: RNIFCU02X00_PC AT%M5186.0 :BOOL; (*风机盘管2层启停控制*)
A73: 风机盘管 | B73: RNI | C73: M | D73: 03X00 | E73: 程序控制 | F73: 5188.0 | H73: 验证通过 | I73: BOOL | J73: 风机盘管3层启停控制 | K73: =B73&VLOOKUP(A73,List!$B$3:$D$445,2,FALSE)&D73&"_"&VLOOKUP(E73,List!$K$2:$M$447,2,FALSE) -> RNIFCU03X00_PC | L73: RNIFCU03X00_PC AT%M5188.0 :BOOL; (*风机盘管3层启停控制*) | M73: RNIFCU03X00_PC AT%M5188.0 :BOOL; (*风机盘管3层启停控制*)
A74: 风机盘管 | B74: RNI | C74: M | D74: 04X00 | E74: 程序控制 | F74: 5190.0 | H74: 验证通过 | I74: BOOL | J74: 风机盘管4层启停控制 | K74: =B74&VLOOKUP(A74,List!$B$3:$D$445,2,FALSE)&D74&"_"&VLOOKUP(E74,List!$K$2:$M$447,2,FALSE) -> RNIFCU04X00_PC | L74: RNIFCU04X00_PC AT%M5190.0 :BOOL; (*风机盘管4层启停控制*) | M74: RNIFCU04X00_PC AT%M5190.0 :BOOL; (*风机盘管4层启停控制*)
A75: 风机盘管 | B75: RNI | C75: M | D75: 05X00 | E75: 程序控制 | F75: 5192.0 | H75: 验证通过 | I75: BOOL | J75: 风机盘管5层启停控制 | K75: =B75&VLOOKUP(A75,List!$B$3:$D$445,2,FALSE)&D75&"_"&VLOOKUP(E75,List!$K$2:$M$447,2,FALSE) -> RNIFCU05X00_PC | L75: RNIFCU05X00_PC AT%M5192.0 :BOOL; (*风机盘管5层启停控制*) | M75: RNIFCU05X00_PC AT%M5192.0 :BOOL; (*风机盘管5层启停控制*)
A76: 风机盘管 | B76: RNI | C76: M | D76: 06X00 | E76: 程序控制 | F76: 5194.0 | H76: 验证通过 | I76: BOOL | J76: 风机盘管6层启停控制 | K76: =B76&VLOOKUP(A76,List!$B$3:$D$445,2,FALSE)&D76&"_"&VLOOKUP(E76,List!$K$2:$M$447,2,FALSE) -> RNIFCU06X00_PC | L76: RNIFCU06X00_PC AT%M5194.0 :BOOL; (*风机盘管6层启停控制*) | M76: RNIFCU06X00_PC AT%M5194.0 :BOOL; (*风机盘管6层启停控制*)
A77: 风机盘管 | B77: RNI | C77: M | D77: 07X00 | E77: 程序控制 | F77: 5196.0 | H77: 验证通过 | I77: BOOL | J77: 风机盘管7层启停控制 | K77: =B77&VLOOKUP(A77,List!$B$3:$D$445,2,FALSE)&D77&"_"&VLOOKUP(E77,List!$K$2:$M$447,2,FALSE) -> RNIFCU07X00_PC | L77: =K77&" "&"AT%"&C77&F77&" "&":"&I77&";"&" "&"(*"&J77&"*)" -> RNIFCU07X00_PC AT%M5196.0 :BOOL; (*风机盘管7层启停控制*) | M77: =REPLACE(REPLACE(L77,SEARCH("AT%",L77),,REPT(" ",25-SEARCH("AT%",L77))),SEARCH(":",REPLACE(L77,SEARCH("AT%",L77),,REPT(" ",25-SEARCH("AT%",L77)))),,REPT(" ",40-SEARCH(":",REPLACE(L77,SEARCH("AT%",L77),,REPT(" ",25-SEARCH("AT%",L77)))))) -> RNIFCU07X00_PC AT%M5196.0 :BOOL; (*风机盘管7层启停控制*)
A78: 风机盘管 | B78: RNI | C78: M | D78: 08X00 | E78: 程序控制 | F78: =IF(OR(I77="REAL",I77="DWORD",I77="DINT"),(IF(OR(I78="REAL",I78="DWORD",I78="DINT"),F77+4+MOD(F77,4),F77+4)),(IF(OR(I78="REAL",I78="DWORD",I78="DINT"),F77+4+MOD(F77,4),F77+2)))&".0" -> 5198.0 | H78: 验证通过 | I78: BOOL | J78: 风机盘管8层启停控制 | K78: =B78&VLOOKUP(A78,List!$B$3:$D$445,2,FALSE)&D78&"_"&VLOOKUP(E78,List!$K$2:$M$447,2,FALSE) -> RNIFCU08X00_PC | L78: RNIFCU08X00_PC AT%M5198.0 :BOOL; (*风机盘管8层启停控制*) | M78: RNIFCU08X00_PC AT%M5198.0 :BOOL; (*风机盘管8层启停控制*)
A79: 照明控制箱 | B79: RNI | C79: M | D79: B3X0A | E79: 启停控制 | F79: 5200.0 | H79: 验证通过 | I79: BOOL | J79: 基础照明A B3层全局启停控制 | K79: =B79&VLOOKUP(A79,List!$B$3:$D$445,2,FALSE)&D79&"_"&VLOOKUP(E79,List!$K$2:$M$447,2,FALSE) -> RNILCBB3X0A_C | L79: RNILCBB3X0A_C AT%M5200.0 :BOOL; (*基础照明A B3层全局启停控制*) | M79: RNILCBB3X0A_C AT%M5200.0 :BOOL; (*基础照明A B3层全局启停控制*)
A80: 照明控制箱 | B80: RNI | C80: M | D80: B2X0A | E80: 启停控制 | F80: =IF(OR(I79="REAL",I79="DWORD",I79="DINT"),(IF(OR(I80="REAL",I80="DWORD",I80="DINT"),F79+4+MOD(F79,4),F79+4)),(IF(OR(I80="REAL",I80="DWORD",I80="DINT"),F79+4+MOD(F79,4),F79+2)))&".0" -> 5202.0 | H80: 验证通过 | I80: BOOL | J80: 基础照明A B2层全局启停控制 | K80: =B80&VLOOKUP(A80,List!$B$3:$D$445,2,FALSE)&D80&"_"&VLOOKUP(E80,List!$K$2:$M$447,2,FALSE) -> RNILCBB2X0A_C | L80: RNILCBB2X0A_C AT%M5202.0 :BOOL; (*基础照明A B2层全局启停控制*) | M80: RNILCBB2X0A_C AT%M5202.0 :BOOL; (*基础照明A B2层全局启停控制*)
A81: 照明控制箱 | B81: RNI | C81: M | D81: B1X0A | E81: 启停控制 | F81: 5204.0 | H81: 验证通过 | I81: BOOL | J81: 基础照明A B1层全局启停控制 | K81: =B81&VLOOKUP(A81,List!$B$3:$D$445,2,FALSE)&D81&"_"&VLOOKUP(E81,List!$K$2:$M$447,2,FALSE) -> RNILCBB1X0A_C | L81: RNILCBB1X0A_C AT%M5204.0 :BOOL; (*基础照明A B1层全局启停控制*) | M81: RNILCBB1X0A_C AT%M5204.0 :BOOL; (*基础照明A B1层全局启停控制*)
A82: 照明控制箱 | B82: RNI | C82: M | D82: 01X0A | E82: 启停控制 | F82: 5206.0 | H82: 验证通过 | I82: BOOL | J82: 基础照明A 1层全局启停控制 | K82: =B82&VLOOKUP(A82,List!$B$3:$D$445,2,FALSE)&D82&"_"&VLOOKUP(E82,List!$K$2:$M$447,2,FALSE) -> RNILCB01X0A_C | L82: RNILCB01X0A_C AT%M5206.0 :BOOL; (*基础照明A 1层全局启停控制*) | M82: RNILCB01X0A_C AT%M5206.0 :BOOL; (*基础照明A 1层全局启停控制*)
A83: 照明控制箱 | B83: RNI | C83: M | D83: 02X0A | E83: 启停控制 | F83: 5208.0 | H83: 验证通过 | I83: BOOL | J83: 基础照明A 2层全局启停控制 | K83: =B83&VLOOKUP(A83,List!$B$3:$D$445,2,FALSE)&D83&"_"&VLOOKUP(E83,List!$K$2:$M$447,2,FALSE) -> RNILCB02X0A_C | L83: RNILCB02X0A_C AT%M5208.0 :BOOL; (*基础照明A 2层全局启停控制*) | M83: RNILCB02X0A_C AT%M5208.0 :BOOL; (*基础照明A 2层全局启停控制*)
A84: 照明控制箱 | B84: RNI | C84: M | D84: 03X0A | E84: 启停控制 | F84: 5210.0 | H84: 验证通过 | I84: BOOL | J84: 基础照明A 3层全局启停控制 | K84: =B84&VLOOKUP(A84,List!$B$3:$D$445,2,FALSE)&D84&"_"&VLOOKUP(E84,List!$K$2:$M$447,2,FALSE) -> RNILCB03X0A_C | L84: RNILCB03X0A_C AT%M5210.0 :BOOL; (*基础照明A 3层全局启停控制*) | M84: RNILCB03X0A_C AT%M5210.0 :BOOL; (*基础照明A 3层全局启停控制*)
A85: 照明控制箱 | B85: RNI | C85: M | D85: 04X0A | E85: 启停控制 | F85: 5212.0 | H85: 验证通过 | I85: BOOL | J85: 基础照明A 4层全局启停控制 | K85: =B85&VLOOKUP(A85,List!$B$3:$D$445,2,FALSE)&D85&"_"&VLOOKUP(E85,List!$K$2:$M$447,2,FALSE) -> RNILCB04X0A_C | L85: RNILCB04X0A_C AT%M5212.0 :BOOL; (*基础照明A 4层全局启停控制*) | M85: RNILCB04X0A_C AT%M5212.0 :BOOL; (*基础照明A 4层全局启停控制*)
A86: 照明控制箱 | B86: RNI | C86: M | D86: 05X0A | E86: 启停控制 | F86: 5214.0 | H86: 验证通过 | I86: BOOL | J86: 基础照明A 5层全局启停控制 | K86: =B86&VLOOKUP(A86,List!$B$3:$D$445,2,FALSE)&D86&"_"&VLOOKUP(E86,List!$K$2:$M$447,2,FALSE) -> RNILCB05X0A_C | L86: RNILCB05X0A_C AT%M5214.0 :BOOL; (*基础照明A 5层全局启停控制*) | M86: RNILCB05X0A_C AT%M5214.0 :BOOL; (*基础照明A 5层全局启停控制*)
A87: 照明控制箱 | B87: RNI | C87: M | D87: 06X0A | E87: 启停控制 | F87: 5216.0 | H87: 验证通过 | I87: BOOL | J87: 基础照明A 6层全局启停控制 | K87: =B87&VLOOKUP(A87,List!$B$3:$D$445,2,FALSE)&D87&"_"&VLOOKUP(E87,List!$K$2:$M$447,2,FALSE) -> RNILCB06X0A_C | L87: RNILCB06X0A_C AT%M5216.0 :BOOL; (*基础照明A 6层全局启停控制*) | M87: RNILCB06X0A_C AT%M5216.0 :BOOL; (*基础照明A 6层全局启停控制*)
A88: 照明控制箱 | B88: RNI | C88: M | D88: 07X0A | E88: 启停控制 | F88: 5218.0 | H88: 验证通过 | I88: BOOL | J88: 基础照明A 7层全局启停控制 | K88: =B88&VLOOKUP(A88,List!$B$3:$D$445,2,FALSE)&D88&"_"&VLOOKUP(E88,List!$K$2:$M$447,2,FALSE) -> RNILCB07X0A_C | L88: RNILCB07X0A_C AT%M5218.0 :BOOL; (*基础照明A 7层全局启停控制*) | M88: RNILCB07X0A_C AT%M5218.0 :BOOL; (*基础照明A 7层全局启停控制*)
A89: 照明控制箱 | B89: RNI | C89: M | D89: 08X0A | E89: 启停控制 | F89: 5220.0 | H89: 验证通过 | I89: BOOL | J89: 基础照明A 8层全局启停控制 | K89: =B89&VLOOKUP(A89,List!$B$3:$D$445,2,FALSE)&D89&"_"&VLOOKUP(E89,List!$K$2:$M$447,2,FALSE) -> RNILCB08X0A_C | L89: RNILCB08X0A_C AT%M5220.0 :BOOL; (*基础照明A 8层全局启停控制*) | M89: RNILCB08X0A_C AT%M5220.0 :BOOL; (*基础照明A 8层全局启停控制*)
A90: 照明控制箱 | B90: RNI | C90: M | D90: B3X0B | E90: 启停控制 | F90: 5222.0 | H90: 验证通过 | I90: BOOL | J90: 基础照明B B3层全局启停控制 | K90: =B90&VLOOKUP(A90,List!$B$3:$D$445,2,FALSE)&D90&"_"&VLOOKUP(E90,List!$K$2:$M$447,2,FALSE) -> RNILCBB3X0B_C | L90: RNILCBB3X0B_C AT%M5222.0 :BOOL; (*基础照明B B3层全局启停控制*) | M90: RNILCBB3X0B_C AT%M5222.0 :BOOL; (*基础照明B B3层全局启停控制*)
A91: 照明控制箱 | B91: RNI | C91: M | D91: B2X0B | E91: 启停控制 | F91: 5224.0 | H91: 验证通过 | I91: BOOL | J91: 基础照明B B2层全局启停控制 | K91: =B91&VLOOKUP(A91,List!$B$3:$D$445,2,FALSE)&D91&"_"&VLOOKUP(E91,List!$K$2:$M$447,2,FALSE) -> RNILCBB2X0B_C | L91: RNILCBB2X0B_C AT%M5224.0 :BOOL; (*基础照明B B2层全局启停控制*) | M91: RNILCBB2X0B_C AT%M5224.0 :BOOL; (*基础照明B B2层全局启停控制*)
A92: 照明控制箱 | B92: RNI | C92: M | D92: B1X0B | E92: 启停控制 | F92: 5226.0 | H92: 验证通过 | I92: BOOL | J92: 基础照明B B1层全局启停控制 | K92: =B92&VLOOKUP(A92,List!$B$3:$D$445,2,FALSE)&D92&"_"&VLOOKUP(E92,List!$K$2:$M$447,2,FALSE) -> RNILCBB1X0B_C | L92: RNILCBB1X0B_C AT%M5226.0 :BOOL; (*基础照明B B1层全局启停控制*) | M92: RNILCBB1X0B_C AT%M5226.0 :BOOL; (*基础照明B B1层全局启停控制*)
A93: 照明控制箱 | B93: RNI | C93: M | D93: 01X0B | E93: 启停控制 | F93: 5228.0 | H93: 验证通过 | I93: BOOL | J93: 基础照明B 1层全局启停控制 | K93: =B93&VLOOKUP(A93,List!$B$3:$D$445,2,FALSE)&D93&"_"&VLOOKUP(E93,List!$K$2:$M$447,2,FALSE) -> RNILCB01X0B_C | L93: RNILCB01X0B_C AT%M5228.0 :BOOL; (*基础照明B 1层全局启停控制*) | M93: RNILCB01X0B_C AT%M5228.0 :BOOL; (*基础照明B 1层全局启停控制*)
A94: 照明控制箱 | B94: RNI | C94: M | D94: 02X0B | E94: 启停控制 | F94: 5230.0 | H94: 验证通过 | I94: BOOL | J94: 基础照明B 2层全局启停控制 | K94: =B94&VLOOKUP(A94,List!$B$3:$D$445,2,FALSE)&D94&"_"&VLOOKUP(E94,List!$K$2:$M$447,2,FALSE) -> RNILCB02X0B_C | L94: RNILCB02X0B_C AT%M5230.0 :BOOL; (*基础照明B 2层全局启停控制*) | M94: RNILCB02X0B_C AT%M5230.0 :BOOL; (*基础照明B 2层全局启停控制*)
A95: 照明控制箱 | B95: RNI | C95: M | D95: 03X0B | E95: 启停控制 | F95: 5232.0 | H95: 验证通过 | I95: BOOL | J95: 基础照明B 3层全局启停控制 | K95: =B95&VLOOKUP(A95,List!$B$3:$D$445,2,FALSE)&D95&"_"&VLOOKUP(E95,List!$K$2:$M$447,2,FALSE) -> RNILCB03X0B_C | L95: RNILCB03X0B_C AT%M5232.0 :BOOL; (*基础照明B 3层全局启停控制*) | M95: RNILCB03X0B_C AT%M5232.0 :BOOL; (*基础照明B 3层全局启停控制*)
A96: 照明控制箱 | B96: RNI | C96: M | D96: 04X0B | E96: 启停控制 | F96: 5234.0 | H96: 验证通过 | I96: BOOL | J96: 基础照明B 4层全局启停控制 | K96: =B96&VLOOKUP(A96,List!$B$3:$D$445,2,FALSE)&D96&"_"&VLOOKUP(E96,List!$K$2:$M$447,2,FALSE) -> RNILCB04X0B_C | L96: RNILCB04X0B_C AT%M5234.0 :BOOL; (*基础照明B 4层全局启停控制*) | M96: RNILCB04X0B_C AT%M5234.0 :BOOL; (*基础照明B 4层全局启停控制*)
A97: 照明控制箱 | B97: RNI | C97: M | D97: 05X0B | E97: 启停控制 | F97: 5236.0 | H97: 验证通过 | I97: BOOL | J97: 基础照明B 5层全局启停控制 | K97: =B97&VLOOKUP(A97,List!$B$3:$D$445,2,FALSE)&D97&"_"&VLOOKUP(E97,List!$K$2:$M$447,2,FALSE) -> RNILCB05X0B_C | L97: RNILCB05X0B_C AT%M5236.0 :BOOL; (*基础照明B 5层全局启停控制*) | M97: RNILCB05X0B_C AT%M5236.0 :BOOL; (*基础照明B 5层全局启停控制*)
A98: 照明控制箱 | B98: RNI | C98: M | D98: 06X0B | E98: 启停控制 | F98: 5238.0 | H98: 验证通过 | I98: BOOL | J98: 基础照明B 6层全局启停控制 | K98: =B98&VLOOKUP(A98,List!$B$3:$D$445,2,FALSE)&D98&"_"&VLOOKUP(E98,List!$K$2:$M$447,2,FALSE) -> RNILCB06X0B_C | L98: RNILCB06X0B_C AT%M5238.0 :BOOL; (*基础照明B 6层全局启停控制*) | M98: RNILCB06X0B_C AT%M5238.0 :BOOL; (*基础照明B 6层全局启停控制*)
A99: 照明控制箱 | B99: RNI | C99: M | D99: 07X0B | E99: 启停控制 | F99: 5240.0 | H99: 验证通过 | I99: BOOL | J99: 基础照明B 7层全局启停控制 | K99: =B99&VLOOKUP(A99,List!$B$3:$D$445,2,FALSE)&D99&"_"&VLOOKUP(E99,List!$K$2:$M$447,2,FALSE) -> RNILCB07X0B_C | L99: RNILCB07X0B_C AT%M5240.0 :BOOL; (*基础照明B 7层全局启停控制*) | M99: RNILCB07X0B_C AT%M5240.0 :BOOL; (*基础照明B 7层全局启停控制*)
A100: 照明控制箱 | B100: RNI | C100: M | D100: 08X0B | E100: 启停控制 | F100: 5242.0 | H100: 验证通过 | I100: BOOL | J100: 基础照明B 8层全局启停控制 | K100: =B100&VLOOKUP(A100,List!$B$3:$D$445,2,FALSE)&D100&"_"&VLOOKUP(E100,List!$K$2:$M$447,2,FALSE) -> RNILCB08X0B_C | L100: RNILCB08X0B_C AT%M5242.0 :BOOL; (*基础照明B 8层全局启停控制*) | M100: RNILCB08X0B_C AT%M5242.0 :BOOL; (*基础照明B 8层全局启停控制*)
A101: 照明控制箱 | B101: RNI | C101: M | D101: B3X0C | E101: 启停控制 | F101: 5244.0 | H101: 验证通过 | I101: BOOL | J101: 灯带 B3层全局启停控制 | K101: =B101&VLOOKUP(A101,List!$B$3:$D$445,2,FALSE)&D101&"_"&VLOOKUP(E101,List!$K$2:$M$447,2,FALSE) -> RNILCBB3X0C_C | L101: RNILCBB3X0C_C AT%M5244.0 :BOOL; (*灯带 B3层全局启停控制*) | M101: RNILCBB3X0C_C AT%M5244.0 :BOOL; (*灯带 B3层全局启停控制*)
A102: 照明控制箱 | B102: RNI | C102: M | D102: B2X0C | E102: 启停控制 | F102: 5246.0 | H102: 验证通过 | I102: BOOL | J102: 灯带 B2层全局启停控制 | K102: =B102&VLOOKUP(A102,List!$B$3:$D$445,2,FALSE)&D102&"_"&VLOOKUP(E102,List!$K$2:$M$447,2,FALSE) -> RNILCBB2X0C_C | L102: RNILCBB2X0C_C AT%M5246.0 :BOOL; (*灯带 B2层全局启停控制*) | M102: RNILCBB2X0C_C AT%M5246.0 :BOOL; (*灯带 B2层全局启停控制*)
A103: 照明控制箱 | B103: RNI | C103: M | D103: B1X0C | E103: 启停控制 | F103: 5248.0 | H103: 验证通过 | I103: BOOL | J103: 灯带 B1层全局启停控制 | K103: =B103&VLOOKUP(A103,List!$B$3:$D$445,2,FALSE)&D103&"_"&VLOOKUP(E103,List!$K$2:$M$447,2,FALSE) -> RNILCBB1X0C_C | L103: RNILCBB1X0C_C AT%M5248.0 :BOOL; (*灯带 B1层全局启停控制*) | M103: RNILCBB1X0C_C AT%M5248.0 :BOOL; (*灯带 B1层全局启停控制*)
A104: 照明控制箱 | B104: RNI | C104: M | D104: 01X0C | E104: 启停控制 | F104: 5250.0 | H104: 验证通过 | I104: BOOL | J104: 灯带 1层全局启停控制 | K104: =B104&VLOOKUP(A104,List!$B$3:$D$445,2,FALSE)&D104&"_"&VLOOKUP(E104,List!$K$2:$M$447,2,FALSE) -> RNILCB01X0C_C | L104: RNILCB01X0C_C AT%M5250.0 :BOOL; (*灯带 1层全局启停控制*) | M104: RNILCB01X0C_C AT%M5250.0 :BOOL; (*灯带 1层全局启停控制*)
A105: 照明控制箱 | B105: RNI | C105: M | D105: 02X0C | E105: 启停控制 | F105: 5252.0 | H105: 验证通过 | I105: BOOL | J105: 灯带 2层全局启停控制 | K105: =B105&VLOOKUP(A105,List!$B$3:$D$445,2,FALSE)&D105&"_"&VLOOKUP(E105,List!$K$2:$M$447,2,FALSE) -> RNILCB02X0C_C | L105: RNILCB02X0C_C AT%M5252.0 :BOOL; (*灯带 2层全局启停控制*) | M105: RNILCB02X0C_C AT%M5252.0 :BOOL; (*灯带 2层全局启停控制*)
A106: 照明控制箱 | B106: RNI | C106: M | D106: 03X0C | E106: 启停控制 | F106: 5254.0 | H106: 验证通过 | I106: BOOL | J106: 灯带 3层全局启停控制 | K106: =B106&VLOOKUP(A106,List!$B$3:$D$445,2,FALSE)&D106&"_"&VLOOKUP(E106,List!$K$2:$M$447,2,FALSE) -> RNILCB03X0C_C | L106: RNILCB03X0C_C AT%M5254.0 :BOOL; (*灯带 3层全局启停控制*) | M106: RNILCB03X0C_C AT%M5254.0 :BOOL; (*灯带 3层全局启停控制*)
A107: 照明控制箱 | B107: RNI | C107: M | D107: 04X0C | E107: 启停控制 | F107: 5256.0 | H107: 验证通过 | I107: BOOL | J107: 灯带 4层全局启停控制 | K107: =B107&VLOOKUP(A107,List!$B$3:$D$445,2,FALSE)&D107&"_"&VLOOKUP(E107,List!$K$2:$M$447,2,FALSE) -> RNILCB04X0C_C | L107: RNILCB04X0C_C AT%M5256.0 :BOOL; (*灯带 4层全局启停控制*) | M107: RNILCB04X0C_C AT%M5256.0 :BOOL; (*灯带 4层全局启停控制*)
A108: 照明控制箱 | B108: RNI | C108: M | D108: 05X0C | E108: 启停控制 | F108: 5258.0 | H108: 验证通过 | I108: BOOL | J108: 灯带 5层全局启停控制 | K108: =B108&VLOOKUP(A108,List!$B$3:$D$445,2,FALSE)&D108&"_"&VLOOKUP(E108,List!$K$2:$M$447,2,FALSE) -> RNILCB05X0C_C | L108: RNILCB05X0C_C AT%M5258.0 :BOOL; (*灯带 5层全局启停控制*) | M108: RNILCB05X0C_C AT%M5258.0 :BOOL; (*灯带 5层全局启停控制*)
A109: 照明控制箱 | B109: RNI | C109: M | D109: 06X0C | E109: 启停控制 | F109: 5260.0 | H109: 验证通过 | I109: BOOL | J109: 灯带 6层全局启停控制 | K109: =B109&VLOOKUP(A109,List!$B$3:$D$445,2,FALSE)&D109&"_"&VLOOKUP(E109,List!$K$2:$M$447,2,FALSE) -> RNILCB06X0C_C | L109: RNILCB06X0C_C AT%M5260.0 :BOOL; (*灯带 6层全局启停控制*) | M109: RNILCB06X0C_C AT%M5260.0 :BOOL; (*灯带 6层全局启停控制*)
A110: 照明控制箱 | B110: RNI | C110: M | D110: 07X0C | E110: 启停控制 | F110: 5262.0 | H110: 验证通过 | I110: BOOL | J110: 灯带 7层全局启停控制 | K110: =B110&VLOOKUP(A110,List!$B$3:$D$445,2,FALSE)&D110&"_"&VLOOKUP(E110,List!$K$2:$M$447,2,FALSE) -> RNILCB07X0C_C | L110: RNILCB07X0C_C AT%M5262.0 :BOOL; (*灯带 7层全局启停控制*) | M110: RNILCB07X0C_C AT%M5262.0 :BOOL; (*灯带 7层全局启停控制*)
A111: 照明控制箱 | B111: RNI | C111: M | D111: 08X0C | E111: 启停控制 | F111: 5264.0 | H111: 验证通过 | I111: BOOL | J111: 灯带 8层全局启停控制 | K111: =B111&VLOOKUP(A111,List!$B$3:$D$445,2,FALSE)&D111&"_"&VLOOKUP(E111,List!$K$2:$M$447,2,FALSE) -> RNILCB08X0C_C | L111: RNILCB08X0C_C AT%M5264.0 :BOOL; (*灯带 8层全局启停控制*) | M111: RNILCB08X0C_C AT%M5264.0 :BOOL; (*灯带 8层全局启停控制*)
A112: 照明控制箱 | B112: RNI | C112: M | D112: B3X0D | E112: 启停控制 | F112: 5266.0 | H112: 验证通过 | I112: BOOL | J112: 广告 B3层全局启停控制 | K112: =B112&VLOOKUP(A112,List!$B$3:$D$445,2,FALSE)&D112&"_"&VLOOKUP(E112,List!$K$2:$M$447,2,FALSE) -> RNILCBB3X0D_C | L112: RNILCBB3X0D_C AT%M5266.0 :BOOL; (*广告 B3层全局启停控制*) | M112: RNILCBB3X0D_C AT%M5266.0 :BOOL; (*广告 B3层全局启停控制*)
A113: 照明控制箱 | B113: RNI | C113: M | D113: B2X0D | E113: 启停控制 | F113: 5268.0 | H113: 验证通过 | I113: BOOL | J113: 广告 B2层全局启停控制 | K113: =B113&VLOOKUP(A113,List!$B$3:$D$445,2,FALSE)&D113&"_"&VLOOKUP(E113,List!$K$2:$M$447,2,FALSE) -> RNILCBB2X0D_C | L113: RNILCBB2X0D_C AT%M5268.0 :BOOL; (*广告 B2层全局启停控制*) | M113: RNILCBB2X0D_C AT%M5268.0 :BOOL; (*广告 B2层全局启停控制*)
A114: 照明控制箱 | B114: RNI | C114: M | D114: B1X0D | E114: 启停控制 | F114: 5270.0 | H114: 验证通过 | I114: BOOL | J114: 广告 B1层全局启停控制 | K114: =B114&VLOOKUP(A114,List!$B$3:$D$445,2,FALSE)&D114&"_"&VLOOKUP(E114,List!$K$2:$M$447,2,FALSE) -> RNILCBB1X0D_C | L114: RNILCBB1X0D_C AT%M5270.0 :BOOL; (*广告 B1层全局启停控制*) | M114: RNILCBB1X0D_C AT%M5270.0 :BOOL; (*广告 B1层全局启停控制*)
A115: 照明控制箱 | B115: RNI | C115: M | D115: 01X0D | E115: 启停控制 | F115: 5272.0 | H115: 验证通过 | I115: BOOL | J115: 广告 1层全局启停控制 | K115: =B115&VLOOKUP(A115,List!$B$3:$D$445,2,FALSE)&D115&"_"&VLOOKUP(E115,List!$K$2:$M$447,2,FALSE) -> RNILCB01X0D_C | L115: RNILCB01X0D_C AT%M5272.0 :BOOL; (*广告 1层全局启停控制*) | M115: RNILCB01X0D_C AT%M5272.0 :BOOL; (*广告 1层全局启停控制*)
A116: 照明控制箱 | B116: RNI | C116: M | D116: 02X0D | E116: 启停控制 | F116: 5274.0 | H116: 验证通过 | I116: BOOL | J116: 广告 2层全局启停控制 | K116: =B116&VLOOKUP(A116,List!$B$3:$D$445,2,FALSE)&D116&"_"&VLOOKUP(E116,List!$K$2:$M$447,2,FALSE) -> RNILCB02X0D_C | L116: RNILCB02X0D_C AT%M5274.0 :BOOL; (*广告 2层全局启停控制*) | M116: RNILCB02X0D_C AT%M5274.0 :BOOL; (*广告 2层全局启停控制*)
A117: 照明控制箱 | B117: RNI | C117: M | D117: 03X0D | E117: 启停控制 | F117: 5276.0 | H117: 验证通过 | I117: BOOL | J117: 广告 3层全局启停控制 | K117: =B117&VLOOKUP(A117,List!$B$3:$D$445,2,FALSE)&D117&"_"&VLOOKUP(E117,List!$K$2:$M$447,2,FALSE) -> RNILCB03X0D_C | L117: RNILCB03X0D_C AT%M5276.0 :BOOL; (*广告 3层全局启停控制*) | M117: RNILCB03X0D_C AT%M5276.0 :BOOL; (*广告 3层全局启停控制*)
A118: 照明控制箱 | B118: RNI | C118: M | D118: 04X0D | E118: 启停控制 | F118: 5278.0 | H118: 验证通过 | I118: BOOL | J118: 广告 4层全局启停控制 | K118: =B118&VLOOKUP(A118,List!$B$3:$D$445,2,FALSE)&D118&"_"&VLOOKUP(E118,List!$K$2:$M$447,2,FALSE) -> RNILCB04X0D_C | L118: RNILCB04X0D_C AT%M5278.0 :BOOL; (*广告 4层全局启停控制*) | M118: RNILCB04X0D_C AT%M5278.0 :BOOL; (*广告 4层全局启停控制*)
A119: 照明控制箱 | B119: RNI | C119: M | D119: 05X0D | E119: 启停控制 | F119: 5280.0 | H119: 验证通过 | I119: BOOL | J119: 广告 5层全局启停控制 | K119: =B119&VLOOKUP(A119,List!$B$3:$D$445,2,FALSE)&D119&"_"&VLOOKUP(E119,List!$K$2:$M$447,2,FALSE) -> RNILCB05X0D_C | L119: RNILCB05X0D_C AT%M5280.0 :BOOL; (*广告 5层全局启停控制*) | M119: RNILCB05X0D_C AT%M5280.0 :BOOL; (*广告 5层全局启停控制*)
A120: 照明控制箱 | B120: RNI | C120: M | D120: 06X0D | E120: 启停控制 | F120: 5282.0 | H120: 验证通过 | I120: BOOL | J120: 广告 6层全局启停控制 | K120: =B120&VLOOKUP(A120,List!$B$3:$D$445,2,FALSE)&D120&"_"&VLOOKUP(E120,List!$K$2:$M$447,2,FALSE) -> RNILCB06X0D_C | L120: RNILCB06X0D_C AT%M5282.0 :BOOL; (*广告 6层全局启停控制*) | M120: RNILCB06X0D_C AT%M5282.0 :BOOL; (*广告 6层全局启停控制*)
A121: 照明控制箱 | B121: RNI | C121: M | D121: 07X0D | E121: 启停控制 | F121: 5284.0 | H121: 验证通过 | I121: BOOL | J121: 广告 7层全局启停控制 | K121: =B121&VLOOKUP(A121,List!$B$3:$D$445,2,FALSE)&D121&"_"&VLOOKUP(E121,List!$K$2:$M$447,2,FALSE) -> RNILCB07X0D_C | L121: RNILCB07X0D_C AT%M5284.0 :BOOL; (*广告 7层全局启停控制*) | M121: RNILCB07X0D_C AT%M5284.0 :BOOL; (*广告 7层全局启停控制*)
A122: 照明控制箱 | B122: RNI | C122: M | D122: 08X0D | E122: 启停控制 | F122: 5286.0 | H122: 验证通过 | I122: BOOL | J122: 广告 8层全局启停控制 | K122: =B122&VLOOKUP(A122,List!$B$3:$D$445,2,FALSE)&D122&"_"&VLOOKUP(E122,List!$K$2:$M$447,2,FALSE) -> RNILCB08X0D_C | L122: RNILCB08X0D_C AT%M5286.0 :BOOL; (*广告 8层全局启停控制*) | M122: RNILCB08X0D_C AT%M5286.0 :BOOL; (*广告 8层全局启停控制*)
A123: 照明控制箱 | B123: RNI | C123: M | D123: B3X0E | E123: 启停控制 | F123: 5288.0 | H123: 验证通过 | I123: BOOL | J123: 标识 B3层全局启停控制 | K123: =B123&VLOOKUP(A123,List!$B$3:$D$445,2,FALSE)&D123&"_"&VLOOKUP(E123,List!$K$2:$M$447,2,FALSE) -> RNILCBB3X0E_C | L123: RNILCBB3X0E_C AT%M5288.0 :BOOL; (*标识 B3层全局启停控制*) | M123: RNILCBB3X0E_C AT%M5288.0 :BOOL; (*标识 B3层全局启停控制*)
A124: 照明控制箱 | B124: RNI | C124: M | D124: B2X0E | E124: 启停控制 | F124: 5290.0 | H124: 验证通过 | I124: BOOL | J124: 标识 B2层全局启停控制 | K124: =B124&VLOOKUP(A124,List!$B$3:$D$445,2,FALSE)&D124&"_"&VLOOKUP(E124,List!$K$2:$M$447,2,FALSE) -> RNILCBB2X0E_C | L124: RNILCBB2X0E_C AT%M5290.0 :BOOL; (*标识 B2层全局启停控制*) | M124: RNILCBB2X0E_C AT%M5290.0 :BOOL; (*标识 B2层全局启停控制*)
A125: 照明控制箱 | B125: RNI | C125: M | D125: B1X0E | E125: 启停控制 | F125: 5292.0 | H125: 验证通过 | I125: BOOL | J125: 标识 B1层全局启停控制 | K125: =B125&VLOOKUP(A125,List!$B$3:$D$445,2,FALSE)&D125&"_"&VLOOKUP(E125,List!$K$2:$M$447,2,FALSE) -> RNILCBB1X0E_C | L125: RNILCBB1X0E_C AT%M5292.0 :BOOL; (*标识 B1层全局启停控制*) | M125: RNILCBB1X0E_C AT%M5292.0 :BOOL; (*标识 B1层全局启停控制*)
A126: 照明控制箱 | B126: RNI | C126: M | D126: 01X0E | E126: 启停控制 | F126: 5294.0 | H126: 验证通过 | I126: BOOL | J126: 标识 1层全局启停控制 | K126: =B126&VLOOKUP(A126,List!$B$3:$D$445,2,FALSE)&D126&"_"&VLOOKUP(E126,List!$K$2:$M$447,2,FALSE) -> RNILCB01X0E_C | L126: RNILCB01X0E_C AT%M5294.0 :BOOL; (*标识 1层全局启停控制*) | M126: RNILCB01X0E_C AT%M5294.0 :BOOL; (*标识 1层全局启停控制*)
A127: 照明控制箱 | B127: RNI | C127: M | D127: 02X0E | E127: 启停控制 | F127: 5296.0 | H127: 验证通过 | I127: BOOL | J127: 标识 2层全局启停控制 | K127: =B127&VLOOKUP(A127,List!$B$3:$D$445,2,FALSE)&D127&"_"&VLOOKUP(E127,List!$K$2:$M$447,2,FALSE) -> RNILCB02X0E_C | L127: RNILCB02X0E_C AT%M5296.0 :BOOL; (*标识 2层全局启停控制*) | M127: RNILCB02X0E_C AT%M5296.0 :BOOL; (*标识 2层全局启停控制*)
A128: 照明控制箱 | B128: RNI | C128: M | D128: 03X0E | E128: 启停控制 | F128: 5298.0 | H128: =IF((IF(OR(I128="INT",I128="WORD",I128="BOOL"),MOD(F128,2),MOD(F128,4)))=0,"验证通过","验证失败") -> 验证通过 | I128: BOOL | J128: 标识 3层全局启停控制 | K128: =B128&VLOOKUP(A128,List!$B$3:$D$445,2,FALSE)&D128&"_"&VLOOKUP(E128,List!$K$2:$M$447,2,FALSE) -> RNILCB03X0E_C | L128: RNILCB03X0E_C AT%M5298.0 :BOOL; (*标识 3层全局启停控制*) | M128: RNILCB03X0E_C AT%M5298.0 :BOOL; (*标识 3层全局启停控制*)
A129: 照明控制箱 | B129: RNI | C129: M | D129: 04X0E | E129: 启停控制 | F129: 5300.0 | H129: 验证通过 | I129: BOOL | J129: 标识 4层全局启停控制 | K129: =B129&VLOOKUP(A129,List!$B$3:$D$445,2,FALSE)&D129&"_"&VLOOKUP(E129,List!$K$2:$M$447,2,FALSE) -> RNILCB04X0E_C | L129: RNILCB04X0E_C AT%M5300.0 :BOOL; (*标识 4层全局启停控制*) | M129: RNILCB04X0E_C AT%M5300.0 :BOOL; (*标识 4层全局启停控制*)
A130: 照明控制箱 | B130: RNI | C130: M | D130: 05X0E | E130: 启停控制 | F130: 5302.0 | H130: 验证通过 | I130: BOOL | J130: 标识 5层全局启停控制 | K130: =B130&VLOOKUP(A130,List!$B$3:$D$445,2,FALSE)&D130&"_"&VLOOKUP(E130,List!$K$2:$M$447,2,FALSE) -> RNILCB05X0E_C | L130: RNILCB05X0E_C AT%M5302.0 :BOOL; (*标识 5层全局启停控制*) | M130: RNILCB05X0E_C AT%M5302.0 :BOOL; (*标识 5层全局启停控制*)
A131: 照明控制箱 | B131: RNI | C131: M | D131: 06X0E | E131: 启停控制 | F131: 5304.0 | H131: 验证通过 | I131: BOOL | J131: 标识 6层全局启停控制 | K131: =B131&VLOOKUP(A131,List!$B$3:$D$445,2,FALSE)&D131&"_"&VLOOKUP(E131,List!$K$2:$M$447,2,FALSE) -> RNILCB06X0E_C | L131: RNILCB06X0E_C AT%M5304.0 :BOOL; (*标识 6层全局启停控制*) | M131: RNILCB06X0E_C AT%M5304.0 :BOOL; (*标识 6层全局启停控制*)
A132: 照明控制箱 | B132: RNI | C132: M | D132: 07X0E | E132: 启停控制 | F132: 5306.0 | H132: 验证通过 | I132: BOOL | J132: 标识 7层全局启停控制 | K132: =B132&VLOOKUP(A132,List!$B$3:$D$445,2,FALSE)&D132&"_"&VLOOKUP(E132,List!$K$2:$M$447,2,FALSE) -> RNILCB07X0E_C | L132: RNILCB07X0E_C AT%M5306.0 :BOOL; (*标识 7层全局启停控制*) | M132: RNILCB07X0E_C AT%M5306.0 :BOOL; (*标识 7层全局启停控制*)
A133: 照明控制箱 | B133: RNI | C133: M | D133: 08X0E | E133: 启停控制 | F133: 5308.0 | H133: 验证通过 | I133: BOOL | J133: 标识 8层全局启停控制 | K133: =B133&VLOOKUP(A133,List!$B$3:$D$445,2,FALSE)&D133&"_"&VLOOKUP(E133,List!$K$2:$M$447,2,FALSE) -> RNILCB08X0E_C | L133: RNILCB08X0E_C AT%M5308.0 :BOOL; (*标识 8层全局启停控制*) | M133: RNILCB08X0E_C AT%M5308.0 :BOOL; (*标识 8层全局启停控制*)
A134: 照明控制箱 | B134: RNI | C134: M | D134: B3X0F | E134: 启停控制 | F134: 5310.0 | H134: 验证通过 | I134: BOOL | J134: 备用 B3层全局启停控制 | K134: =B134&VLOOKUP(A134,List!$B$3:$D$445,2,FALSE)&D134&"_"&VLOOKUP(E134,List!$K$2:$M$447,2,FALSE) -> RNILCBB3X0F_C | L134: RNILCBB3X0F_C AT%M5310.0 :BOOL; (*备用 B3层全局启停控制*) | M134: RNILCBB3X0F_C AT%M5310.0 :BOOL; (*备用 B3层全局启停控制*)
A135: 照明控制箱 | B135: RNI | C135: M | D135: B2X0F | E135: 启停控制 | F135: 5312.0 | H135: 验证通过 | I135: BOOL | J135: 备用 B2层全局启停控制 | K135: =B135&VLOOKUP(A135,List!$B$3:$D$445,2,FALSE)&D135&"_"&VLOOKUP(E135,List!$K$2:$M$447,2,FALSE) -> RNILCBB2X0F_C | L135: RNILCBB2X0F_C AT%M5312.0 :BOOL; (*备用 B2层全局启停控制*) | M135: RNILCBB2X0F_C AT%M5312.0 :BOOL; (*备用 B2层全局启停控制*)
A136: 照明控制箱 | B136: RNI | C136: M | D136: B1X0F | E136: 启停控制 | F136: 5314.0 | H136: 验证通过 | I136: BOOL | J136: 备用 B1层全局启停控制 | K136: =B136&VLOOKUP(A136,List!$B$3:$D$445,2,FALSE)&D136&"_"&VLOOKUP(E136,List!$K$2:$M$447,2,FALSE) -> RNILCBB1X0F_C | L136: RNILCBB1X0F_C AT%M5314.0 :BOOL; (*备用 B1层全局启停控制*) | M136: RNILCBB1X0F_C AT%M5314.0 :BOOL; (*备用 B1层全局启停控制*)
A137: 照明控制箱 | B137: RNI | C137: M | D137: 01X0F | E137: 启停控制 | F137: 5316.0 | H137: 验证通过 | I137: BOOL | J137: 备用 1层全局启停控制 | K137: =B137&VLOOKUP(A137,List!$B$3:$D$445,2,FALSE)&D137&"_"&VLOOKUP(E137,List!$K$2:$M$447,2,FALSE) -> RNILCB01X0F_C | L137: RNILCB01X0F_C AT%M5316.0 :BOOL; (*备用 1层全局启停控制*) | M137: RNILCB01X0F_C AT%M5316.0 :BOOL; (*备用 1层全局启停控制*)
A138: 照明控制箱 | B138: RNI | C138: M | D138: 02X0F | E138: 启停控制 | F138: 5318.0 | H138: 验证通过 | I138: BOOL | J138: 备用 2层全局启停控制 | K138: =B138&VLOOKUP(A138,List!$B$3:$D$445,2,FALSE)&D138&"_"&VLOOKUP(E138,List!$K$2:$M$447,2,FALSE) -> RNILCB02X0F_C | L138: RNILCB02X0F_C AT%M5318.0 :BOOL; (*备用 2层全局启停控制*) | M138: RNILCB02X0F_C AT%M5318.0 :BOOL; (*备用 2层全局启停控制*)
A139: 照明控制箱 | B139: RNI | C139: M | D139: 03X0F | E139: 启停控制 | F139: 5320.0 | H139: 验证通过 | I139: BOOL | J139: 备用 3层全局启停控制 | K139: =B139&VLOOKUP(A139,List!$B$3:$D$445,2,FALSE)&D139&"_"&VLOOKUP(E139,List!$K$2:$M$447,2,FALSE) -> RNILCB03X0F_C | L139: RNILCB03X0F_C AT%M5320.0 :BOOL; (*备用 3层全局启停控制*) | M139: RNILCB03X0F_C AT%M5320.0 :BOOL; (*备用 3层全局启停控制*)
A140: 照明控制箱 | B140: RNI | C140: M | D140: 04X0F | E140: 启停控制 | F140: 5322.0 | H140: 验证通过 | I140: BOOL | J140: 备用 4层全局启停控制 | K140: =B140&VLOOKUP(A140,List!$B$3:$D$445,2,FALSE)&D140&"_"&VLOOKUP(E140,List!$K$2:$M$447,2,FALSE) -> RNILCB04X0F_C | L140: RNILCB04X0F_C AT%M5322.0 :BOOL; (*备用 4层全局启停控制*) | M140: RNILCB04X0F_C AT%M5322.0 :BOOL; (*备用 4层全局启停控制*)
A141: 照明控制箱 | B141: RNI | C141: M | D141: 05X0F | E141: 启停控制 | F141: 5324.0 | H141: 验证通过 | I141: BOOL | J141: 备用 5层全局启停控制 | K141: =B141&VLOOKUP(A141,List!$B$3:$D$445,2,FALSE)&D141&"_"&VLOOKUP(E141,List!$K$2:$M$447,2,FALSE) -> RNILCB05X0F_C | L141: =K141&" "&"AT%"&C141&F141&" "&":"&I141&";"&" "&"(*"&J141&"*)" -> RNILCB05X0F_C AT%M5324.0 :BOOL; (*备用 5层全局启停控制*) | M141: =REPLACE(REPLACE(L141,SEARCH("AT%",L141),,REPT(" ",25-SEARCH("AT%",L141))),SEARCH(":",REPLACE(L141,SEARCH("AT%",L141),,REPT(" ",25-SEARCH("AT%",L141)))),,REPT(" ",40-SEARCH(":",REPLACE(L141,SEARCH("AT%",L141),,REPT(" ",25-SEARCH("AT%",L141)))))) -> RNILCB05X0F_C AT%M5324.0 :BOOL; (*备用 5层全局启停控制*)
A142: 照明控制箱 | B142: RNI | C142: M | D142: 06X0F | E142: 启停控制 | F142: 5326.0 | H142: 验证通过 | I142: BOOL | J142: 备用 6层全局启停控制 | K142: =B142&VLOOKUP(A142,List!$B$3:$D$445,2,FALSE)&D142&"_"&VLOOKUP(E142,List!$K$2:$M$447,2,FALSE) -> RNILCB06X0F_C | L142: RNILCB06X0F_C AT%M5326.0 :BOOL; (*备用 6层全局启停控制*) | M142: RNILCB06X0F_C AT%M5326.0 :BOOL; (*备用 6层全局启停控制*)
A143: 照明控制箱 | B143: RNI | C143: M | D143: 07X0F | E143: 启停控制 | F143: 5328.0 | H143: 验证通过 | I143: BOOL | J143: 备用 7层全局启停控制 | K143: =B143&VLOOKUP(A143,List!$B$3:$D$445,2,FALSE)&D143&"_"&VLOOKUP(E143,List!$K$2:$M$447,2,FALSE) -> RNILCB07X0F_C | L143: RNILCB07X0F_C AT%M5328.0 :BOOL; (*备用 7层全局启停控制*) | M143: RNILCB07X0F_C AT%M5328.0 :BOOL; (*备用 7层全局启停控制*)
A144: 照明控制箱 | B144: RNI | C144: M | D144: 08X0F | E144: 启停控制 | F144: =IF(OR(I143="REAL",I143="DWORD",I143="DINT"),(IF(OR(I144="REAL",I144="DWORD",I144="DINT"),F143+4+MOD(F143,4),F143+4)),(IF(OR(I144="REAL",I144="DWORD",I144="DINT"),F143+4+MOD(F143,4),F143+2)))&".0" -> 5330.0 | H144: 验证通过 | I144: BOOL | J144: 备用 8层全局启停控制 | K144: =B144&VLOOKUP(A144,List!$B$3:$D$445,2,FALSE)&D144&"_"&VLOOKUP(E144,List!$K$2:$M$447,2,FALSE) -> RNILCB08X0F_C | L144: RNILCB08X0F_C AT%M5330.0 :BOOL; (*备用 8层全局启停控制*) | M144: RNILCB08X0F_C AT%M5330.0 :BOOL; (*备用 8层全局启停控制*)
A145: 照明控制箱 | B145: RNI | C145: M | D145: B3X0G | E145: 启停控制 | F145: 5332.0 | H145: 验证通过 | I145: BOOL | J145: 备用 B3层全局启停控制 | K145: =B145&VLOOKUP(A145,List!$B$3:$D$445,2,FALSE)&D145&"_"&VLOOKUP(E145,List!$K$2:$M$447,2,FALSE) -> RNILCBB3X0G_C | L145: RNILCBB3X0G_C AT%M5332.0 :BOOL; (*备用 B3层全局启停控制*) | M145: RNILCBB3X0G_C AT%M5332.0 :BOOL; (*备用 B3层全局启停控制*)
A146: 照明控制箱 | B146: RNI | C146: M | D146: B2X0G | E146: 启停控制 | F146: 5334.0 | H146: 验证通过 | I146: BOOL | J146: 备用 B2层全局启停控制 | K146: =B146&VLOOKUP(A146,List!$B$3:$D$445,2,FALSE)&D146&"_"&VLOOKUP(E146,List!$K$2:$M$447,2,FALSE) -> RNILCBB2X0G_C | L146: RNILCBB2X0G_C AT%M5334.0 :BOOL; (*备用 B2层全局启停控制*) | M146: RNILCBB2X0G_C AT%M5334.0 :BOOL; (*备用 B2层全局启停控制*)
A147: 照明控制箱 | B147: RNI | C147: M | D147: B1X0G | E147: 启停控制 | F147: 5336.0 | H147: 验证通过 | I147: BOOL | J147: 备用 B1层全局启停控制 | K147: =B147&VLOOKUP(A147,List!$B$3:$D$445,2,FALSE)&D147&"_"&VLOOKUP(E147,List!$K$2:$M$447,2,FALSE) -> RNILCBB1X0G_C | L147: RNILCBB1X0G_C AT%M5336.0 :BOOL; (*备用 B1层全局启停控制*) | M147: RNILCBB1X0G_C AT%M5336.0 :BOOL; (*备用 B1层全局启停控制*)
A148: 照明控制箱 | B148: RNI | C148: M | D148: 01X0G | E148: 启停控制 | F148: 5338.0 | H148: 验证通过 | I148: BOOL | J148: 备用 1层全局启停控制 | K148: =B148&VLOOKUP(A148,List!$B$3:$D$445,2,FALSE)&D148&"_"&VLOOKUP(E148,List!$K$2:$M$447,2,FALSE) -> RNILCB01X0G_C | L148: RNILCB01X0G_C AT%M5338.0 :BOOL; (*备用 1层全局启停控制*) | M148: RNILCB01X0G_C AT%M5338.0 :BOOL; (*备用 1层全局启停控制*)
A149: 照明控制箱 | B149: RNI | C149: M | D149: 02X0G | E149: 启停控制 | F149: 5340.0 | H149: 验证通过 | I149: BOOL | J149: 备用 2层全局启停控制 | K149: =B149&VLOOKUP(A149,List!$B$3:$D$445,2,FALSE)&D149&"_"&VLOOKUP(E149,List!$K$2:$M$447,2,FALSE) -> RNILCB02X0G_C | L149: RNILCB02X0G_C AT%M5340.0 :BOOL; (*备用 2层全局启停控制*) | M149: RNILCB02X0G_C AT%M5340.0 :BOOL; (*备用 2层全局启停控制*)
A150: 照明控制箱 | B150: RNI | C150: M | D150: 03X0G | E150: 启停控制 | F150: 5342.0 | H150: 验证通过 | I150: BOOL | J150: 备用 3层全局启停控制 | K150: =B150&VLOOKUP(A150,List!$B$3:$D$445,2,FALSE)&D150&"_"&VLOOKUP(E150,List!$K$2:$M$447,2,FALSE) -> RNILCB03X0G_C | L150: RNILCB03X0G_C AT%M5342.0 :BOOL; (*备用 3层全局启停控制*) | M150: RNILCB03X0G_C AT%M5342.0 :BOOL; (*备用 3层全局启停控制*)
A151: 照明控制箱 | B151: RNI | C151: M | D151: 04X0G | E151: 启停控制 | F151: 5344.0 | H151: 验证通过 | I151: BOOL | J151: 备用 4层全局启停控制 | K151: =B151&VLOOKUP(A151,List!$B$3:$D$445,2,FALSE)&D151&"_"&VLOOKUP(E151,List!$K$2:$M$447,2,FALSE) -> RNILCB04X0G_C | L151: RNILCB04X0G_C AT%M5344.0 :BOOL; (*备用 4层全局启停控制*) | M151: RNILCB04X0G_C AT%M5344.0 :BOOL; (*备用 4层全局启停控制*)
A152: 照明控制箱 | B152: RNI | C152: M | D152: 05X0G | E152: 启停控制 | F152: 5346.0 | H152: 验证通过 | I152: BOOL | J152: 备用 5层全局启停控制 | K152: =B152&VLOOKUP(A152,List!$B$3:$D$445,2,FALSE)&D152&"_"&VLOOKUP(E152,List!$K$2:$M$447,2,FALSE) -> RNILCB05X0G_C | L152: RNILCB05X0G_C AT%M5346.0 :BOOL; (*备用 5层全局启停控制*) | M152: RNILCB05X0G_C AT%M5346.0 :BOOL; (*备用 5层全局启停控制*)
A153: 照明控制箱 | B153: RNI | C153: M | D153: 06X0G | E153: 启停控制 | F153: 5348.0 | H153: 验证通过 | I153: BOOL | J153: 备用 6层全局启停控制 | K153: =B153&VLOOKUP(A153,List!$B$3:$D$445,2,FALSE)&D153&"_"&VLOOKUP(E153,List!$K$2:$M$447,2,FALSE) -> RNILCB06X0G_C | L153: RNILCB06X0G_C AT%M5348.0 :BOOL; (*备用 6层全局启停控制*) | M153: RNILCB06X0G_C AT%M5348.0 :BOOL; (*备用 6层全局启停控制*)
A154: 照明控制箱 | B154: RNI | C154: M | D154: 07X0G | E154: 启停控制 | F154: 5350.0 | H154: 验证通过 | I154: BOOL | J154: 备用 7层全局启停控制 | K154: =B154&VLOOKUP(A154,List!$B$3:$D$445,2,FALSE)&D154&"_"&VLOOKUP(E154,List!$K$2:$M$447,2,FALSE) -> RNILCB07X0G_C | L154: RNILCB07X0G_C AT%M5350.0 :BOOL; (*备用 7层全局启停控制*) | M154: RNILCB07X0G_C AT%M5350.0 :BOOL; (*备用 7层全局启停控制*)
A155: 照明控制箱 | B155: RNI | C155: M | D155: 08X0G | E155: 启停控制 | F155: 5352.0 | H155: 验证通过 | I155: BOOL | J155: 备用 8层全局启停控制 | K155: =B155&VLOOKUP(A155,List!$B$3:$D$445,2,FALSE)&D155&"_"&VLOOKUP(E155,List!$K$2:$M$447,2,FALSE) -> RNILCB08X0G_C | L155: RNILCB08X0G_C AT%M5352.0 :BOOL; (*备用 8层全局启停控制*) | M155: RNILCB08X0G_C AT%M5352.0 :BOOL; (*备用 8层全局启停控制*)
A156: 照明控制箱 | B156: RNI | C156: M | D156: B3X0H | E156: 启停控制 | F156: 5354.0 | H156: 验证通过 | I156: BOOL | J156: 备用 B3层全局启停控制 | K156: =B156&VLOOKUP(A156,List!$B$3:$D$445,2,FALSE)&D156&"_"&VLOOKUP(E156,List!$K$2:$M$447,2,FALSE) -> RNILCBB3X0H_C | L156: RNILCBB3X0H_C AT%M5354.0 :BOOL; (*备用 B3层全局启停控制*) | M156: RNILCBB3X0H_C AT%M5354.0 :BOOL; (*备用 B3层全局启停控制*)
A157: 照明控制箱 | B157: RNI | C157: M | D157: B2X0H | E157: 启停控制 | F157: 5356.0 | H157: 验证通过 | I157: BOOL | J157: 备用 B2层全局启停控制 | K157: =B157&VLOOKUP(A157,List!$B$3:$D$445,2,FALSE)&D157&"_"&VLOOKUP(E157,List!$K$2:$M$447,2,FALSE) -> RNILCBB2X0H_C | L157: RNILCBB2X0H_C AT%M5356.0 :BOOL; (*备用 B2层全局启停控制*) | M157: RNILCBB2X0H_C AT%M5356.0 :BOOL; (*备用 B2层全局启停控制*)
A158: 照明控制箱 | B158: RNI | C158: M | D158: B1X0H | E158: 启停控制 | F158: 5358.0 | H158: 验证通过 | I158: BOOL | J158: 备用 B1层全局启停控制 | K158: =B158&VLOOKUP(A158,List!$B$3:$D$445,2,FALSE)&D158&"_"&VLOOKUP(E158,List!$K$2:$M$447,2,FALSE) -> RNILCBB1X0H_C | L158: RNILCBB1X0H_C AT%M5358.0 :BOOL; (*备用 B1层全局启停控制*) | M158: RNILCBB1X0H_C AT%M5358.0 :BOOL; (*备用 B1层全局启停控制*)
A159: 照明控制箱 | B159: RNI | C159: M | D159: 01X0H | E159: 启停控制 | F159: 5360.0 | H159: 验证通过 | I159: BOOL | J159: 备用 1层全局启停控制 | K159: =B159&VLOOKUP(A159,List!$B$3:$D$445,2,FALSE)&D159&"_"&VLOOKUP(E159,List!$K$2:$M$447,2,FALSE) -> RNILCB01X0H_C | L159: RNILCB01X0H_C AT%M5360.0 :BOOL; (*备用 1层全局启停控制*) | M159: RNILCB01X0H_C AT%M5360.0 :BOOL; (*备用 1层全局启停控制*)
A160: 照明控制箱 | B160: RNI | C160: M | D160: 02X0H | E160: 启停控制 | F160: 5362.0 | H160: 验证通过 | I160: BOOL | J160: 备用 2层全局启停控制 | K160: =B160&VLOOKUP(A160,List!$B$3:$D$445,2,FALSE)&D160&"_"&VLOOKUP(E160,List!$K$2:$M$447,2,FALSE) -> RNILCB02X0H_C | L160: RNILCB02X0H_C AT%M5362.0 :BOOL; (*备用 2层全局启停控制*) | M160: RNILCB02X0H_C AT%M5362.0 :BOOL; (*备用 2层全局启停控制*)
A161: 照明控制箱 | B161: RNI | C161: M | D161: 03X0H | E161: 启停控制 | F161: 5364.0 | H161: 验证通过 | I161: BOOL | J161: 备用 3层全局启停控制 | K161: =B161&VLOOKUP(A161,List!$B$3:$D$445,2,FALSE)&D161&"_"&VLOOKUP(E161,List!$K$2:$M$447,2,FALSE) -> RNILCB03X0H_C | L161: RNILCB03X0H_C AT%M5364.0 :BOOL; (*备用 3层全局启停控制*) | M161: RNILCB03X0H_C AT%M5364.0 :BOOL; (*备用 3层全局启停控制*)
A162: 照明控制箱 | B162: RNI | C162: M | D162: 04X0H | E162: 启停控制 | F162: 5366.0 | H162: 验证通过 | I162: BOOL | J162: 备用 4层全局启停控制 | K162: =B162&VLOOKUP(A162,List!$B$3:$D$445,2,FALSE)&D162&"_"&VLOOKUP(E162,List!$K$2:$M$447,2,FALSE) -> RNILCB04X0H_C | L162: RNILCB04X0H_C AT%M5366.0 :BOOL; (*备用 4层全局启停控制*) | M162: RNILCB04X0H_C AT%M5366.0 :BOOL; (*备用 4层全局启停控制*)
A163: 照明控制箱 | B163: RNI | C163: M | D163: 05X0H | E163: 启停控制 | F163: 5368.0 | H163: 验证通过 | I163: BOOL | J163: 备用 5层全局启停控制 | K163: =B163&VLOOKUP(A163,List!$B$3:$D$445,2,FALSE)&D163&"_"&VLOOKUP(E163,List!$K$2:$M$447,2,FALSE) -> RNILCB05X0H_C | L163: RNILCB05X0H_C AT%M5368.0 :BOOL; (*备用 5层全局启停控制*) | M163: RNILCB05X0H_C AT%M5368.0 :BOOL; (*备用 5层全局启停控制*)
A164: 照明控制箱 | B164: RNI | C164: M | D164: 06X0H | E164: 启停控制 | F164: 5370.0 | H164: 验证通过 | I164: BOOL | J164: 备用 6层全局启停控制 | K164: =B164&VLOOKUP(A164,List!$B$3:$D$445,2,FALSE)&D164&"_"&VLOOKUP(E164,List!$K$2:$M$447,2,FALSE) -> RNILCB06X0H_C | L164: RNILCB06X0H_C AT%M5370.0 :BOOL; (*备用 6层全局启停控制*) | M164: RNILCB06X0H_C AT%M5370.0 :BOOL; (*备用 6层全局启停控制*)
A165: 照明控制箱 | B165: RNI | C165: M | D165: 07X0H | E165: 启停控制 | F165: 5372.0 | H165: 验证通过 | I165: BOOL | J165: 备用 7层全局启停控制 | K165: =B165&VLOOKUP(A165,List!$B$3:$D$445,2,FALSE)&D165&"_"&VLOOKUP(E165,List!$K$2:$M$447,2,FALSE) -> RNILCB07X0H_C | L165: RNILCB07X0H_C AT%M5372.0 :BOOL; (*备用 7层全局启停控制*) | M165: RNILCB07X0H_C AT%M5372.0 :BOOL; (*备用 7层全局启停控制*)
A166: 照明控制箱 | B166: RNI | C166: M | D166: 08X0H | E166: 启停控制 | F166: 5374.0 | H166: 验证通过 | I166: BOOL | J166: 备用 8层全局启停控制 | K166: =B166&VLOOKUP(A166,List!$B$3:$D$445,2,FALSE)&D166&"_"&VLOOKUP(E166,List!$K$2:$M$447,2,FALSE) -> RNILCB08X0H_C | L166: RNILCB08X0H_C AT%M5374.0 :BOOL; (*备用 8层全局启停控制*) | M166: RNILCB08X0H_C AT%M5374.0 :BOOL; (*备用 8层全局启停控制*)
A167: P新风机组 | B167: RNI | C167: M | D167: 05X00 | E167: 设定温度值 | F167: 5380.0 | H167: 验证通过 | I167: REAL | J167: 新风机组5层温度全局设定 | K167: =B167&VLOOKUP(A167,List!$B$3:$D$445,2,FALSE)&D167&"_"&VLOOKUP(E167,List!$K$2:$M$447,2,FALSE) -> RNIPAU05X00_TSET | L167: RNIPAU05X00_TSET AT%M5380.0 :REAL; (*新风机组5层温度全局设定*) | M167: RNIPAU05X00_TSET AT%M5380.0 :REAL; (*新风机组5层温度全局设定*)
A168: P新风机组 | B168: RNI | C168: M | D168: 06X00 | E168: 设定温度值 | F168: 5384.0 | H168: 验证通过 | I168: REAL | J168: 新风机组6层温度全局设定 | K168: =B168&VLOOKUP(A168,List!$B$3:$D$445,2,FALSE)&D168&"_"&VLOOKUP(E168,List!$K$2:$M$447,2,FALSE) -> RNIPAU06X00_TSET | L168: RNIPAU06X00_TSET AT%M5384.0 :REAL; (*新风机组6层温度全局设定*) | M168: RNIPAU06X00_TSET AT%M5384.0 :REAL; (*新风机组6层温度全局设定*)
A169: P新风机组 | B169: RNI | C169: M | D169: 07X00 | E169: 设定温度值 | F169: 5388.0 | H169: 验证通过 | I169: REAL | J169: 新风机组7层温度全局设定 | K169: =B169&VLOOKUP(A169,List!$B$3:$D$445,2,FALSE)&D169&"_"&VLOOKUP(E169,List!$K$2:$M$447,2,FALSE) -> RNIPAU07X00_TSET | L169: RNIPAU07X00_TSET AT%M5388.0 :REAL; (*新风机组7层温度全局设定*) | M169: RNIPAU07X00_TSET AT%M5388.0 :REAL; (*新风机组7层温度全局设定*)
A170: P新风机组 | B170: RNI | C170: M | D170: 08X00 | E170: 设定温度值 | F170: 5392.0 | H170: 验证通过 | I170: REAL | J170: 新风机组8层温度全局设定 | K170: =B170&VLOOKUP(A170,List!$B$3:$D$445,2,FALSE)&D170&"_"&VLOOKUP(E170,List!$K$2:$M$447,2,FALSE) -> RNIPAU08X00_TSET | L170: RNIPAU08X00_TSET AT%M5392.0 :REAL; (*新风机组8层温度全局设定*) | M170: RNIPAU08X00_TSET AT%M5392.0 :REAL; (*新风机组8层温度全局设定*)
A171: P新风机组 | B171: RNI | C171: M | D171: 09X00 | E171: 设定温度值 | F171: 5396.0 | H171: 验证通过 | I171: REAL | J171: 新风机组9层温度全局设定 | K171: =B171&VLOOKUP(A171,List!$B$3:$D$445,2,FALSE)&D171&"_"&VLOOKUP(E171,List!$K$2:$M$447,2,FALSE) -> RNIPAU09X00_TSET | L171: RNIPAU09X00_TSET AT%M5396.0 :REAL; (*新风机组9层温度全局设定*) | M171: RNIPAU09X00_TSET AT%M5396.0 :REAL; (*新风机组9层温度全局设定*)
A172: P新风机组 | B172: RNI | C172: M | D172: 05X00 | E172: 季节模式 | F172: 5400.0 | H172: 验证通过 | I172: INT | J172: 新风机组5层季节模式全局设定 | K172: =B172&VLOOKUP(A172,List!$B$3:$D$445,2,FALSE)&D172&"_"&VLOOKUP(E172,List!$K$2:$M$447,2,FALSE) -> RNIPAU05X00_SM | L172: RNIPAU05X00_SM AT%M5400.0 :INT; (*新风机组5层季节模式全局设定*) | M172: RNIPAU05X00_SM AT%M5400.0 :INT; (*新风机组5层季节模式全局设定*)
A173: P新风机组 | B173: RNI | C173: M | D173: 06X00 | E173: 季节模式 | F173: 5402.0 | H173: 验证通过 | I173: INT | J173: 新风机组6层季节模式全局设定 | K173: =B173&VLOOKUP(A173,List!$B$3:$D$445,2,FALSE)&D173&"_"&VLOOKUP(E173,List!$K$2:$M$447,2,FALSE) -> RNIPAU06X00_SM | L173: RNIPAU06X00_SM AT%M5402.0 :INT; (*新风机组6层季节模式全局设定*) | M173: RNIPAU06X00_SM AT%M5402.0 :INT; (*新风机组6层季节模式全局设定*)
A174: P新风机组 | B174: RNI | C174: M | D174: 07X00 | E174: 季节模式 | F174: 5404.0 | H174: 验证通过 | I174: INT | J174: 新风机组7层季节模式全局设定 | K174: =B174&VLOOKUP(A174,List!$B$3:$D$445,2,FALSE)&D174&"_"&VLOOKUP(E174,List!$K$2:$M$447,2,FALSE) -> RNIPAU07X00_SM | L174: RNIPAU07X00_SM AT%M5404.0 :INT; (*新风机组7层季节模式全局设定*) | M174: RNIPAU07X00_SM AT%M5404.0 :INT; (*新风机组7层季节模式全局设定*)
A175: P新风机组 | B175: RNI | C175: M | D175: 08X00 | E175: 季节模式 | F175: 5406.0 | H175: 验证通过 | I175: INT | J175: 新风机组8层季节模式全局设定 | K175: =B175&VLOOKUP(A175,List!$B$3:$D$445,2,FALSE)&D175&"_"&VLOOKUP(E175,List!$K$2:$M$447,2,FALSE) -> RNIPAU08X00_SM | L175: RNIPAU08X00_SM AT%M5406.0 :INT; (*新风机组8层季节模式全局设定*) | M175: RNIPAU08X00_SM AT%M5406.0 :INT; (*新风机组8层季节模式全局设定*)
A176: P新风机组 | B176: RNI | C176: M | D176: 09X00 | E176: 季节模式 | F176: 5408.0 | H176: 验证通过 | I176: INT | J176: 新风机组9层季节模式全局设定 | K176: =B176&VLOOKUP(A176,List!$B$3:$D$445,2,FALSE)&D176&"_"&VLOOKUP(E176,List!$K$2:$M$447,2,FALSE) -> RNIPAU09X00_SM | L176: RNIPAU09X00_SM AT%M5408.0 :INT; (*新风机组9层季节模式全局设定*) | M176: RNIPAU09X00_SM AT%M5408.0 :INT; (*新风机组9层季节模式全局设定*)
A177: P新风机组 | B177: RNI | C177: M | D177: 05X00 | E177: 程序控制 | F177: 5410.0 | H177: 验证通过 | I177: BOOL | J177: 新风机组5层启停控制 | K177: =B177&VLOOKUP(A177,List!$B$3:$D$445,2,FALSE)&D177&"_"&VLOOKUP(E177,List!$K$2:$M$447,2,FALSE) -> RNIPAU05X00_PC | L177: RNIPAU05X00_PC AT%M5410.0 :BOOL; (*新风机组5层启停控制*) | M177: RNIPAU05X00_PC AT%M5410.0 :BOOL; (*新风机组5层启停控制*)
A178: P新风机组 | B178: RNI | C178: M | D178: 06X00 | E178: 程序控制 | F178: 5412.0 | H178: 验证通过 | I178: BOOL | J178: 新风机组6层启停控制 | K178: =B178&VLOOKUP(A178,List!$B$3:$D$445,2,FALSE)&D178&"_"&VLOOKUP(E178,List!$K$2:$M$447,2,FALSE) -> RNIPAU06X00_PC | L178: RNIPAU06X00_PC AT%M5412.0 :BOOL; (*新风机组6层启停控制*) | M178: RNIPAU06X00_PC AT%M5412.0 :BOOL; (*新风机组6层启停控制*)
A179: P新风机组 | B179: RNI | C179: M | D179: 07X00 | E179: 程序控制 | F179: 5414.0 | H179: 验证通过 | I179: BOOL | J179: 新风机组7层启停控制 | K179: =B179&VLOOKUP(A179,List!$B$3:$D$445,2,FALSE)&D179&"_"&VLOOKUP(E179,List!$K$2:$M$447,2,FALSE) -> RNIPAU07X00_PC | L179: RNIPAU07X00_PC AT%M5414.0 :BOOL; (*新风机组7层启停控制*) | M179: RNIPAU07X00_PC AT%M5414.0 :BOOL; (*新风机组7层启停控制*)
A180: P新风机组 | B180: RNI | C180: M | D180: 08X00 | E180: 程序控制 | F180: 5416.0 | H180: 验证通过 | I180: BOOL | J180: 新风机组8层启停控制 | K180: =B180&VLOOKUP(A180,List!$B$3:$D$445,2,FALSE)&D180&"_"&VLOOKUP(E180,List!$K$2:$M$447,2,FALSE) -> RNIPAU08X00_PC | L180: RNIPAU08X00_PC AT%M5416.0 :BOOL; (*新风机组8层启停控制*) | M180: RNIPAU08X00_PC AT%M5416.0 :BOOL; (*新风机组8层启停控制*)
A181: P新风机组 | B181: RNI | C181: M | D181: 09X00 | E181: 程序控制 | F181: 5418.0 | H181: 验证通过 | I181: BOOL | J181: 新风机组9层启停控制 | K181: =B181&VLOOKUP(A181,List!$B$3:$D$445,2,FALSE)&D181&"_"&VLOOKUP(E181,List!$K$2:$M$447,2,FALSE) -> RNIPAU09X00_PC | L181: RNIPAU09X00_PC AT%M5418.0 :BOOL; (*新风机组9层启停控制*) | M181: RNIPAU09X00_PC AT%M5418.0 :BOOL; (*新风机组9层启停控制*)
A182: 送风机 | B182: RNI | C182: M | D182: B3X00 | E182: 程序控制 | F182: 5420.0 | H182: 验证通过 | I182: BOOL | J182: 送风机B3层启停控制 | K182: =B182&VLOOKUP(A182,List!$B$3:$D$445,2,FALSE)&D182&"_"&VLOOKUP(E182,List!$K$2:$M$447,2,FALSE) -> RNISAFB3X00_PC | L182: RNISAFB3X00_PC AT%M5420.0 :BOOL; (*送风机B3层启停控制*) | M182: RNISAFB3X00_PC AT%M5420.0 :BOOL; (*送风机B3层启停控制*)
A183: 送风机 | B183: RNI | C183: M | D183: B2X00 | E183: 程序控制 | F183: 5422.0 | H183: 验证通过 | I183: BOOL | J183: 送风机B2层启停控制 | K183: =B183&VLOOKUP(A183,List!$B$3:$D$445,2,FALSE)&D183&"_"&VLOOKUP(E183,List!$K$2:$M$447,2,FALSE) -> RNISAFB2X00_PC | L183: RNISAFB2X00_PC AT%M5422.0 :BOOL; (*送风机B2层启停控制*) | M183: RNISAFB2X00_PC AT%M5422.0 :BOOL; (*送风机B2层启停控制*)
A184: 送风机 | B184: RNI | C184: M | D184: B1X00 | E184: 程序控制 | F184: 5424.0 | H184: 验证通过 | I184: BOOL | J184: 送风机B1层启停控制 | K184: =B184&VLOOKUP(A184,List!$B$3:$D$445,2,FALSE)&D184&"_"&VLOOKUP(E184,List!$K$2:$M$447,2,FALSE) -> RNISAFB1X00_PC | L184: RNISAFB1X00_PC AT%M5424.0 :BOOL; (*送风机B1层启停控制*) | M184: RNISAFB1X00_PC AT%M5424.0 :BOOL; (*送风机B1层启停控制*)
A185: 送风机 | B185: RNI | C185: M | D185: 05X00 | E185: 程序控制 | F185: 5426.0 | H185: 验证通过 | I185: BOOL | J185: 送风机5层启停控制 | K185: =B185&VLOOKUP(A185,List!$B$3:$D$445,2,FALSE)&D185&"_"&VLOOKUP(E185,List!$K$2:$M$447,2,FALSE) -> RNISAF05X00_PC | L185: RNISAF05X00_PC AT%M5426.0 :BOOL; (*送风机5层启停控制*) | M185: RNISAF05X00_PC AT%M5426.0 :BOOL; (*送风机5层启停控制*)
A186: 送风机 | B186: RNI | C186: M | D186: 06X00 | E186: 程序控制 | F186: 5428.0 | H186: 验证通过 | I186: BOOL | J186: 送风机6层启停控制 | K186: =B186&VLOOKUP(A186,List!$B$3:$D$445,2,FALSE)&D186&"_"&VLOOKUP(E186,List!$K$2:$M$447,2,FALSE) -> RNISAF06X00_PC | L186: RNISAF06X00_PC AT%M5428.0 :BOOL; (*送风机6层启停控制*) | M186: RNISAF06X00_PC AT%M5428.0 :BOOL; (*送风机6层启停控制*)
A187: 送风机 | B187: RNI | C187: M | D187: 07X00 | E187: 程序控制 | F187: 5430.0 | H187: 验证通过 | I187: BOOL | J187: 送风机7层启停控制 | K187: =B187&VLOOKUP(A187,List!$B$3:$D$445,2,FALSE)&D187&"_"&VLOOKUP(E187,List!$K$2:$M$447,2,FALSE) -> RNISAF07X00_PC | L187: RNISAF07X00_PC AT%M5430.0 :BOOL; (*送风机7层启停控制*) | M187: RNISAF07X00_PC AT%M5430.0 :BOOL; (*送风机7层启停控制*)
A188: 送风机 | B188: RNI | C188: M | D188: 08X00 | E188: 程序控制 | F188: 5432.0 | H188: 验证通过 | I188: BOOL | J188: 送风机8层启停控制 | K188: =B188&VLOOKUP(A188,List!$B$3:$D$445,2,FALSE)&D188&"_"&VLOOKUP(E188,List!$K$2:$M$447,2,FALSE) -> RNISAF08X00_PC | L188: RNISAF08X00_PC AT%M5432.0 :BOOL; (*送风机8层启停控制*) | M188: RNISAF08X00_PC AT%M5432.0 :BOOL; (*送风机8层启停控制*)
A189: 送风机 | B189: RNI | C189: M | D189: 09X00 | E189: 程序控制 | F189: 5434.0 | H189: 验证通过 | I189: BOOL | J189: 送风机9层启停控制 | K189: =B189&VLOOKUP(A189,List!$B$3:$D$445,2,FALSE)&D189&"_"&VLOOKUP(E189,List!$K$2:$M$447,2,FALSE) -> RNISAF09X00_PC | L189: RNISAF09X00_PC AT%M5434.0 :BOOL; (*送风机9层启停控制*) | M189: RNISAF09X00_PC AT%M5434.0 :BOOL; (*送风机9层启停控制*)
A190: 排风机 | B190: RNI | C190: M | D190: B3X00 | E190: 程序控制 | F190: 5436.0 | H190: 验证通过 | I190: BOOL | J190: 排风机B3层启停控制 | K190: =B190&VLOOKUP(A190,List!$B$3:$D$445,2,FALSE)&D190&"_"&VLOOKUP(E190,List!$K$2:$M$447,2,FALSE) -> RNIEAFB3X00_PC | L190: RNIEAFB3X00_PC AT%M5436.0 :BOOL; (*排风机B3层启停控制*) | M190: RNIEAFB3X00_PC AT%M5436.0 :BOOL; (*排风机B3层启停控制*)
A191: 排风机 | B191: RNI | C191: M | D191: B2X00 | E191: 程序控制 | F191: 5438.0 | H191: 验证通过 | I191: BOOL | J191: 排风机B2层启停控制 | K191: =B191&VLOOKUP(A191,List!$B$3:$D$445,2,FALSE)&D191&"_"&VLOOKUP(E191,List!$K$2:$M$447,2,FALSE) -> RNIEAFB2X00_PC | L191: RNIEAFB2X00_PC AT%M5438.0 :BOOL; (*排风机B2层启停控制*) | M191: RNIEAFB2X00_PC AT%M5438.0 :BOOL; (*排风机B2层启停控制*)
A192: 排风机 | B192: RNI | C192: M | D192: B1X00 | E192: 程序控制 | F192: 5440.0 | H192: =IF((IF(OR(I192="INT",I192="WORD",I192="BOOL"),MOD(F192,2),MOD(F192,4)))=0,"验证通过","验证失败") -> 验证通过 | I192: BOOL | J192: 排风机B1层启停控制 | K192: =B192&VLOOKUP(A192,List!$B$3:$D$445,2,FALSE)&D192&"_"&VLOOKUP(E192,List!$K$2:$M$447,2,FALSE) -> RNIEAFB1X00_PC | L192: RNIEAFB1X00_PC AT%M5440.0 :BOOL; (*排风机B1层启停控制*) | M192: RNIEAFB1X00_PC AT%M5440.0 :BOOL; (*排风机B1层启停控制*)
A193: 排风机 | B193: RNI | C193: M | D193: 05X00 | E193: 程序控制 | F193: 5442.0 | H193: 验证通过 | I193: BOOL | J193: 排风机5层启停控制 | K193: =B193&VLOOKUP(A193,List!$B$3:$D$445,2,FALSE)&D193&"_"&VLOOKUP(E193,List!$K$2:$M$447,2,FALSE) -> RNIEAF05X00_PC | L193: RNIEAF05X00_PC AT%M5442.0 :BOOL; (*排风机5层启停控制*) | M193: RNIEAF05X00_PC AT%M5442.0 :BOOL; (*排风机5层启停控制*)
A194: 排风机 | B194: RNI | C194: M | D194: 06X00 | E194: 程序控制 | F194: 5444.0 | H194: 验证通过 | I194: BOOL | J194: 排风机6层启停控制 | K194: =B194&VLOOKUP(A194,List!$B$3:$D$445,2,FALSE)&D194&"_"&VLOOKUP(E194,List!$K$2:$M$447,2,FALSE) -> RNIEAF06X00_PC | L194: RNIEAF06X00_PC AT%M5444.0 :BOOL; (*排风机6层启停控制*) | M194: RNIEAF06X00_PC AT%M5444.0 :BOOL; (*排风机6层启停控制*)
A195: 排风机 | B195: RNI | C195: M | D195: 07X00 | E195: 程序控制 | F195: 5446.0 | H195: 验证通过 | I195: BOOL | J195: 排风机7层启停控制 | K195: =B195&VLOOKUP(A195,List!$B$3:$D$445,2,FALSE)&D195&"_"&VLOOKUP(E195,List!$K$2:$M$447,2,FALSE) -> RNIEAF07X00_PC | L195: RNIEAF07X00_PC AT%M5446.0 :BOOL; (*排风机7层启停控制*) | M195: RNIEAF07X00_PC AT%M5446.0 :BOOL; (*排风机7层启停控制*)
A196: 排风机 | B196: RNI | C196: M | D196: 08X00 | E196: 程序控制 | F196: 5448.0 | H196: 验证通过 | I196: BOOL | J196: 排风机8层启停控制 | K196: =B196&VLOOKUP(A196,List!$B$3:$D$445,2,FALSE)&D196&"_"&VLOOKUP(E196,List!$K$2:$M$447,2,FALSE) -> RNIEAF08X00_PC | L196: RNIEAF08X00_PC AT%M5448.0 :BOOL; (*排风机8层启停控制*) | M196: RNIEAF08X00_PC AT%M5448.0 :BOOL; (*排风机8层启停控制*)
A197: 排风机 | B197: RNI | C197: M | D197: 09X00 | E197: 程序控制 | F197: 5450.0 | H197: 验证通过 | I197: BOOL | J197: 排风机9层启停控制 | K197: =B197&VLOOKUP(A197,List!$B$3:$D$445,2,FALSE)&D197&"_"&VLOOKUP(E197,List!$K$2:$M$447,2,FALSE) -> RNIEAF09X00_PC | L197: RNIEAF09X00_PC AT%M5450.0 :BOOL; (*排风机9层启停控制*) | M197: RNIEAF09X00_PC AT%M5450.0 :BOOL; (*排风机9层启停控制*)
A198: 风幕机 | B198: RNI | C198: M | D198: B3X00 | E198: 程序控制 | F198: 5452.0 | H198: 验证通过 | I198: BOOL | J198: 风幕机B3层启停控制 | K198: =B198&VLOOKUP(A198,List!$B$3:$D$445,2,FALSE)&D198&"_"&VLOOKUP(E198,List!$K$2:$M$447,2,FALSE) -> RNIACB3X00_PC | L198: RNIACB3X00_PC AT%M5452.0 :BOOL; (*风幕机B3层启停控制*) | M198: RNIACB3X00_PC AT%M5452.0 :BOOL; (*风幕机B3层启停控制*)
A199: 风幕机 | B199: RNI | C199: M | D199: B2X00 | E199: 程序控制 | F199: 5454.0 | H199: 验证通过 | I199: BOOL | J199: 风幕机B2层启停控制 | K199: =B199&VLOOKUP(A199,List!$B$3:$D$445,2,FALSE)&D199&"_"&VLOOKUP(E199,List!$K$2:$M$447,2,FALSE) -> RNIACB2X00_PC | L199: RNIACB2X00_PC AT%M5454.0 :BOOL; (*风幕机B2层启停控制*) | M199: RNIACB2X00_PC AT%M5454.0 :BOOL; (*风幕机B2层启停控制*)
A200: 风幕机 | B200: RNI | C200: M | D200: B1X00 | E200: 程序控制 | F200: 5456.0 | H200: 验证通过 | I200: BOOL | J200: 风幕机B1层启停控制 | K200: =B200&VLOOKUP(A200,List!$B$3:$D$445,2,FALSE)&D200&"_"&VLOOKUP(E200,List!$K$2:$M$447,2,FALSE) -> RNIACB1X00_PC | L200: RNIACB1X00_PC AT%M5456.0 :BOOL; (*风幕机B1层启停控制*) | M200: RNIACB1X00_PC AT%M5456.0 :BOOL; (*风幕机B1层启停控制*)
A201: 风幕机 | B201: RNI | C201: M | D201: 01X00 | E201: 程序控制 | F201: 5458.0 | H201: 验证通过 | I201: BOOL | J201: 风幕机1层启停控制 | K201: =B201&VLOOKUP(A201,List!$B$3:$D$445,2,FALSE)&D201&"_"&VLOOKUP(E201,List!$K$2:$M$447,2,FALSE) -> RNIAC01X00_PC | L201: RNIAC01X00_PC AT%M5458.0 :BOOL; (*风幕机1层启停控制*) | M201: RNIAC01X00_PC AT%M5458.0 :BOOL; (*风幕机1层启停控制*)
... 384 more rows

Sheet L201
B1: 4.5 | C1: 1.5 | D1: 1.5 | E1: 1.5 | F1: 1.5 | G1: 1.5 | H1: 1.75 | I1: 1.75 | J1: 35 | AA1: 15 | AB1: 10 | AC1: 10
A2: 12 | B2: L11 | C2: 0 | D2: 1 | E2: 2 | F2: 3 | G2: 4 | H2: 5 | I2: 6 | J2: 7 | K2: 8 | L2: 9 | M2: 10 | N2: 11 | O2: 12 | P2: 13 | Q2: 14 | R2: 15 | T2: X | U2: X | V2: X | W2: X
A3: 12 | C3: 16 | D3: 17 | E3: 18 | F3: 19 | G3: 20 | H3: 21 | I3: 22 | J3: 23 | K3: 24 | L3: 25 | M3: 26 | N3: 27 | O3: 28 | P3: 29 | Q3: 30 | R3: 31 | AA3: 20
A4: 25 | B4: DDC-X-X 现场实施段 | AD4: 调试记录段 | AG4: 下位机声明段 | AP4: 上位机声明段
A5: 20 | B5: 模块类型 | C5: 拨码 设置 | F5: 点位序号 | H5: 端子编号 | J5: 线缆功能.auto | AA5: 设备编号.auto | AB5: 前端接线备注.auto | AD5: DBG | AE5: 调试记录 | AF5: 调试备注 | AG5: PRG | AH5: 设备类型 | AI5: 设备编号 | AJ5: 程序编号 | AK5: 点位功能 | AL5: 接线备注 判断区 | AM5: 变量名.auto | AN5: 编程变量声明.auto | AO5: 编程变量声明(结构整理).auto | AP5: HMI | AQ5: 上位机组态.auto | AR5: 上位机注释.auto | AS5: MODBUS偏置量.auto
A6: 20 | AB6: 端子编号 | AC6: 线色备注
B7: EXC-1000
B8: IOM.1601R | AO8: ="(* "&B13&"地址: "&B10&" *)" -> (* IOM 1601R地址: 0 *)
B9: addr | C9: 1 | D9: =BIN2DEC(MID((TEXT(DEC2BIN(B10),REPT(0,5))),5,1)) -> 0 | E9: =BIN2DEC(MID((TEXT(DEC2BIN(B10),REPT(0,5))),5,1)) -> 0 | F9: 1 | H9: 1 | I9: 2 | J9: =AH9&AA9&"-"&AK9 -> 空调机组NJ-2AP(KT)1-1-运行状态 | AA9: =IF(AI9="","",AI9) -> NJ-2AP(KT)1-1 | AB9: =_xlfn.IFNA(VLOOKUP(AL9,List!$O$3:$P$444,2,FALSE),"-") -> - | AC9: =_xlfn.IFNA(VLOOKUP(AL9,List!$O$3:$Q$444,3,FALSE),"-") -> - | AH9: 空调机组 | AI9: NJ-2AP(KT)1-1 | AJ9: 02A01 | AK9: 运行状态 | AL9: =AH9&"-"&AK9 -> 空调机组-运行状态 | AM9: =VLOOKUP(AH9,List!$B$3:$D$445,2,FALSE)&AJ9&"_"&VLOOKUP(AK9,List!$K$2:$M$447,2,FALSE) -> AHU02A01_R | AN9: =_xlfn.IFNA("L"&AM9&" "&"AT%I"&B10*16&".0"&" "&":BOOL;"&" "&"(*"&J9&"*)"," ") -> LAHU02A01_R AT%I0.0 :BOOL; (*空调机组NJ-2AP(KT)1-1-运行状态*) | AO9: =IFERROR(REPLACE(REPLACE(AN9,SEARCH("AT%",AN9),,REPT(" ",25-SEARCH("AT%",AN9))),SEARCH(":",REPLACE(AN9,SEARCH("AT%",AN9),,REPT(" ",25-SEARCH("AT%",AN9)))),,REPT(" ",40-SEARCH(":",REPLACE(AN9,SEARCH("AT%",AN9),,REPT(" ",25-SEARCH("AT%",AN9))))))," ") -> LAHU02A01_R AT%I0.0 :BOOL; (*空调机组NJ-2AP(KT)1-1-运行状态*) | AQ9: =$B$2&"\"&$B$2&AM9 -> L11\L11AHU02A01_R | AR9: =J9 -> 空调机组NJ-2AP(KT)1-1-运行状态 | AS9: =10000+($B10*16*8+F9-1) -> 10000
B10: 0 | C10: 2 | D10: =BIN2DEC(MID((TEXT(DEC2BIN(B10),REPT(0,5))),4,1)) -> 0 | E10: =BIN2DEC(MID((TEXT(DEC2BIN(B10),REPT(0,5))),4,1)) -> 0 | F10: 2 | H10: 3 | I10: 4 | J10: 空调机组NJ-2AP(KT)1-1-故障状态 | AA10: =IF(AI10="","",AI10) -> NJ-2AP(KT)1-1 | AB10: =_xlfn.IFNA(VLOOKUP(AL10,List!$O$3:$P$444,2,FALSE),"-") -> - | AC10: =_xlfn.IFNA(VLOOKUP(AL10,List!$O$3:$Q$444,3,FALSE),"-") -> - | AH10: 空调机组 | AI10: NJ-2AP(KT)1-1 | AJ10: 02A01 | AK10: 故障状态 | AL10: =AH10&"-"&AK10 -> 空调机组-故障状态 | AM10: =VLOOKUP(AH10,List!$B$3:$D$445,2,FALSE)&AJ10&"_"&VLOOKUP(AK10,List!$K$2:$M$447,2,FALSE) -> AHU02A01_F | AN10: =_xlfn.IFNA("L"&AM10&" "&"AT%I"&B10*16&".1"&" "&":BOOL;"&" "&"(*"&J10&"*)"," ") -> LAHU02A01_F AT%I0.1 :BOOL; (*空调机组NJ-2AP(KT)1-1-故障状态*) | AO10: LAHU02A01_F AT%I0.1 :BOOL; (*空调机组NJ-2AP(KT)1-1-故障状态*) | AQ10: L11\L11AHU02A01_F | AR10: =J10 -> 空调机组NJ-2AP(KT)1-1-故障状态 | AS10: =AS9+1 -> 10001
B11: kbs | C11: 3 | D11: =BIN2DEC(MID((TEXT(DEC2BIN(B10),REPT(0,5))),3,1)) -> 0 | E11: =BIN2DEC(MID((TEXT(DEC2BIN(B10),REPT(0,5))),3,1)) -> 0 | F11: 3 | H11: 5 | I11: 6 | J11: 空调机组NJ-2AP(KT)1-1-自动状态 | AA11: NJ-2AP(KT)1-1 | AB11: =_xlfn.IFNA(VLOOKUP(AL11,List!$O$3:$P$444,2,FALSE),"-") -> - | AC11: =_xlfn.IFNA(VLOOKUP(AL11,List!$O$3:$Q$444,3,FALSE),"-") -> - | AH11: 空调机组 | AI11: NJ-2AP(KT)1-1 | AJ11: 02A01 | AK11: 自动状态 | AL11: 空调机组-自动状态 | AM11: =VLOOKUP(AH11,List!$B$3:$D$445,2,FALSE)&AJ11&"_"&VLOOKUP(AK11,List!$K$2:$M$447,2,FALSE) -> AHU02A01_A | AN11: =_xlfn.IFNA("L"&AM11&" "&"AT%I"&B10*16&".2"&" "&":BOOL;"&" "&"(*"&J11&"*)"," ") -> LAHU02A01_A AT%I0.2 :BOOL; (*空调机组NJ-2AP(KT)1-1-自动状态*) | AO11: LAHU02A01_A AT%I0.2 :BOOL; (*空调机组NJ-2AP(KT)1-1-自动状态*) | AQ11: L11\L11AHU02A01_A | AR11: 空调机组NJ-2AP(KT)1-1-自动状态 | AS11: =AS10+1 -> 10002
B12: 50 | C12: 4 | D12: =BIN2DEC(MID((TEXT(DEC2BIN(B10),REPT(0,5))),2,1)) -> 0 | E12: =BIN2DEC(MID((TEXT(DEC2BIN(B10),REPT(0,5))),2,1)) -> 0 | F12: 4 | H12: 7 | I12: 8 | J12: 空调机组NJ-2AP(KT)1-1-风机压差 | AA12: NJ-2AP(KT)1-1 | AB12: =_xlfn.IFNA(VLOOKUP(AL12,List!$O$3:$P$444,2,FALSE),"-") -> - | AC12: =_xlfn.IFNA(VLOOKUP(AL12,List!$O$3:$Q$444,3,FALSE),"-") -> - | AH12: 空调机组 | AI12: NJ-2AP(KT)1-1 | AJ12: 02A01 | AK12: 风机压差 | AL12: 空调机组-风机压差 | AM12: =VLOOKUP(AH12,List!$B$3:$D$445,2,FALSE)&AJ12&"_"&VLOOKUP(AK12,List!$K$2:$M$447,2,FALSE) -> AHU02A01_FPS | AN12: =_xlfn.IFNA("L"&AM12&" "&"AT%I"&B10*16&".3"&" "&":BOOL;"&" "&"(*"&J12&"*)"," ") -> LAHU02A01_FPS AT%I0.3 :BOOL; (*空调机组NJ-2AP(KT)1-1-风机压差*) | AO12: LAHU02A01_FPS AT%I0.3 :BOOL; (*空调机组NJ-2AP(KT)1-1-风机压差*) | AQ12: L11\L11AHU02A01_FPS | AR12: 空调机组NJ-2AP(KT)1-1-风机压差 | AS12: 10003
B13: IOM 1601R | C13: 5 | D13: =BIN2DEC(MID((TEXT(DEC2BIN(B10),REPT(0,5))),1,1)) -> 0 | E13: =BIN2DEC(MID((TEXT(DEC2BIN(B10),REPT(0,5))),1,1)) -> 0 | F13: 5 | H13: 9 | I13: 10 | J13: 空调机组NJ-2AP(KT)1-1-运行状态 | AA13: NJ-2AP(KT)1-1 | AB13: =_xlfn.IFNA(VLOOKUP(AL13,List!$O$3:$P$444,2,FALSE),"-") -> - | AC13: =_xlfn.IFNA(VLOOKUP(AL13,List!$O$3:$Q$444,3,FALSE),"-") -> - | AH13: 空调机组 | AI13: NJ-2AP(KT)1-1 | AJ13: 02A02 | AK13: 运行状态 | AL13: 空调机组-运行状态 | AM13: =VLOOKUP(AH13,List!$B$3:$D$445,2,FALSE)&AJ13&"_"&VLOOKUP(AK13,List!$K$2:$M$447,2,FALSE) -> AHU02A02_R | AN13: =_xlfn.IFNA("L"&AM13&" "&"AT%I"&B10*16&".4"&" "&":BOOL;"&" "&"(*"&J13&"*)"," ") -> LAHU02A02_R AT%I0.4 :BOOL; (*空调机组NJ-2AP(KT)1-1-运行状态*) | AO13: LAHU02A02_R AT%I0.4 :BOOL; (*空调机组NJ-2AP(KT)1-1-运行状态*) | AQ13: L11\L11AHU02A02_R | AR13: 空调机组NJ-2AP(KT)1-1-运行状态 | AS13: 10004
C14: 6 | D14: =BIN2DEC(MID((TEXT(IF(B12=20,1,IF(B12=50,10,IF(B12=125,11,IF(B12=250,100,IF(B12=500,101,IF(B12=800,110,IF(B12=1000,111,0))))))),REPT(0,3))),3,1)) -> 0 | E14: =BIN2DEC(MID((TEXT(IF(B12=20,1,IF(B12=50,10,IF(B12=125,11,IF(B12=250,100,IF(B12=500,101,IF(B12=800,110,IF(B12=1000,111,0))))))),REPT(0,3))),3,1)) -> 0 | F14: 6 | H14: 11 | I14: 12 | J14: 空调机组NJ-2AP(KT)1-2-故障状态 | AA14: NJ-2AP(KT)1-2 | AB14: =_xlfn.IFNA(VLOOKUP(AL14,List!$O$3:$P$444,2,FALSE),"-") -> - | AC14: =_xlfn.IFNA(VLOOKUP(AL14,List!$O$3:$Q$444,3,FALSE),"-") -> - | AH14: 空调机组 | AI14: NJ-2AP(KT)1-2 | AJ14: 02A02 | AK14: 故障状态 | AL14: 空调机组-故障状态 | AM14: =VLOOKUP(AH14,List!$B$3:$D$445,2,FALSE)&AJ14&"_"&VLOOKUP(AK14,List!$K$2:$M$447,2,FALSE) -> AHU02A02_F | AN14: =_xlfn.IFNA("L"&AM14&" "&"AT%I"&B10*16&".5"&" "&":BOOL;"&" "&"(*"&J14&"*)"," ") -> LAHU02A02_F AT%I0.5 :BOOL; (*空调机组NJ-2AP(KT)1-2-故障状态*) | AO14: LAHU02A02_F AT%I0.5 :BOOL; (*空调机组NJ-2AP(KT)1-2-故障状态*) | AQ14: L11\L11AHU02A02_F | AR14: 空调机组NJ-2AP(KT)1-2-故障状态 | AS14: 10005
C15: 7 | D15: =BIN2DEC(MID((TEXT(IF(B12=20,1,IF(B12=50,10,IF(B12=125,11,IF(B12=250,100,IF(B12=500,101,IF(B12=800,110,IF(B12=1000,111,0))))))),REPT(0,3))),2,1)) -> 1 | E15: =BIN2DEC(MID((TEXT(IF(B12=20,1,IF(B12=50,10,IF(B12=125,11,IF(B12=250,100,IF(B12=500,101,IF(B12=800,110,IF(B12=1000,111,0))))))),REPT(0,3))),2,1)) -> 1 | F15: 7 | H15: 13 | I15: 14 | J15: 空调机组NJ-2AP(KT)1-2-自动状态 | AA15: NJ-2AP(KT)1-2 | AB15: =_xlfn.IFNA(VLOOKUP(AL15,List!$O$3:$P$444,2,FALSE),"-") -> - | AC15: =_xlfn.IFNA(VLOOKUP(AL15,List!$O$3:$Q$444,3,FALSE),"-") -> - | AH15: 空调机组 | AI15: NJ-2AP(KT)1-2 | AJ15: 02A02 | AK15: 自动状态 | AL15: 空调机组-自动状态 | AM15: =VLOOKUP(AH15,List!$B$3:$D$445,2,FALSE)&AJ15&"_"&VLOOKUP(AK15,List!$K$2:$M$447,2,FALSE) -> AHU02A02_A | AN15: =_xlfn.IFNA("L"&AM15&" "&"AT%I"&B10*16&".6"&" "&":BOOL;"&" "&"(*"&J15&"*)"," ") -> LAHU02A02_A AT%I0.6 :BOOL; (*空调机组NJ-2AP(KT)1-2-自动状态*) | AO15: LAHU02A02_A AT%I0.6 :BOOL; (*空调机组NJ-2AP(KT)1-2-自动状态*) | AQ15: L11\L11AHU02A02_A | AR15: 空调机组NJ-2AP(KT)1-2-自动状态 | AS15: 10006
C16: 8 | D16: =BIN2DEC(MID((TEXT(IF(B12=20,1,IF(B12=50,10,IF(B12=125,11,IF(B12=250,100,IF(B12=500,101,IF(B12=800,110,IF(B12=1000,111,0))))))),REPT(0,3))),1,1)) -> 0 | E16: =BIN2DEC(MID((TEXT(IF(B12=20,1,IF(B12=50,10,IF(B12=125,11,IF(B12=250,100,IF(B12=500,101,IF(B12=800,110,IF(B12=1000,111,0))))))),REPT(0,3))),1,1)) -> 0 | F16: 8 | H16: 15 | I16: 16 | J16: 空调机组NJ-2AP(KT)1-2-风机压差 | AA16: NJ-2AP(KT)1-2 | AB16: =_xlfn.IFNA(VLOOKUP(AL16,List!$O$3:$P$444,2,FALSE),"-") -> - | AC16: =_xlfn.IFNA(VLOOKUP(AL16,List!$O$3:$Q$444,3,FALSE),"-") -> - | AH16: 空调机组 | AI16: NJ-2AP(KT)1-2 | AJ16: 02A02 | AK16: 风机压差 | AL16: 空调机组-风机压差 | AM16: =VLOOKUP(AH16,List!$B$3:$D$445,2,FALSE)&AJ16&"_"&VLOOKUP(AK16,List!$K$2:$M$447,2,FALSE) -> AHU02A02_FPS | AN16: =_xlfn.IFNA("L"&AM16&" "&"AT%I"&B10*16&".7"&" "&":BOOL;"&" "&"(*"&J16&"*)"," ") -> LAHU02A02_FPS AT%I0.7 :BOOL; (*空调机组NJ-2AP(KT)1-2-风机压差*) | AO16: LAHU02A02_FPS AT%I0.7 :BOOL; (*空调机组NJ-2AP(KT)1-2-风机压差*) | AQ16: L11\L11AHU02A02_FPS | AR16: 空调机组NJ-2AP(KT)1-2-风机压差 | AS16: 10007
F17: 9 | H17: 17 | I17: 18 | J17: 空调机组NJ-2AP(KT)1-2-运行状态 | AA17: NJ-2AP(KT)1-2 | AB17: =_xlfn.IFNA(VLOOKUP(AL17,List!$O$3:$P$444,2,FALSE),"-") -> - | AC17: =_xlfn.IFNA(VLOOKUP(AL17,List!$O$3:$Q$444,3,FALSE),"-") -> - | AH17: 空调机组 | AI17: NJ-2AP(KT)1-2 | AJ17: 02A03 | AK17: 运行状态 | AL17: 空调机组-运行状态 | AM17: =VLOOKUP(AH17,List!$B$3:$D$445,2,FALSE)&AJ17&"_"&VLOOKUP(AK17,List!$K$2:$M$447,2,FALSE) -> AHU02A03_R | AN17: =_xlfn.IFNA("L"&AM17&" "&"AT%I"&B10*16+1&".0"&" "&":BOOL;"&" "&"(*"&J17&"*)"," ") -> LAHU02A03_R AT%I1.0 :BOOL; (*空调机组NJ-2AP(KT)1-2-运行状态*) | AO17: LAHU02A03_R AT%I1.0 :BOOL; (*空调机组NJ-2AP(KT)1-2-运行状态*) | AQ17: L11\L11AHU02A03_R | AR17: 空调机组NJ-2AP(KT)1-2-运行状态 | AS17: 10008
F18: 10 | H18: 19 | I18: 20 | J18: 空调机组NJ-2AP(KT)1-3-故障状态 | AA18: =IF(AI18="","",AI18) -> NJ-2AP(KT)1-3 | AB18: =_xlfn.IFNA(VLOOKUP(AL18,List!$O$3:$P$444,2,FALSE),"-") -> - | AC18: =_xlfn.IFNA(VLOOKUP(AL18,List!$O$3:$Q$444,3,FALSE),"-") -> - | AH18: 空调机组 | AI18: NJ-2AP(KT)1-3 | AJ18: 02A03 | AK18: 故障状态 | AL18: =AH18&"-"&AK18 -> 空调机组-故障状态 | AM18: =VLOOKUP(AH18,List!$B$3:$D$445,2,FALSE)&AJ18&"_"&VLOOKUP(AK18,List!$K$2:$M$447,2,FALSE) -> AHU02A03_F | AN18: =_xlfn.IFNA("L"&AM18&" "&"AT%I"&B10*16+1&".1"&" "&":BOOL;"&" "&"(*"&J18&"*)"," ") -> LAHU02A03_F AT%I1.1 :BOOL; (*空调机组NJ-2AP(KT)1-3-故障状态*) | AO18: LAHU02A03_F AT%I1.1 :BOOL; (*空调机组NJ-2AP(KT)1-3-故障状态*) | AQ18: L11\L11AHU02A03_F | AR18: 空调机组NJ-2AP(KT)1-3-故障状态 | AS18: 10009
F19: 11 | H19: 21 | I19: 22 | J19: 空调机组NJ-2AP(KT)1-3-自动状态 | AA19: NJ-2AP(KT)1-3 | AB19: =_xlfn.IFNA(VLOOKUP(AL19,List!$O$3:$P$444,2,FALSE),"-") -> - | AC19: =_xlfn.IFNA(VLOOKUP(AL19,List!$O$3:$Q$444,3,FALSE),"-") -> - | AH19: 空调机组 | AI19: NJ-2AP(KT)1-3 | AJ19: 02A03 | AK19: 自动状态 | AL19: 空调机组-自动状态 | AM19: =VLOOKUP(AH19,List!$B$3:$D$445,2,FALSE)&AJ19&"_"&VLOOKUP(AK19,List!$K$2:$M$447,2,FALSE) -> AHU02A03_A | AN19: =_xlfn.IFNA("L"&AM19&" "&"AT%I"&B10*16+1&".2"&" "&":BOOL;"&" "&"(*"&J19&"*)"," ") -> LAHU02A03_A AT%I1.2 :BOOL; (*空调机组NJ-2AP(KT)1-3-自动状态*) | AO19: LAHU02A03_A AT%I1.2 :BOOL; (*空调机组NJ-2AP(KT)1-3-自动状态*) | AQ19: L11\L11AHU02A03_A | AR19: 空调机组NJ-2AP(KT)1-3-自动状态 | AS19: 10010
F20: 12 | H20: 23 | I20: 24 | J20: 空调机组NJ-2AP(KT)1-3-风机压差 | AA20: NJ-2AP(KT)1-3 | AB20: =_xlfn.IFNA(VLOOKUP(AL20,List!$O$3:$P$444,2,FALSE),"-") -> - | AC20: =_xlfn.IFNA(VLOOKUP(AL20,List!$O$3:$Q$444,3,FALSE),"-") -> - | AH20: 空调机组 | AI20: NJ-2AP(KT)1-3 | AJ20: 02A03 | AK20: 风机压差 | AL20: 空调机组-风机压差 | AM20: =VLOOKUP(AH20,List!$B$3:$D$445,2,FALSE)&AJ20&"_"&VLOOKUP(AK20,List!$K$2:$M$447,2,FALSE) -> AHU02A03_FPS | AN20: =_xlfn.IFNA("L"&AM20&" "&"AT%I"&B10*16+1&".3"&" "&":BOOL;"&" "&"(*"&J20&"*)"," ") -> LAHU02A03_FPS AT%I1.3 :BOOL; (*空调机组NJ-2AP(KT)1-3-风机压差*) | AO20: LAHU02A03_FPS AT%I1.3 :BOOL; (*空调机组NJ-2AP(KT)1-3-风机压差*) | AQ20: L11\L11AHU02A03_FPS | AR20: 空调机组NJ-2AP(KT)1-3-风机压差 | AS20: 10011
F21: 13 | H21: 25 | I21: 26 | J21: 空调机组NJ-2AP(KT)1-4-运行状态 | AA21: NJ-2AP(KT)1-4 | AB21: =_xlfn.IFNA(VLOOKUP(AL21,List!$O$3:$P$444,2,FALSE),"-") -> - | AC21: =_xlfn.IFNA(VLOOKUP(AL21,List!$O$3:$Q$444,3,FALSE),"-") -> - | AH21: 空调机组 | AI21: NJ-2AP(KT)1-4 | AJ21: 02A04 | AK21: 运行状态 | AL21: 空调机组-运行状态 | AM21: =VLOOKUP(AH21,List!$B$3:$D$445,2,FALSE)&AJ21&"_"&VLOOKUP(AK21,List!$K$2:$M$447,2,FALSE) -> AHU02A04_R | AN21: =_xlfn.IFNA("L"&AM21&" "&"AT%I"&B10*16+1&".4"&" "&":BOOL;"&" "&"(*"&J21&"*)"," ") -> LAHU02A04_R AT%I1.4 :BOOL; (*空调机组NJ-2AP(KT)1-4-运行状态*) | AO21: LAHU02A04_R AT%I1.4 :BOOL; (*空调机组NJ-2AP(KT)1-4-运行状态*) | AQ21: L11\L11AHU02A04_R | AR21: 空调机组NJ-2AP(KT)1-4-运行状态 | AS21: 10012
F22: 14 | H22: 27 | I22: 28 | J22: 空调机组NJ-2AP(KT)1-4-故障状态 | AA22: NJ-2AP(KT)1-4 | AB22: =_xlfn.IFNA(VLOOKUP(AL22,List!$O$3:$P$444,2,FALSE),"-") -> - | AC22: =_xlfn.IFNA(VLOOKUP(AL22,List!$O$3:$Q$444,3,FALSE),"-") -> - | AH22: 空调机组 | AI22: NJ-2AP(KT)1-4 | AJ22: 02A04 | AK22: 故障状态 | AL22: 空调机组-故障状态 | AM22: =VLOOKUP(AH22,List!$B$3:$D$445,2,FALSE)&AJ22&"_"&VLOOKUP(AK22,List!$K$2:$M$447,2,FALSE) -> AHU02A04_F | AN22: =_xlfn.IFNA("L"&AM22&" "&"AT%I"&B10*16+1&".5"&" "&":BOOL;"&" "&"(*"&J22&"*)"," ") -> LAHU02A04_F AT%I1.5 :BOOL; (*空调机组NJ-2AP(KT)1-4-故障状态*) | AO22: LAHU02A04_F AT%I1.5 :BOOL; (*空调机组NJ-2AP(KT)1-4-故障状态*) | AQ22: L11\L11AHU02A04_F | AR22: 空调机组NJ-2AP(KT)1-4-故障状态 | AS22: 10013
F23: 15 | H23: 29 | I23: 30 | J23: 空调机组NJ-2AP(KT)1-4-自动状态 | AA23: NJ-2AP(KT)1-4 | AB23: =_xlfn.IFNA(VLOOKUP(AL23,List!$O$3:$P$444,2,FALSE),"-") -> - | AC23: =_xlfn.IFNA(VLOOKUP(AL23,List!$O$3:$Q$444,3,FALSE),"-") -> - | AH23: 空调机组 | AI23: NJ-2AP(KT)1-4 | AJ23: 02A04 | AK23: 自动状态 | AL23: 空调机组-自动状态 | AM23: =VLOOKUP(AH23,List!$B$3:$D$445,2,FALSE)&AJ23&"_"&VLOOKUP(AK23,List!$K$2:$M$447,2,FALSE) -> AHU02A04_A | AN23: =_xlfn.IFNA("L"&AM23&" "&"AT%I"&B10*16+1&".6"&" "&":BOOL;"&" "&"(*"&J23&"*)"," ") -> LAHU02A04_A AT%I1.6 :BOOL; (*空调机组NJ-2AP(KT)1-4-自动状态*) | AO23: LAHU02A04_A AT%I1.6 :BOOL; (*空调机组NJ-2AP(KT)1-4-自动状态*) | AQ23: L11\L11AHU02A04_A | AR23: 空调机组NJ-2AP(KT)1-4-自动状态 | AS23: 10014
A24: . | F24: 16 | H24: 31 | I24: 32 | J24: 空调机组NJ-2AP(KT)1-4-风机压差 | AA24: NJ-2AP(KT)1-4 | AB24: =_xlfn.IFNA(VLOOKUP(AL24,List!$O$3:$P$444,2,FALSE),"-") -> - | AC24: =_xlfn.IFNA(VLOOKUP(AL24,List!$O$3:$Q$444,3,FALSE),"-") -> - | AH24: 空调机组 | AI24: NJ-2AP(KT)1-4 | AJ24: 02A04 | AK24: 风机压差 | AL24: 空调机组-风机压差 | AM24: =VLOOKUP(AH24,List!$B$3:$D$445,2,FALSE)&AJ24&"_"&VLOOKUP(AK24,List!$K$2:$M$447,2,FALSE) -> AHU02A04_FPS | AN24: =_xlfn.IFNA("L"&AM24&" "&"AT%I"&B10*16+1&".7"&" "&":BOOL;"&" "&"(*"&J24&"*)"," ") -> LAHU02A04_FPS AT%I1.7 :BOOL; (*空调机组NJ-2AP(KT)1-4-风机压差*) | AO24: LAHU02A04_FPS AT%I1.7 :BOOL; (*空调机组NJ-2AP(KT)1-4-风机压差*) | AQ24: L11\L11AHU02A04_FPS | AR24: 空调机组NJ-2AP(KT)1-4-风机压差 | AS24: 10015
B25: IOM.1601R | AO25: ="(* "&B30&"地址: "&B27&" *)" -> (* IOM 1601R地址: 1 *)
B26: addr | C26: 1 | D26: =BIN2DEC(MID((TEXT(DEC2BIN(B27),REPT(0,5))),5,1)) -> 1 | E26: =BIN2DEC(MID((TEXT(DEC2BIN(B27),REPT(0,5))),5,1)) -> 1 | F26: 1 | H26: 1 | I26: 2 | J26: =AH26&AA26&"-"&AK26 -> 空调机组NJ-2AP(KT)1-5-运行状态 | AA26: =IF(AI26="","",AI26) -> NJ-2AP(KT)1-5 | AB26: =_xlfn.IFNA(VLOOKUP(AL26,List!$O$3:$P$444,2,FALSE),"-") -> - | AC26: =_xlfn.IFNA(VLOOKUP(AL26,List!$O$3:$Q$444,3,FALSE),"-") -> - | AH26: 空调机组 | AI26: NJ-2AP(KT)1-5 | AJ26: 02A05 | AK26: 运行状态 | AL26: =AH26&"-"&AK26 -> 空调机组-运行状态 | AM26: =VLOOKUP(AH26,List!$B$3:$D$445,2,FALSE)&AJ26&"_"&VLOOKUP(AK26,List!$K$2:$M$447,2,FALSE) -> AHU02A05_R | AN26: =_xlfn.IFNA("L"&AM26&" "&"AT%I"&B27*16&".0"&" "&":BOOL;"&" "&"(*"&J26&"*)"," ") -> LAHU02A05_R AT%I16.0 :BOOL; (*空调机组NJ-2AP(KT)1-5-运行状态*) | AO26: =IFERROR(REPLACE(REPLACE(AN26,SEARCH("AT%",AN26),,REPT(" ",25-SEARCH("AT%",AN26))),SEARCH(":",REPLACE(AN26,SEARCH("AT%",AN26),,REPT(" ",25-SEARCH("AT%",AN26)))),,REPT(" ",40-SEARCH(":",REPLACE(AN26,SEARCH("AT%",AN26),,REPT(" ",25-SEARCH("AT%",AN26))))))," ") -> LAHU02A05_R AT%I16.0 :BOOL; (*空调机组NJ-2AP(KT)1-5-运行状态*) | AQ26: =$B$2&"\"&$B$2&AM26 -> L11\L11AHU02A05_R | AR26: =J26 -> 空调机组NJ-2AP(KT)1-5-运行状态 | AS26: =10000+($B27*16*8+F26-1) -> 10128
B27: 1 | C27: 2 | D27: =BIN2DEC(MID((TEXT(DEC2BIN(B27),REPT(0,5))),4,1)) -> 0 | E27: =BIN2DEC(MID((TEXT(DEC2BIN(B27),REPT(0,5))),4,1)) -> 0 | F27: 2 | H27: 3 | I27: 4 | J27: 空调机组NJ-2AP(KT)1-5-故障状态 | AA27: =IF(AI27="","",AI27) -> NJ-2AP(KT)1-5 | AB27: =_xlfn.IFNA(VLOOKUP(AL27,List!$O$3:$P$444,2,FALSE),"-") -> - | AC27: =_xlfn.IFNA(VLOOKUP(AL27,List!$O$3:$Q$444,3,FALSE),"-") -> - | AH27: 空调机组 | AI27: NJ-2AP(KT)1-5 | AJ27: 02A05 | AK27: 故障状态 | AL27: =AH27&"-"&AK27 -> 空调机组-故障状态 | AM27: =VLOOKUP(AH27,List!$B$3:$D$445,2,FALSE)&AJ27&"_"&VLOOKUP(AK27,List!$K$2:$M$447,2,FALSE) -> AHU02A05_F | AN27: =_xlfn.IFNA("L"&AM27&" "&"AT%I"&B27*16&".1"&" "&":BOOL;"&" "&"(*"&J27&"*)"," ") -> LAHU02A05_F AT%I16.1 :BOOL; (*空调机组NJ-2AP(KT)1-5-故障状态*) | AO27: LAHU02A05_F AT%I16.1 :BOOL; (*空调机组NJ-2AP(KT)1-5-故障状态*) | AQ27: L11\L11AHU02A05_F | AR27: =J27 -> 空调机组NJ-2AP(KT)1-5-故障状态 | AS27: =AS26+1 -> 10129
B28: kbs | C28: 3 | D28: =BIN2DEC(MID((TEXT(DEC2BIN(B27),REPT(0,5))),3,1)) -> 0 | E28: =BIN2DEC(MID((TEXT(DEC2BIN(B27),REPT(0,5))),3,1)) -> 0 | F28: 3 | H28: 5 | I28: 6 | J28: 空调机组NJ-2AP(KT)1-5-自动状态 | AA28: NJ-2AP(KT)1-5 | AB28: =_xlfn.IFNA(VLOOKUP(AL28,List!$O$3:$P$444,2,FALSE),"-") -> - | AC28: =_xlfn.IFNA(VLOOKUP(AL28,List!$O$3:$Q$444,3,FALSE),"-") -> - | AH28: 空调机组 | AI28: NJ-2AP(KT)1-5 | AJ28: 02A05 | AK28: 自动状态 | AL28: 空调机组-自动状态 | AM28: =VLOOKUP(AH28,List!$B$3:$D$445,2,FALSE)&AJ28&"_"&VLOOKUP(AK28,List!$K$2:$M$447,2,FALSE) -> AHU02A05_A | AN28: =_xlfn.IFNA("L"&AM28&" "&"AT%I"&B27*16&".2"&" "&":BOOL;"&" "&"(*"&J28&"*)"," ") -> LAHU02A05_A AT%I16.2 :BOOL; (*空调机组NJ-2AP(KT)1-5-自动状态*) | AO28: LAHU02A05_A AT%I16.2 :BOOL; (*空调机组NJ-2AP(KT)1-5-自动状态*) | AQ28: L11\L11AHU02A05_A | AR28: 空调机组NJ-2AP(KT)1-5-自动状态 | AS28: =AS27+1 -> 10130
B29: 50 | C29: 4 | D29: =BIN2DEC(MID((TEXT(DEC2BIN(B27),REPT(0,5))),2,1)) -> 0 | E29: =BIN2DEC(MID((TEXT(DEC2BIN(B27),REPT(0,5))),2,1)) -> 0 | F29: 4 | H29: 7 | I29: 8 | J29: 空调机组NJ-2AP(KT)1-5-风机压差 | AA29: NJ-2AP(KT)1-5 | AB29: =_xlfn.IFNA(VLOOKUP(AL29,List!$O$3:$P$444,2,FALSE),"-") -> - | AC29: =_xlfn.IFNA(VLOOKUP(AL29,List!$O$3:$Q$444,3,FALSE),"-") -> - | AH29: 空调机组 | AI29: NJ-2AP(KT)1-5 | AJ29: 02A05 | AK29: 风机压差 | AL29: 空调机组-风机压差 | AM29: =VLOOKUP(AH29,List!$B$3:$D$445,2,FALSE)&AJ29&"_"&VLOOKUP(AK29,List!$K$2:$M$447,2,FALSE) -> AHU02A05_FPS | AN29: =_xlfn.IFNA("L"&AM29&" "&"AT%I"&B27*16&".3"&" "&":BOOL;"&" "&"(*"&J29&"*)"," ") -> LAHU02A05_FPS AT%I16.3 :BOOL; (*空调机组NJ-2AP(KT)1-5-风机压差*) | AO29: LAHU02A05_FPS AT%I16.3 :BOOL; (*空调机组NJ-2AP(KT)1-5-风机压差*) | AQ29: L11\L11AHU02A05_FPS | AR29: 空调机组NJ-2AP(KT)1-5-风机压差 | AS29: 10131
B30: IOM 1601R | C30: 5 | D30: =BIN2DEC(MID((TEXT(DEC2BIN(B27),REPT(0,5))),1,1)) -> 0 | E30: =BIN2DEC(MID((TEXT(DEC2BIN(B27),REPT(0,5))),1,1)) -> 0 | F30: 5 | H30: 9 | I30: 10 | J30: 照明控制箱NJ-2AL1-1-运行状态 | AA30: NJ-2AL1-1 | AB30: =_xlfn.IFNA(VLOOKUP(AL30,List!$O$3:$P$444,2,FALSE),"-") -> - | AC30: =_xlfn.IFNA(VLOOKUP(AL30,List!$O$3:$Q$444,3,FALSE),"-") -> - | AE30: 通过 | AH30: 照明控制箱 | AI30: NJ-2AL1-1 | AJ30: 02A01 | AK30: 运行状态 | AL30: 照明控制箱-运行状态 | AM30: =VLOOKUP(AH30,List!$B$3:$D$445,2,FALSE)&AJ30&"_"&VLOOKUP(AK30,List!$K$2:$M$447,2,FALSE) -> LCB02A01_R | AN30: =_xlfn.IFNA("L"&AM30&" "&"AT%I"&B27*16&".4"&" "&":BOOL;"&" "&"(*"&J30&"*)"," ") -> LLCB02A01_R AT%I16.4 :BOOL; (*照明控制箱NJ-2AL1-1-运行状态*) | AO30: LLCB02A01_R AT%I16.4 :BOOL; (*照明控制箱NJ-2AL1-1-运行状态*) | AQ30: L11\L11LCB02A01_R | AR30: 照明控制箱NJ-2AL1-1-运行状态 | AS30: 10132
C31: 6 | D31: =BIN2DEC(MID((TEXT(IF(B29=20,1,IF(B29=50,10,IF(B29=125,11,IF(B29=250,100,IF(B29=500,101,IF(B29=800,110,IF(B29=1000,111,0))))))),REPT(0,3))),3,1)) -> 0 | E31: =BIN2DEC(MID((TEXT(IF(B29=20,1,IF(B29=50,10,IF(B29=125,11,IF(B29=250,100,IF(B29=500,101,IF(B29=800,110,IF(B29=1000,111,0))))))),REPT(0,3))),3,1)) -> 0 | F31: 6 | H31: 11 | I31: 12 | J31: 照明控制箱NJ-2AL1-1-自动状态 | AA31: NJ-2AL1-1 | AB31: =_xlfn.IFNA(VLOOKUP(AL31,List!$O$3:$P$444,2,FALSE),"-") -> - | AC31: =_xlfn.IFNA(VLOOKUP(AL31,List!$O$3:$Q$444,3,FALSE),"-") -> - | AE31: 通过 | AH31: 照明控制箱 | AI31: NJ-2AL1-1 | AJ31: 02A01 | AK31: 自动状态 | AL31: 照明控制箱-自动状态 | AM31: =VLOOKUP(AH31,List!$B$3:$D$445,2,FALSE)&AJ31&"_"&VLOOKUP(AK31,List!$K$2:$M$447,2,FALSE) -> LCB02A01_A | AN31: =_xlfn.IFNA("L"&AM31&" "&"AT%I"&B27*16&".5"&" "&":BOOL;"&" "&"(*"&J31&"*)"," ") -> LLCB02A01_A AT%I16.5 :BOOL; (*照明控制箱NJ-2AL1-1-自动状态*) | AO31: LLCB02A01_A AT%I16.5 :BOOL; (*照明控制箱NJ-2AL1-1-自动状态*) | AQ31: L11\L11LCB02A01_A | AR31: 照明控制箱NJ-2AL1-1-自动状态 | AS31: 10133
C32: 7 | D32: =BIN2DEC(MID((TEXT(IF(B29=20,1,IF(B29=50,10,IF(B29=125,11,IF(B29=250,100,IF(B29=500,101,IF(B29=800,110,IF(B29=1000,111,0))))))),REPT(0,3))),2,1)) -> 1 | E32: =BIN2DEC(MID((TEXT(IF(B29=20,1,IF(B29=50,10,IF(B29=125,11,IF(B29=250,100,IF(B29=500,101,IF(B29=800,110,IF(B29=1000,111,0))))))),REPT(0,3))),2,1)) -> 1 | F32: 7 | H32: 13 | I32: 14 | J32: 照明控制箱NJ-2AL1-2-运行状态 | AA32: NJ-2AL1-2 | AB32: =_xlfn.IFNA(VLOOKUP(AL32,List!$O$3:$P$444,2,FALSE),"-") -> - | AC32: =_xlfn.IFNA(VLOOKUP(AL32,List!$O$3:$Q$444,3,FALSE),"-") -> - | AE32: 通过 | AH32: 照明控制箱 | AI32: NJ-2AL1-2 | AJ32: 02A02 | AK32: 运行状态 | AL32: 照明控制箱-运行状态 | AM32: =VLOOKUP(AH32,List!$B$3:$D$445,2,FALSE)&AJ32&"_"&VLOOKUP(AK32,List!$K$2:$M$447,2,FALSE) -> LCB02A02_R | AN32: =_xlfn.IFNA("L"&AM32&" "&"AT%I"&B27*16&".6"&" "&":BOOL;"&" "&"(*"&J32&"*)"," ") -> LLCB02A02_R AT%I16.6 :BOOL; (*照明控制箱NJ-2AL1-2-运行状态*) | AO32: LLCB02A02_R AT%I16.6 :BOOL; (*照明控制箱NJ-2AL1-2-运行状态*) | AQ32: L11\L11LCB02A02_R | AR32: 照明控制箱NJ-2AL1-2-运行状态 | AS32: 10134
C33: 8 | D33: =BIN2DEC(MID((TEXT(IF(B29=20,1,IF(B29=50,10,IF(B29=125,11,IF(B29=250,100,IF(B29=500,101,IF(B29=800,110,IF(B29=1000,111,0))))))),REPT(0,3))),1,1)) -> 0 | E33: =BIN2DEC(MID((TEXT(IF(B29=20,1,IF(B29=50,10,IF(B29=125,11,IF(B29=250,100,IF(B29=500,101,IF(B29=800,110,IF(B29=1000,111,0))))))),REPT(0,3))),1,1)) -> 0 | F33: 8 | H33: 15 | I33: 16 | J33: 照明控制箱NJ-2AL1-2-自动状态 | AA33: NJ-2AL1-2 | AB33: =_xlfn.IFNA(VLOOKUP(AL33,List!$O$3:$P$444,2,FALSE),"-") -> - | AC33: =_xlfn.IFNA(VLOOKUP(AL33,List!$O$3:$Q$444,3,FALSE),"-") -> - | AE33: 通过 | AH33: 照明控制箱 | AI33: NJ-2AL1-2 | AJ33: 02A02 | AK33: 自动状态 | AL33: 照明控制箱-自动状态 | AM33: =VLOOKUP(AH33,List!$B$3:$D$445,2,FALSE)&AJ33&"_"&VLOOKUP(AK33,List!$K$2:$M$447,2,FALSE) -> LCB02A02_A | AN33: =_xlfn.IFNA("L"&AM33&" "&"AT%I"&B27*16&".7"&" "&":BOOL;"&" "&"(*"&J33&"*)"," ") -> LLCB02A02_A AT%I16.7 :BOOL; (*照明控制箱NJ-2AL1-2-自动状态*) | AO33: LLCB02A02_A AT%I16.7 :BOOL; (*照明控制箱NJ-2AL1-2-自动状态*) | AQ33: L11\L11LCB02A02_A | AR33: 照明控制箱NJ-2AL1-2-自动状态 | AS33: 10135
F34: 9 | H34: 17 | I34: 18 | J34: 照明控制箱NJ-2AL1-3-运行状态 | AA34: NJ-2AL1-3 | AB34: =_xlfn.IFNA(VLOOKUP(AL34,List!$O$3:$P$444,2,FALSE),"-") -> - | AC34: =_xlfn.IFNA(VLOOKUP(AL34,List!$O$3:$Q$444,3,FALSE),"-") -> - | AE34: 通过 | AH34: 照明控制箱 | AI34: NJ-2AL1-3 | AJ34: 02A03 | AK34: 运行状态 | AL34: 照明控制箱-运行状态 | AM34: =VLOOKUP(AH34,List!$B$3:$D$445,2,FALSE)&AJ34&"_"&VLOOKUP(AK34,List!$K$2:$M$447,2,FALSE) -> LCB02A03_R | AN34: =_xlfn.IFNA("L"&AM34&" "&"AT%I"&B27*16+1&".0"&" "&":BOOL;"&" "&"(*"&J34&"*)"," ") -> LLCB02A03_R AT%I17.0 :BOOL; (*照明控制箱NJ-2AL1-3-运行状态*) | AO34: LLCB02A03_R AT%I17.0 :BOOL; (*照明控制箱NJ-2AL1-3-运行状态*) | AQ34: L11\L11LCB02A03_R | AR34: 照明控制箱NJ-2AL1-3-运行状态 | AS34: 10136
F35: 10 | H35: 19 | I35: 20 | J35: 照明控制箱NJ-2AL1-3-自动状态 | AA35: =IF(AI35="","",AI35) -> NJ-2AL1-3 | AB35: =_xlfn.IFNA(VLOOKUP(AL35,List!$O$3:$P$444,2,FALSE),"-") -> - | AC35: =_xlfn.IFNA(VLOOKUP(AL35,List!$O$3:$Q$444,3,FALSE),"-") -> - | AE35: 通过 | AH35: 照明控制箱 | AI35: NJ-2AL1-3 | AJ35: 02A03 | AK35: 自动状态 | AL35: =AH35&"-"&AK35 -> 照明控制箱-自动状态 | AM35: =VLOOKUP(AH35,List!$B$3:$D$445,2,FALSE)&AJ35&"_"&VLOOKUP(AK35,List!$K$2:$M$447,2,FALSE) -> LCB02A03_A | AN35: =_xlfn.IFNA("L"&AM35&" "&"AT%I"&B27*16+1&".1"&" "&":BOOL;"&" "&"(*"&J35&"*)"," ") -> LLCB02A03_A AT%I17.1 :BOOL; (*照明控制箱NJ-2AL1-3-自动状态*) | AO35: LLCB02A03_A AT%I17.1 :BOOL; (*照明控制箱NJ-2AL1-3-自动状态*) | AQ35: L11\L11LCB02A03_A | AR35: 照明控制箱NJ-2AL1-3-自动状态 | AS35: 10137
F36: 11 | H36: 21 | I36: 22 | J36: 照明控制箱NJ-2AL1-4-运行状态 | AA36: NJ-2AL1-4 | AB36: =_xlfn.IFNA(VLOOKUP(AL36,List!$O$3:$P$444,2,FALSE),"-") -> - | AC36: =_xlfn.IFNA(VLOOKUP(AL36,List!$O$3:$Q$444,3,FALSE),"-") -> - | AE36: 通过 | AH36: 照明控制箱 | AI36: NJ-2AL1-4 | AJ36: 02A04 | AK36: 运行状态 | AL36: 照明控制箱-运行状态 | AM36: =VLOOKUP(AH36,List!$B$3:$D$445,2,FALSE)&AJ36&"_"&VLOOKUP(AK36,List!$K$2:$M$447,2,FALSE) -> LCB02A04_R | AN36: =_xlfn.IFNA("L"&AM36&" "&"AT%I"&B27*16+1&".2"&" "&":BOOL;"&" "&"(*"&J36&"*)"," ") -> LLCB02A04_R AT%I17.2 :BOOL; (*照明控制箱NJ-2AL1-4-运行状态*) | AO36: LLCB02A04_R AT%I17.2 :BOOL; (*照明控制箱NJ-2AL1-4-运行状态*) | AQ36: L11\L11LCB02A04_R | AR36: 照明控制箱NJ-2AL1-4-运行状态 | AS36: 10138
F37: 12 | H37: 23 | I37: 24 | J37: 照明控制箱NJ-2AL1-4-自动状态 | AA37: NJ-2AL1-4 | AB37: =_xlfn.IFNA(VLOOKUP(AL37,List!$O$3:$P$444,2,FALSE),"-") -> - | AC37: =_xlfn.IFNA(VLOOKUP(AL37,List!$O$3:$Q$444,3,FALSE),"-") -> - | AE37: 通过 | AH37: 照明控制箱 | AI37: NJ-2AL1-4 | AJ37: 02A04 | AK37: 自动状态 | AL37: 照明控制箱-自动状态 | AM37: =VLOOKUP(AH37,List!$B$3:$D$445,2,FALSE)&AJ37&"_"&VLOOKUP(AK37,List!$K$2:$M$447,2,FALSE) -> LCB02A04_A | AN37: =_xlfn.IFNA("L"&AM37&" "&"AT%I"&B27*16+1&".3"&" "&":BOOL;"&" "&"(*"&J37&"*)"," ") -> LLCB02A04_A AT%I17.3 :BOOL; (*照明控制箱NJ-2AL1-4-自动状态*) | AO37: LLCB02A04_A AT%I17.3 :BOOL; (*照明控制箱NJ-2AL1-4-自动状态*) | AQ37: L11\L11LCB02A04_A | AR37: 照明控制箱NJ-2AL1-4-自动状态 | AS37: 10139
F38: 13 | H38: 25 | I38: 26 | J38: 照明控制箱NJ-2AL1-5-运行状态 | AA38: NJ-2AL1-5 | AB38: =_xlfn.IFNA(VLOOKUP(AL38,List!$O$3:$P$444,2,FALSE),"-") -> - | AC38: =_xlfn.IFNA(VLOOKUP(AL38,List!$O$3:$Q$444,3,FALSE),"-") -> - | AE38: 通过 | AH38: 照明控制箱 | AI38: NJ-2AL1-5 | AJ38: 02A05 | AK38: 运行状态 | AL38: 照明控制箱-运行状态 | AM38: =VLOOKUP(AH38,List!$B$3:$D$445,2,FALSE)&AJ38&"_"&VLOOKUP(AK38,List!$K$2:$M$447,2,FALSE) -> LCB02A05_R | AN38: =_xlfn.IFNA("L"&AM38&" "&"AT%I"&B27*16+1&".4"&" "&":BOOL;"&" "&"(*"&J38&"*)"," ") -> LLCB02A05_R AT%I17.4 :BOOL; (*照明控制箱NJ-2AL1-5-运行状态*) | AO38: LLCB02A05_R AT%I17.4 :BOOL; (*照明控制箱NJ-2AL1-5-运行状态*) | AQ38: L11\L11LCB02A05_R | AR38: 照明控制箱NJ-2AL1-5-运行状态 | AS38: 10140
F39: 14 | H39: 27 | I39: 28 | J39: 照明控制箱NJ-2AL1-5-自动状态 | AA39: NJ-2AL1-5 | AB39: =_xlfn.IFNA(VLOOKUP(AL39,List!$O$3:$P$444,2,FALSE),"-") -> - | AC39: =_xlfn.IFNA(VLOOKUP(AL39,List!$O$3:$Q$444,3,FALSE),"-") -> - | AE39: 通过 | AH39: 照明控制箱 | AI39: NJ-2AL1-5 | AJ39: 02A05 | AK39: 自动状态 | AL39: 照明控制箱-自动状态 | AM39: =VLOOKUP(AH39,List!$B$3:$D$445,2,FALSE)&AJ39&"_"&VLOOKUP(AK39,List!$K$2:$M$447,2,FALSE) -> LCB02A05_A | AN39: =_xlfn.IFNA("L"&AM39&" "&"AT%I"&B27*16+1&".5"&" "&":BOOL;"&" "&"(*"&J39&"*)"," ") -> LLCB02A05_A AT%I17.5 :BOOL; (*照明控制箱NJ-2AL1-5-自动状态*) | AO39: =IFERROR(REPLACE(REPLACE(AN39,SEARCH("AT%",AN39),,REPT(" ",25-SEARCH("AT%",AN39))),SEARCH(":",REPLACE(AN39,SEARCH("AT%",AN39),,REPT(" ",25-SEARCH("AT%",AN39)))),,REPT(" ",40-SEARCH(":",REPLACE(AN39,SEARCH("AT%",AN39),,REPT(" ",25-SEARCH("AT%",AN39))))))," ") -> LLCB02A05_A AT%I17.5 :BOOL; (*照明控制箱NJ-2AL1-5-自动状态*) | AQ39: L11\L11LCB02A05_A | AR39: 照明控制箱NJ-2AL1-5-自动状态 | AS39: 10141
F40: 15 | H40: 29 | I40: 30 | J40: - | AB40: =_xlfn.IFNA(VLOOKUP(AL40,List!$O$3:$P$444,2,FALSE),"-") -> - | AC40: =_xlfn.IFNA(VLOOKUP(AL40,List!$O$3:$Q$444,3,FALSE),"-") -> - | AL40: - | AM40: =VLOOKUP(AH40,List!$B$3:$D$445,2,FALSE)&AJ40&"_"&VLOOKUP(AK40,List!$K$2:$M$447,2,FALSE) ->  | AN40: =_xlfn.IFNA("L"&AM40&" "&"AT%I"&B27*16+1&".6"&" "&":BOOL;"&" "&"(*"&J40&"*)"," ") ->  | AO40: =IFERROR(REPLACE(REPLACE(AN40,SEARCH("AT%",AN40),,REPT(" ",30-SEARCH("AT%",AN40))),SEARCH(":",REPLACE(AN40,SEARCH("AT%",AN40),,REPT(" ",30-SEARCH("AT%",AN40)))),,REPT(" ",35-SEARCH(":",REPLACE(AN40,SEARCH("AT%",AN40),,REPT(" ",25-SEARCH("AT%",AN40))))))," ") ->  | AR40: - | AS40: 10142
A41: . | F41: 16 | H41: 31 | I41: 32 | J41: - | AB41: =_xlfn.IFNA(VLOOKUP(AL41,List!$O$3:$P$444,2,FALSE),"-") -> - | AC41: =_xlfn.IFNA(VLOOKUP(AL41,List!$O$3:$Q$444,3,FALSE),"-") -> - | AL41: - | AM41: =VLOOKUP(AH41,List!$B$3:$D$445,2,FALSE)&AJ41&"_"&VLOOKUP(AK41,List!$K$2:$M$447,2,FALSE) ->  | AN41: =_xlfn.IFNA("L"&AM41&" "&"AT%I"&B27*16+1&".7"&" "&":BOOL;"&" "&"(*"&J41&"*)"," ") ->  | AR41: - | AS41: 10143
B42: IOM 1601D | AO42: ="(* "&B47&"地址: "&B44&" *)" -> (* IOM 1601D地址: 2 *)
B43: addr | C43: 1 | D43: =BIN2DEC(MID((TEXT(DEC2BIN(B44),REPT(0,5))),5,1)) -> 0 | E43: =BIN2DEC(MID((TEXT(DEC2BIN(B44),REPT(0,5))),5,1)) -> 0 | F43: 1 | H43: 1+ | I43: 1- | J43: =AH43&AA43&"-"&AK43 -> 空调机组NJ-2AP(KT)1-1-启停控制 | AA43: =IF(AI43="","",AI43) -> NJ-2AP(KT)1-1 | AB43: =_xlfn.IFNA(VLOOKUP(AL43,List!$O$3:$P$444,2,FALSE),"-") -> - | AC43: =_xlfn.IFNA(VLOOKUP(AL43,List!$O$3:$Q$444,3,FALSE),"-") -> - | AH43: 空调机组 | AI43: NJ-2AP(KT)1-1 | AJ43: 02A01 | AK43: 启停控制 | AL43: =AH43&"-"&AK43 -> 空调机组-启停控制 | AM43: =VLOOKUP(AH43,List!$B$3:$D$445,2,FALSE)&AJ43&"_"&VLOOKUP(AK43,List!$K$2:$M$447,2,FALSE) -> AHU02A01_C | AN43: =_xlfn.IFNA("L"&AM43&" "&"AT%Q"&B44*16&".0"&" "&":BOOL;"&" "&"(*"&J43&"*)"," ") -> LAHU02A01_C AT%Q32.0 :BOOL; (*空调机组NJ-2AP(KT)1-1-启停控制*) | AO43: =IFERROR(REPLACE(REPLACE(AN43,SEARCH("AT%",AN43),,REPT(" ",25-SEARCH("AT%",AN43))),SEARCH(":",REPLACE(AN43,SEARCH("AT%",AN43),,REPT(" ",25-SEARCH("AT%",AN43)))),,REPT(" ",40-SEARCH(":",REPLACE(AN43,SEARCH("AT%",AN43),,REPT(" ",25-SEARCH("AT%",AN43))))))," ") -> LAHU02A01_C AT%Q32.0 :BOOL; (*空调机组NJ-2AP(KT)1-1-启停控制*) | AQ43: =AM43 -> AHU02A01_C | AR43: =J43 -> 空调机组NJ-2AP(KT)1-1-启停控制 | AS43: =($B44*16*8+F43-1) -> 256
B44: 2 | C44: 2 | D44: =BIN2DEC(MID((TEXT(DEC2BIN(B44),REPT(0,5))),4,1)) -> 1 | E44: =BIN2DEC(MID((TEXT(DEC2BIN(B44),REPT(0,5))),4,1)) -> 1 | F44: 2 | H44: 2+ | I44: 2- | J44: 空调机组NJ-2AP(KT)1-2-启停控制 | AA44: =IF(AI44="","",AI44) -> NJ-2AP(KT)1-2 | AB44: =_xlfn.IFNA(VLOOKUP(AL44,List!$O$3:$P$444,2,FALSE),"-") -> - | AC44: =_xlfn.IFNA(VLOOKUP(AL44,List!$O$3:$Q$444,3,FALSE),"-") -> - | AH44: 空调机组 | AI44: NJ-2AP(KT)1-2 | AJ44: 02A02 | AK44: 启停控制 | AL44: =AH44&"-"&AK44 -> 空调机组-启停控制 | AM44: =VLOOKUP(AH44,List!$B$3:$D$445,2,FALSE)&AJ44&"_"&VLOOKUP(AK44,List!$K$2:$M$447,2,FALSE) -> AHU02A02_C | AN44: =_xlfn.IFNA("L"&AM44&" "&"AT%Q"&B44*16&".1"&" "&":BOOL;"&" "&"(*"&J44&"*)"," ") -> LAHU02A02_C AT%Q32.1 :BOOL; (*空调机组NJ-2AP(KT)1-2-启停控制*) | AO44: LAHU02A02_C AT%Q32.1 :BOOL; (*空调机组NJ-2AP(KT)1-2-启停控制*) | AQ44: AHU02A02_C | AR44: =J44 -> 空调机组NJ-2AP(KT)1-2-启停控制 | AS44: =AS43+1 -> 257
B45: kbs | C45: 3 | D45: =BIN2DEC(MID((TEXT(DEC2BIN(B44),REPT(0,5))),3,1)) -> 0 | E45: =BIN2DEC(MID((TEXT(DEC2BIN(B44),REPT(0,5))),3,1)) -> 0 | F45: 3 | H45: 3+ | I45: 3- | J45: 空调机组NJ-2AP(KT)1-3-启停控制 | AA45: NJ-2AP(KT)1-3 | AB45: =_xlfn.IFNA(VLOOKUP(AL45,List!$O$3:$P$444,2,FALSE),"-") -> - | AC45: =_xlfn.IFNA(VLOOKUP(AL45,List!$O$3:$Q$444,3,FALSE),"-") -> - | AH45: 空调机组 | AI45: NJ-2AP(KT)1-3 | AJ45: 02A03 | AK45: 启停控制 | AL45: 空调机组-启停控制 | AM45: =VLOOKUP(AH45,List!$B$3:$D$445,2,FALSE)&AJ45&"_"&VLOOKUP(AK45,List!$K$2:$M$447,2,FALSE) -> AHU02A03_C | AN45: =_xlfn.IFNA("L"&AM45&" "&"AT%Q"&B44*16&".2"&" "&":BOOL;"&" "&"(*"&J45&"*)"," ") -> LAHU02A03_C AT%Q32.2 :BOOL; (*空调机组NJ-2AP(KT)1-3-启停控制*) | AO45: LAHU02A03_C AT%Q32.2 :BOOL; (*空调机组NJ-2AP(KT)1-3-启停控制*) | AQ45: AHU02A03_C | AR45: 空调机组NJ-2AP(KT)1-3-启停控制 | AS45: =AS44+1 -> 258
B46: 50 | C46: 4 | D46: =BIN2DEC(MID((TEXT(DEC2BIN(B44),REPT(0,5))),2,1)) -> 0 | E46: =BIN2DEC(MID((TEXT(DEC2BIN(B44),REPT(0,5))),2,1)) -> 0 | F46: 4 | H46: 4+ | I46: 4- | J46: 空调机组NJ-2AP(KT)1-4-启停控制 | AA46: NJ-2AP(KT)1-4 | AB46: =_xlfn.IFNA(VLOOKUP(AL46,List!$O$3:$P$444,2,FALSE),"-") -> - | AC46: =_xlfn.IFNA(VLOOKUP(AL46,List!$O$3:$Q$444,3,FALSE),"-") -> - | AH46: 空调机组 | AI46: NJ-2AP(KT)1-4 | AJ46: 02A04 | AK46: 启停控制 | AL46: 空调机组-启停控制 | AM46: =VLOOKUP(AH46,List!$B$3:$D$445,2,FALSE)&AJ46&"_"&VLOOKUP(AK46,List!$K$2:$M$447,2,FALSE) -> AHU02A04_C | AN46: =_xlfn.IFNA("L"&AM46&" "&"AT%Q"&B44*16&".3"&" "&":BOOL;"&" "&"(*"&J46&"*)"," ") -> LAHU02A04_C AT%Q32.3 :BOOL; (*空调机组NJ-2AP(KT)1-4-启停控制*) | AO46: LAHU02A04_C AT%Q32.3 :BOOL; (*空调机组NJ-2AP(KT)1-4-启停控制*) | AQ46: AHU02A04_C | AR46: 空调机组NJ-2AP(KT)1-4-启停控制 | AS46: 259
B47: IOM 1601D | C47: 5 | D47: =BIN2DEC(MID((TEXT(DEC2BIN(B44),REPT(0,5))),1,1)) -> 0 | E47: =BIN2DEC(MID((TEXT(DEC2BIN(B44),REPT(0,5))),1,1)) -> 0 | F47: 5 | H47: 5+ | I47: 5- | J47: 空调机组NJ-2AP(KT)1-5-启停控制 | AA47: NJ-2AP(KT)1-5 | AB47: =_xlfn.IFNA(VLOOKUP(AL47,List!$O$3:$P$444,2,FALSE),"-") -> - | AC47: =_xlfn.IFNA(VLOOKUP(AL47,List!$O$3:$Q$444,3,FALSE),"-") -> - | AH47: 空调机组 | AI47: NJ-2AP(KT)1-5 | AJ47: 02A05 | AK47: 启停控制 | AL47: 空调机组-启停控制 | AM47: =VLOOKUP(AH47,List!$B$3:$D$445,2,FALSE)&AJ47&"_"&VLOOKUP(AK47,List!$K$2:$M$447,2,FALSE) -> AHU02A05_C | AN47: =_xlfn.IFNA("L"&AM47&" "&"AT%Q"&B44*16&".4"&" "&":BOOL;"&" "&"(*"&J47&"*)"," ") -> LAHU02A05_C AT%Q32.4 :BOOL; (*空调机组NJ-2AP(KT)1-5-启停控制*) | AO47: LAHU02A05_C AT%Q32.4 :BOOL; (*空调机组NJ-2AP(KT)1-5-启停控制*) | AQ47: AHU02A05_C | AR47: 空调机组NJ-2AP(KT)1-5-启停控制 | AS47: 260
